Workbook

Sheet Panel
T3: ="Versión " &configuracion!$P$2 -> Versión AP 202606
F7: ESTE COTIZADOR SOLO ES COMPATABLE CON EXCEL 2017 EN ADELANTE. NO ES COMPATIBLE CON iOS (MACBOOK).

Sheet Cotizador
A1: 1
C3: PRODUCTO: | D3: Tripulantes
B6: I) Información del Cliente y Corredor (Obligatoria para generar Emisión PDF)
B8: * RUC | C8: 1010101010 | E8: =IF(C8="","",IF(LEFT(C8,1)="1","Persona Natural",IF(LEFT(C8,1)="2","Empresa",IF(LEN(C8)=8,"Persona Natural","")))) -> Persona Natural | G8: Dirección | H8: lima
B9: * Razón Social | C9: marilrauia | G9: Nro | H9: 19
B10: * Nombre Comercial (si es diferente) | G10: Dpto/Piso/Int
B11: * CIIU | C11: 2100 - FABRICACIÓN DE PRODUCTOS FARMACÉUTICOS, SUSTANCIAS QUÍMICAS MEDICINALES Y PRODUCTOS BOTÁNICOS DE USO | G11: Lt
B12: * Sector / Industria | C12: Comercio | G12: Mz
B13: * Descripción de la Actividad | C13: operario | G13: Distrito | H13: lima
G14: Provincia | H14: lima
B15: * Correo Electrónico | C15: marialuisadiazc@gmail.com | G15: Departamento | H15: lima
B16: Teléfono
B18: * RUC del Corredor | C18: 20100126193 | E18: Código del Corredor | F18: 402071 | I18: Comisión del Corredor | J18: 0.25
B19: Razón Social del Corredor | C19: MARSH REHDER SA CORREDORES DE SEGUROS
B21: II) Datos para la Cotización
B23: Actividad que se va a asegurar
B25: ¿Los asegurados realizan la misma actividad? | C25: Si | E25: =IF(C25="No","Recuerde que cada actividad que realiza debe cotizarse como un grupo distinto. Seleccione la cantidad de grupos en 'Llenar Campos de Actividad'","") -> 
C27: Llenar Campos de Actividad | E27: GRUPO 1 | G27: GRUPO 2 | I27: GRUPO 3 | K27: GRUPO 4
B29: ¿Cuál es su ocupación? | F29: =VLOOKUP(E30,Actividades!$S$5:$T$11,2,0)+IF(OR(Cotizador!E31="Nunca / 1 vez al mes",Cotizador!E31="2 veces al mes"),0,7) ->  | H29: =VLOOKUP(G30,Actividades!$S$5:$T$11,2,0)+IF(OR(Cotizador!G31="Nunca / 1 vez al mes",Cotizador!G31="2 veces al mes"),0,7) ->  | J29: =VLOOKUP(I30,Actividades!$S$5:$T$11,2,0)+IF(OR(Cotizador!I31="Nunca / 1 vez al mes",Cotizador!I31="2 veces al mes"),0,7) ->  | L29: =VLOOKUP(K30,Actividades!$S$5:$T$11,2,0)+IF(OR(Cotizador!K31="Nunca / 1 vez al mes",Cotizador!K31="2 veces al mes"),0,7) -> 
B30: ¿Qué tipo de actividad realiza en el día a día?
B31: ¿Con qué frecuencia realiza viajes?
B33: =IF(D3="Tripulantes","Datos del Vehículo de los Tripulantes",IF(D3="Ocupantes","Datos del Vehículo de los Ocupantes","Datos del Vehículo de los Tripulantes / Ocupantes")) -> Datos del Vehículo de los Tripulantes
B35: Tipo de Transporte | C35: Terrestre
B36: Número de matrícula del vehículo | C36: 1234567
B38: ¿Tienes más vehículos? | C38: No
B40: Números de Matrícula
B44: Datos de los Viajes
B46: N° de viajes al año | E46: Motivo del Viaje
B47: N° promedio de días por viaje
B48: N° de días de viaje al año | C48: =C46*C47 -> 0 | E48: Lugar del Viaje
B49: N° personas que viajan juntas
B51: =IF(D3="Accidentes Individual","Fecha de Nacimiento","¿Cuántos asegurados pertenecen a este grupo?") -> ¿Cuántos asegurados pertenecen a este grupo? | E51: 30
E53: 24 horas
B55: Monto de la Planilla Anual
B56: Sueldo Máximo Mensual
B58: =IF(D3="Aforo","Detalle del Aforo",IF(D3="Eventos","Detalle del Evento","Detalle del Aforo / Detalle del Evento")) -> Detalle del Aforo / Detalle del Evento
B60: Nombre de Local | G60: Aforo Promedio
B61: Tipo de Local | G61: Aforo Máximo
B63: Nombre de Evento | G63: N° de Asistentes
B64: Lugar del Evento | G64: Duración del Evento
B66: Tipo de Riesgo | E66: =IFERROR(IF(OR(D3="Suma Asegurada Fija",D3="Suma Asegurada Variable",D3="Accidentes Individual"),VLOOKUP($E$29,Actividades!$C:$Q,Cotizador!F29,0),IF(OR(Cotizador!D3="Ocupantes",D3="Tripulantes",Cotizador!D3="Viajes"),"Grupo1")),"") -> Grupo1 | G66: =IFERROR(IF(OR(D3="Suma Asegurada Fija",D3="Suma Asegurada Variable",),VLOOKUP($G$29,Actividades!$C:$Q,Cotizador!H29,0),""),"") ->  | I66: =IFERROR(IF(OR(D3="Suma Asegurada Fija",D3="Suma Asegurada Variable",),VLOOKUP($I$29,Actividades!$C:$Q,Cotizador!J29,0),""),"") ->  | K66: =IFERROR(IF(OR(D3="Suma Asegurada Fija",D3="Suma Asegurada Variable",),VLOOKUP($K$29,Actividades!$C:$Q,Cotizador!L29,0),""),"") -> 
B68: Coberturas
B70: Inicio de Vigencia | C70: 46388 | E70: Tipo de póliza | F70: Nominativa
B71: Fin de Vigencia | C71: 46419
B72: Días de Vigencia | C72: =IF(AND(C70<>"",C71<>""),IF(C71-C70=0,1,C71-C70),"") -> 31
B73: Tipo de Moneda | C73: Dólares
E75: GRUPO 1 | G75: GRUPO 2 | I75: GRUPO 3 | K75: GRUPO 4
B77: ="Ingrese los montos que desea asegurar. "& tabla2!$Q$8 -> Ingrese los montos que desea asegurar. Recuerde que solo puede cotizar una suma asegurada máxima de $ 70,000 o S/ 266,000 en Muerte Accidental / Invalidez Permanente. | C77: Muerte Accidental USD | E77: 3000
C78: Invalidez Permanente USD | E78: 300
C79: Gastos de Curación USD
C80: Gastos de Sepelio USD
B81: ="Cúmulo máximo por evento de $ " & TEXT(tabla2!$D$4,"##,##0") & " S/ " & TEXT(tabla2!$E$4,"##,##0") -> Cúmulo máximo por evento de $ 500,000 S/ 1,900,000 | C81: Incapacidad Temporal USD | E81: =IF(E82*E83=0,0,E82*E83) -> 0 | G81: =IF(G82*G83=0,0,G82*G83) -> 0 | I81: =IF(I82*I83=0,0,I82*I83) -> 0 | K81: =IF(K82*K83=0,0,K82*K83) -> 0
C82: Suma asegurada máxima por día USD
C83: Número máximo de días
C84: Desamparo Súbito Familiar
C85: Renta Hospitalaria Diaria
C86: Repatriación de Restos Mortales USD
C87: Límite agregado anual por GC
B89: CLÁUSULAS ADICIONALES | E89: GRUPO 1 | G89: GRUPO 2 | I89: GRUPO 3 | K89: GRUPO 4
B90: Cláusula por la cobertura de Terrorismo y otros riesgos.
B91: Cláusula de ampliación del límite máximo de edad, personas mayores de 70 y hasta los 80 años inclusive.
B92: Cláusula de asegurado menor de edad
B93: Por limitación a horas de trabajo.
B94: Cláusula por la práctica no profesional de deportes y/o actividades de riesgo. Nivel 1 (Fútbol, béisbol, básquetbol)
B95: Cláusula por la práctica no profesional de deportes y/o actividades de riesgo. Nivel 2 (Polo, jockey, pesca en altamar, rodeo, rugby, esquí acuático, equitación, tabla hawaiana)
B96: Cláusula por la práctica no profesional de deportes y/o actividades de riesgo. Nivel 3 (Pesca submarina, karate, judo, boxeo, pesas, andinismo y caminatas en alta montaña)
B97: Cláusula por la conducción urbana o rural de motocicletas, motonetas y otros vehículos similares.
B98: Cláusula para pasajeros que usan cualquier medio habitual de transporte público de personas, en vehículos que no recorren itinerarios regulares y fijos.
B99: Ocupantes de vehiculos automotores particulares (no comerciales) por accidentes de tránsito.
B100: Cláusula para pasajeros de aviones y/o helicópteros particulares y/o de la FAP por viajes eventuales. Nivel 1 (Para pasajeros de aviones de propiedad o alquilados por empresas comerciales, industriales y bancos)
B101: Cláusula para pasajeros de aviones y/o helicópteros particulares y/o de la FAP por viajes eventuales. Nivel 2 (Otros excepto helicópteros)
B102: Cláusula para pasajeros de aviones y/o helicópteros particulares y/o de la FAP por viajes eventuales. Nivel 3 (Aviones de la FAP y helicópteros particulares y/o de la FAP utilizados en el transporte de personas)
B103: Pescadores y/o Estibadores
B104: Cláusula de invalidez permanente parcial previa al seguro.
B105: Muerte accidental en transporte público y aviación comercial
B106: Por usar y/o portar armas
B107: Por cubrir gastos no reembolsables por ESSALUD
B108: Terremoto y/o temblor y/o huaycos y/u otros fenómenos de la naturaleza
B109: Cláusula de invalidez permanente parcial previa al seguro.
B110: Cláusula por la cobertura de Terrorismo y otros riesgos.
B111: Por limitación a horas de trabajo.
B112: Cláusula por la práctica no profesional de deportes y/o actividades de riesgo. Nivel 1 (Fútbol, béisbol, básquetbol)
B113: Cláusula por la práctica no profesional de deportes y/o actividades de riesgo. Nivel 2 (Polo, jockey, pesca en altamar, rodeo, rugby, esquí acuático, equitación, tabla hawaiana)
B114: Cláusula por la práctica no profesional de deportes y/o actividades de riesgo. Nivel 3 (Pesca submarina, karate, judo, boxeo, pesas, andinismo y caminatas en alta montaña)
B115: Cláusula por la conducción urbana o rural de motocicletas, motonetas y otros vehículos similares.
B116: Cláusula para pasajeros que usan cualquier medio habitual de transporte público de personas, en vehículos que no recorren itinerarios regulares y fijos.
B117: Cláusula para pasajeros de aviones y/o helicópteros particulares y/o de la FAP por viajes eventuales. Nivel 1 (Para pasajeros de aviones de propiedad o alquilados por empresas comerciales, industriales y bancos)
B118: Cláusula para pasajeros de aviones y/o helicópteros particulares y/o de la FAP por viajes eventuales. Nivel 2 (Otros excepto helicópteros)
B119: Cláusula para pasajeros de aviones y/o helicópteros particulares y/o de la FAP por viajes eventuales. Nivel 3 (Aviones de la FAP y helicópteros particulares y/o de la FAP utilizados en el transporte de personas)
B120: Cláusula de accidentes personales para viajes y/o corto plazo.
B121: Pescadores y/o Estibadores
B122: Cláusula de ampliación del límite máximo de edad, personas mayores de 70 y hasta los 80 años inclusive.
B123: Ocupantes de vehiculos automotores particulares (no comerciales) por accidentes de tránsito.
B124: Por usar y/o portar armas
B125: Por cubrir gastos no reembolsables por ESSALUD
B127: III) Cálculo de la Prima
B129: Descuento / Incremento Comercial (Digite entre -10% a 10%) | C129: 0 | E129: =IF(AND(D3="Accidentes Individual",LEN(E51)=0),"Colocar Fecha Nacimiento",IF(E29<>"",IF(E51="","Colocar N° de Asegurados",""),"")) ->  | G129: =IF(G29<>"",IF(G51="","Colocar N° de Asegurados",""),"") ->  | I129: =IF(I29<>"",IF(I51="","Colocar N° de Asegurados",""),"") ->  | K129: =IF(K29<>"",IF(K51="","Colocar N° de Asegurados",""),"") -> 
C131: TOTAL | E131: GRUPO 1 | G131: GRUPO 2 | I131: GRUPO 3 | K131: GRUPO 4
B133: Utilidad GW: | C133: =E133 -> 0.322 | E133: =IFERROR(IF(D3="Suma Asegurada Fija",Calculadora!$O$17,IF(D3="Suma Asegurada Variable",Calculadora!$BG$17,IF(D3="Tripulantes",Calculadora!$CU$17,IF(D3="Ocupantes",Calculadora!$DL$17,IF(D3="Viajes",Calculadora!$ED$17,IF(Cotizador!D3="Aforo",Calculadora!$ER$17,IF(D3="Eventos",Calculadora!$FI$17,IF(D3="Accidentes Individual",Calculadora!$FZ$17,0.1)))))))),0) -> 0.322 | G133: =IFERROR(Calculadora!$Q$17,0) -> 0 | I133: =IFERROR(Calculadora!$S$17,0) -> 0 | K133: =IFERROR(Calculadora!$U$17,0) -> 0
B135: =IF($C$73="Dólares",IF(D3="Suma Asegurada Variable","Tasa sobre Planilla Anual","Prima Neta Anual por Persona USD"),IF(D3="Suma Asegurada Variable","Tasa sobre Planilla Anual","Prima Neta Anual por Persona S/")) -> Prima Neta Anual por Persona USD | C135: =E135+G135+I135+K135 -> 0 | E135: =IF($D$3="Suma Asegurada Fija",Calculadora!I5,IF($D$3="Suma Asegurada Variable",Calculadora!BA5,0)) -> 0 | G135: =IF($D$3="Suma Asegurada Fija",Calculadora!J5,IF($D$3="Suma Asegurada Variable",Calculadora!BB5,0)) -> 0 | I135: =IF($D$3="Suma Asegurada Fija",Calculadora!K5,IF($D$3="Suma Asegurada Variable",Calculadora!BC5,0)) -> 0 | K135: =IF($D$3="Suma Asegurada Fija",Calculadora!L5,IF($D$3="Suma Asegurada Variable",Calculadora!BD5,0)) -> 0
B136: Prima Neta Total Anual USD | C136: =E136+G136+I136+K136 -> 0 | E136: =IF($D$3="Suma Asegurada Fija",Calculadora!I6,IF($D$3="Suma Asegurada Variable",Calculadora!BA6,0)) -> 0 | G136: =IF($D$3="Suma Asegurada Fija",Calculadora!J6,IF($D$3="Suma Asegurada Variable",Calculadora!BB6,0)) -> 0 | I136: =IF($D$3="Suma Asegurada Fija",Calculadora!K6,IF($D$3="Suma Asegurada Variable",Calculadora!BC6,0)) -> 0 | K136: =IF($D$3="Suma Asegurada Fija",Calculadora!L6,IF($D$3="Suma Asegurada Variable",Calculadora!BD6,0)) -> 0
B137: Prima Neta por la Vigencia USD | C137: =E137+G137+I137+K137 -> 0 | E137: =IF($D$3="Suma Asegurada Fija",Calculadora!I7,IF($D$3="Suma Asegurada Variable",Calculadora!BA7,0)) -> 0 | G137: =IF($D$3="Suma Asegurada Fija",Calculadora!J7,IF($D$3="Suma Asegurada Variable",Calculadora!BB7,0)) -> 0 | I137: =IF($D$3="Suma Asegurada Fija",Calculadora!K7,IF($D$3="Suma Asegurada Variable",Calculadora!BC7,0)) -> 0 | K137: =IF($D$3="Suma Asegurada Fija",Calculadora!L7,IF($D$3="Suma Asegurada Variable",Calculadora!BD7,0)) -> 0
B138: Derecho de Emisión USD | C138: 0 | E138: =IF($D$3="Suma Asegurada Fija",Calculadora!I8,IF($D$3="Suma Asegurada Variable",Calculadora!BA8,0)) -> 0 | G138: =IF($D$3="Suma Asegurada Fija",Calculadora!J8,IF($D$3="Suma Asegurada Variable",Calculadora!BB8,0)) -> 0 | I138: =IF($D$3="Suma Asegurada Fija",Calculadora!K8,IF($D$3="Suma Asegurada Variable",Calculadora!BC8,0)) -> 0 | K138: =IF($D$3="Suma Asegurada Fija",Calculadora!L8,IF($D$3="Suma Asegurada Variable",Calculadora!BD8,0)) -> 0
B139: Prima Comercial USD | C139: 0 | E139: =IF($D$3="Suma Asegurada Fija",Calculadora!I9,IF($D$3="Suma Asegurada Variable",Calculadora!BA9,0)) -> 0 | G139: =IF($D$3="Suma Asegurada Fija",Calculadora!J9,IF($D$3="Suma Asegurada Variable",Calculadora!BB9,0)) -> 0 | I139: =IF($D$3="Suma Asegurada Fija",Calculadora!K9,IF($D$3="Suma Asegurada Variable",Calculadora!BC9,0)) -> 0 | K139: =IF($D$3="Suma Asegurada Fija",Calculadora!L9,IF($D$3="Suma Asegurada Variable",Calculadora!BD9,0)) -> 0
B140: Impuesto General a las Ventas (18%) USD | C140: 0 | E140: =IF($D$3="Suma Asegurada Fija",Calculadora!I10,IF($D$3="Suma Asegurada Variable",Calculadora!BA10,0)) -> 0 | G140: =IF($D$3="Suma Asegurada Fija",Calculadora!J10,IF($D$3="Suma Asegurada Variable",Calculadora!BB10,0)) -> 0 | I140: =IF($D$3="Suma Asegurada Fija",Calculadora!K10,IF($D$3="Suma Asegurada Variable",Calculadora!BC10,0)) -> 0 | K140: =IF($D$3="Suma Asegurada Fija",Calculadora!L10,IF($D$3="Suma Asegurada Variable",Calculadora!BD10,0)) -> 0
B141: Prima Total USD | C141: =E141+G141+I141+K141 -> 0 | E141: =IF($D$3="Suma Asegurada Fija",Calculadora!I11,IF($D$3="Suma Asegurada Variable",Calculadora!BA11,0)) -> 0 | G141: =IF($D$3="Suma Asegurada Fija",Calculadora!J11,IF($D$3="Suma Asegurada Variable",Calculadora!BB11,0)) -> 0 | I141: =IF($D$3="Suma Asegurada Fija",Calculadora!K11,IF($D$3="Suma Asegurada Variable",Calculadora!BC11,0)) -> 0 | K141: =IF($D$3="Suma Asegurada Fija",Calculadora!L11,IF($D$3="Suma Asegurada Variable",Calculadora!BD11,0)) -> 0
B143: Prima Neta Anual por Persona USD | C143: =E143 -> 0.29 | E143: =IF($D$3="Tripulantes",Calculadora!CR5,IF($D$3="Ocupantes",Calculadora!DI5,IF($D$3="Viajes",Calculadora!DZ5,IF($D$3="Aforo",Calculadora!EN9,IF($D$3="Eventos",Calculadora!FE9,IF($D$3="Accidentes Individual",Calculadora!FV9,0)))))) -> 0.29
B144: =IF(D3="Viajes","Prima Neta por Día de Viaje", "Prima Neta por Persona por Vigencia") -> Prima Neta por Persona por Vigencia | C144: =E144 -> 3 | E144: =IF($D$3="Tripulantes",Calculadora!CR6,IF($D$3="Ocupantes",Calculadora!DI6,IF($D$3="Viajes",Calculadora!DZ6,IF($D$3="Aforo",Calculadora!EN10,IF($D$3="Eventos",Calculadora!FE10,IF($D$3="Accidentes Individual",Calculadora!FV10,0)))))) -> 3
B145: Derecho de Emisión USD | C145: 0.09 | E145: =IF($D$3="Tripulantes",Calculadora!CR7,IF($D$3="Ocupantes",Calculadora!DI7,IF($D$3="Viajes",Calculadora!DZ7,IF($D$3="Aforo",Calculadora!EN11,IF($D$3="Eventos",Calculadora!FE11,IF($D$3="Accidentes Individual",Calculadora!FV11,0)))))) -> 0.09
B146: =IF(D3="Viajes","Prima Comercial por Día de Viaje", "Prima Comercial por Persona por Vigencia") -> Prima Comercial por Persona por Vigencia | C146: 3.09 | E146: =IF($D$3="Tripulantes",Calculadora!CR8,IF($D$3="Ocupantes",Calculadora!DI8,IF($D$3="Viajes",Calculadora!DZ8,IF($D$3="Aforo",Calculadora!EN12,IF($D$3="Eventos",Calculadora!FE12,IF($D$3="Accidentes Individual",Calculadora!FV12,0)))))) -> 3.09
B147: Impuesto General a las Ventas (18%) USD | C147: 0.56 | E147: =IF($D$3="Tripulantes",Calculadora!CR9,IF($D$3="Ocupantes",Calculadora!DI9,IF($D$3="Viajes",Calculadora!DZ9,IF($D$3="Aforo",Calculadora!EN13,IF($D$3="Eventos",Calculadora!FE13,IF($D$3="Accidentes Individual",Calculadora!FV13,0)))))) -> 0.56
B148: =IF(D3="Viajes","Prima Total por Día de Viaje", "Prima Total por Persona por Vigencia") -> Prima Total por Persona por Vigencia | C148: 3.65 | E148: =IF($D$3="Tripulantes",Calculadora!CR10,IF($D$3="Ocupantes",Calculadora!DI10,IF($D$3="Viajes",Calculadora!DZ10,IF($D$3="Aforo",Calculadora!EN14,IF($D$3="Eventos",Calculadora!FE14,IF($D$3="Accidentes Individual",Calculadora!FV14,0)))))) -> 3.65
B150: =IF(OR($D$3="Tripulantes",$D$3="Ocupantes"),"Prima Neta por Total de Asegurados",IF($D$3="Viajes","Prima Neta por Total de Días de Viaje",IF(D3="Aforo","Prima Neta por Aforo Máximo",IF(D3="Eventos","Prima Neta por Total de Asistentes al Evento","Prima Neta")))) -> Prima Neta por Total de Asegurados | C150: =E150 -> 90 | E150: =IF($D$3="Tripulantes",Calculadora!CS6,IF($D$3="Ocupantes",Calculadora!DJ6,IF($D$3="Viajes",Calculadora!EA6,IF($D$3="Aforo",Calculadora!EO10,IF($D$3="Eventos",Calculadora!FF10,0))))) -> 90
B151: Derecho de Emisión USD | C151: =E151 -> 2.7 | E151: =IF($D$3="Tripulantes",Calculadora!CS7,IF($D$3="Ocupantes",Calculadora!DJ7,IF($D$3="Viajes",Calculadora!EA7,IF($D$3="Aforo",Calculadora!EO11,IF($D$3="Eventos",Calculadora!FF11,0))))) -> 2.7
B152: =IF(OR($D$3="Tripulantes",$D$3="Ocupantes"),"Prima Comercial por Total de Asegurados",IF($D$3="Viajes","Prima Comercial por Total de Días de Viaje",IF(D3="Aforo","Prima Comercial por Aforo Máximo",IF(D3="Eventos","Prima Comercial por Total de Asistentes al Evento","Prima Neta")))) -> Prima Comercial por Total de Asegurados | C152: =E152 -> 92.7 | E152: =IF($D$3="Tripulantes",Calculadora!CS8,IF($D$3="Ocupantes",Calculadora!DJ8,IF($D$3="Viajes",Calculadora!EA8,IF($D$3="Aforo",Calculadora!EO12,IF($D$3="Eventos",Calculadora!FF12,0))))) -> 92.7
B153: Impuesto General a las Ventas (18%) USD | C153: =E153 -> 16.69 | E153: =IF($D$3="Tripulantes",Calculadora!CS9,IF($D$3="Ocupantes",Calculadora!DJ9,IF($D$3="Viajes",Calculadora!EA9,IF($D$3="Aforo",Calculadora!EO13,IF($D$3="Eventos",Calculadora!FF13,0))))) -> 16.69
B154: =IF(OR($D$3="Tripulantes",$D$3="Ocupantes"),"Prima Total por Total de Asegurados",IF($D$3="Viajes","Prima Total por Total de Días de Viaje",IF(D3="Aforo","Prima Total por Aforo Máximo",IF(D3="Eventos","Prima Total por Total de Asistentes al Evento","Prima Neta")))) -> Prima Total por Total de Asegurados | C154: =E154 -> 109.39 | E154: =IF($D$3="Tripulantes",Calculadora!CS10,IF($D$3="Ocupantes",Calculadora!DJ10,IF($D$3="Viajes",Calculadora!EA10,IF($D$3="Aforo",Calculadora!EO14,IF($D$3="Eventos",Calculadora!FF14,0))))) -> 109.39
B156: IV) Forma de Pago (Obligatoria para generar Emisión PDF)
B158: Forma de pago | C158: Débito Automático
B160: Número de Cuotas | C160: 4 | E160: cuotas s/i
B161: Prima Total por Cuota USD | C161: =IFERROR(C163/C160,0) -> 27.3475
B162: Interés Total USD | C162: =ROUND(IF($C$154=0,0,$C$163-$C$154),2) -> 0
B163: Prima Comercial + IGV USD | C163: 109.39
B164: Prima Comercial + IGV S/ | C164: =$C$163*tabla2!$H$4 -> 415.682

Sheet ListarArchivos
C1: C:\Users\G4297499\Downloads | G1: Ir al Panel
C2: Listar Slips Generados por Producto
G3: Carpeta | H3: Suma Asegurada Fija
C9: Dar doble clic sobre el nombre del archivo PDF para abrirlo
C10: Nombre del Archivo | D10: Tamaño bytes | E10: Ultima modificación

Sheet Trama
A1: Formato de Trama: Accidentes Personales
G2: Solo se llena si es Suma Asegurada Variable
A4: NOMBRES | B4: APELLIDO PATERNO | C4: APELLIDO MATERNO | D4: SEXO | E4: FECHA DE NACIMIENTO | F4: DNI | G4: SUELDO

Sheet configuracion (hidden)
H1: CONTRASEÑA | L1: Ir a Panel | P1: VERSIÓN
D2: VARIABLES DE CONFIGURACIÓN | H2: a<R+83-vR,s?KQ | P2: AP 202606 | AD2: Límites diferenciado por perfil de usuario | AO2: Los Grupos indicados son los permitidos | AU2: PRIMA TOTAL MÁXIMA
S3: DIAS MINIMOS PARA APLICAR CUOTAS | Y3: PRIMA MINIMA | AE3: Producto | AG3: Comercial | AI3: Broker | AN3: Sector | AO3: Autonomías | AV3: Producto
D4: Perfil: | E4: Comercial | M4: NumerodeGrupos | P4: Tipo de Cambio | S4: DIAS DESDE INICIO VIGENCIA | T4: ADICIONALES | X4: PRODUCTO | Y4: DOLARES | Z4: SOLES | AD4: COBERTURAS | AE4: DOLARES | AF4: SOLES | AG4: DOLARES | AH4: SOLES | AI4: DOLARES | AJ4: SOLES | AO4: Broker | AP4: Comercial | AQ4: Producto | AU4: COBERTURAS | AV4: DOLARES | AW4: SOLES
M5: 1 | P5: 3.3 | S5: 120 | T5: 15 | X5: Suma Asegurada Fija | Y5: 50 | Z5: =ROUND(Y5*$P$5,0) -> 165 | AD5: Muerte Accidental | AE5: 500000 | AF5: =ROUND(AE5*$P$5,0) -> 1650000 | AG5: 200000 | AH5: =ROUND(AG5*$P$5,0) -> 660000 | AI5: 200000 | AJ5: =ROUND(AI5*$P$5,0) -> 660000 | AN5: Actividades Deportivas y de Esparcimiento | AO5: Grupo1|Grupo2 | AP5: Grupo1|Grupo2|Grupo3 | AQ5: Sin límite | AU5: Producto | AV5: sin limite | AW5: sin limite
X6: Suma Asegurada Variable | Y6: 50 | Z6: =ROUND(Y6*$P$5,0) -> 165 | AD6: Invalidez Permanente | AE6: 1 | AF6: 1 | AG6: 1 | AH6: 1 | AI6: 1 | AJ6: 1 | AN6: Construcción | AO6: Grupo1|Grupo2 | AP6: Grupo1|Grupo2 | AQ6: Sin límite | AU6: Comercial | AV6: 30000 | AW6: =ROUND(AV6*$P$5,0) -> 99000
X7: Tripulantes | Y7: 50 | Z7: =ROUND(Y7*$P$5,0) -> 165 | AD7: Gastos de Curación | AE7: sin limite | AF7: sin limite | AG7: 0.3 | AH7: 0.3 | AI7: 0.3 | AJ7: 0.3 | AN7: Energia y Agua | AO7: Grupo1|Grupo2 | AP7: Grupo1|Grupo2 | AQ7: Sin límite | AU7: Broker | AV7: 10000 | AW7: =ROUND(AV7*$P$5,0) -> 33000
X8: Ocupantes | Y8: 50 | Z8: =ROUND(Y8*$P$5,0) -> 165 | AD8: Gastos de Sepelio | AE8: sin limite | AF8: sin limite | AG8: 0.3 | AH8: 0.3 | AI8: 0.3 | AJ8: 0.3 | AN8: Mineras | AO8: NoAplica | AP8: Grupo1|Grupo2 | AQ8: Sin límite
X9: Viajes | Y9: 50 | Z9: 165 | AD9: Incapacidad Temporal | AE9: sin limite | AF9: sin limite | AG9: 0.3 | AH9: 0.3 | AI9: 0.3 | AJ9: 0.3 | AN9: Transporte y Aviación | AO9: Grupo1|Grupo2 | AP9: Grupo1|Grupo2|Grupo3 | AQ9: Sin límite
X10: Aforo | Y10: 50 | Z10: 165 | AD10: Desamparo Súbito Familiar | AE10: sin limite | AF10: sin limite | AG10: No aplica | AH10: No aplica | AI10: No aplica | AJ10: No aplica
X11: Eventos | Y11: 50 | Z11: 165 | AD11: Renta Hospitalaria Diaria por Accidente | AE11: sin limite | AF11: sin limite | AG11: No aplica | AH11: No aplica | AI11: No aplica | AJ11: No aplica
X12: Accidentes Individual | Y12: 50 | Z12: 165 | AD12: Repatriación de Restos Mortales | AE12: sin limite | AF12: sin limite | AG12: 0.3 | AH12: 0.3 | AI12: 0.3 | AJ12: 0.3
AD13: Límite agregado anual por gastos de curación por accidente | AE13: sin limite | AF13: sin limite | AG13: No aplica | AH13: No aplica | AI13: No aplica | AJ13: No aplica

Sheet tabla2 (hidden)
A1: SUMA ASEGURADA MAX X DIA | D1: Cúmulo máximo por evento | AG1: OBJETIVOS | AH1: ocupaciones restringidas | AI1: MENSAJES | AN1: OBJETIVOS | AO1: ocupaciones limitadas | AP1: NIVEL 1 | AQ1: RESULTADO | AR1: NIVEL 2 | AS1: RESULTADO | AT1: NIVEL 3 | AU1: RESULTADO | AV1: MENSAJES | AZ1: Porcentajes Permitidos | BE1: AFOROS MAXIMO
A2: PARA TODO ACCIDENTES COLECTIVOS | D2: PARA TODO ACCIDENTES COLECTIVOS | H2: TIPO DE | M2: PARA TODO ACCIDENTES COLECTIVOS | AA2: ocupaciones de Salud | AZ2: Descuento | BA2: Descuento | BE2: EVENTOS | BF2: AFORO
A3: USD | B3: S/ | D3: USD | E3: S/ | H3: CAMBIO | K3: SELECTED | L3: DESCRIP | M3: SECCIONES | N3: RUBRO | O3: USD | P3: S/ | Q3: MENSAJE | R3: MENSAJE | V3: SECCIONES | W3: ocupaciones de Salud | AA3: ¿Qué tipo de actividad realiza en el día a día? | AB3: CAT | AJ3: REFERENCIAL | AZ3: Mínimo | BA3: Máximo | BE3: MAXIMO | BF3: MAXIMO
A4: 150 | B4: =A4*$H$4 -> 570 | D4: 500000 | E4: =D4*$H$4 -> 1900000 | H4: 3.8 | M4: Suma Asegurada Fija | N4: SALUD | O4: 10000 | P4: =O4*$H$4 -> 38000 | Q4: ="Recuerde que solo puede cotizar una suma asegurada máxima de $ " & TEXT(O4,"##,##0") & " o S/ " & TEXT(P4,"##,##0") & " en Muerte Accidental / Invalidez Permanente." -> Recuerde que solo puede cotizar una suma asegurada máxima de $ 10,000 o S/ 38,000 en Muerte Accidental / Invalidez Permanente. | U4: ok | V4: Suma Asegurada Fija | W4: Dentista | AA4: Actividades relacionadas con el rubro salud | AB4: G | AF4: ok | AG4: Objetivo 2 | AI4: ="Para cotizar la actividad " & AH4 &", por favor comunicarse con su ejecutivo comercial" -> Para cotizar la actividad , por favor comunicarse con su ejecutivo comercial | AJ4: Buzos | AL4: =VLOOKUP(AO4,Actividades!$C:$I,2,0) -> Suscripción | AM4: ok | AN4: Objetivo 3 | AO4: Academias, instituciones, universidades y similares | AP4: 100 | AQ4: No | AR4: 101 | AS4: No | AT4: 102 | AU4: No | AV4: ="La actividad " & AO4 & " no cubre actividades deportivas de nivel 1, nivel 2 y/o nivel 3. " -> La actividad Academias, instituciones, universidades y similares no cubre actividades deportivas de nivel 1, nivel 2 y/o nivel 3. | AZ4: -0.1 | BA4: 0.1 | BE4: 5000 | BF4: 5000
M5: Suma Asegurada Fija | N5: OTROS SAF | O5: 70000 | P5: =O5*$H$4 -> 266000 | Q5: ="Recuerde que solo puede cotizar una suma asegurada máxima de $ " & TEXT(O5,"##,##0") & " o S/ " & TEXT(P5,"##,##0") & " en Muerte Accidental / Invalidez Permanente." -> Recuerde que solo puede cotizar una suma asegurada máxima de $ 70,000 o S/ 266,000 en Muerte Accidental / Invalidez Permanente. | U5: ok | V5: Suma Asegurada Fija | W5: Enfermero | AF5: ok | AG5: Objetivo 2 | AI5: ="Para cotizar la actividad " & AH5 &", por favor comunicarse con su ejecutivo comercial" -> Para cotizar la actividad , por favor comunicarse con su ejecutivo comercial | AJ5: Embarcaciones pesqueras, tripulantes de | AL5: =VLOOKUP(AO5,Actividades!$C:$I,2,0) -> Suscripción | AM5: ok | AN5: Objetivo 3 | AO5: Alumnos( escuelas, universidades, etc) | AP5: 100 | AQ5: No | AR5: 101 | AS5: No | AT5: 102 | AU5: No | AV5: ="La actividad " & AO5 & " no cubre actividades deportivas de nivel 1, nivel 2 y/o nivel 3. " -> La actividad Alumnos( escuelas, universidades, etc) no cubre actividades deportivas de nivel 1, nivel 2 y/o nivel 3.
L6: (Tasa) | M6: Suma Asegurada Variable | N6: SALUD | O6: 10000 | P6: =O6*$H$4 -> 38000 | Q6: ="Recuerde que solo puede cotizar una suma asegurada máxima de $ " & TEXT(O6,"##,##0") & " o S/ " & TEXT(P6,"##,##0") & " en Muerte Accidental / Invalidez Permanente." -> Recuerde que solo puede cotizar una suma asegurada máxima de $ 10,000 o S/ 38,000 en Muerte Accidental / Invalidez Permanente. | R6: ="El sueldo anualizado mayor no deberá exceder los $ " & TEXT(O6,"##,##0") & " o S/ " & TEXT(P6,"##,##0") -> El sueldo anualizado mayor no deberá exceder los $ 10,000 o S/ 38,000 | U6: ok | V6: Suma Asegurada Fija | W6: Farmacia o droguería | AF6: ok | AG6: Objetivo 2 | AI6: ="Para cotizar la actividad " & AH6 &", por favor comunicarse con su ejecutivo comercial" -> Para cotizar la actividad , por favor comunicarse con su ejecutivo comercial | AJ6: Minas: obreros (sin socavon) | AL6: =VLOOKUP(AO6,Actividades!$C:$I,2,0) -> Grupo4 | AM6: ok | AN6: Objetivo 3 | AO6: Centros de recreacdión, socios de | AP6: 100 | AQ6: No | AR6: 101 | AS6: No | AT6: 102 | AU6: No | AV6: ="La actividad " & AO6 & " no cubre actividades deportivas de nivel 1, nivel 2 y/o nivel 3. " -> La actividad Centros de recreacdión, socios de no cubre actividades deportivas de nivel 1, nivel 2 y/o nivel 3.
L7: (Tasa) | M7: Suma Asegurada Variable | N7: OTROS SAV | O7: 70000 | P7: =O7*$H$4 -> 266000 | Q7: ="Recuerde que solo puede cotizar una suma asegurada máxima de $ " & TEXT(O7,"##,##0") & " o S/ " & TEXT(P7,"##,##0") & " en Muerte Accidental / Invalidez Permanente." -> Recuerde que solo puede cotizar una suma asegurada máxima de $ 70,000 o S/ 266,000 en Muerte Accidental / Invalidez Permanente. | R7: ="El sueldo anualizado mayor no deberá exceder los $ " & TEXT(O7,"##,##0") & " o S/ " & TEXT(P7,"##,##0") -> El sueldo anualizado mayor no deberá exceder los $ 70,000 o S/ 266,000 | U7: ok | V7: Suma Asegurada Fija | W7: Hospitales o sanatorios, personal de | AF7: ok | AG7: Objetivo 2 | AI7: Para cotizar la actividad , por favor comunicarse con su ejecutivo comercial | AJ7: Minas: Trabajadores en socavón | AL7: =VLOOKUP(AO7,Actividades!$C:$I,2,0) -> Grupo4 | AM7: ok | AN7: Objetivo 3 | AO7: Clubs sociales | AP7: 100 | AQ7: No | AR7: 101 | AS7: No | AT7: 102 | AU7: No | AV7: ="La actividad " & AO7 & " no cubre actividades deportivas de nivel 1, nivel 2 y/o nivel 3. " -> La actividad Clubs sociales no cubre actividades deportivas de nivel 1, nivel 2 y/o nivel 3.
K8: X | L8: /Conductores | M8: Tripulantes | N8: OTROS | O8: 70000 | P8: =O8*$H$4 -> 266000 | Q8: ="Recuerde que solo puede cotizar una suma asegurada máxima de $ " & TEXT(O8,"##,##0") & " o S/ " & TEXT(P8,"##,##0") & " en Muerte Accidental / Invalidez Permanente." -> Recuerde que solo puede cotizar una suma asegurada máxima de $ 70,000 o S/ 266,000 en Muerte Accidental / Invalidez Permanente. | U8: ok | V8: Suma Asegurada Fija | W8: Médicos | AF8: ok | AG8: Objetivo 2 | AI8: Para cotizar la actividad , por favor comunicarse con su ejecutivo comercial | AJ8: Minas: Funcionarios, empleados (administrativos) | AL8: =VLOOKUP(AO8,Actividades!$C:$I,2,0) -> Grupo4 | AM8: ok | AN8: Objetivo 3 | AO8: Estudiante Individual | AP8: 100 | AQ8: No | AR8: 101 | AS8: No | AT8: 102 | AU8: No | AV8: ="La actividad " & AO8 & " no cubre actividades deportivas de nivel 1, nivel 2 y/o nivel 3. " -> La actividad Estudiante Individual no cubre actividades deportivas de nivel 1, nivel 2 y/o nivel 3.
M9: Viajes | N9: OTROS | O9: 70000 | P9: 266000 | Q9: Para cotizar ACCO Viajes, por favor comunicarse con su ejecutivo comercial | U9: ok | V9: Suma Asegurada Fija | W9: Oculistas | AF9: ok | AG9: Objetivo 2 | AI9: Para cotizar la actividad , por favor comunicarse con su ejecutivo comercial | AJ9: Pescador(es) | AL9: =VLOOKUP(AO9,Actividades!$C:$I,2,0) -> Suscripción | AM9: ok | AN9: Objetivo 5 | AO9: Deportista o Atleta NO profesional | AP9: 100 | AQ9: Si | AR9: 101 | AS9: No | AT9: 102 | AU9: No | AV9: ="La actividad " & AO9 & " solo cubre actividades deportivas de nivel 1." -> La actividad Deportista o Atleta NO profesional solo cubre actividades deportivas de nivel 1.
M10: Eventos | N10: OTROS | O10: 70000 | P10: 266000 | Q10: ="Recuerde que solo puede cotizar una suma asegurada máxima de $ " & TEXT(O10,"##,##0") & " o S/ " & TEXT(P10,"##,##0") & " en Muerte Accidental / Invalidez Permanente." -> Recuerde que solo puede cotizar una suma asegurada máxima de $ 70,000 o S/ 266,000 en Muerte Accidental / Invalidez Permanente. | U10: ok | V10: Suma Asegurada Fija | W10: Rayos x | AF10: ok | AG10: Objetivo 2 | AI10: Para cotizar la actividad , por favor comunicarse con su ejecutivo comercial | AJ10: Tripulantes de embarcaciones(pesqueras, remolcadoras y chatas)
L11: /Pasajeros | M11: Ocupantes | N11: OTROS | O11: 70000 | P11: 266000 | Q11: ="Recuerde que solo puede cotizar una suma asegurada máxima de $ " & TEXT(O11,"##,##0") & " o S/ " & TEXT(P11,"##,##0") & " en Muerte Accidental / Invalidez Permanente." -> Recuerde que solo puede cotizar una suma asegurada máxima de $ 70,000 o S/ 266,000 en Muerte Accidental / Invalidez Permanente. | U11: ok | V11: Suma Asegurada Fija | W11: Salud, personal de empresas de | AF11: ok | AG11: Objetivo 4 | AI11: ="Para cotizar la actividad " & AH11 & ", por favor comunicarse con su ejecutivo comercial" -> Para cotizar la actividad , por favor comunicarse con su ejecutivo comercial | AJ11: Deportista o atleta profesional
M12: Aforo | N12: OTROS | O12: 70000 | P12: 266000 | Q12: ="Recuerde que solo puede cotizar una suma asegurada máxima de $ " & TEXT(O12,"##,##0") & " o S/ " & TEXT(P12,"##,##0") & " en Muerte Accidental / Invalidez Permanente." -> Recuerde que solo puede cotizar una suma asegurada máxima de $ 70,000 o S/ 266,000 en Muerte Accidental / Invalidez Permanente. | V12: Suma Asegurada Variable | W12: Dentista | AF12: ok | AG12: Objetivo 4 | AI12: ="Para cotizar la actividad " & AH12 & ", por favor comunicarse con su ejecutivo comercial" -> Para cotizar la actividad , por favor comunicarse con su ejecutivo comercial | AJ12: Esquí
M13: Accidentes Individual | N13: SALUD | O13: 10000 | P13: 38000 | Q13: ="Recuerde que solo puede cotizar una suma asegurada máxima de $ " & TEXT(O13,"##,##0") & " o S/ " & TEXT(P13,"##,##0") & " en Muerte Accidental / Invalidez Permanente." -> Recuerde que solo puede cotizar una suma asegurada máxima de $ 10,000 o S/ 38,000 en Muerte Accidental / Invalidez Permanente. | V13: Suma Asegurada Variable | W13: Enfermero | AF13: ok | AG13: Objetivo 4 | AI13: ="Para cotizar la actividad " & AH13 & ", por favor comunicarse con su ejecutivo comercial" -> Para cotizar la actividad , por favor comunicarse con su ejecutivo comercial | AJ13: Motocross, práctica de
M14: Accidentes Individual | N14: OTROS AI | O14: 100000 | P14: 380000 | Q14: ="Recuerde que solo puede cotizar una suma asegurada máxima de $ " & TEXT(O14,"##,##0") & " o S/ " & TEXT(P14,"##,##0") & " en Muerte Accidental / Invalidez Permanente." -> Recuerde que solo puede cotizar una suma asegurada máxima de $ 100,000 o S/ 380,000 en Muerte Accidental / Invalidez Permanente. | V14: Suma Asegurada Variable | W14: Farmacia o droguería | AF14: ok | AG14: Objetivo 4 | AI14: ="Para cotizar la actividad " & AH14 & ", por favor comunicarse con su ejecutivo comercial" -> Para cotizar la actividad , por favor comunicarse con su ejecutivo comercial | AJ14: Fútbol, equipos profesionales de
V15: Suma Asegurada Variable | W15: Hospitales o sanatorios, personal de
V16: Suma Asegurada Variable | W16: Médicos
V17: Suma Asegurada Variable | W17: Oculistas
V18: Suma Asegurada Variable | W18: Rayos x
V19: Suma Asegurada Variable | W19: Salud, personal de empresas de
V20: Accidentes Individual | W20: Dentista
V21: Accidentes Individual | W21: Enfermero
V22: Accidentes Individual | W22: Farmacia o droguería
V23: Accidentes Individual | W23: Hospitales o sanatorios, personal de
V24: Accidentes Individual | W24: Médicos
V25: Accidentes Individual | W25: Oculistas
V26: Accidentes Individual | W26: Rayos x
V27: Accidentes Individual | W27: Salud, personal de empresas de

Sheet Calculadora (hidden)
A1: Cotizador ACCO Empleados Suma Fija | AQ1: ESF | AS1: Cotizador ACCO Empleados Tasa | CI1: TAS | CK1: Cotizador ACCO Tripulantes | CZ1: TRI | DB1: Cotizador ACCO Ocupantes | DQ1: OCU | DS1: Cotizador ACCO Viajes | EH1: VIA | EJ1: Cotizador ACCO Aforo | EY1: AFO | FA1: Cotizador ACCO Eventos | FP1: EVE | FR1: Cotizador ACCI | GG1: ACI | GI1: Cotizador ACCO - HOMOLOGACIÓN | GZ1: HOMO
A3: Inicio de Vigencia: | B3: =Cotizador!$C$70 -> 46388 | D3: Comisión | E3: =Cotizador!J18 -> 0.25 | I3: 1 | J3: 2 | K3: 3 | L3: 4 | N3: GRUPO 1 | P3: GRUPO 2 | R3: GRUPO 3 | T3: GRUPO 4 | AS3: Inicio de Vigencia: | AT3: =Cotizador!$C$70 -> 46388 | AV3: Comisión | AW3: =Cotizador!J18 -> 0.25 | BA3: 1 | BB3: 2 | BC3: 3 | BD3: 4 | BF3: GRUPO 1 | BH3: GRUPO 2 | BJ3: GRUPO 3 | BL3: GRUPO 4 | CK3: Inicio de Vigencia: | CL3: =Cotizador!$C$70 -> 46388 | CN3: Comisión | CO3: =Cotizador!J18 -> 0.25 | CR3: 1 | CT3: GRUPO 1 | DB3: Inicio de Vigencia: | DC3: =Cotizador!$C$70 -> 46388 | DE3: Comisión | DF3: =Cotizador!$J$18 -> 0.25 | DI3: 1 | DK3: GRUPO 1 | DS3: N° de viajes al año | DT3: =Cotizador!C46 -> 0 | DV3: Comisión | DW3: =Cotizador!$J$18 -> 0.25 | DZ3: Día | EA3: Total | EC3: GRUPO 1 | EJ3: Inicio de Vigencia: | EK3: =Cotizador!$C$70 -> 46388 | EM3: Comisión | EN3: =Cotizador!$J$18 -> 0.25 | EQ3: GRUPO 1 | FA3: Inicio de Vigencia: | FB3: =Cotizador!$C$70 -> 46388 | FD3: Comisión | FE3: =Cotizador!$J$18 -> 0.25 | FH3: GRUPO 1 | FL3: Cotizador | FR3: Inicio de Vigencia: | FS3: =Cotizador!$C$70 -> 46388 | FU3: Comisión | FV3: =Cotizador!$J$18 -> 0.25 | FY3: GRUPO 1 | GI3: Inicio de Vigencia: | GJ3: =Cotizador!$C$70 -> 46388 | GL3: Comisión | GM3: =Cotizador!J18 -> 0.25 | GQ3: 1 | GS3: GRUPO 1
A4: Fin de Vigencia: | B4: =Cotizador!$C$71 -> 46419 | D4: GA | E4: 0.2 | H4: CÁLCULO | I4: GRUPO 1 | J4: GRUPO 2 | K4: GRUPO 3 | L4: GRUPO 4 | N4: POLICY | P4: POLICY | R4: POLICY | T4: POLICY | AS4: Fin de Vigencia: | AT4: =Cotizador!$C$71 -> 46419 | AV4: GA | AW4: 0.2 | AZ4: CÁLCULO | BA4: GRUPO 1 | BB4: GRUPO 2 | BC4: GRUPO 3 | BD4: GRUPO 4 | BF4: POLICY | BH4: POLICY | BJ4: POLICY | BL4: POLICY | CK4: Fin de Vigencia: | CL4: =Cotizador!$C$71 -> 46419 | CN4: GA | CO4: 0.2 | CQ4: CÁLCULO | CR4: Persona | CS4: Total | CT4: POLICY | DB4: Fin de Vigencia: | DC4: =Cotizador!$C$71 -> 46419 | DE4: GA | DF4: 0.2 | DH4: CÁLCULO | DI4: Persona | DJ4: Grupo | DK4: POLICY | DS4: N° promedio de días por viaje | DT4: =Cotizador!C47 -> 0 | DV4: GA | DW4: 0.2 | DY4: CÁLCULO | DZ4: GRUPO 1 | EA4: GRUPO 1 | EC4: POLICY | EJ4: Fin de Vigencia: | EK4: =Cotizador!$C$71 -> 46419 | EM4: GA | EN4: 0.2 | EQ4: POLICY | FA4: Fin de Vigencia: | FB4: =Cotizador!$C$71 -> 46419 | FD4: GA | FE4: 0.2 | FH4: POLICY | FL4: $C$129 | FM4: $FB$6 | FR4: Fin de Vigencia: | FS4: =Cotizador!$C$71 -> 46419 | FU4: GA | FV4: 0.2 | FY4: POLICY | GI4: Fin de Vigencia: | GJ4: =Cotizador!$C$71 -> 46419 | GL4: GA | GM4: 0.2 | GP4: CÁLCULO | GQ4: GRUPO 1 | GS4: POLICY
A5: Días de Vigencia: | B5: =IF(B4-B3=0,1,B4-B3) -> 31 | D5: Utilidad | E5: 0.1 | H5: PN Anual por P | I5: =ROUND(IFERROR($J$59*(1+Cotizador!$C$129+$B$6),J59),2) -> 4.62 | J5: =ROUND(IFERROR(J65*(1+Cotizador!$C$129+$B$6),J65),2) -> 0 | K5: =ROUND(IFERROR(J71*(1+Cotizador!$C$129+$B$6),J71),2) -> 0 | L5: =ROUND(IFERROR($J$77*(1+Cotizador!$C$129+$B$6),$J$77),2) -> 0 | N5: Prima Neta | O5: =J59 -> 4.2 | P5: Prima Neta | Q5: =J65 -> 0 | R5: Prima Neta | S5: =J71 -> 0 | T5: Prima Neta | U5: =J77 -> 0 | AS5: Días de Vigencia: | AT5: =IF(AT4-AT3=0,1,AT4-AT3) -> 31 | AV5: Utilidad | AW5: 0.1 | AZ5: Tasa por P | BA5: =IFERROR(ROUND(BB59,4)*(1+Cotizador!$C$129+$AT$6),ROUND(BB59,4)) -> 0 | BB5: =IFERROR(ROUND(BB65,4)*(1+Cotizador!$C$129+$AT$6),ROUND(BB65,4)) -> 0 | BC5: =IFERROR(ROUND(BB71,4)*(1+Cotizador!$C$129+$AT$6),ROUND(BB71,4)) -> 0 | BD5: =IFERROR(ROUND(BB77,4)*(1+Cotizador!$C$129+$AT$6),ROUND(BB77,4)) -> 0 | BF5: Prima Neta | BG5: =BB59 -> 0 | BH5: Prima Neta | BI5: =BB65 -> 0 | BJ5: Prima Neta | BK5: =BB71 -> 0 | BL5: Prima Neta | BM5: =BB77 -> 0 | CK5: Días de Vigencia: | CL5: =IF(CL4-CL3=0,1,CL4-CL3) -> 31 | CN5: Utilidad | CO5: 0.1 | CQ5: PN Anual por P | CR5: =ROUND(IFERROR(CT58*(1+Cotizador!$C$129+$CL$6),CT58),2) -> 0.29 | CT5: Prima Neta | CU5: =GT5 -> 1.52 | DB5: Días de Vigencia: | DC5: =IF(DC4-DC3=0,1,DC4-DC3) -> 31 | DE5: Utilidad | DF5: 0.1 | DH5: PN Anual por P | DI5: =ROUND(IFERROR(DK58*(1+Cotizador!$C$129+$DC$6),DK58),2) -> 0.29 | DK5: Prima Neta | DL5: =GT5 -> 1.52 | DS5: N° de días de viaje al año | DT5: =DT3*DT4 -> 0 | DV5: Utilidad | DW5: 0.1 | DY5: PN por P | DZ5: =ROUND(IFERROR(EB58*(1+Cotizador!$C$129+$DT$6),EB58),2) -> 0.04 | EA5: X | EC5: Prima Neta | ED5: =GQ5/DT4 ->  | EJ5: Días de Vigencia: | EK5: =IF(EK4-EK3=0,1,EK4-EK3) -> 31 | EM5: Utilidad | EN5: 0.1 | EQ5: Prima Neta | ER5: =ES58 -> 0.09 | FA5: Días de Vigencia: | FB5: =IF(FB4-FB3=0,1,FB4-FB3) -> 31 | FD5: Utilidad | FE5: 0.1 | FH5: Prima Neta | FI5: =FJ58 -> 0.18 | FL5: =Cotizador!$C$129 -> 0 | FM5: =$FB$6 -> 0.1 | FR5: Días de Vigencia: | FS5: =IF(FS4-FS3=0,1,FS4-FS3) -> 31 | FU5: Utilidad | FV5: 0.1 | FY5: Prima Neta | FZ5: =GA56 -> 0.22 | GI5: Días de Vigencia: | GJ5: =IF(GJ4-GJ3=0,1,GJ4-GJ3) -> 31 | GL5: Utilidad | GM5: 0.1 | GP5: PN Anual por P | GQ5: =ROUND(IFERROR($J$59*(1+Cotizador!$C$129+$B$6),GR59),2) -> 4.62 | GS5: Prima Neta | GT5: =GR59 -> 1.52 | GV5: =Cotizador!D3 -> Tripulantes
A6: Colchón | B6: 0.1 | D6: DE | E6: 0.03 | H6: Por Vigencia | I6: =IF(AND(ROUND(I5*IF($B$5<=366,LOOKUP($B$5-1,'Período corto'!$B$2:$D$18),$B$5/365),2)<I12,I5>0),I12,ROUND(I5*IF($B$5<=366,LOOKUP($B$5-1,'Período corto'!$B$2:$D$18),$B$5/365),2)) -> 10 | J6: =IF(AND(ROUND(J5*IF($B$5<=366,LOOKUP($B$5-1,'Período corto'!$B$2:$D$18),$B$5/365),2)<J12,J5>0),J12,ROUND(J5*IF($B$5<=366,LOOKUP($B$5-1,'Período corto'!$B$2:$D$18),$B$5/365),2)) -> 0 | K6: =IF(AND(ROUND(K5*IF($B$5<=366,LOOKUP($B$5-1,'Período corto'!$B$2:$D$18),$B$5/365),2)<K12,K5>0),K12,ROUND(K5*IF($B$5<=366,LOOKUP($B$5-1,'Período corto'!$B$2:$D$18),$B$5/365),2)) -> 0 | L6: =IF(AND(ROUND(L5*IF($B$5<=366,LOOKUP($B$5-1,'Período corto'!$B$2:$D$18),$B$5/365),2)<L12,L5>0),L12,ROUND(L5*IF($B$5<=366,LOOKUP($B$5-1,'Período corto'!$B$2:$D$18),$B$5/365),2)) -> 0 | N6: Comisión | O6: 0.25 | P6: Comisión | Q6: 0.25 | R6: Comisión | S6: 0.25 | T6: Comisión | U6: 0.25 | AS6: Colchón | AT6: 0.1 | AV6: DE | AW6: 0.03 | AZ6: PN Total Anual | BA6: =ROUND(BA5*AU13,2) -> 0 | BB6: =ROUND(BB5*AV13,2) -> 0 | BC6: =ROUND(BC5*AW13,2) -> 0 | BD6: =ROUND(BD5*AX13,2) -> 0 | BF6: Comisión | BG6: 0.25 | BH6: Comisión | BI6: 0.25 | BJ6: Comisión | BK6: 0.25 | BL6: Comisión | BM6: 0.25 | CK6: Colchón | CL6: 0.1 | CN6: DE | CO6: 0.03 | CQ6: Por Vigencia | CR6: =IF(ROUND(CR5*IF($CL$5<=366,LOOKUP($CL$5-1,'Período corto'!$B$2:$D$18),$CL$5/366),2)<CR11,CR11,ROUND(CR5*IF($CL$5<=366,LOOKUP($CL$5-1,'Período corto'!$B$2:$D$18),$CL$5/366),2)) -> 3 | CS6: =ROUND(CR6*CM12,2) -> 90 | CT6: Comisión | CU6: 0.25 | DB6: Colchón | DC6: 0.1 | DE6: DE | DF6: 0.03 | DH6: Por Vigencia | DI6: =IF(ROUND(DI5*IF($DC$5<=366,LOOKUP($DC$5-1,'Período corto'!$B$2:$D$18),$DC$5/366),2)<DI11,DI11,ROUND(DI5*IF($DC$5<=366,LOOKUP($DC$5-1,'Período corto'!$B$2:$D$18),$DC$5/366),2)) -> 3 | DJ6: =ROUND(DD12*DI6,2) -> 90 | DK6: Comisión | DL6: 0.25 | DS6: Colchón | DT6: 0.1 | DV6: DE | DW6: 0.03 | DY6: PN x Día / Total | DZ6: =IF(ROUND(IFERROR(+DZ5*IF($DT$4<=366,LOOKUP($DT$4-1,'Período corto'!$B$2:$D$18),$DT$4/366),0),2)<DZ11,DZ11,ROUND(IFERROR(+DZ5*IF($DT$4<=366,LOOKUP($DT$4-1,'Período corto'!$B$2:$D$18),$DT$4/366),0),2)) -> 0 | EA6: =ROUND(DZ6*$DT$5,2) -> 0 | EC6: Comisión | ED6: 0.25 | EJ6: Colchón | EK6: 0.1 | EM6: DE | EN6: 0.03 | EQ6: Comisión | ER6: 0.25 | FA6: Colchón | FB6: 0.1 | FD6: DE | FE6: 0.03 | FH6: Comisión | FI6: 0.25 | FR6: Colchón | FS6: 0.1 | FU6: DE | FV6: 0.03 | FY6: Comisión | FZ6: 0.25 | GI6: Colchón | GJ6: 0.1 | GL6: DE | GM6: 0.03 | GP6: Por Vigencia | GQ6: =ROUND(GQ5*IF($B$5<=366,LOOKUP($B$5-1,'Período corto'!$B$2:$D$18),$B$5/365),2) -> 1.39 | GS6: Comisión | GT6: 0.25
H7: Prima Neta Total | I7: =ROUND(I6*C12,2) -> 300 | J7: =ROUND(J6*D12,2) -> 0 | K7: =ROUND(K6*E12,2) -> 0 | L7: =ROUND(L6*F12,2) -> 0 | N7: Gasto Técnico | O7: 0 | P7: Gasto Técnico | Q7: 0 | R7: Gasto Técnico | S7: 0 | T7: Gasto Técnico | U7: 0 | AZ7: PN x Vigencia | BA7: =IF(AND(BA5>0,ROUND(BA6*IF($AT$5<=366,LOOKUP($AT$5-1,'Período corto'!$B$2:$D$18),$AT$5/366),2)<BA12),BA12,ROUND(BA6*IF($AT$5<=366,LOOKUP($AT$5-1,'Período corto'!$B$2:$D$18),$AT$5/366),2)) -> 0 | BB7: =IF(AND(BB5>0,ROUND(BB6*IF($AT$5<=366,LOOKUP($AT$5-1,'Período corto'!$B$2:$D$18),$AT$5/366),2)<BB12),BB12,ROUND(BB6*IF($AT$5<=366,LOOKUP($AT$5-1,'Período corto'!$B$2:$D$18),$AT$5/366),2)) -> 0 | BC7: =IF(AND(BC5>0,ROUND(BC6*IF($AT$5<=366,LOOKUP($AT$5-1,'Período corto'!$B$2:$D$18),$AT$5/366),2)<BC12),BC12,ROUND(BC6*IF($AT$5<=366,LOOKUP($AT$5-1,'Período corto'!$B$2:$D$18),$AT$5/366),2)) -> 0 | BD7: =IF(AND(BD5>0,ROUND(BD6*IF($AT$5<=366,LOOKUP($AT$5-1,'Período corto'!$B$2:$D$18),$AT$5/366),2)<BD12),BD12,ROUND(BD6*IF($AT$5<=366,LOOKUP($AT$5-1,'Período corto'!$B$2:$D$18),$AT$5/366),2)) -> 0 | BF7: Gasto Técnico | BG7: 0 | BH7: Gasto Técnico | BI7: 0 | BJ7: Gasto Técnico | BK7: 0 | BL7: Gasto Técnico | BM7: 0 | CQ7: DE | CR7: =ROUND(CR6*3%,2) -> 0.09 | CS7: =ROUND(CS6*3%,2) -> 2.7 | CT7: Gasto Técnico | CU7: 0 | DH7: DE | DI7: =ROUND(DI6*$DF$6,2) -> 0.09 | DJ7: =ROUND(DJ6*$DF$6,2) -> 2.7 | DK7: Gasto Técnico | DL7: 0 | DY7: DE | DZ7: =ROUND(DW6*DZ6,2) -> 0 | EA7: =ROUND(EA6*$DW$6,2) -> 0 | EC7: Gasto Técnico | ED7: 0 | EJ7: Aforo Máximo | EK7: =Cotizador!H61 -> 0 | EQ7: Gasto Técnico | ER7: 0 | FA7: N° Asistentes | FB7: =Cotizador!H63 -> 0 | FE7: Personas | FF7: Total | FH7: Gasto Técnico | FI7: 0 | FR7: Grupo | FS7: =Cotizador!E66 -> Grupo1 | FY7: Gasto Técnico | FZ7: 0 | GP7: Prima Neta Total | GQ7: =ROUND(GQ6*GK12,2) -> 41.7 | GS7: Gasto Técnico | GT7: 0
C8: 1 | D8: 2 | E8: 3 | F8: 4 | H8: DE | I8: =ROUND(I7*$E$6,2) -> 9 | J8: =ROUND(J7*$E$6,2) -> 0 | K8: 0 | L8: =ROUND(L7*$E$6,2) -> 0 | N8: Administrativo | O8: 0.2 | P8: Administrativo | Q8: 0.2 | R8: Administrativo | S8: 0.2 | T8: Administrativo | U8: 0.2 | AU8: 1 | AV8: 2 | AW8: 3 | AX8: 4 | AZ8: DE | BA8: =ROUND(BA7*$AW$6,2) -> 0 | BB8: =ROUND(BB7*$AW$6,2) -> 0 | BC8: =ROUND(BC7*$AW$6,2) -> 0 | BD8: =ROUND(BD7*$AW$6,2) -> 0 | BF8: Administrativo | BG8: 0.2 | BH8: Administrativo | BI8: 0.2 | BJ8: Administrativo | BK8: 0.2 | BL8: Administrativo | BM8: 0.2 | CM8: 1 | CQ8: Prima Comercial | CR8: =ROUND(CR6+CR7,2) -> 3.09 | CS8: =ROUND(CS6+CS7,2) -> 92.7 | CT8: Administrativo | CU8: 0.2 | DD8: 1 | DH8: Prima Comercial | DI8: =ROUND(DI6+DI7,2) -> 3.09 | DJ8: =ROUND(DJ6+DJ7,2) -> 92.7 | DK8: Administrativo | DL8: 0.2 | DU8: 1 | DY8: PC x Día / Total | DZ8: =ROUND(DZ6+DZ7,2) -> 0 | EA8: =ROUND(EA6+EA7,2) -> 0 | EC8: Administrativo | ED8: 0.2 | EJ8: Aforo Promedio | EK8: =Cotizador!H60 -> 0 | EM8: CÁLCULO | EN8: GRUPO 1 | EQ8: Administrativo | ER8: 0.2 | FD8: CÁLCULO | FE8: GRUPO 1 | FF8: GRUPO 1 | FH8: Administrativo | FI8: 0.2 | FL8: ref | FR8: Columna | FS8: =IF(FS7="Grupo1",2,IF(FS7="Grupo2",3,IF(FS7="Grupo3",4,IF(FS7="Grupo4",5,0)))) -> 2 | FU8: CÁLCULO | FV8: GRUPO 1 | FY8: Administrativo | FZ8: 0.2 | GK8: 1 | GP8: DE | GQ8: =ROUND(GQ7*$E$6,2) -> 1.25 | GS8: Administrativo | GT8: 0.2
C9: GRUPO 1 | D9: GRUPO 2 | E9: GRUPO 3 | F9: GRUPO 4 | H9: Prima Comercial | I9: =ROUND(I7+I8,2) -> 309 | J9: =ROUND(J7+J8,2) -> 0 | K9: 0 | L9: 0 | N9: Utilidad | O9: 0.1 | P9: Utilidad | Q9: 0.1 | R9: Utilidad | S9: 0.1 | T9: Utilidad | U9: 0.1 | AU9: GRUPO 1 | AV9: GRUPO 2 | AW9: GRUPO 3 | AX9: GRUPO 4 | AZ9: Prima Comercial | BA9: =ROUND(BA7+BA8,2) -> 0 | BB9: =ROUND(BB7+BB8,2) -> 0 | BC9: =ROUND(BC7+BC8,2) -> 0 | BD9: =ROUND(BD7+BD8,2) -> 0 | BF9: Utilidad | BG9: 0.1 | BH9: Utilidad | BI9: 0.1 | BJ9: Utilidad | BK9: 0.1 | BL9: Utilidad | BM9: 0.1 | CM9: GRUPO 1 | CQ9: IGV | CR9: =ROUND(CR8*18%,2) -> 0.56 | CS9: =ROUND(CS8*18%,2) -> 16.69 | CT9: Utilidad | CU9: 0.1 | DD9: GRUPO 1 | DH9: IGV | DI9: =ROUND(DI8*18%,2) -> 0.56 | DJ9: =ROUND(DJ8*18%,2) -> 16.69 | DK9: Utilidad | DL9: 0.1 | DU9: GRUPO 1 | DY9: IGV | DZ9: =ROUND(DZ8*18%,2) -> 0 | EA9: =ROUND(EA8*18%,2) -> 0 | EC9: Utilidad | ED9: 0.1 | EM9: PN Anual por P | EN9: =ROUND(IFERROR(IFERROR(ES58*(1+Cotizador!$C$129+$EK$6),ES58),0),2) -> 0.1 | EQ9: Utilidad | ER9: 0.1 | FD9: PN Anual por P | FE9: =ROUND(IFERROR(IFERROR(FJ58*(1+Cotizador!$C$129+$FB$6),FJ58),0),2) -> 0.2 | FF9: =ROUND(FE9*$FB$7,2) -> 0 | FH9: Utilidad | FI9: 0.1 | FL9: =1+Cotizador!$C$129+$FB$6 -> 1.1 | FM9: =FJ58*(1+Cotizador!$C$129+$FB$6) -> 0.198 | FU9: PN Anual por P | FV9: =ROUND(IFERROR(IF(FT22>100000,GA56*2*IF(FS14>65,1.5,1),GA56*IF(FS14>65,1.5,1))*(1+Cotizador!$C$129+$FS$6),GA56),2) -> 0.36 | FY9: Utilidad | FZ9: 0.1 | GK9: GRUPO 1 | GP9: Prima Comercial | GQ9: =ROUND(GQ7+GQ8,2) -> 42.95 | GS9: Utilidad | GT9: 0.1
B10: Sector: | C10: =Cotizador!$C$12 -> Comercio | D10: =C10 -> Comercio | E10: =D10 -> Comercio | F10: =E10 -> Comercio | H10: IGV | I10: =ROUND(I9*18%,2) -> 55.62 | J10: =ROUND(J9*18%,2) -> 0 | K10: 0 | L10: =ROUND(L9*18%,2) -> 0 | AT10: Sector: | AU10: =Cotizador!$C$12 -> Comercio | AV10: =AU10 -> Comercio | AW10: =AV10 -> Comercio | AX10: =AW10 -> Comercio | AZ10: IGV | BA10: =ROUND(BA9*18%,2) -> 0 | BB10: =ROUND(BB9*18%,2) -> 0 | BC10: =ROUND(BC9*18%,2) -> 0 | BD10: =ROUND(BD9*18%,2) -> 0 | CL10: Sector: | CM10: =Cotizador!$C$12 -> Comercio | CQ10: Prima Total | CR10: =CR8+CR9 -> 3.65 | CS10: =CS8+CS9 -> 109.39 | DC10: Sector: | DD10: =Cotizador!$C$12 -> Comercio | DH10: Prima Total | DI10: =DI8+DI9 -> 3.65 | DJ10: =DJ8+DJ9 -> 109.39 | DT10: Sector: | DU10: =Cotizador!C12 -> Comercio | DY10: PT x Día / Total | DZ10: =DZ8+DZ9 -> 0 | EA10: =EA8+EA9 -> 0 | EJ10: Deducible GC | EK10: 0 | EM10: Por Vigencia | EN10: =MAX(ROUND(EN9*IF($DC$5<=366,LOOKUP($DC$5-1,'Período corto'!$B$2:$D$18),$DC$5/366),2),IF(Cotizador!C73="Soles",EO17,Calculadora!EN17)) -> 0.03 | EO10: =ROUND(EN10*EK7,2) -> 0 | FA10: Deducible GC | FB10: 0 | FD10: Por Vigencia | FE10: =MAX(ROUND(FE9*IF(FB5<=366,LOOKUP(FB5-1,'Período corto'!$B$2:$D$18),FB5/366),2),IF(Cotizador!C73="Soles",FF17,Calculadora!FE17)) -> 0.06 | FF10: =ROUND(FE10*$FB$7,2) -> 0 | FR10: Deducible GC | FS10: 0 | FU10: Por Vigencia | FV10: =IF(ROUND(FV9*IF(FS5<=366,LOOKUP(FS5-1,'Período corto'!$B$2:$D$18),FS5/366),2)<FW15,FW15,ROUND(FV9*IF(FS5<=366,LOOKUP(FS5-1,'Período corto'!$B$2:$D$18),FS5/366),2)) -> 10 | GJ10: Sector: | GK10: =Cotizador!$C$12 -> Comercio | GP10: IGV | GQ10: =ROUND(GQ9*18%,2) -> 7.73
B11: Grupo: | C11: =Cotizador!$E$66 -> Grupo1 | D11: =Cotizador!$G$66 ->  | E11: =Cotizador!$I$66 ->  | F11: =Cotizador!$K$66 ->  | H11: Prima Total | I11: =I9+I10 -> 364.62 | J11: =J9+J10 -> 0 | K11: 0 | L11: 0 | N11: Prima de Riesgo | O11: =O5*(1-$E$3-$E$4-$E$5) -> 1.89 | P11: Prima de Riesgo | Q11: =Q5*(1-$E$3-$E$4-$E$5) -> 0 | R11: Prima de Riesgo | S11: =S5*(1-$E$3-$E$4-$E$5) -> 0 | T11: Prima de Riesgo | U11: =U5*(1-$E$3-$E$4-$E$5) -> 0 | AT11: Grupo: | AU11: =Cotizador!$E$66 -> Grupo1 | AV11: =Cotizador!$G$66 ->  | AW11: =Cotizador!$I$66 ->  | AX11: =Cotizador!$K$66 ->  | AZ11: Prima Total | BA11: =BA9+BA10 -> 0 | BB11: =BB9+BB10 -> 0 | BC11: 0 | BD11: 0 | BF11: Prima de Riesgo | BG11: =BG5*(1-$AW$3-$AW$4-$AW$5) -> 0 | BH11: Prima de Riesgo | BI11: =BI5*(1-$AW$3-$AW$4-$AW$5) -> 0 | BJ11: Prima de Riesgo | BK11: =BK5*(1-$AW$3-$AW$4-$AW$5) -> 0 | BL11: Prima de Riesgo | BM11: =BM5*(1-$AW$3-$AW$4-$AW$5) -> 0 | CL11: Grupo: | CM11: =Cotizador!E66 -> Grupo1 | CP11: nuevo | CQ11: Prima MinimaxPersona USD | CR11: =IF(Cotizador!$C$73="Dólares",CQ12,CQ12*tabla2!$H$4) -> 3 | CT11: Prima de Riesgo | CU11: =CU5*(1-$CO$3-$CO$4-$CO$5) -> 0.684 | DC11: Grupo: | DD11: =Cotizador!$E$66 -> Grupo1 | DG11: nuevo | DH11: Prima MinimaxPersona USD | DI11: =IF(Cotizador!$C$73="Dólares",DH12,DH12*tabla2!$H$4) -> 3 | DK11: Prima de Riesgo | DL11: =DL5*(1-$DF$3-$DF$4-$DF$5) -> 0.684 | DT11: Grupo: | DU11: =Cotizador!E66 -> Grupo1 | DX11: nuevo | DY11: Prima MinimaxDia USD | DZ11: =IF(Cotizador!$C$73="Dólares",DY12,DY12*tabla2!$H$4) -> 0 | EC11: Prima de Riesgo | ED11: =ED5*(1-$DW$3-$DW$4-$DW$5) ->  | EJ11: Deducible IT | EK11: 0 | EL11: días | EM11: DE | EN11: =ROUND(EN10*$EN$6,2) -> 0 | EO11: =ROUND(EO10*3%,2) -> 0 | EQ11: Prima de Riesgo | ER11: =ER5*(1-$EN$3-$EN$4-$EN$5) -> 0.0405 | FA11: Deducible IT | FB11: 0 | FC11: días | FD11: DE | FE11: =ROUND(FE10*$FE$6,2) -> 0 | FF11: =ROUND(FF10*$FE$6,2) -> 0 | FH11: Prima de Riesgo | FI11: =FI5*(1-$FE$3-$FE$4-$FE$5) -> 0.081 | FR11: Deducible IT | FS11: 0 | FT11: días | FU11: DE | FV11: =ROUND(FV10*$EN$6,2) -> 0.3 | FY11: Prima de Riesgo | FZ11: =FZ5*(1-$FV$3-$FV$4-$FV$5) -> 0.099 | GJ11: Grupo: | GK11: Grupo1 | GP11: Prima Total | GQ11: =GQ9+GQ10 -> 50.68 | GS11: Prima de Riesgo | GT11: =GT5*(1-$E$3-$E$4-$E$5) -> 0.684
B12: Asegurados: | C12: =Cotizador!$E$51 -> 30 | D12: =Cotizador!$G$51 -> 0 | E12: =Cotizador!$I$51 -> 0 | F12: =Cotizador!$K$51 -> 0 | G12: agregado 09Jun25-> | H12: Prima Minima USD | I12: =IF(Cotizador!$C$73="Dólares",$H$13,$H$13*tabla2!$H$4) -> 10 | J12: =IF(Cotizador!$C$73="Dólares",$H$13,$H$13*tabla2!$H$4) -> 10 | K12: =IF(Cotizador!$C$73="Dólares",$H$13,$H$13*tabla2!$H$4) -> 10 | L12: =IF(Cotizador!$C$73="Dólares",$H$13,$H$13*tabla2!$H$4) -> 10 | N12: OBJETIVO | P12: OBJETIVO | R12: OBJETIVO | T12: OBJETIVO | AT12: Asegurados: | AU12: =Cotizador!$E$51 -> 30 | AV12: =Cotizador!$G$51 -> 0 | AW12: =Cotizador!$I$51 -> 0 | AX12: =Cotizador!$K$51 -> 0 | AY12: agregado 10Dic25-> | AZ12: Prima Minima USD | BA12: =IF(Cotizador!$C$73="Dólares",AZ13,AZ13*tabla2!$H$4) -> 20 | BB12: =IF(Cotizador!$C$73="Dólares",AZ13,AZ13*tabla2!$H$4) -> 20 | BC12: =IF(Cotizador!$C$73="Dólares",AZ13,AZ13*tabla2!$H$4) -> 20 | BD12: =IF(Cotizador!$C$73="Dólares",AZ13,AZ13*tabla2!$H$4) -> 20 | BF12: OBJETIVO | BH12: OBJETIVO | BJ12: OBJETIVO | BL12: OBJETIVO | CL12: Asegurados: | CM12: =Cotizador!$E$51 -> 30 | CQ12: 3 | CT12: OBJETIVO | DC12: Asegurados: | DD12: =Cotizador!$E$51 -> 30 | DH12: 3 | DK12: OBJETIVO | DT12: Asegurados: | DU12: =Cotizador!E51 -> 30 | DY12: 0 | EC12: OBJETIVO | EJ12: Deducible RH | EK12: 0 | EL12: días | EM12: Prima Comercial | EN12: =ROUND(EN10+EN11,2) -> 0.03 | EO12: =ROUND(EO10+EO11,2) -> 0 | EQ12: OBJETIVO | FA12: Deducible RH | FB12: 0 | FC12: días | FD12: Prima Comercial | FE12: =ROUND(FE10+FE11,2) -> 0.06 | FF12: =ROUND(FF10+FF11,2) -> 0 | FH12: OBJETIVO | FR12: Deducible RH | FS12: 0 | FT12: días | FU12: Prima Comercial | FV12: =ROUND(FV10+FV11,2) -> 10.3 | FY12: OBJETIVO | GJ12: Asegurados: | GK12: =Cotizador!$E$51 -> 30 | GS12: OBJETIVO
H13: 10 | I13: 1 | J13: 2 | K13: 3 | L13: 4 | N13: Prima Objetiva | O13: =IFERROR(I6,O5) -> 10 | P13: Prima Objetiva | Q13: =IFERROR(J6,Q5) -> 0 | R13: Prima Objetiva | S13: =IFERROR(K6,S5) -> 0 | T13: Prima Objetiva | U13: =IFERROR(L6,U5) -> 0 | AT13: Planilla Anual | AU13: =Cotizador!$E$55 -> 0 | AV13: =Cotizador!$G$55 -> 0 | AW13: =Cotizador!$I$55 -> 0 | AX13: =Cotizador!$K$55 -> 0 | AZ13: 20 | BA13: 1 | BB13: 2 | BC13: 3 | BD13: 4 | BF13: Prima Objetiva | BG13: =IFERROR(BA5,BG5) -> 0 | BH13: Prima Objetiva | BI13: =IFERROR(BB5,BI5) -> 0 | BJ13: Prima Objetiva | BK13: =IFERROR(BC5,BK5) -> 0 | BL13: Prima Objetiva | BM13: =IFERROR(BD5,BM5) -> 0 | CR13: 1 | CT13: Prima Objetiva | CU13: =IFERROR(CR6,CT58) -> 3 | DI13: 1 | DK13: Prima Objetiva | DL13: =IFERROR(DI6,DK58) -> 3 | DZ13: 1 | EC13: Prima Objetiva | ED13: =DZ6 -> 0 | EM13: IGV | EN13: =ROUND(EN12*18%,2) -> 0.01 | EO13: =ROUND(EO12*18%,2) -> 0 | EQ13: Prima Objetiva | ER13: =EN10 -> 0.03 | FD13: IGV | FE13: =ROUND(FE12*18%,2) -> 0.01 | FF13: =ROUND(FF12*18%,2) -> 0 | FH13: Prima Objetiva | FI13: =FE10 -> 0.06 | FU13: IGV | FV13: =ROUND(FV12*18%,2) -> 1.85 | FY13: Prima Objetiva | FZ13: =FV10 -> 10 | GQ13: 1 | GS13: Prima Objetiva | GT13: =IFERROR(GQ6,GT5) -> 1.39
B14: Deducible GC | C14: 0 | D14: 0 | E14: 0 | F14: 0 | I14: GRUPO 1 | J14: GRUPO 2 | K14: GRUPO 3 | L14: GRUPO 4 | N14: Comisión | O14: =$E$3 -> 0.25 | P14: Comisión | Q14: =$E$3 -> 0.25 | R14: Comisión | S14: =$E$3 -> 0.25 | T14: Comisión | U14: =$E$3 -> 0.25 | AT14: Deducible GC | AU14: 0 | AV14: 0 | AW14: 0 | AX14: 0 | BA14: GRUPO 1 | BB14: GRUPO 2 | BC14: GRUPO 3 | BD14: GRUPO 4 | BF14: Comisión | BG14: =$E$3 -> 0.25 | BH14: Comisión | BI14: =$E$3 -> 0.25 | BJ14: Comisión | BK14: =$E$3 -> 0.25 | BL14: Comisión | BM14: =$E$3 -> 0.25 | CL14: Deducible GC | CM14: 0 | CR14: GRUPO 1 | CT14: Comisión | CU14: =$E$3 -> 0.25 | DC14: Deducible GC | DD14: 0 | DI14: GRUPO 1 | DK14: Comisión | DL14: =$E$3 -> 0.25 | DT14: Deducible GC | DU14: 0 | DZ14: GRUPO 1 | EC14: Comisión | ED14: =$E$3 -> 0.25 | EJ14: Rango Número | EK14: 3 | EM14: Prima Total | EN14: =EN12+EN13 -> 0.04 | EO14: =ROUND(EO12+EO13,2) -> 0 | EQ14: Comisión | ER14: =$E$3 -> 0.25 | FA14: Rango Número | FB14: 3 | FD14: Prima Total | FE14: =FE12+FE13 -> 0.07 | FF14: =FF12+FF13 -> 0 | FH14: Comisión | FI14: =$E$3 -> 0.25 | FR14: Edad | FS14: =ROUND((TODAY()-Cotizador!E51)/365,0) -> 126 | FU14: Prima Total | FV14: =FV12+FV13 -> 12.15 | FY14: Comisión | FZ14: =$E$3 -> 0.25 | GJ14: Deducible GC | GK14: 0 | GQ14: GRUPO 1 | GS14: Comisión | GT14: =$E$3 -> 0.25
B15: Deducible IT | C15: 0 | D15: 0 | E15: 0 | F15: 0 | G15: días | H15: N° de Grupo | I15: =+HLOOKUP(Cotizador!E66,Tasas!$E$7:$H$8,2,0) -> 1 | J15: =+HLOOKUP(Cotizador!G66,Tasas!$E$7:$H$8,2,0) ->  | K15: =+HLOOKUP(Cotizador!I66,Tasas!$E$7:$H$8,2,0) ->  | L15: =+HLOOKUP(Cotizador!K66,Tasas!$E$7:$H$8,2,0) ->  | N15: Gasto Técnico | O15: =O7 -> 0 | P15: Gasto Técnico | Q15: =Q7 -> 0 | R15: Gasto Técnico | S15: =S7 -> 0 | T15: Gasto Técnico | U15: =U7 -> 0 | AT15: Deducible IT | AU15: 0 | AV15: 0 | AW15: 0 | AX15: 0 | AY15: días | AZ15: N° de Grupo | BA15: =+HLOOKUP(AU11,Tasas!$E$7:$H$8,2,0) -> 1 | BB15: =+HLOOKUP(AV11,Tasas!$E$7:$H$8,2,0) ->  | BC15: =+HLOOKUP(AW11,Tasas!$E$7:$H$8,2,0) ->  | BD15: =+HLOOKUP(AX11,Tasas!$E$7:$H$8,2,0) ->  | BF15: Gasto Técnico | BG15: =BG7 -> 0 | BH15: Gasto Técnico | BI15: =BI7 -> 0 | BJ15: Gasto Técnico | BK15: =BK7 -> 0 | BL15: Gasto Técnico | BM15: =BM7 -> 0 | CL15: Deducible IT | CM15: 0 | CN15: días | CQ15: N° de Grupo | CR15: =+HLOOKUP(CM11,Tasas!$E$7:$H$8,2,0) -> 1 | CT15: Gasto Técnico | CU15: =CU7 -> 0 | DC15: Deducible IT | DD15: 0 | DE15: días | DH15: N° de Grupo | DI15: =+HLOOKUP(DD11,Tasas!$E$7:$H$8,2,0) -> 1 | DK15: Gasto Técnico | DL15: =DL7 -> 0 | DT15: Deducible IT | DU15: 0 | DV15: días | DY15: N° de Grupo | DZ15: =+HLOOKUP(DU11,Tasas!$E$7:$H$8,2,0) -> 1 | EC15: Gasto Técnico | ED15: =ED7 -> 0 | EJ15: Rango Asegurados | EK15: ="1-50" -> 1-50 | EN15: USD | EO15: PEN | EQ15: Gasto Técnico | ER15: =ER7 -> 0 | FA15: Rango Asegurados | FB15: ="1-50" -> 1-50 | FE15: USD | FF15: PEN | FH15: Gasto Técnico | FI15: =FI7 -> 0 | FU15: Prima Minima USD-> | FV15: 10 | FW15: =IF(Cotizador!$C$73="Dólares",$FV$15,IF(Cotizador!$C$73="Soles",$FV$15*tabla2!$H$4,1)) -> 10 | FX15: <-P.Minima según Moneda | FY15: Gasto Técnico | FZ15: =FZ7 -> 0 | GJ15: Deducible IT | GK15: 0 | GL15: días | GP15: N° de Grupo | GQ15: =+HLOOKUP(Cotizador!E66,Tasas!$E$7:$H$8,2,0) -> 1 | GS15: Gasto Técnico | GT15: =GT7 -> 0
B16: Deducible RH | C16: 0 | D16: 0 | E16: 0 | F16: 0 | G16: días | H16: N° de Sector | I16: =+VLOOKUP(C$10,Tasas!$B$11:$C$31,2,0)+IF(I17="1-50",0,IF(I17="50-400",21,42)) -> 12 | J16: =+VLOOKUP(D$10,Tasas!$B$11:$C$31,2,0)+IF(J17="1-50",0,IF(J17="50-400",21,42)) -> 12 | K16: =+VLOOKUP(E$10,Tasas!$B$11:$C$31,2,0)+IF(K17="1-50",0,IF(K17="50-400",21,42)) -> 12 | L16: =+VLOOKUP(F$10,Tasas!$B$11:$C$31,2,0)+IF(L17="1-50",0,IF(L17="50-400",21,42)) -> 12 | N16: Administrativo | O16: =O8 -> 0.2 | P16: Administrativo | Q16: =Q8 -> 0.2 | R16: Administrativo | S16: =S8 -> 0.2 | T16: Administrativo | U16: =U8 -> 0.2 | AT16: Deducible RH | AU16: 0 | AV16: 0 | AW16: 0 | AX16: 0 | AY16: días | AZ16: N° de Sector | BA16: =+VLOOKUP(AU$10,Tasas!$B$11:$C$31,2,0)+IF(BA17="1-50",0,IF(BA17="50-400",21,42)) -> 12 | BB16: =+VLOOKUP(AV$10,Tasas!$B$11:$C$31,2,0)+IF(BB17="1-50",0,IF(BB17="50-400",21,42)) -> 12 | BC16: =+VLOOKUP(AW$10,Tasas!$B$11:$C$31,2,0)+IF(BC17="1-50",0,IF(BC17="50-400",21,42)) -> 12 | BD16: =+VLOOKUP(AX$10,Tasas!$B$11:$C$31,2,0)+IF(BD17="1-50",0,IF(BD17="50-400",21,42)) -> 12 | BF16: Administrativo | BG16: =BG8 -> 0.2 | BH16: Administrativo | BI16: =BI8 -> 0.2 | BJ16: Administrativo | BK16: =BK8 -> 0.2 | BL16: Administrativo | BM16: =BM8 -> 0.2 | CL16: Deducible RH | CM16: 0 | CN16: días | CQ16: N° de Sector | CR16: =+VLOOKUP(CM$10,Tasas!$B$11:$C$31,2,0)+IF(CR17="1-50",0,IF(CR17="50-400",21,42)) -> 12 | CT16: Administrativo | CU16: =CU8 -> 0.2 | DC16: Deducible RH | DD16: 0 | DE16: días | DH16: N° de Sector | DI16: =+VLOOKUP(DD$10,Tasas!$B$11:$C$31,2,0)+IF(DI17="1-50",0,IF(DI17="50-400",21,42)) -> 12 | DK16: Administrativo | DL16: =DL8 -> 0.2 | DT16: Deducible RH | DU16: 0 | DV16: días | DY16: N° de Sector | DZ16: =+VLOOKUP(DU$10,Tasas!$B$11:$C$31,2,0)+IF(DZ17="1-50",0,IF(DZ17="50-400",21,42)) -> 12 | EC16: Administrativo | ED16: =ED8 -> 0.2 | EK16: SI(O(EK7=0,EK7=""),"",SI(EK7<=50,"1-50",SI(EK7<=400,"50-400",">400"))) | EM16: Prima Mínima | EN16: 10 | EO16: 30 | EQ16: Administrativo | ER16: =ER8 -> 0.2 | FB16: SI(O(FB7=0,FB7=""),"",SI(FB7<=50,"1-50",SI(FB7<=400,"50-400",">400"))) | FD16: Prima Mínima | FE16: 10 | FF16: 30 | FH16: Administrativo | FI16: =FI8 -> 0.2 | FU16: Esta es la que se | FX16: Operativa | FY16: Administrativo | FZ16: =FZ8 -> 0.2 | GJ16: Deducible RH | GK16: 0 | GL16: días | GP16: N° de Sector | GQ16: =+VLOOKUP(GK$10,Tasas!$B$11:$C$31,2,0)+IF(GQ17="1-50",0,IF(GQ17="50-400",21,42)) -> 12 | GS16: Administrativo | GT16: =GT8 -> 0.2
H17: Rango | I17: ="1-50" -> 1-50 | J17: 1-50 | K17: 1-50 | L17: 1-50 | N17: Utilidad | O17: =((O13)-(O19)-(O13*O14)-(O13*O15)-(O13*O16))/O13 -> 0.361 | P17: Utilidad | Q17: =((Q13)-(Q19)-(Q13*Q14)-(Q13*Q15)-(Q13*Q16))/Q13 ->  | R17: Utilidad | S17: =((S13)-(S19)-(S13*S14)-(S13*S15)-(S13*S16))/S13 ->  | T17: Utilidad | U17: =((U13)-(U19)-(U13*U14)-(U13*U15)-(U13*U16))/U13 ->  | AZ17: Rango | BA17: ="1-50" -> 1-50 | BB17: 1-50 | BC17: 1-50 | BD17: 1-50 | BF17: Utilidad | BG17: =((BG13)-(BG19)-(BG13*BG14)-(BG13*BG15)-(BG13*BG16))/BG13 ->  | BH17: Utilidad | BI17: =((BI13)-(BI19)-(BI13*BI14)-(BI13*BI15)-(BI13*BI16))/BI13 ->  | BJ17: Utilidad | BK17: =((BK13)-(BK19)-(BK13*BK14)-(BK13*BK15)-(BK13*BK16))/BK13 ->  | BL17: Utilidad | BM17: =((BM13)-(BM19)-(BM13*BM14)-(BM13*BM15)-(BM13*BM16))/BM13 ->  | CQ17: Rango | CR17: ="1-50" -> 1-50 | CT17: Utilidad | CU17: =((CU13)-(CU19)-(CU13*CU14)-(CU13*CU15)-(CU13*CU16))/CU13 -> 0.322 | DH17: Rango | DI17: ="1-50" -> 1-50 | DK17: Utilidad | DL17: =((DL13)-(DL19)-(DL13*DL14)-(DL13*DL15)-(DL13*DL16))/DL13 -> 0.322 | DY17: Rango | DZ17: ="1-50" -> 1-50 | EC17: Utilidad | ED17: =((ED13)-(ED19)-(ED13*ED14)-(ED13*ED15)-(ED13*ED16))/ED13 ->  | EM17: Por Persona | EN17: =IFERROR(ROUND(EN16/EK7,2),0) -> 0 | EO17: =IFERROR(ROUND(EO16/EK7,2),0) -> 0 | EQ17: Utilidad | ER17: =((ER13)-(ER19)-(ER13*ER14)-(ER13*ER15)-(ER13*ER16))/ER13 -> -0.8 | FD17: Por Persona | FE17: =IFERROR(ROUND(FE16/FB7,2),0) -> 0 | FF17: =IFERROR(ROUND(FF16/FB7,2),0) -> 0 | FH17: Utilidad | FI17: =((FI13)-(FI19)-(FI13*FI14)-(FI13*FI15)-(FI13*FI16))/FI13 -> -0.8 | FU17: modifica | FY17: Utilidad | FZ17: =((FZ13)-(FZ19)-(FZ13*FZ14)-(FZ13*FZ15)-(FZ13*FZ16))/FZ13 -> 0.5401 | GP17: Rango | GQ17: ="1-50" -> 1-50 | GS17: Utilidad | GT17: =((GT13)-(GT19)-(GT13*GT14)-(GT13*GT15)-(GT13*GT16))/GT13 -> 0.05791366906
I18: SI(O(C12=0,C12=""),"",SI(C12<=50,"1-50",SI(C12<=400,"50-400",">400"))) | J18: SI(O(D12=0,D12=""),"",SI(D12<=50,"1-50",SI(D12<=400,"50-400",">400"))) | K18: SI(O(E12=0,E12=""),"",SI(E12<=50,"1-50",SI(E12<=400,"50-400",">400"))) | L18: SI(O(F12=0,F12=""),"",SI(F12<=50,"1-50",SI(F12<=400,"50-400",">400"))) | BA18: SI(O(AU12=0,AU12=""),"",SI(AU12<=50,"1-50",SI(AU12<=400,"50-400",">400"))) | BB18: SI(O(AV12=0,AV12=""),"",SI(AV12<=50,"1-50",SI(AV12<=400,"50-400",">400"))) | BC18: SI(O(AW12=0,AW12=""),"",SI(AW12<=50,"1-50",SI(AW12<=400,"50-400",">400"))) | BD18: SI(O(AX12=0,AX12=""),"",SI(AX12<=50,"1-50",SI(AX12<=400,"50-400",">400"))) | CR18: SI(O(CM12=0,CM12=""),"",SI(CM12<=50,"1-50",SI(CM12<=400,"50-400",">400"))) | DI18: SI(O(DD12=0,DD12=""),"",SI(DD12<=50,"1-50",SI(DD12<=400,"50-400",">400"))) | DZ18: SI(O(DU12=0,DU12=""),"",SI(DU12<=50,"1-50",SI(DU12<=400,"50-400",">400"))) | GQ18: SI(O(GK12=0,GK12=""),"",SI(GK12<=50,"1-50",SI(GK12<=400,"50-400",">400")))
A19: SUMA ASEGURADA | C19: 1 | D19: 2 | E19: 3 | F19: 4 | H19: Tasas de Riesgo | I19: 1 | J19: 2 | K19: 3 | L19: 4 | N19: Prima de Riesgo | O19: =O11 -> 1.89 | P19: Prima de Riesgo | Q19: =Q11 -> 0 | R19: Prima de Riesgo | S19: =S11 -> 0 | T19: Prima de Riesgo | U19: =U11 -> 0 | AS19: SUMA ASEGURADA | AU19: 1 | AV19: 2 | AW19: 3 | AX19: 4 | AZ19: Tasas de Riesgo | BA19: 1 | BB19: 2 | BC19: 3 | BD19: 4 | BF19: Prima de Riesgo | BG19: =BG11 -> 0 | BH19: Prima de Riesgo | BI19: =BI11 -> 0 | BJ19: Prima de Riesgo | BK19: =BK11 -> 0 | BL19: Prima de Riesgo | BM19: =BM11 -> 0 | CK19: SUMA ASEGURADA | CM19: 1 | CQ19: Tasas de Riesgo | CR19: 1 | CT19: Prima de Riesgo | CU19: =CU11 -> 0.684 | DB19: SUMA ASEGURADA | DD19: 1 | DH19: Tasas de Riesgo | DI19: 1 | DK19: Prima de Riesgo | DL19: =DL11 -> 0.684 | DS19: SUMA ASEGURADA | DU19: 1 | DY19: Tasas de Riesgo | DZ19: 1 | EC19: Prima de Riesgo | ED19: =ED11 ->  | EJ19: SUMA ASEGURADA | EL19: 1 | EN19: Tasas de Riesgo | EO19: 1 | EQ19: Prima de Riesgo | ER19: =ER11 -> 0.0405 | FA19: SUMA ASEGURADA | FC19: 1 | FE19: Tasas de Riesgo | FF19: 1 | FH19: Prima de Riesgo | FI19: =FI11 -> 0.081 | FR19: SUMA ASEGURADA | FT19: 1 | FV19: Tasas de Riesgo | FW19: 1 | FY19: Prima de Riesgo | FZ19: =FZ11 -> 0.099 | GI19: SUMA ASEGURADA | GK19: 1 | GP19: Tasas de Riesgo | GQ19: 1 | GS19: Prima de Riesgo | GT19: =GT11 -> 0.684
A20: Coberturas Principales | C20: GRUPO 1 | D20: GRUPO 2 | E20: GRUPO 3 | F20: GRUPO 4 | H20: Principales | I20: GRUPO 1 | J20: GRUPO 2 | K20: GRUPO 3 | L20: GRUPO 4 | AS20: Coberturas Principales | AU20: GRUPO 1 | AV20: GRUPO 2 | AW20: GRUPO 3 | AX20: GRUPO 4 | AZ20: Principales | BA20: GRUPO 1 | BB20: GRUPO 2 | BC20: GRUPO 3 | BD20: GRUPO 4 | CK20: Coberturas Principales | CM20: GRUPO 1 | CQ20: Principales | CR20: GRUPO 1 | DB20: Coberturas Principales | DD20: GRUPO 1 | DH20: Principales | DI20: GRUPO 1 | DS20: Coberturas Principales | DU20: GRUPO 1 | DY20: Principales | DZ20: GRUPO 1 | EJ20: Coberturas Principales | EL20: GRUPO 1 | EN20: Principales | EO20: GRUPO 1 | FA20: Coberturas Principales | FC20: GRUPO 1 | FE20: Principales | FF20: GRUPO 1 | FR20: Coberturas Principales | FT20: GRUPO 1 | FV20: Principales | FW20: GRUPO 1 | GI20: Coberturas Principales | GK20: GRUPO 1 | GP20: Principales | GQ20: GRUPO 1
A21: Gastos de Curación: | C21: =Cotizador!$E$79 -> 0 | D21: =Cotizador!$G$79 -> 0 | E21: =Cotizador!$I$79 -> 0 | F21: =Cotizador!$K$79 -> 0 | H21: 0 | I21: =+IF(OR(C21=0,C21=""),0,VLOOKUP(I$16,Tasas!$C$11:$AN$73,I$15+$H21+2,0)) -> 0 | J21: =+IF(OR(D21=0,D21=""),0,VLOOKUP(J$16,Tasas!$C$11:$AN$73,J$15+$H21+2,0)) -> 0 | K21: =+IF(OR(E21=0,E21=""),0,VLOOKUP(K$16,Tasas!$C$11:$AN$73,K$15+$H21+2,0)) -> 0 | L21: =+IF(OR(F21=0,F21=""),0,VLOOKUP(L$16,Tasas!$C$11:$AN$73,L$15+$H21+2,0)) -> 0 | AS21: Gastos de Curación: | AU21: =Cotizador!$E$79 -> 0 | AV21: =Cotizador!$G$79 -> 0 | AW21: =Cotizador!$I$79 -> 0 | AX21: =Cotizador!$K$79 -> 0 | AZ21: 0 | BA21: =+IF(OR(AU21=0,AU21=""),0,VLOOKUP(BA$16,Tasas!$C$11:$BY$73,BA$15+$AZ21+39,0)) -> 0 | BB21: =+IF(OR(AV21=0,AV21=""),0,VLOOKUP(BB$16,Tasas!$C$11:$BY$73,BB$15+$AZ21+39,0)) -> 0 | BC21: =+IF(OR(AW21=0,AW21=""),0,VLOOKUP(BC$16,Tasas!$C$11:$BY$73,BC$15+$AZ21+39,0)) -> 0 | BD21: =+IF(OR(AX21=0,AX21=""),0,VLOOKUP(BD$16,Tasas!$C$11:$BY$73,BD$15+$AZ21+39,0)) -> 0 | CK21: Gastos de Curación: | CM21: =Cotizador!$E$79 -> 0 | CQ21: 2 | CR21: =+IF(OR(CM21=0,CM21=""),0,VLOOKUP(CR$17,Tasas!$CA$10:$CJ$12,Calculadora!CQ21,0)) -> 0 | CT21: RANGO ASEG. | CU21: FILA | DB21: Gastos de Curación: | DD21: =Cotizador!$E$79 -> 0 | DH21: 2 | DI21: =+IF(OR(DD21=0,DD21=""),0,VLOOKUP(DI$17,Tasas!$CN$10:$CW$12,Calculadora!DH21,0)) -> 0 | DK21: RANGO ASEG. | DL21: FILA | DS21: Gastos de Curación: | DU21: =Cotizador!$E$79 -> 0 | DY21: 2 | DZ21: =+IF(OR(DU21=0,DU21=""),0,VLOOKUP(DZ$17,Tasas!$DA$10:$DJ$12,Calculadora!DY21,0)) -> 0 | EC21: RANGO ASEG. | ED21: FILA | EJ21: Gastos de Curación: | EL21: =Cotizador!$E$79 -> 0 | EN21: 2 | EO21: =IF(OR(EL21=0,EL21=""),0,VLOOKUP(EK$15,Tasas!$DN$10:$DW$12,Calculadora!EN21,0)) -> 0 | EQ21: RANGO ASEG. | ER21: FILA | FA21: Gastos de Curación: | FC21: =Cotizador!$E$79 -> 0 | FE21: 2 | FF21: =IF(OR(FC21=0,FC21=""),0,VLOOKUP(FB$15,Tasas!$EA$10:$EJ$12,Calculadora!FE21,0)) -> 0 | FH21: RANGO ASEG. | FI21: FILA | FR21: Gastos de Curación: | FT21: =Cotizador!$E$79 -> 0 | FV21: 1 | FW21: =IF(OR(FT21=0,FT21=""),0,VLOOKUP(FV21,Tasas!$EO$15:$ES$22,Calculadora!$FS$8,0)) -> 0 | FY21: Grupo1 | FZ21: 2 | GI21: Gastos de Curación: | GK21: =Cotizador!$E$79 -> 0 | GP21: 0 | GQ21: =+IF(OR(GK21=0,GK21=""),0,VLOOKUP(GQ$16,Tasas!$FY$11:$HJ$73,GQ$15+$H21+2,0)) -> 0
A22: Muerte Accidental: | C22: =Cotizador!$E$77 -> 3000 | D22: =Cotizador!$G$77 -> 0 | E22: =Cotizador!$I$77 -> 0 | F22: =Cotizador!$K$77 -> 0 | H22: 4 | I22: =+IF(OR(C22=0,C22=""),0,VLOOKUP(I$16,Tasas!$C$11:$AN$73,I$15+$H22+2,0)) -> 0.0006280435275 | J22: =+IF(OR(D22=0,D22=""),0,VLOOKUP(J$16,Tasas!$C$11:$AN$73,J$15+$H22+2,0)) -> 0 | K22: =+IF(OR(E22=0,E22=""),0,VLOOKUP(K$16,Tasas!$C$11:$AN$73,K$15+$H22+2,0)) -> 0 | L22: =+IF(OR(F22=0,F22=""),0,VLOOKUP(L$16,Tasas!$C$11:$AN$73,L$15+$H22+2,0)) -> 0 | AS22: Muerte Accidental: | AU22: =Cotizador!$E$77 -> 3000 | AV22: =Cotizador!$G$77 -> 0 | AW22: =Cotizador!$I$77 -> 0 | AX22: =Cotizador!$K$77 -> 0 | AZ22: 4 | BA22: =+IF(OR(AU22=0,AU22=""),0,VLOOKUP(BA$16,Tasas!$C$11:$BY$73,BA$15+$AZ22+39,0)) -> 4.389852017e-07 | BB22: =+IF(OR(AV22=0,AV22=""),0,VLOOKUP(BB$16,Tasas!$C$11:$BY$73,BB$15+$AZ22+39,0)) -> 0 | BC22: =+IF(OR(AW22=0,AW22=""),0,VLOOKUP(BC$16,Tasas!$C$11:$BY$73,BC$15+$AZ22+39,0)) -> 0 | BD22: =+IF(OR(AX22=0,AX22=""),0,VLOOKUP(BD$16,Tasas!$C$11:$BY$73,BD$15+$AZ22+39,0)) -> 0 | CK22: Muerte Accidental: | CM22: =Cotizador!$E$77 -> 3000 | CQ22: 3 | CR22: =+IF(OR(CM22=0,CM22=""),0,VLOOKUP(CR$17,Tasas!$CA$10:$CJ$12,Calculadora!CQ22,0)) -> 3.730477561e-05 | CT22: 1-50 | CU22: 0 | DB22: Muerte Accidental: | DD22: =Cotizador!$E$77 -> 3000 | DH22: 3 | DI22: =+IF(OR(DD22=0,DD22=""),0,VLOOKUP(DI$17,Tasas!$CN$10:$CW$12,Calculadora!DH22,0)) -> 3.730477561e-05 | DK22: 1-50 | DL22: 0 | DS22: Muerte Accidental: | DU22: =Cotizador!$E$77 -> 3000 | DY22: 3 | DZ22: =+IF(OR(DU22=0,DU22=""),0,VLOOKUP(DZ$17,Tasas!$DA$10:$DJ$12,Calculadora!DY22,0)) -> 1.768236798e-06 | EC22: 1-50 | ED22: 0 | EJ22: Muerte Accidental: | EL22: =Cotizador!$E$77 -> 3000 | EN22: 3 | EO22: =IF(OR(EL22=0,EL22=""),0,VLOOKUP(EK$15,Tasas!$DN$10:$DW$12,Calculadora!EN22,0)) -> 1.255493976e-05 | EQ22: 1-50 | ER22: 0 | FA22: Muerte Accidental: | FC22: =Cotizador!$E$77 -> 3000 | FE22: 3 | FF22: =IF(OR(FC22=0,FC22=""),0,VLOOKUP(FB$15,Tasas!$EA$10:$EJ$12,Calculadora!FE22,0)) -> 2.510987952e-05 | FH22: 1-50 | FI22: 0 | FR22: Muerte Accidental: | FT22: =Cotizador!$E$77 -> 3000 | FV22: 2 | FW22: =IF(OR(FT22=0,FT22=""),0,VLOOKUP(FV22,Tasas!$EO$15:$ES$22,Calculadora!$FS$8,0)) -> 2.116912785e-05 | FY22: Grupo2 | FZ22: 10 | GI22: Muerte Accidental: | GK22: =Cotizador!$E$77 -> 3000 | GP22: 4 | GQ22: =+IF(OR(GK22=0,GK22=""),0,VLOOKUP(GQ$16,Tasas!$FY$11:$HJ$73,GQ$15+$H22+2,0)) -> 0.0002268084384
A23: Gastos de Sepelio: | C23: =Cotizador!$E$80 -> 0 | D23: =Cotizador!$G$80 -> 0 | E23: =Cotizador!$I$80 -> 0 | F23: =Cotizador!$K$80 -> 0 | H23: 8 | I23: =+IF(OR(C23=0,C23=""),0,VLOOKUP(I$16,Tasas!$C$11:$AN$73,I$15+$H23+2,0)) -> 0 | J23: =+IF(OR(D23=0,D23=""),0,VLOOKUP(J$16,Tasas!$C$11:$AN$73,J$15+$H23+2,0)) -> 0 | K23: =+IF(OR(E23=0,E23=""),0,VLOOKUP(K$16,Tasas!$C$11:$AN$73,K$15+$H23+2,0)) -> 0 | L23: =+IF(OR(F23=0,F23=""),0,VLOOKUP(L$16,Tasas!$C$11:$AN$73,L$15+$H23+2,0)) -> 0 | AS23: Gastos de Sepelio: | AU23: =Cotizador!$E$80 -> 0 | AV23: =Cotizador!$G$80 -> 0 | AW23: =Cotizador!$I$80 -> 0 | AX23: =Cotizador!$K$80 -> 0 | AZ23: 8 | BA23: =+IF(OR(AU23=0,AU23=""),0,VLOOKUP(BA$16,Tasas!$C$11:$BY$73,BA$15+$AZ23+39,0)) -> 0 | BB23: =+IF(OR(AV23=0,AV23=""),0,VLOOKUP(BB$16,Tasas!$C$11:$BY$73,BB$15+$AZ23+39,0)) -> 0 | BC23: =+IF(OR(AW23=0,AW23=""),0,VLOOKUP(BC$16,Tasas!$C$11:$BY$73,BC$15+$AZ23+39,0)) -> 0 | BD23: =+IF(OR(AX23=0,AX23=""),0,VLOOKUP(BD$16,Tasas!$C$11:$BY$73,BD$15+$AZ23+39,0)) -> 0 | CK23: Gastos de Sepelio: | CM23: =Cotizador!$E$80 -> 0 | CQ23: 4 | CR23: =+IF(OR(CM23=0,CM23=""),0,VLOOKUP(CR$17,Tasas!$CA$10:$CJ$12,Calculadora!CQ23,0)) -> 0 | CT23: 50-400 | CU23: 1 | DB23: Gastos de Sepelio: | DD23: =Cotizador!$E$80 -> 0 | DH23: 4 | DI23: =+IF(OR(DD23=0,DD23=""),0,VLOOKUP(DI$17,Tasas!$CN$10:$CW$12,Calculadora!DH23,0)) -> 0 | DK23: 50-400 | DL23: 1 | DS23: Gastos de Sepelio: | DU23: =Cotizador!$E$80 -> 0 | DY23: 4 | DZ23: =+IF(OR(DU23=0,DU23=""),0,VLOOKUP(DZ$17,Tasas!$DA$10:$DJ$12,Calculadora!DY23,0)) -> 0 | EC23: 50-400 | ED23: 1 | EJ23: Gastos de Sepelio: | EL23: =Cotizador!$E$80 -> 0 | EN23: 4 | EO23: =IF(OR(EL23=0,EL23=""),0,VLOOKUP(EK$15,Tasas!$DN$10:$DW$12,Calculadora!EN23,0)) -> 0 | EQ23: 50-400 | ER23: 1 | FA23: Gastos de Sepelio: | FC23: =Cotizador!$E$80 -> 0 | FE23: 4 | FF23: =IF(OR(FC23=0,FC23=""),0,VLOOKUP(FB$15,Tasas!$EA$10:$EJ$12,Calculadora!FE23,0)) -> 0 | FH23: 50-400 | FI23: 1 | FR23: Gastos de Sepelio: | FT23: =Cotizador!$E$80 -> 0 | FV23: 3 | FW23: =IF(OR(FT23=0,FT23=""),0,VLOOKUP(FV23,Tasas!$EO$15:$ES$22,Calculadora!$FS$8,0)) -> 0 | FY23: Grupo3 | FZ23: 18 | GI23: Gastos de Sepelio: | GK23: =Cotizador!$E$80 -> 0 | GP23: 8 | GQ23: =+IF(OR(GK23=0,GK23=""),0,VLOOKUP(GQ$16,Tasas!$FY$11:$HJ$73,GQ$15+$H23+2,0)) -> 0
A24: Invalidez Permanente: | C24: =Cotizador!$E$78 -> 300 | D24: =Cotizador!$G$78 -> 0 | E24: =Cotizador!$I$78 -> 0 | F24: =Cotizador!$K$78 -> 0 | H24: 12 | I24: =+IF(OR(C24=0,C24=""),0,VLOOKUP(I$16,Tasas!$C$11:$AN$73,I$15+$H24+2,0)) -> 1.386154831e-05 | J24: =+IF(OR(D24=0,D24=""),0,VLOOKUP(J$16,Tasas!$C$11:$AN$73,J$15+$H24+2,0)) -> 0 | K24: =+IF(OR(E24=0,E24=""),0,VLOOKUP(K$16,Tasas!$C$11:$AN$73,K$15+$H24+2,0)) -> 0 | L24: =+IF(OR(F24=0,F24=""),0,VLOOKUP(L$16,Tasas!$C$11:$AN$73,L$15+$H24+2,0)) -> 0 | AS24: Invalidez Permanente: | AU24: =Cotizador!$E$78 -> 300 | AV24: =Cotizador!$G$78 -> 0 | AW24: =Cotizador!$I$78 -> 0 | AX24: =Cotizador!$K$78 -> 0 | AZ24: 12 | BA24: =+IF(OR(AU24=0,AU24=""),0,VLOOKUP(BA$16,Tasas!$C$11:$BY$73,BA$15+$AZ24+39,0)) -> 9.688842115e-09 | BB24: =+IF(OR(AV24=0,AV24=""),0,VLOOKUP(BB$16,Tasas!$C$11:$BY$73,BB$15+$AZ24+39,0)) -> 0 | BC24: =+IF(OR(AW24=0,AW24=""),0,VLOOKUP(BC$16,Tasas!$C$11:$BY$73,BC$15+$AZ24+39,0)) -> 0 | BD24: =+IF(OR(AX24=0,AX24=""),0,VLOOKUP(BD$16,Tasas!$C$11:$BY$73,BD$15+$AZ24+39,0)) -> 0 | CK24: Invalidez Permanente: | CM24: =Cotizador!$E$78 -> 300 | CQ24: 5 | CR24: =+IF(OR(CM24=0,CM24=""),0,VLOOKUP(CR$17,Tasas!$CA$10:$CJ$12,Calculadora!CQ24,0)) -> 2.468750336e-05 | CT24: >400 | CU24: 2 | DB24: Invalidez Permanente: | DD24: =Cotizador!$E$78 -> 300 | DH24: 5 | DI24: =+IF(OR(DD24=0,DD24=""),0,VLOOKUP(DI$17,Tasas!$CN$10:$CW$12,Calculadora!DH24,0)) -> 2.468750336e-05 | DK24: >400 | DL24: 2 | DS24: Invalidez Permanente: | DU24: =Cotizador!$E$78 -> 300 | DY24: 5 | DZ24: =+IF(OR(DU24=0,DU24=""),0,VLOOKUP(DZ$17,Tasas!$DA$10:$DJ$12,Calculadora!DY24,0)) -> 3.325836376e-05 | EC24: >400 | ED24: 2 | EJ24: Invalidez Permanente: | EL24: =Cotizador!$E$78 -> 300 | EN24: 5 | EO24: =IF(OR(EL24=0,EL24=""),0,VLOOKUP(EK$15,Tasas!$DN$10:$DW$12,Calculadora!EN24,0)) -> 7.405415878e-06 | EQ24: >400 | ER24: 2 | FA24: Invalidez Permanente: | FC24: =Cotizador!$E$78 -> 300 | FE24: 5 | FF24: =IF(OR(FC24=0,FC24=""),0,VLOOKUP(FB$15,Tasas!$EA$10:$EJ$12,Calculadora!FE24,0)) -> 1.481083176e-05 | FH24: >400 | FI24: 2 | FR24: Invalidez Permanente: | FT24: =Cotizador!$E$78 -> 300 | FV24: 4 | FW24: =IF(OR(FT24=0,FT24=""),0,VLOOKUP(FV24,Tasas!$EO$15:$ES$22,Calculadora!$FS$8,0)) -> 0.0001496650895 | FY24: Grupo4 | FZ24: 26 | GI24: Invalidez Permanente: | GK24: =Cotizador!$E$78 -> 300 | GP24: 12 | GQ24: =+IF(OR(GK24=0,GK24=""),0,VLOOKUP(GQ$16,Tasas!$FY$11:$HJ$73,GQ$15+$H24+2,0)) -> 1.808221781e-05
A25: Incapacidad Temporal: | C25: =Cotizador!$E$81 -> 0 | D25: =Cotizador!$G$81 -> 0 | E25: =Cotizador!$I$81 -> 0 | F25: =Cotizador!$K$81 -> 0 | H25: 16 | I25: =+IF(OR(C25=0,C25=""),0,VLOOKUP(I$16,Tasas!$C$11:$AN$73,I$15+$H25+2,0)) -> 0 | J25: =+IF(OR(D25=0,D25=""),0,VLOOKUP(J$16,Tasas!$C$11:$AN$73,J$15+$H25+2,0)) -> 0 | K25: =+IF(OR(E25=0,E25=""),0,VLOOKUP(K$16,Tasas!$C$11:$AN$73,K$15+$H25+2,0)) -> 0 | L25: =+IF(OR(F25=0,F25=""),0,VLOOKUP(L$16,Tasas!$C$11:$AN$73,L$15+$H25+2,0)) -> 0 | AS25: Incapacidad Temporal: | AU25: =Cotizador!$E$81 -> 0 | AV25: =Cotizador!$G$81 -> 0 | AW25: =Cotizador!$I$81 -> 0 | AX25: =Cotizador!$K$81 -> 0 | AZ25: 16 | BA25: =+IF(OR(AU25=0,AU25=""),0,VLOOKUP(BA$16,Tasas!$C$11:$BY$73,BA$15+$AZ25+39,0)) -> 0 | BB25: =+IF(OR(AV25=0,AV25=""),0,VLOOKUP(BB$16,Tasas!$C$11:$BY$73,BB$15+$AZ25+39,0)) -> 0 | BC25: =+IF(OR(AW25=0,AW25=""),0,VLOOKUP(BC$16,Tasas!$C$11:$BY$73,BC$15+$AZ25+39,0)) -> 0 | BD25: =+IF(OR(AX25=0,AX25=""),0,VLOOKUP(BD$16,Tasas!$C$11:$BY$73,BD$15+$AZ25+39,0)) -> 0 | CK25: Incapacidad Temporal: | CM25: =Cotizador!$E$81 -> 0 | CQ25: 6 | CR25: =+IF(OR(CM25=0,CM25=""),0,VLOOKUP(CR$17,Tasas!$CA$10:$CJ$12,Calculadora!CQ25,0)) -> 0 | DB25: Incapacidad Temporal: | DD25: =Cotizador!$E$81 -> 0 | DH25: 6 | DI25: =+IF(OR(DD25=0,DD25=""),0,VLOOKUP(DI$17,Tasas!$CN$10:$CW$12,Calculadora!DH25,0)) -> 0 | DS25: Incapacidad Temporal: | DU25: =Cotizador!$E$81 -> 0 | DY25: 6 | DZ25: =+IF(OR(DU25=0,DU25=""),0,VLOOKUP(DZ$17,Tasas!$DA$10:$DJ$12,Calculadora!DY25,0)) -> 0 | EJ25: Incapacidad Temporal: | EL25: =Cotizador!$E$81 -> 0 | EN25: 6 | EO25: =IF(OR(EL25=0,EL25=""),0,VLOOKUP(EK$15,Tasas!$DN$10:$DW$12,Calculadora!EN25,0)) -> 0 | FA25: Incapacidad Temporal: | FC25: =Cotizador!$E$81 -> 0 | FE25: 6 | FF25: =IF(OR(FC25=0,FC25=""),0,VLOOKUP(FB$15,Tasas!$EA$10:$EJ$12,Calculadora!FE25,0)) -> 0 | FR25: Incapacidad Temporal: | FT25: =Cotizador!$E$81 -> 0 | FV25: 5 | FW25: =IF(OR(FT25=0,FT25=""),0,VLOOKUP(FV25,Tasas!$EO$15:$ES$22,Calculadora!$FS$8,0)) -> 0 | GI25: Incapacidad Temporal: | GK25: =Cotizador!$E$81 -> 0 | GP25: 16 | GQ25: =+IF(OR(GK25=0,GK25=""),0,VLOOKUP(GQ$16,Tasas!$FY$11:$HJ$73,GQ$15+$H25+2,0)) -> 0
A26: Desamparo Súbito Familiar: | C26: =Cotizador!$E$84 -> 0 | D26: =Cotizador!$G$84 -> 0 | E26: =Cotizador!$I$84 -> 0 | F26: =Cotizador!$K$84 -> 0 | H26: 20 | I26: =+IF(OR(C26=0,C26=""),0,VLOOKUP(I$16,Tasas!$C$11:$AN$73,I$15+$H26+2,0)) -> 0 | J26: =+IF(OR(D26=0,D26=""),0,VLOOKUP(J$16,Tasas!$C$11:$AN$73,J$15+$H26+2,0)) -> 0 | K26: =+IF(OR(E26=0,E26=""),0,VLOOKUP(K$16,Tasas!$C$11:$AN$73,K$15+$H26+2,0)) -> 0 | L26: =+IF(OR(F26=0,F26=""),0,VLOOKUP(L$16,Tasas!$C$11:$AN$73,L$15+$H26+2,0)) -> 0 | AS26: Desamparo Súbito Familiar: | AU26: =Cotizador!$E$84 -> 0 | AV26: =Cotizador!$G$84 -> 0 | AW26: =Cotizador!$I$84 -> 0 | AX26: =Cotizador!$K$84 -> 0 | AZ26: 20 | BA26: =+IF(OR(AU26=0,AU26=""),0,VLOOKUP(BA$16,Tasas!$C$11:$BY$73,BA$15+$AZ26+39,0)) -> 0 | BB26: =+IF(OR(AV26=0,AV26=""),0,VLOOKUP(BB$16,Tasas!$C$11:$BY$73,BB$15+$AZ26+39,0)) -> 0 | BC26: =+IF(OR(AW26=0,AW26=""),0,VLOOKUP(BC$16,Tasas!$C$11:$BY$73,BC$15+$AZ26+39,0)) -> 0 | BD26: =+IF(OR(AX26=0,AX26=""),0,VLOOKUP(BD$16,Tasas!$C$11:$BY$73,BD$15+$AZ26+39,0)) -> 0 | CK26: Desamparo Súbito Familiar: | CM26: =Cotizador!$E$84 -> 0 | CQ26: 7 | CR26: =+IF(OR(CM26=0,CM26=""),0,VLOOKUP(CR$17,Tasas!$CA$10:$CJ$12,Calculadora!CQ26,0)) -> 0 | DB26: Desamparo Súbito Familiar: | DD26: =Cotizador!$E$84 -> 0 | DH26: 7 | DI26: =+IF(OR(DD26=0,DD26=""),0,VLOOKUP(DI$17,Tasas!$CN$10:$CW$12,Calculadora!DH26,0)) -> 0 | DS26: Desamparo Súbito Familiar: | DU26: =Cotizador!$E$84 -> 0 | DY26: 7 | DZ26: =+IF(OR(DU26=0,DU26=""),0,VLOOKUP(DZ$17,Tasas!$DA$10:$DJ$12,Calculadora!DY26,0)) -> 0 | EJ26: Desamparo Súbito Familiar: | EL26: =Cotizador!$E$84 -> 0 | EN26: 7 | EO26: =IF(OR(EL26=0,EL26=""),0,VLOOKUP(EK$15,Tasas!$DN$10:$DW$12,Calculadora!EN26,0)) -> 0 | FA26: Desamparo Súbito Familiar: | FC26: =Cotizador!$E$84 -> 0 | FE26: 7 | FF26: =IF(OR(FC26=0,FC26=""),0,VLOOKUP(FB$15,Tasas!$EA$10:$EJ$12,Calculadora!FE26,0)) -> 0 | FR26: Desamparo Súbito Familiar: | FT26: =Cotizador!$E$84 -> 0 | FV26: 6 | FW26: =IF(OR(FT26=0,FT26=""),0,VLOOKUP(FV26,Tasas!$EO$15:$ES$22,Calculadora!$FS$8,0)) -> 0 | GI26: Desamparo Súbito Familiar: | GK26: =Cotizador!$E$84 -> 0 | GP26: 20 | GQ26: =+IF(OR(GK26=0,GK26=""),0,VLOOKUP(GQ$16,Tasas!$FY$11:$HJ$73,GQ$15+$H26+2,0)) -> 0
A27: Renta Hospitalaria Diaria por Accidente: | C27: =Cotizador!$E$85 -> 0 | D27: =Cotizador!$G$85 -> 0 | E27: =Cotizador!$I$85 -> 0 | F27: =Cotizador!$K$85 -> 0 | H27: 24 | I27: =+IF(OR(C27=0,C27=""),0,VLOOKUP(I$16,Tasas!$C$11:$AN$73,I$15+$H27+2,0)) -> 0 | J27: =+IF(OR(D27=0,D27=""),0,VLOOKUP(J$16,Tasas!$C$11:$AN$73,J$15+$H27+2,0)) -> 0 | K27: =+IF(OR(E27=0,E27=""),0,VLOOKUP(K$16,Tasas!$C$11:$AN$73,K$15+$H27+2,0)) -> 0 | L27: =+IF(OR(F27=0,F27=""),0,VLOOKUP(L$16,Tasas!$C$11:$AN$73,L$15+$H27+2,0)) -> 0 | AS27: Renta Hospitalaria Diaria por Accidente: | AU27: =Cotizador!$E$85 -> 0 | AV27: =Cotizador!$G$85 -> 0 | AW27: =Cotizador!$I$85 -> 0 | AX27: =Cotizador!$K$85 -> 0 | AZ27: 24 | BA27: =+IF(OR(AU27=0,AU27=""),0,VLOOKUP(BA$16,Tasas!$C$11:$BY$73,BA$15+$AZ27+39,0)) -> 0 | BB27: =+IF(OR(AV27=0,AV27=""),0,VLOOKUP(BB$16,Tasas!$C$11:$BY$73,BB$15+$AZ27+39,0)) -> 0 | BC27: =+IF(OR(AW27=0,AW27=""),0,VLOOKUP(BC$16,Tasas!$C$11:$BY$73,BC$15+$AZ27+39,0)) -> 0 | BD27: =+IF(OR(AX27=0,AX27=""),0,VLOOKUP(BD$16,Tasas!$C$11:$BY$73,BD$15+$AZ27+39,0)) -> 0 | CK27: Renta Hospitalaria Diaria por Accidente: | CM27: =Cotizador!$E$85 -> 0 | CQ27: 8 | CR27: =+IF(OR(CM27=0,CM27=""),0,VLOOKUP(CR$17,Tasas!$CA$10:$CJ$12,Calculadora!CQ27,0)) -> 0 | DB27: Renta Hospitalaria Diaria por Accidente: | DD27: =Cotizador!$E$85 -> 0 | DH27: 8 | DI27: =+IF(OR(DD27=0,DD27=""),0,VLOOKUP(DI$17,Tasas!$CN$10:$CW$12,Calculadora!DH27,0)) -> 0 | DS27: Renta Hospitalaria Diaria por Accidente: | DU27: =Cotizador!$E$85 -> 0 | DY27: 8 | DZ27: =+IF(OR(DU27=0,DU27=""),0,VLOOKUP(DZ$17,Tasas!$DA$10:$DJ$12,Calculadora!DY27,0)) -> 0 | EJ27: Renta Hospitalaria Diaria por Accidente: | EL27: =Cotizador!$E$85 -> 0 | EN27: 8 | EO27: =IF(OR(EL27=0,EL27=""),0,VLOOKUP(EK$15,Tasas!$DN$10:$DW$12,Calculadora!EN27,0)) -> 0 | FA27: Renta Hospitalaria Diaria por Accidente: | FC27: =Cotizador!$E$85 -> 0 | FE27: 8 | FF27: =IF(OR(FC27=0,FC27=""),0,VLOOKUP(FB$15,Tasas!$EA$10:$EJ$12,Calculadora!FE27,0)) -> 0 | FR27: Renta Hospitalaria Diaria por Accidente: | FT27: =Cotizador!$E$85 -> 0 | FV27: 7 | FW27: =IF(OR(FT27=0,FT27=""),0,VLOOKUP(FV27,Tasas!$EO$15:$ES$22,Calculadora!$FS$8,0)) -> 0 | GI27: Renta Hospitalaria Diaria por Accidente: | GK27: =Cotizador!$E$85 -> 0 | GP27: 24 | GQ27: =+IF(OR(GK27=0,GK27=""),0,VLOOKUP(GQ$16,Tasas!$FY$11:$HJ$73,GQ$15+$H27+2,0)) -> 0
A28: Repatriación de Restos Mortales: | C28: =Cotizador!$E$86 -> 0 | D28: =Cotizador!$G$86 -> 0 | E28: =Cotizador!$I$86 -> 0 | F28: =Cotizador!$K$86 -> 0 | H28: 28 | I28: =+IF(OR(C28=0,C28=""),0,VLOOKUP(I$16,Tasas!$C$11:$AN$73,I$15+$H28+2,0)) -> 0 | J28: =+IF(OR(D28=0,D28=""),0,VLOOKUP(J$16,Tasas!$C$11:$AN$73,J$15+$H28+2,0)) -> 0 | K28: =+IF(OR(E28=0,E28=""),0,VLOOKUP(K$16,Tasas!$C$11:$AN$73,K$15+$H28+2,0)) -> 0 | L28: =+IF(OR(F28=0,F28=""),0,VLOOKUP(L$16,Tasas!$C$11:$AN$73,L$15+$H28+2,0)) -> 0 | AS28: Repatriación de Restos Mortales: | AU28: =Cotizador!$E$86 -> 0 | AV28: =Cotizador!$G$86 -> 0 | AW28: =Cotizador!$I$86 -> 0 | AX28: =Cotizador!$K$86 -> 0 | AZ28: 28 | BA28: =+IF(OR(AU28=0,AU28=""),0,VLOOKUP(BA$16,Tasas!$C$11:$BY$73,BA$15+$AZ28+39,0)) -> 0 | BB28: =+IF(OR(AV28=0,AV28=""),0,VLOOKUP(BB$16,Tasas!$C$11:$BY$73,BB$15+$AZ28+39,0)) -> 0 | BC28: =+IF(OR(AW28=0,AW28=""),0,VLOOKUP(BC$16,Tasas!$C$11:$BY$73,BC$15+$AZ28+39,0)) -> 0 | BD28: =+IF(OR(AX28=0,AX28=""),0,VLOOKUP(BD$16,Tasas!$C$11:$BY$73,BD$15+$AZ28+39,0)) -> 0 | CK28: Repatriación de Restos Mortales: | CM28: =Cotizador!$E$86 -> 0 | CQ28: 9 | CR28: =+IF(OR(CM28=0,CM28=""),0,VLOOKUP(CR$17,Tasas!$CA$10:$CJ$12,Calculadora!CQ28,0)) -> 0 | DB28: Repatriación de Restos Mortales: | DD28: =Cotizador!$E$86 -> 0 | DH28: 9 | DI28: =+IF(OR(DD28=0,DD28=""),0,VLOOKUP(DI$17,Tasas!$CN$10:$CW$12,Calculadora!DH28,0)) -> 0 | DS28: Repatriación de Restos Mortales: | DU28: =Cotizador!$E$86 -> 0 | DY28: 9 | DZ28: =+IF(OR(DU28=0,DU28=""),0,VLOOKUP(DZ$17,Tasas!$DA$10:$DJ$12,Calculadora!DY28,0)) -> 0 | EJ28: Repatriación de Restos Mortales: | EL28: =Cotizador!$E$86 -> 0 | EN28: 9 | EO28: =IF(OR(EL28=0,EL28=""),0,VLOOKUP(EK$15,Tasas!$DN$10:$DW$12,Calculadora!EN28,0)) -> 0 | FA28: Repatriación de Restos Mortales: | FC28: =Cotizador!$E$86 -> 0 | FE28: 9 | FF28: =IF(OR(FC28=0,FC28=""),0,VLOOKUP(FB$15,Tasas!$EA$10:$EJ$12,Calculadora!FE28,0)) -> 0 | FR28: Repatriación de Restos Mortales: | FT28: =Cotizador!$E$86 -> 0 | FV28: 8 | FW28: =IF(OR(FT28=0,FT28=""),0,VLOOKUP(FV28,Tasas!$EO$15:$ES$22,Calculadora!$FS$8,0)) -> 0 | GI28: Repatriación de Restos Mortales: | GK28: =Cotizador!$E$86 -> 0 | GP28: 28 | GQ28: =+IF(OR(GK28=0,GK28=""),0,VLOOKUP(GQ$16,Tasas!$FY$11:$HJ$73,GQ$15+$H28+2,0)) -> 0
A29: Límite agregado anual por GC x Acc | C29: =Cotizador!$E$87 -> 0 | D29: =Cotizador!$G$87 -> 0 | E29: =Cotizador!$I$87 -> 0 | F29: =Cotizador!$K$87 -> 0 | I29: =+IF(OR(C29=0,C29=""),0,VLOOKUP(I$16,Tasas!$C$11:$AN$73,36,0)) -> 0 | J29: =+IF(OR(D29=0,D29=""),0,VLOOKUP(J$16,Tasas!$C$11:$AN$73,36,0)) -> 0 | K29: =+IF(OR(E29=0,E29=""),0,VLOOKUP(K$16,Tasas!$C$11:$AN$73,36,0)) -> 0 | L29: =+IF(OR(F29=0,F29=""),0,VLOOKUP(L$16,Tasas!$C$11:$AN$73,36,0)) -> 0 | AS29: Límite agregado anual por GC x Acc | AU29: =Cotizador!$E$87 -> 0 | AV29: =Cotizador!$G$87 -> 0 | AW29: =Cotizador!$I$87 -> 0 | AX29: =Cotizador!$K$87 -> 0 | BA29: =+IF(OR(AU29=0,AU29=""),0,VLOOKUP(BA$16,Tasas!$C$11:$BY$73,BA$15+$AZ29+39,0)) -> 0 | BB29: =+IF(OR(AV29=0,AV29=""),0,VLOOKUP(BB$16,Tasas!$C$11:$BY$73,BB$15+$AZ29+39,0)) -> 0 | BC29: =+IF(OR(AW29=0,AW29=""),0,VLOOKUP(BC$16,Tasas!$C$11:$BY$73,BC$15+$AZ29+39,0)) -> 0 | BD29: =+IF(OR(AX29=0,AX29=""),0,VLOOKUP(BD$16,Tasas!$C$11:$BY$73,BD$15+$AZ29+39,0)) -> 0 | CK29: Límite agregado anual por GC x Acc | CM29: =Cotizador!$E$87 -> 0 | CQ29: 10 | CR29: =+IF(OR(CM29=0,CM29=""),0,VLOOKUP(CR$17,Tasas!$CA$10:$CJ$12,Calculadora!CQ29,0)) -> 0 | DB29: Límite agregado anual por GC x Acc | DD29: =Cotizador!$E$87 -> 0 | DH29: 10 | DI29: =+IF(OR(DD29=0,DD29=""),0,VLOOKUP(DI$17,Tasas!$CN$10:$CW$12,Calculadora!DH29,0)) -> 0 | DS29: Límite agregado anual por GC x Acc | DU29: =Cotizador!$E$87 -> 0 | DY29: 10 | DZ29: =+IF(OR(DU29=0,DU29=""),0,VLOOKUP(DZ$17,Tasas!$DA$10:$DJ$12,Calculadora!DY29,0)) -> 0 | EJ29: Límite agregado anual por GC x Acc | EL29: =Cotizador!$E$87 -> 0 | EN29: 10 | EO29: =IF(OR(EL29=0,EL29=""),0,VLOOKUP(EK$15,Tasas!$DN$10:$DW$12,Calculadora!EN29,0)) -> 0 | FA29: Límite agregado anual por GC x Acc | FC29: =Cotizador!$E$87 -> 0 | FE29: 10 | FF29: =IF(OR(FC29=0,FC29=""),0,VLOOKUP(FB$15,Tasas!$EA$10:$EJ$12,Calculadora!FE29,0)) -> 0 | GI29: Límite agregado anual por GC x Acc | GK29: =Cotizador!$E$87 -> 0 | GQ29: =+IF(OR(GK29=0,GK29=""),0,VLOOKUP(GQ$16,Tasas!$FY$11:$HJ$73,GQ$15+$H29+2,0)) -> 0
FW30: 1
I31: 1 | Q31: 2 | Y31: 3 | AG31: 4 | BA31: 1 | BI31: 2 | BQ31: 3 | BY31: 4 | CP31: 1 | DG31: 1 | DX31: 1 | EO31: 1 | FF31: 1 | FW31: GRUPO 1 | GQ31: 1
I32: GRUPO 1 | Q32: GRUPO 2 | Y32: GRUPO 3 | AG32: GRUPO 4 | BA32: GRUPO 1 | BI32: GRUPO 2 | BQ32: GRUPO 3 | BY32: GRUPO 4 | CP32: GRUPO 1 | DG32: GRUPO 1 | DX32: GRUPO 1 | EO32: GRUPO 1 | FF32: GRUPO 1 | FT32: 1 | FV32: Tasas de Riesgo | FW32: =VLOOKUP($FS$7,$FY$21:$FZ$24,2,0) -> 2 | FX32: =FW32+1 -> 3 | FY32: =FX32+1 -> 4 | FZ32: 5 | GA32: 6 | GB32: 7 | GC32: 8 | GD32: 9 | GQ32: GRUPO 1
C33: 1 | D33: 2 | E33: 3 | F33: 4 | H33: Tasas de Riesgo | I33: 0 | J33: 4 | K33: 8 | L33: 12 | M33: 16 | N33: 20 | O33: 24 | P33: 28 | Q33: 0 | R33: 4 | S33: 8 | T33: 12 | U33: 16 | V33: 20 | W33: 24 | X33: 28 | Y33: 0 | Z33: 4 | AA33: 8 | AB33: 12 | AC33: 16 | AD33: 20 | AE33: 24 | AF33: 28 | AG33: 0 | AH33: 4 | AI33: 8 | AJ33: 12 | AK33: 16 | AL33: 20 | AM33: 24 | AN33: 28 | AU33: 1 | AV33: 2 | AW33: 3 | AX33: 4 | AZ33: Tasas de Riesgo | BA33: 0 | BB33: 4 | BC33: 8 | BD33: 12 | BE33: 16 | BF33: 20 | BG33: 24 | BH33: 28 | BI33: 0 | BJ33: 4 | BK33: 8 | BL33: 12 | BM33: 16 | BN33: 20 | BO33: 24 | BP33: 28 | BQ33: 0 | BR33: 4 | BS33: 8 | BT33: 12 | BU33: 16 | BV33: 20 | BW33: 24 | BX33: 28 | BY33: 0 | BZ33: 4 | CA33: 8 | CB33: 12 | CC33: 16 | CD33: 20 | CE33: 24 | CF33: 28 | CM33: 1 | CO33: Tasas de Riesgo | CP33: 3 | CQ33: 4 | CR33: 5 | CS33: 6 | CT33: 7 | CU33: 8 | CV33: 9 | CW33: 10 | DD33: 1 | DF33: Tasas de Riesgo | DG33: 3 | DH33: 4 | DI33: 5 | DJ33: 6 | DK33: 7 | DL33: 8 | DM33: 9 | DN33: 10 | DU33: 1 | DW33: Tasas de Riesgo | DX33: 3 | DY33: 4 | DZ33: 5 | EA33: 6 | EB33: 7 | EC33: 8 | ED33: 9 | EE33: 10 | EL33: 1 | EN33: Tasas de Riesgo | EO33: 3 | EP33: 4 | EQ33: 5 | ER33: 6 | ES33: 7 | ET33: 8 | EU33: 9 | EV33: 10 | FC33: 1 | FE33: Tasas de Riesgo | FF33: 3 | FG33: 4 | FH33: 5 | FI33: 6 | FJ33: 7 | FK33: 8 | FL33: 9 | FM33: 10 | FR33: Clausulas Adicionales | FT33: GRUPO 1 | FV33: Adicionales | FW33: GC | FX33: MA | FY33: GS | FZ33: IP | GA33: IT | GB33: DSF | GC33: RHA | GD33: RRM | GK33: 1 | GP33: Tasas de Riesgo | GQ33: 0 | GR33: 4 | GS33: 8 | GT33: 12 | GU33: 16 | GV33: 20 | GW33: 24 | GX33: 28
A34: Clausulas Adicionales | C34: GRUPO 1 | D34: GRUPO 2 | E34: GRUPO 3 | F34: GRUPO 4 | H34: Adicionales | I34: GC | J34: MA | K34: GS | L34: IP | M34: IT | N34: DSF | O34: RHA | P34: RRM | Q34: GC | R34: MA | S34: GS | T34: IP | U34: IT | V34: DSF | W34: RHA | X34: RRM | Y34: GC | Z34: MA | AA34: GS | AB34: IP | AC34: IT | AD34: DSF | AE34: RHA | AF34: RRM | AG34: GC | AH34: MA | AI34: GS | AJ34: IP | AK34: IT | AL34: DSF | AM34: RHA | AN34: RRM | AS34: Clausulas Adicionales | AU34: GRUPO 1 | AV34: GRUPO 2 | AW34: GRUPO 3 | AX34: GRUPO 4 | AZ34: Adicionales | BA34: GC | BB34: MA | BC34: GS | BD34: IP | BE34: IT | BF34: DSF | BG34: RHA | BH34: RRM | BI34: GC | BJ34: MA | BK34: GS | BL34: IP | BM34: IT | BN34: DSF | BO34: RHA | BP34: RRM | BQ34: GC | BR34: MA | BS34: GS | BT34: IP | BU34: IT | BV34: DSF | BW34: RHA | BX34: RRM | BY34: GC | BZ34: MA | CA34: GS | CB34: IP | CC34: IT | CD34: DSF | CE34: RHA | CF34: RRM | CK34: Clausulas Adicionales | CM34: GRUPO 1 | CO34: Adicionales | CP34: GC | CQ34: MA | CR34: GS | CS34: IP | CT34: IT | CU34: DSF | CV34: RHA | CW34: RRM | DB34: Clausulas Adicionales | DD34: GRUPO 1 | DF34: Adicionales | DG34: GC | DH34: MA | DI34: GS | DJ34: IP | DK34: IT | DL34: DSF | DM34: RHA | DN34: RRM | DS34: Clausulas Adicionales | DU34: GRUPO 1 | DW34: Adicionales | DX34: GC | DY34: MA | DZ34: GS | EA34: IP | EB34: IT | EC34: DSF | ED34: RHA | EE34: RRM | EJ34: Clausulas Adicionales | EL34: GRUPO 1 | EN34: Adicionales | EO34: GC | EP34: MA | EQ34: GS | ER34: IP | ES34: IT | ET34: DSF | EU34: RHA | EV34: RRM | FA34: Clausulas Adicionales | FC34: GRUPO 1 | FE34: Adicionales | FF34: GC | FG34: MA | FH34: GS | FI34: IP | FJ34: IT | FK34: DSF | FL34: RHA | FM34: RRM | FR34: Cláusula de invalidez permanente parcial previa al seguro. | FT34: =Cotizador!$E$109 -> 0 | FV34: 1 | FW34: =IF(OR($FT34=0,$FT34="NO"),0,VLOOKUP($FV34,Tasas!$EO$29:$FU$45,Calculadora!FW$32,0)) -> 0 | FX34: =IF(OR($FT34=0,$FT34="NO"),0,VLOOKUP($FV34,Tasas!$EO$29:$FU$45,Calculadora!FX$32,0)) -> 0 | FY34: =IF(OR($FT34=0,$FT34="NO"),0,VLOOKUP($FV34,Tasas!$EO$29:$FU$45,Calculadora!FY$32,0)) -> 0 | FZ34: =IF(OR($FT34=0,$FT34="NO"),0,VLOOKUP($FV34,Tasas!$EO$29:$FU$45,Calculadora!FZ$32,0)) -> 0 | GA34: =IF(OR($FT34=0,$FT34="NO"),0,VLOOKUP($FV34,Tasas!$EO$29:$FU$45,Calculadora!GA$32,0)) -> 0 | GB34: =IF(OR($FT34=0,$FT34="NO"),0,VLOOKUP($FV34,Tasas!$EO$29:$FU$45,Calculadora!GB$32,0)) -> 0 | GC34: =IF(OR($FT34=0,$FT34="NO"),0,VLOOKUP($FV34,Tasas!$EO$29:$FU$45,Calculadora!GC$32,0)) -> 0 | GD34: =IF(OR($FT34=0,$FT34="NO"),0,VLOOKUP($FV34,Tasas!$EO$29:$FU$45,Calculadora!GD$32,0)) -> 0 | GI34: Clausulas Adicionales | GK34: GRUPO 1 | GP34: Adicionales | GQ34: GC | GR34: MA | GS34: GS | GT34: IP | GU34: IT | GV34: DSF | GW34: RHA | GX34: RRM
A35: Cláusula por la cobertura de Terrorismo y otros riesgos. | C35: =Cotizador!$E$90 -> 0 | D35: =Cotizador!$G$90 -> 0 | E35: =Cotizador!$I$90 -> 0 | F35: =Cotizador!$K$90 -> 0 | H35: 0 | I35: =+IF(OR($C35=0,$C35="NO"),0,VLOOKUP($I$16+$H35,Tasas!$C$78:$AN$1228,$I$15+I$33+2,0)) -> 0 | J35: =+IF(OR($C35=0,$C35="NO"),0,VLOOKUP($I$16+$H35,Tasas!$C$78:$AN$1228,$I$15+J$33+2,0)) -> 0 | K35: =+IF(OR($C35=0,$C35="NO"),0,VLOOKUP($I$16+$H35,Tasas!$C$78:$AN$1228,$I$15+K$33+2,0)) -> 0 | L35: =+IF(OR($C35=0,$C35="NO"),0,VLOOKUP($I$16+$H35,Tasas!$C$78:$AN$1228,$I$15+L$33+2,0)) -> 0 | M35: =+IF(OR($C35=0,$C35="NO"),0,VLOOKUP($I$16+$H35,Tasas!$C$78:$AN$1228,$I$15+M$33+2,0)) -> 0 | N35: =+IF(OR($C35=0,$C35="NO"),0,VLOOKUP($I$16+$H35,Tasas!$C$78:$AN$1228,$I$15+N$33+2,0)) -> 0 | O35: =+IF(OR($C35=0,$C35="NO"),0,VLOOKUP($I$16+$H35,Tasas!$C$78:$AN$1228,$I$15+O$33+2,0)) -> 0 | P35: =+IF(OR($C35=0,$C35="NO"),0,VLOOKUP($I$16+$H35,Tasas!$C$78:$AN$1228,$I$15+P$33+2,0)) -> 0 | Q35: =+IF(OR($D35=0,$D35="NO"),0,VLOOKUP($J$16+$H35,Tasas!$C$78:$AN$1228,$J$15+Q$33+2,0)) -> 0 | R35: =+IF(OR($D35=0,$D35="NO"),0,VLOOKUP($J$16+$H35,Tasas!$C$78:$AN$1228,$J$15+R$33+2,0)) -> 0 | S35: =+IF(OR($D35=0,$D35="NO"),0,VLOOKUP($J$16+$H35,Tasas!$C$78:$AN$1228,$J$15+S$33+2,0)) -> 0 | T35: =+IF(OR($D35=0,$D35="NO"),0,VLOOKUP($J$16+$H35,Tasas!$C$78:$AN$1228,$J$15+T$33+2,0)) -> 0 | U35: =+IF(OR($D35=0,$D35="NO"),0,VLOOKUP($J$16+$H35,Tasas!$C$78:$AN$1228,$J$15+U$33+2,0)) -> 0 | V35: =+IF(OR($D35=0,$D35="NO"),0,VLOOKUP($J$16+$H35,Tasas!$C$78:$AN$1228,$J$15+V$33+2,0)) -> 0 | W35: =+IF(OR($D35=0,$D35="NO"),0,VLOOKUP($J$16+$H35,Tasas!$C$78:$AN$1228,$J$15+W$33+2,0)) -> 0 | X35: =+IF(OR($D35=0,$D35="NO"),0,VLOOKUP($J$16+$H35,Tasas!$C$78:$AN$1228,$J$15+X$33+2,0)) -> 0 | Y35: =+IF(OR($E35=0,$E35="NO"),0,VLOOKUP($K$16+$H35,Tasas!$C$78:$AN$1228,$K$15+Y$33+2,0)) -> 0 | Z35: =+IF(OR($E35=0,$E35="NO"),0,VLOOKUP($K$16+$H35,Tasas!$C$78:$AN$1228,$K$15+Z$33+2,0)) -> 0 | AA35: =+IF(OR($E35=0,$E35="NO"),0,VLOOKUP($K$16+$H35,Tasas!$C$78:$AN$1228,$K$15+AA$33+2,0)) -> 0 | AB35: =+IF(OR($E35=0,$E35="NO"),0,VLOOKUP($K$16+$H35,Tasas!$C$78:$AN$1228,$K$15+AB$33+2,0)) -> 0 | AC35: =+IF(OR($E35=0,$E35="NO"),0,VLOOKUP($K$16+$H35,Tasas!$C$78:$AN$1228,$K$15+AC$33+2,0)) -> 0 | AD35: =+IF(OR($E35=0,$E35="NO"),0,VLOOKUP($K$16+$H35,Tasas!$C$78:$AN$1228,$K$15+AD$33+2,0)) -> 0 | AE35: =+IF(OR($E35=0,$E35="NO"),0,VLOOKUP($K$16+$H35,Tasas!$C$78:$AN$1228,$K$15+AE$33+2,0)) -> 0 | AF35: =+IF(OR($E35=0,$E35="NO"),0,VLOOKUP($K$16+$H35,Tasas!$C$78:$AN$1228,$K$15+AF$33+2,0)) -> 0 | AG35: =+IF(OR($F35=0,$F35="NO"),0,VLOOKUP($L$16+$H35,Tasas!$C$78:$AN$1228,$L$15+AG$33+2,0)) -> 0 | AH35: =+IF(OR($F35=0,$F35="NO"),0,VLOOKUP($L$16+$H35,Tasas!$C$78:$AN$1228,$L$15+AH$33+2,0)) -> 0 | AI35: =+IF(OR($F35=0,$F35="NO"),0,VLOOKUP($L$16+$H35,Tasas!$C$78:$AN$1228,$L$15+AI$33+2,0)) -> 0 | AJ35: =+IF(OR($F35=0,$F35="NO"),0,VLOOKUP($L$16+$H35,Tasas!$C$78:$AN$1228,$L$15+AJ$33+2,0)) -> 0 | AK35: =+IF(OR($F35=0,$F35="NO"),0,VLOOKUP($L$16+$H35,Tasas!$C$78:$AN$1228,$L$15+AK$33+2,0)) -> 0 | AL35: =+IF(OR($F35=0,$F35="NO"),0,VLOOKUP($L$16+$H35,Tasas!$C$78:$AN$1228,$L$15+AL$33+2,0)) -> 0 | AM35: =+IF(OR($F35=0,$F35="NO"),0,VLOOKUP($L$16+$H35,Tasas!$C$78:$AN$1228,$L$15+AM$33+2,0)) -> 0 | AN35: =+IF(OR($F35=0,$F35="NO"),0,VLOOKUP($L$16+$H35,Tasas!$C$78:$AN$1228,$L$15+AN$33+2,0)) -> 0 | AS35: Cláusula por la cobertura de Terrorismo y otros riesgos. | AU35: =Cotizador!$E$90 -> 0 | AV35: =Cotizador!$G$90 -> 0 | AW35: =Cotizador!$I$90 -> 0 | AX35: =Cotizador!$K$90 -> 0 | AZ35: 0 | BA35: =+IF(OR($AU35=0,$AU35="NO"),0,VLOOKUP($BA$16+$AZ35,Tasas!$C$78:$BY$1292,$BA$15+BA$33+39,0)) -> 0 | BB35: =+IF(OR($AU35=0,$AU35="NO"),0,VLOOKUP($BA$16+$AZ35,Tasas!$C$78:$BY$1292,$BA$15+BB$33+39,0)) -> 0 | BC35: =+IF(OR($AU35=0,$AU35="NO"),0,VLOOKUP($BA$16+$AZ35,Tasas!$C$78:$BY$1292,$BA$15+BC$33+39,0)) -> 0 | BD35: =+IF(OR($AU35=0,$AU35="NO"),0,VLOOKUP($BA$16+$AZ35,Tasas!$C$78:$BY$1292,$BA$15+BD$33+39,0)) -> 0 | BE35: =+IF(OR($AU35=0,$AU35="NO"),0,VLOOKUP($BA$16+$AZ35,Tasas!$C$78:$BY$1292,$BA$15+BE$33+39,0)) -> 0 | BF35: =+IF(OR($AU35=0,$AU35="NO"),0,VLOOKUP($BA$16+$AZ35,Tasas!$C$78:$BY$1292,$BA$15+BF$33+39,0)) -> 0 | BG35: =+IF(OR($AU35=0,$AU35="NO"),0,VLOOKUP($BA$16+$AZ35,Tasas!$C$78:$BY$1292,$BA$15+BG$33+39,0)) -> 0 | BH35: =+IF(OR($AU35=0,$AU35="NO"),0,VLOOKUP($BA$16+$AZ35,Tasas!$C$78:$BY$1292,$BA$15+BH$33+39,0)) -> 0 | BI35: =+IF(OR($AU35=0,$AU35="NO"),0,VLOOKUP($BA$16+$AZ35,Tasas!$C$78:$BY$1292,$BA$15+BI$33+39,0)) -> 0 | BJ35: =+IF(OR($AU35=0,$AU35="NO"),0,VLOOKUP($BA$16+$AZ35,Tasas!$C$78:$BY$1292,$BA$15+BJ$33+39,0)) -> 0 | BK35: =+IF(OR($AU35=0,$AU35="NO"),0,VLOOKUP($BA$16+$AZ35,Tasas!$C$78:$BY$1292,$BA$15+BK$33+39,0)) -> 0 | BL35: =+IF(OR($AU35=0,$AU35="NO"),0,VLOOKUP($BA$16+$AZ35,Tasas!$C$78:$BY$1292,$BA$15+BL$33+39,0)) -> 0 | BM35: =+IF(OR($AU35=0,$AU35="NO"),0,VLOOKUP($BA$16+$AZ35,Tasas!$C$78:$BY$1292,$BA$15+BM$33+39,0)) -> 0 | BN35: =+IF(OR($AU35=0,$AU35="NO"),0,VLOOKUP($BA$16+$AZ35,Tasas!$C$78:$BY$1292,$BA$15+BN$33+39,0)) -> 0 | BO35: =+IF(OR($AU35=0,$AU35="NO"),0,VLOOKUP($BA$16+$AZ35,Tasas!$C$78:$BY$1292,$BA$15+BO$33+39,0)) -> 0 | BP35: =+IF(OR($AU35=0,$AU35="NO"),0,VLOOKUP($BA$16+$AZ35,Tasas!$C$78:$BY$1292,$BA$15+BP$33+39,0)) -> 0 | BQ35: =+IF(OR($AU35=0,$AU35="NO"),0,VLOOKUP($BA$16+$AZ35,Tasas!$C$78:$BY$1292,$BA$15+BQ$33+39,0)) -> 0 | BR35: =+IF(OR($AU35=0,$AU35="NO"),0,VLOOKUP($BA$16+$AZ35,Tasas!$C$78:$BY$1292,$BA$15+BR$33+39,0)) -> 0 | BS35: =+IF(OR($AU35=0,$AU35="NO"),0,VLOOKUP($BA$16+$AZ35,Tasas!$C$78:$BY$1292,$BA$15+BS$33+39,0)) -> 0 | BT35: =+IF(OR($AU35=0,$AU35="NO"),0,VLOOKUP($BA$16+$AZ35,Tasas!$C$78:$BY$1292,$BA$15+BT$33+39,0)) -> 0 | BU35: =+IF(OR($AU35=0,$AU35="NO"),0,VLOOKUP($BA$16+$AZ35,Tasas!$C$78:$BY$1292,$BA$15+BU$33+39,0)) -> 0 | BV35: =+IF(OR($AU35=0,$AU35="NO"),0,VLOOKUP($BA$16+$AZ35,Tasas!$C$78:$BY$1292,$BA$15+BV$33+39,0)) -> 0 | BW35: =+IF(OR($AU35=0,$AU35="NO"),0,VLOOKUP($BA$16+$AZ35,Tasas!$C$78:$BY$1292,$BA$15+BW$33+39,0)) -> 0 | BX35: =+IF(OR($AU35=0,$AU35="NO"),0,VLOOKUP($BA$16+$AZ35,Tasas!$C$78:$BY$1292,$BA$15+BX$33+39,0)) -> 0 | BY35: =+IF(OR($AU35=0,$AU35="NO"),0,VLOOKUP($BA$16+$AZ35,Tasas!$C$78:$BY$1292,$BA$15+BY$33+39,0)) -> 0 | BZ35: =+IF(OR($AU35=0,$AU35="NO"),0,VLOOKUP($BA$16+$AZ35,Tasas!$C$78:$BY$1292,$BA$15+BZ$33+39,0)) -> 0 | CA35: =+IF(OR($AU35=0,$AU35="NO"),0,VLOOKUP($BA$16+$AZ35,Tasas!$C$78:$BY$1292,$BA$15+CA$33+39,0)) -> 0 | CB35: =+IF(OR($AU35=0,$AU35="NO"),0,VLOOKUP($BA$16+$AZ35,Tasas!$C$78:$BY$1292,$BA$15+CB$33+39,0)) -> 0 | CC35: =+IF(OR($AU35=0,$AU35="NO"),0,VLOOKUP($BA$16+$AZ35,Tasas!$C$78:$BY$1292,$BA$15+CC$33+39,0)) -> 0 | CD35: =+IF(OR($AU35=0,$AU35="NO"),0,VLOOKUP($BA$16+$AZ35,Tasas!$C$78:$BY$1292,$BA$15+CD$33+39,0)) -> 0 | CE35: =+IF(OR($AU35=0,$AU35="NO"),0,VLOOKUP($BA$16+$AZ35,Tasas!$C$78:$BY$1292,$BA$15+CE$33+39,0)) -> 0 | CF35: =+IF(OR($AU35=0,$AU35="NO"),0,VLOOKUP($BA$16+$AZ35,Tasas!$C$78:$BY$1292,$BA$15+CF$33+39,0)) -> 0 | CK35: Cláusula por la cobertura de Terrorismo y otros riesgos. | CM35: =Cotizador!$E$90 -> 0 | CN35: 1 | CO35: =(CN35+VLOOKUP($CR$17,$CT$22:$CU$24,2,0)) -> 1 | CP35: =IF(OR($CM35="",$CM35=0),0,VLOOKUP($CO35,Tasas!$CB$17:$CL$70,Calculadora!CP$33,0)) -> 0 | CQ35: =IF(OR($CM35="",$CM35=0),0,VLOOKUP($CO35,Tasas!$CB$17:$CL$70,Calculadora!CQ$33,0)) -> 0 | CR35: =IF(OR($CM35="",$CM35=0),0,VLOOKUP($CO35,Tasas!$CB$17:$CL$70,Calculadora!CR$33,0)) -> 0 | CS35: =IF(OR($CM35="",$CM35=0),0,VLOOKUP($CO35,Tasas!$CB$17:$CL$70,Calculadora!CS$33,0)) -> 0 | CT35: =IF(OR($CM35="",$CM35=0),0,VLOOKUP($CO35,Tasas!$CB$17:$CL$70,Calculadora!CT$33,0)) -> 0 | CU35: =IF(OR($CM35="",$CM35=0),0,VLOOKUP($CO35,Tasas!$CB$17:$CL$70,Calculadora!CU$33,0)) -> 0 | CV35: =IF(OR($CM35="",$CM35=0),0,VLOOKUP($CO35,Tasas!$CB$17:$CL$70,Calculadora!CV$33,0)) -> 0 | CW35: =IF(OR($CM35="",$CM35=0),0,VLOOKUP($CO35,Tasas!$CB$17:$CL$70,Calculadora!CW$33,0)) -> 0 | DB35: Cláusula por la cobertura de Terrorismo y otros riesgos. | DD35: =Cotizador!$E$90 -> 0 | DE35: 1 | DF35: =(DE35+VLOOKUP($DI$17,$DK$22:$DL$24,2,0)) -> 1 | DG35: =IF(OR($DD35="",$DD35=0),0,VLOOKUP($DF35,Tasas!$CO$17:$CY$70,Calculadora!DG$33,0)) -> 0 | DH35: =IF(OR($DD35="",$DD35=0),0,VLOOKUP($DF35,Tasas!$CO$17:$CY$70,Calculadora!DH$33,0)) -> 0 | DI35: =IF(OR($DD35="",$DD35=0),0,VLOOKUP($DF35,Tasas!$CO$17:$CY$70,Calculadora!DI$33,0)) -> 0 | DJ35: =IF(OR($DD35="",$DD35=0),0,VLOOKUP($DF35,Tasas!$CO$17:$CY$70,Calculadora!DJ$33,0)) -> 0 | DK35: =IF(OR($DD35="",$DD35=0),0,VLOOKUP($DF35,Tasas!$CO$17:$CY$70,Calculadora!DK$33,0)) -> 0 | DL35: =IF(OR($DD35="",$DD35=0),0,VLOOKUP($DF35,Tasas!$CO$17:$CY$70,Calculadora!DL$33,0)) -> 0 | DM35: =IF(OR($DD35="",$DD35=0),0,VLOOKUP($DF35,Tasas!$CO$17:$CY$70,Calculadora!DM$33,0)) -> 0 | DN35: =IF(OR($DD35="",$DD35=0),0,VLOOKUP($DF35,Tasas!$CO$17:$CY$70,Calculadora!DN$33,0)) -> 0 | DS35: Cláusula por la cobertura de Terrorismo y otros riesgos. | DU35: =Cotizador!$E$90 -> 0 | DV35: 1 | DW35: =(DV35+VLOOKUP($DZ$17,$EC$22:$ED$24,2,0)) -> 1 | DX35: =IF(OR($DU35="",$DU35=0),0,VLOOKUP($DW35,Tasas!$DB$17:$DL$70,Calculadora!DX$33,0)) -> 0 | DY35: =IF(OR($DU35="",$DU35=0),0,VLOOKUP($DW35,Tasas!$DB$17:$DL$70,Calculadora!DY$33,0)) -> 0 | DZ35: =IF(OR($DU35="",$DU35=0),0,VLOOKUP($DW35,Tasas!$DB$17:$DL$70,Calculadora!DZ$33,0)) -> 0 | EA35: =IF(OR($DU35="",$DU35=0),0,VLOOKUP($DW35,Tasas!$DB$17:$DL$70,Calculadora!EA$33,0)) -> 0 | EB35: =IF(OR($DU35="",$DU35=0),0,VLOOKUP($DW35,Tasas!$DB$17:$DL$70,Calculadora!EB$33,0)) -> 0 | EC35: =IF(OR($DU35="",$DU35=0),0,VLOOKUP($DW35,Tasas!$DB$17:$DL$70,Calculadora!EC$33,0)) -> 0 | ED35: =IF(OR($DU35="",$DU35=0),0,VLOOKUP($DW35,Tasas!$DB$17:$DL$70,Calculadora!ED$33,0)) -> 0 | EE35: =IF(OR($DU35="",$DU35=0),0,VLOOKUP($DW35,Tasas!$DB$17:$DL$70,Calculadora!EE$33,0)) -> 0 | EJ35: Cláusula por la cobertura de Terrorismo y otros riesgos. | EL35: =Cotizador!$E$90 -> 0 | EM35: 1 | EN35: =(EM35+VLOOKUP($EK$15,$EQ$22:$ER$24,2,0)) -> 1 | EO35: =IF(OR($EL35="",$EL35=0),0,VLOOKUP($EN35,Tasas!$DO$17:$DY$70,Calculadora!EO$33,0)) -> 0 | EP35: =IF(OR($EL35="",$EL35=0),0,VLOOKUP($EN35,Tasas!$DO$17:$DY$70,Calculadora!EP$33,0)) -> 0 | EQ35: =IF(OR($EL35="",$EL35=0),0,VLOOKUP($EN35,Tasas!$DO$17:$DY$70,Calculadora!EQ$33,0)) -> 0 | ER35: =IF(OR($EL35="",$EL35=0),0,VLOOKUP($EN35,Tasas!$DO$17:$DY$70,Calculadora!ER$33,0)) -> 0 | ES35: =IF(OR($EL35="",$EL35=0),0,VLOOKUP($EN35,Tasas!$DO$17:$DY$70,Calculadora!ES$33,0)) -> 0 | ET35: =IF(OR($EL35="",$EL35=0),0,VLOOKUP($EN35,Tasas!$DO$17:$DY$70,Calculadora!ET$33,0)) -> 0 | EU35: =IF(OR($EL35="",$EL35=0),0,VLOOKUP($EN35,Tasas!$DO$17:$DY$70,Calculadora!EU$33,0)) -> 0 | EV35: =IF(OR($EL35="",$EL35=0),0,VLOOKUP($EN35,Tasas!$DO$17:$DY$70,Calculadora!EV$33,0)) -> 0 | FA35: Cláusula por la cobertura de Terrorismo y otros riesgos. | FC35: =Cotizador!$E$90 -> 0 | FD35: 1 | FE35: =(FD35+VLOOKUP($FB$15,$FH$22:$FI$24,2,0)) -> 1 | FF35: =IF(OR($FC35="",$FC35=0),0,VLOOKUP($FE35,Tasas!$EB$17:$EL$70,Calculadora!FF$33,0)) -> 0 | FG35: =IF(OR($FC35="",$FC35=0),0,VLOOKUP($FE35,Tasas!$EB$17:$EL$70,Calculadora!FG$33,0)) -> 0 | FH35: =IF(OR($FC35="",$FC35=0),0,VLOOKUP($FE35,Tasas!$EB$17:$EL$70,Calculadora!FH$33,0)) -> 0 | FI35: =IF(OR($FC35="",$FC35=0),0,VLOOKUP($FE35,Tasas!$EB$17:$EL$70,Calculadora!FI$33,0)) -> 0 | FJ35: =IF(OR($FC35="",$FC35=0),0,VLOOKUP($FE35,Tasas!$EB$17:$EL$70,Calculadora!FJ$33,0)) -> 0 | FK35: =IF(OR($FC35="",$FC35=0),0,VLOOKUP($FE35,Tasas!$EB$17:$EL$70,Calculadora!FK$33,0)) -> 0 | FL35: =IF(OR($FC35="",$FC35=0),0,VLOOKUP($FE35,Tasas!$EB$17:$EL$70,Calculadora!FL$33,0)) -> 0 | FM35: =IF(OR($FC35="",$FC35=0),0,VLOOKUP($FE35,Tasas!$EB$17:$EL$70,Calculadora!FM$33,0)) -> 0 | FR35: Cláusula por la cobertura de Terrorismo y otros riesgos. | FT35: =Cotizador!$E$110 -> 0 | FV35: 2 | FW35: =IF(OR($FT35=0,$FT35="NO"),0,VLOOKUP($FV35,Tasas!$EO$29:$FU$45,Calculadora!FW$32,0)) -> 0 | FX35: =IF(OR($FT35=0,$FT35="NO"),0,VLOOKUP($FV35,Tasas!$EO$29:$FU$45,Calculadora!FX$32,0)) -> 0 | FY35: =IF(OR($FT35=0,$FT35="NO"),0,VLOOKUP($FV35,Tasas!$EO$29:$FU$45,Calculadora!FY$32,0)) -> 0 | FZ35: =IF(OR($FT35=0,$FT35="NO"),0,VLOOKUP($FV35,Tasas!$EO$29:$FU$45,Calculadora!FZ$32,0)) -> 0 | GA35: =IF(OR($FT35=0,$FT35="NO"),0,VLOOKUP($FV35,Tasas!$EO$29:$FU$45,Calculadora!GA$32,0)) -> 0 | GB35: =IF(OR($FT35=0,$FT35="NO"),0,VLOOKUP($FV35,Tasas!$EO$29:$FU$45,Calculadora!GB$32,0)) -> 0 | GC35: =IF(OR($FT35=0,$FT35="NO"),0,VLOOKUP($FV35,Tasas!$EO$29:$FU$45,Calculadora!GC$32,0)) -> 0 | GD35: =IF(OR($FT35=0,$FT35="NO"),0,VLOOKUP($FV35,Tasas!$EO$29:$FU$45,Calculadora!GD$32,0)) -> 0 | GI35: Cláusula por la cobertura de Terrorismo y otros riesgos. | GK35: =Cotizador!$E$90 -> 0 | GP35: 0 | GQ35: =+IF(OR($C35=0,$C35="NO"),0,VLOOKUP($I$16+$H35,Tasas!$FY$78:$HJ$1228,$I$15+GQ$33+2,0)) -> 0 | GR35: =+IF(OR($C35=0,$C35="NO"),0,VLOOKUP($I$16+$H35,Tasas!$FY$78:$HJ$1228,$I$15+GR$33+2,0)) -> 0 | GS35: =+IF(OR($C35=0,$C35="NO"),0,VLOOKUP($I$16+$H35,Tasas!$FY$78:$HJ$1228,$I$15+GS$33+2,0)) -> 0 | GT35: =+IF(OR($C35=0,$C35="NO"),0,VLOOKUP($I$16+$H35,Tasas!$FY$78:$HJ$1228,$I$15+GT$33+2,0)) -> 0 | GU35: =+IF(OR($C35=0,$C35="NO"),0,VLOOKUP($I$16+$H35,Tasas!$FY$78:$HJ$1228,$I$15+GU$33+2,0)) -> 0 | GV35: =+IF(OR($C35=0,$C35="NO"),0,VLOOKUP($I$16+$H35,Tasas!$FY$78:$HJ$1228,$I$15+GV$33+2,0)) -> 0 | GW35: =+IF(OR($C35=0,$C35="NO"),0,VLOOKUP($I$16+$H35,Tasas!$FY$78:$HJ$1228,$I$15+GW$33+2,0)) -> 0 | GX35: =+IF(OR($C35=0,$C35="NO"),0,VLOOKUP($I$16+$H35,Tasas!$FY$78:$HJ$1228,$I$15+GX$33+2,0)) -> 0
A36: Cláusula de ampliación del límite máximo de edad, personas mayores de 70 y hasta los 80 años inclusive. | C36: =Cotizador!$E$91 -> 0 | D36: =Cotizador!$G$91 -> 0 | E36: =Cotizador!$I$91 -> 0 | F36: =Cotizador!$K$91 -> 0 | H36: 64 | I36: =+IF(OR($C36=0,$C36="NO"),0,VLOOKUP($I$16+$H36,Tasas!$C$78:$AN$1228,$I$15+I$33+2,0)) -> 0 | J36: =+IF(OR($C36=0,$C36="NO"),0,VLOOKUP($I$16+$H36,Tasas!$C$78:$AN$1228,$I$15+J$33+2,0)) -> 0 | K36: =+IF(OR($C36=0,$C36="NO"),0,VLOOKUP($I$16+$H36,Tasas!$C$78:$AN$1228,$I$15+K$33+2,0)) -> 0 | L36: =+IF(OR($C36=0,$C36="NO"),0,VLOOKUP($I$16+$H36,Tasas!$C$78:$AN$1228,$I$15+L$33+2,0)) -> 0 | M36: =+IF(OR($C36=0,$C36="NO"),0,VLOOKUP($I$16+$H36,Tasas!$C$78:$AN$1228,$I$15+M$33+2,0)) -> 0 | N36: =+IF(OR($C36=0,$C36="NO"),0,VLOOKUP($I$16+$H36,Tasas!$C$78:$AN$1228,$I$15+N$33+2,0)) -> 0 | O36: =+IF(OR($C36=0,$C36="NO"),0,VLOOKUP($I$16+$H36,Tasas!$C$78:$AN$1228,$I$15+O$33+2,0)) -> 0 | P36: =+IF(OR($C36=0,$C36="NO"),0,VLOOKUP($I$16+$H36,Tasas!$C$78:$AN$1228,$I$15+P$33+2,0)) -> 0 | Q36: =+IF(OR($D36=0,$D36="NO"),0,VLOOKUP($J$16+$H36,Tasas!$C$78:$AN$1228,$J$15+Q$33+2,0)) -> 0 | R36: =+IF(OR($D36=0,$D36="NO"),0,VLOOKUP($J$16+$H36,Tasas!$C$78:$AN$1228,$J$15+R$33+2,0)) -> 0 | S36: =+IF(OR($D36=0,$D36="NO"),0,VLOOKUP($J$16+$H36,Tasas!$C$78:$AN$1228,$J$15+S$33+2,0)) -> 0 | T36: =+IF(OR($D36=0,$D36="NO"),0,VLOOKUP($J$16+$H36,Tasas!$C$78:$AN$1228,$J$15+T$33+2,0)) -> 0 | U36: =+IF(OR($D36=0,$D36="NO"),0,VLOOKUP($J$16+$H36,Tasas!$C$78:$AN$1228,$J$15+U$33+2,0)) -> 0 | V36: =+IF(OR($D36=0,$D36="NO"),0,VLOOKUP($J$16+$H36,Tasas!$C$78:$AN$1228,$J$15+V$33+2,0)) -> 0 | W36: =+IF(OR($D36=0,$D36="NO"),0,VLOOKUP($J$16+$H36,Tasas!$C$78:$AN$1228,$J$15+W$33+2,0)) -> 0 | X36: =+IF(OR($D36=0,$D36="NO"),0,VLOOKUP($J$16+$H36,Tasas!$C$78:$AN$1228,$J$15+X$33+2,0)) -> 0 | Y36: =+IF(OR($E36=0,$E36="NO"),0,VLOOKUP($K$16+$H36,Tasas!$C$78:$AN$1228,$K$15+Y$33+2,0)) -> 0 | Z36: =+IF(OR($E36=0,$E36="NO"),0,VLOOKUP($K$16+$H36,Tasas!$C$78:$AN$1228,$K$15+Z$33+2,0)) -> 0 | AA36: =+IF(OR($E36=0,$E36="NO"),0,VLOOKUP($K$16+$H36,Tasas!$C$78:$AN$1228,$K$15+AA$33+2,0)) -> 0 | AB36: =+IF(OR($E36=0,$E36="NO"),0,VLOOKUP($K$16+$H36,Tasas!$C$78:$AN$1228,$K$15+AB$33+2,0)) -> 0 | AC36: =+IF(OR($E36=0,$E36="NO"),0,VLOOKUP($K$16+$H36,Tasas!$C$78:$AN$1228,$K$15+AC$33+2,0)) -> 0 | AD36: =+IF(OR($E36=0,$E36="NO"),0,VLOOKUP($K$16+$H36,Tasas!$C$78:$AN$1228,$K$15+AD$33+2,0)) -> 0 | AE36: =+IF(OR($E36=0,$E36="NO"),0,VLOOKUP($K$16+$H36,Tasas!$C$78:$AN$1228,$K$15+AE$33+2,0)) -> 0 | AF36: =+IF(OR($E36=0,$E36="NO"),0,VLOOKUP($K$16+$H36,Tasas!$C$78:$AN$1228,$K$15+AF$33+2,0)) -> 0 | AG36: =+IF(OR($F36=0,$F36="NO"),0,VLOOKUP($L$16+$H36,Tasas!$C$78:$AN$1228,$L$15+AG$33+2,0)) -> 0 | AH36: =+IF(OR($F36=0,$F36="NO"),0,VLOOKUP($L$16+$H36,Tasas!$C$78:$AN$1228,$L$15+AH$33+2,0)) -> 0 | AI36: =+IF(OR($F36=0,$F36="NO"),0,VLOOKUP($L$16+$H36,Tasas!$C$78:$AN$1228,$L$15+AI$33+2,0)) -> 0 | AJ36: =+IF(OR($F36=0,$F36="NO"),0,VLOOKUP($L$16+$H36,Tasas!$C$78:$AN$1228,$L$15+AJ$33+2,0)) -> 0 | AK36: =+IF(OR($F36=0,$F36="NO"),0,VLOOKUP($L$16+$H36,Tasas!$C$78:$AN$1228,$L$15+AK$33+2,0)) -> 0 | AL36: =+IF(OR($F36=0,$F36="NO"),0,VLOOKUP($L$16+$H36,Tasas!$C$78:$AN$1228,$L$15+AL$33+2,0)) -> 0 | AM36: =+IF(OR($F36=0,$F36="NO"),0,VLOOKUP($L$16+$H36,Tasas!$C$78:$AN$1228,$L$15+AM$33+2,0)) -> 0 | AN36: =+IF(OR($F36=0,$F36="NO"),0,VLOOKUP($L$16+$H36,Tasas!$C$78:$AN$1228,$L$15+AN$33+2,0)) -> 0 | AS36: Cláusula de ampliación del límite máximo de edad, personas mayores de 70 y hasta los 80 años inclusive. | AU36: =Cotizador!$E$91 -> 0 | AV36: =Cotizador!$G$91 -> 0 | AW36: =Cotizador!$I$91 -> 0 | AX36: =Cotizador!$K$91 -> 0 | AZ36: 64 | BA36: =+IF(OR($AU36=0,$AU36="NO"),0,VLOOKUP($BA$16+$AZ36,Tasas!$C$78:$BY$1292,$BA$15+BA$33+39,0)) -> 0 | BB36: =+IF(OR($AU36=0,$AU36="NO"),0,VLOOKUP($BA$16+$AZ36,Tasas!$C$78:$BY$1292,$BA$15+BB$33+39,0)) -> 0 | BC36: =+IF(OR($AU36=0,$AU36="NO"),0,VLOOKUP($BA$16+$AZ36,Tasas!$C$78:$BY$1292,$BA$15+BC$33+39,0)) -> 0 | BD36: =+IF(OR($AU36=0,$AU36="NO"),0,VLOOKUP($BA$16+$AZ36,Tasas!$C$78:$BY$1292,$BA$15+BD$33+39,0)) -> 0 | BE36: =+IF(OR($AU36=0,$AU36="NO"),0,VLOOKUP($BA$16+$AZ36,Tasas!$C$78:$BY$1292,$BA$15+BE$33+39,0)) -> 0 | BF36: =+IF(OR($AU36=0,$AU36="NO"),0,VLOOKUP($BA$16+$AZ36,Tasas!$C$78:$BY$1292,$BA$15+BF$33+39,0)) -> 0 | BG36: =+IF(OR($AU36=0,$AU36="NO"),0,VLOOKUP($BA$16+$AZ36,Tasas!$C$78:$BY$1292,$BA$15+BG$33+39,0)) -> 0 | BH36: =+IF(OR($AU36=0,$AU36="NO"),0,VLOOKUP($BA$16+$AZ36,Tasas!$C$78:$BY$1292,$BA$15+BH$33+39,0)) -> 0 | BI36: =+IF(OR($AU36=0,$AU36="NO"),0,VLOOKUP($BA$16+$AZ36,Tasas!$C$78:$BY$1292,$BA$15+BI$33+39,0)) -> 0 | BJ36: =+IF(OR($AU36=0,$AU36="NO"),0,VLOOKUP($BA$16+$AZ36,Tasas!$C$78:$BY$1292,$BA$15+BJ$33+39,0)) -> 0 | BK36: =+IF(OR($AU36=0,$AU36="NO"),0,VLOOKUP($BA$16+$AZ36,Tasas!$C$78:$BY$1292,$BA$15+BK$33+39,0)) -> 0 | BL36: =+IF(OR($AU36=0,$AU36="NO"),0,VLOOKUP($BA$16+$AZ36,Tasas!$C$78:$BY$1292,$BA$15+BL$33+39,0)) -> 0 | BM36: =+IF(OR($AU36=0,$AU36="NO"),0,VLOOKUP($BA$16+$AZ36,Tasas!$C$78:$BY$1292,$BA$15+BM$33+39,0)) -> 0 | BN36: =+IF(OR($AU36=0,$AU36="NO"),0,VLOOKUP($BA$16+$AZ36,Tasas!$C$78:$BY$1292,$BA$15+BN$33+39,0)) -> 0 | BO36: =+IF(OR($AU36=0,$AU36="NO"),0,VLOOKUP($BA$16+$AZ36,Tasas!$C$78:$BY$1292,$BA$15+BO$33+39,0)) -> 0 | BP36: =+IF(OR($AU36=0,$AU36="NO"),0,VLOOKUP($BA$16+$AZ36,Tasas!$C$78:$BY$1292,$BA$15+BP$33+39,0)) -> 0 | BQ36: =+IF(OR($AU36=0,$AU36="NO"),0,VLOOKUP($BA$16+$AZ36,Tasas!$C$78:$BY$1292,$BA$15+BQ$33+39,0)) -> 0 | BR36: =+IF(OR($AU36=0,$AU36="NO"),0,VLOOKUP($BA$16+$AZ36,Tasas!$C$78:$BY$1292,$BA$15+BR$33+39,0)) -> 0 | BS36: =+IF(OR($AU36=0,$AU36="NO"),0,VLOOKUP($BA$16+$AZ36,Tasas!$C$78:$BY$1292,$BA$15+BS$33+39,0)) -> 0 | BT36: =+IF(OR($AU36=0,$AU36="NO"),0,VLOOKUP($BA$16+$AZ36,Tasas!$C$78:$BY$1292,$BA$15+BT$33+39,0)) -> 0 | BU36: =+IF(OR($AU36=0,$AU36="NO"),0,VLOOKUP($BA$16+$AZ36,Tasas!$C$78:$BY$1292,$BA$15+BU$33+39,0)) -> 0 | BV36: =+IF(OR($AU36=0,$AU36="NO"),0,VLOOKUP($BA$16+$AZ36,Tasas!$C$78:$BY$1292,$BA$15+BV$33+39,0)) -> 0 | BW36: =+IF(OR($AU36=0,$AU36="NO"),0,VLOOKUP($BA$16+$AZ36,Tasas!$C$78:$BY$1292,$BA$15+BW$33+39,0)) -> 0 | BX36: =+IF(OR($AU36=0,$AU36="NO"),0,VLOOKUP($BA$16+$AZ36,Tasas!$C$78:$BY$1292,$BA$15+BX$33+39,0)) -> 0 | BY36: =+IF(OR($AU36=0,$AU36="NO"),0,VLOOKUP($BA$16+$AZ36,Tasas!$C$78:$BY$1292,$BA$15+BY$33+39,0)) -> 0 | BZ36: =+IF(OR($AU36=0,$AU36="NO"),0,VLOOKUP($BA$16+$AZ36,Tasas!$C$78:$BY$1292,$BA$15+BZ$33+39,0)) -> 0 | CA36: =+IF(OR($AU36=0,$AU36="NO"),0,VLOOKUP($BA$16+$AZ36,Tasas!$C$78:$BY$1292,$BA$15+CA$33+39,0)) -> 0 | CB36: =+IF(OR($AU36=0,$AU36="NO"),0,VLOOKUP($BA$16+$AZ36,Tasas!$C$78:$BY$1292,$BA$15+CB$33+39,0)) -> 0 | CC36: =+IF(OR($AU36=0,$AU36="NO"),0,VLOOKUP($BA$16+$AZ36,Tasas!$C$78:$BY$1292,$BA$15+CC$33+39,0)) -> 0 | CD36: =+IF(OR($AU36=0,$AU36="NO"),0,VLOOKUP($BA$16+$AZ36,Tasas!$C$78:$BY$1292,$BA$15+CD$33+39,0)) -> 0 | CE36: =+IF(OR($AU36=0,$AU36="NO"),0,VLOOKUP($BA$16+$AZ36,Tasas!$C$78:$BY$1292,$BA$15+CE$33+39,0)) -> 0 | CF36: =+IF(OR($AU36=0,$AU36="NO"),0,VLOOKUP($BA$16+$AZ36,Tasas!$C$78:$BY$1292,$BA$15+CF$33+39,0)) -> 0 | CK36: Cláusula de ampliación del límite máximo de edad, personas mayores de 70 y hasta los 80 años inclusive. | CM36: =Cotizador!$E$91 -> 0 | CN36: =CN35+3 -> 4 | CO36: =(CN36+VLOOKUP($CR$17,$CT$22:$CU$24,2,0)) -> 4 | CP36: =IF(OR($CM36="",$CM36=0),0,VLOOKUP($CO36,Tasas!$CB$17:$CL$70,Calculadora!CP$33,0)) -> 0 | CQ36: =IF(OR($CM36="",$CM36=0),0,VLOOKUP($CO36,Tasas!$CB$17:$CL$70,Calculadora!CQ$33,0)) -> 0 | CR36: =IF(OR($CM36="",$CM36=0),0,VLOOKUP($CO36,Tasas!$CB$17:$CL$70,Calculadora!CR$33,0)) -> 0 | CS36: =IF(OR($CM36="",$CM36=0),0,VLOOKUP($CO36,Tasas!$CB$17:$CL$70,Calculadora!CS$33,0)) -> 0 | CT36: =IF(OR($CM36="",$CM36=0),0,VLOOKUP($CO36,Tasas!$CB$17:$CL$70,Calculadora!CT$33,0)) -> 0 | CU36: =IF(OR($CM36="",$CM36=0),0,VLOOKUP($CO36,Tasas!$CB$17:$CL$70,Calculadora!CU$33,0)) -> 0 | CV36: =IF(OR($CM36="",$CM36=0),0,VLOOKUP($CO36,Tasas!$CB$17:$CL$70,Calculadora!CV$33,0)) -> 0 | CW36: =IF(OR($CM36="",$CM36=0),0,VLOOKUP($CO36,Tasas!$CB$17:$CL$70,Calculadora!CW$33,0)) -> 0 | DB36: Cláusula de ampliación del límite máximo de edad, personas mayores de 70 y hasta los 80 años inclusive. | DD36: =Cotizador!$E$91 -> 0 | DE36: =DE35+3 -> 4 | DF36: =(DE36+VLOOKUP($DI$17,$DK$22:$DL$24,2,0)) -> 4 | DG36: =IF(OR($DD36="",$DD36=0),0,VLOOKUP($DF36,Tasas!$CO$17:$CY$70,Calculadora!DG$33,0)) -> 0 | DH36: =IF(OR($DD36="",$DD36=0),0,VLOOKUP($DF36,Tasas!$CO$17:$CY$70,Calculadora!DH$33,0)) -> 0 | DI36: =IF(OR($DD36="",$DD36=0),0,VLOOKUP($DF36,Tasas!$CO$17:$CY$70,Calculadora!DI$33,0)) -> 0 | DJ36: =IF(OR($DD36="",$DD36=0),0,VLOOKUP($DF36,Tasas!$CO$17:$CY$70,Calculadora!DJ$33,0)) -> 0 | DK36: =IF(OR($DD36="",$DD36=0),0,VLOOKUP($DF36,Tasas!$CO$17:$CY$70,Calculadora!DK$33,0)) -> 0 | DL36: =IF(OR($DD36="",$DD36=0),0,VLOOKUP($DF36,Tasas!$CO$17:$CY$70,Calculadora!DL$33,0)) -> 0 | DM36: =IF(OR($DD36="",$DD36=0),0,VLOOKUP($DF36,Tasas!$CO$17:$CY$70,Calculadora!DM$33,0)) -> 0 | DN36: =IF(OR($DD36="",$DD36=0),0,VLOOKUP($DF36,Tasas!$CO$17:$CY$70,Calculadora!DN$33,0)) -> 0 | DS36: Cláusula de ampliación del límite máximo de edad, personas mayores de 70 y hasta los 80 años inclusive. | DU36: =Cotizador!$E$91 -> 0 | DV36: =DV35+3 -> 4 | DW36: =(DV36+VLOOKUP($DZ$17,$EC$22:$ED$24,2,0)) -> 4 | DX36: =IF(OR($DU36="",$DU36=0),0,VLOOKUP($DW36,Tasas!$DB$17:$DL$70,Calculadora!DX$33,0)) -> 0 | DY36: =IF(OR($DU36="",$DU36=0),0,VLOOKUP($DW36,Tasas!$DB$17:$DL$70,Calculadora!DY$33,0)) -> 0 | DZ36: =IF(OR($DU36="",$DU36=0),0,VLOOKUP($DW36,Tasas!$DB$17:$DL$70,Calculadora!DZ$33,0)) -> 0 | EA36: =IF(OR($DU36="",$DU36=0),0,VLOOKUP($DW36,Tasas!$DB$17:$DL$70,Calculadora!EA$33,0)) -> 0 | EB36: =IF(OR($DU36="",$DU36=0),0,VLOOKUP($DW36,Tasas!$DB$17:$DL$70,Calculadora!EB$33,0)) -> 0 | EC36: =IF(OR($DU36="",$DU36=0),0,VLOOKUP($DW36,Tasas!$DB$17:$DL$70,Calculadora!EC$33,0)) -> 0 | ED36: =IF(OR($DU36="",$DU36=0),0,VLOOKUP($DW36,Tasas!$DB$17:$DL$70,Calculadora!ED$33,0)) -> 0 | EE36: =IF(OR($DU36="",$DU36=0),0,VLOOKUP($DW36,Tasas!$DB$17:$DL$70,Calculadora!EE$33,0)) -> 0 | EJ36: Cláusula de ampliación del límite máximo de edad, personas mayores de 70 y hasta los 80 años inclusive. | EL36: =Cotizador!$E$91 -> 0 | EM36: =EM35+3 -> 4 | EN36: =(EM36+VLOOKUP($EK$15,$EQ$22:$ER$24,2,0)) -> 4 | EO36: =IF(OR($EL36="",$EL36=0),0,VLOOKUP($EN36,Tasas!$DO$17:$DY$70,Calculadora!EO$33,0)) -> 0 | EP36: =IF(OR($EL36="",$EL36=0),0,VLOOKUP($EN36,Tasas!$DO$17:$DY$70,Calculadora!EP$33,0)) -> 0 | EQ36: =IF(OR($EL36="",$EL36=0),0,VLOOKUP($EN36,Tasas!$DO$17:$DY$70,Calculadora!EQ$33,0)) -> 0 | ER36: =IF(OR($EL36="",$EL36=0),0,VLOOKUP($EN36,Tasas!$DO$17:$DY$70,Calculadora!ER$33,0)) -> 0 | ES36: =IF(OR($EL36="",$EL36=0),0,VLOOKUP($EN36,Tasas!$DO$17:$DY$70,Calculadora!ES$33,0)) -> 0 | ET36: =IF(OR($EL36="",$EL36=0),0,VLOOKUP($EN36,Tasas!$DO$17:$DY$70,Calculadora!ET$33,0)) -> 0 | EU36: =IF(OR($EL36="",$EL36=0),0,VLOOKUP($EN36,Tasas!$DO$17:$DY$70,Calculadora!EU$33,0)) -> 0 | EV36: =IF(OR($EL36="",$EL36=0),0,VLOOKUP($EN36,Tasas!$DO$17:$DY$70,Calculadora!EV$33,0)) -> 0 | FA36: Cláusula de ampliación del límite máximo de edad, personas mayores de 70 y hasta los 80 años inclusive. | FC36: =Cotizador!$E$91 -> 0 | FD36: =FD35+3 -> 4 | FE36: =(FD36+VLOOKUP($FB$15,$FH$22:$FI$24,2,0)) -> 4 | FF36: =IF(OR($FC36="",$FC36=0),0,VLOOKUP($FE36,Tasas!$EB$17:$EL$70,Calculadora!FF$33,0)) -> 0 | FG36: =IF(OR($FC36="",$FC36=0),0,VLOOKUP($FE36,Tasas!$EB$17:$EL$70,Calculadora!FG$33,0)) -> 0 | FH36: =IF(OR($FC36="",$FC36=0),0,VLOOKUP($FE36,Tasas!$EB$17:$EL$70,Calculadora!FH$33,0)) -> 0 | FI36: =IF(OR($FC36="",$FC36=0),0,VLOOKUP($FE36,Tasas!$EB$17:$EL$70,Calculadora!FI$33,0)) -> 0 | FJ36: =IF(OR($FC36="",$FC36=0),0,VLOOKUP($FE36,Tasas!$EB$17:$EL$70,Calculadora!FJ$33,0)) -> 0 | FK36: =IF(OR($FC36="",$FC36=0),0,VLOOKUP($FE36,Tasas!$EB$17:$EL$70,Calculadora!FK$33,0)) -> 0 | FL36: =IF(OR($FC36="",$FC36=0),0,VLOOKUP($FE36,Tasas!$EB$17:$EL$70,Calculadora!FL$33,0)) -> 0 | FM36: =IF(OR($FC36="",$FC36=0),0,VLOOKUP($FE36,Tasas!$EB$17:$EL$70,Calculadora!FM$33,0)) -> 0 | FR36: Por limitación a horas de trabajo. | FT36: =Cotizador!$E$111 -> 0 | FV36: 3 | FW36: =IF(OR($FT36=0,$FT36="NO"),0,VLOOKUP($FV36,Tasas!$EO$29:$FU$45,Calculadora!FW$32,0)) -> 0 | FX36: =IF(OR($FT36=0,$FT36="NO"),0,VLOOKUP($FV36,Tasas!$EO$29:$FU$45,Calculadora!FX$32,0)) -> 0 | FY36: =IF(OR($FT36=0,$FT36="NO"),0,VLOOKUP($FV36,Tasas!$EO$29:$FU$45,Calculadora!FY$32,0)) -> 0 | FZ36: =IF(OR($FT36=0,$FT36="NO"),0,VLOOKUP($FV36,Tasas!$EO$29:$FU$45,Calculadora!FZ$32,0)) -> 0 | GA36: =IF(OR($FT36=0,$FT36="NO"),0,VLOOKUP($FV36,Tasas!$EO$29:$FU$45,Calculadora!GA$32,0)) -> 0 | GB36: =IF(OR($FT36=0,$FT36="NO"),0,VLOOKUP($FV36,Tasas!$EO$29:$FU$45,Calculadora!GB$32,0)) -> 0 | GC36: =IF(OR($FT36=0,$FT36="NO"),0,VLOOKUP($FV36,Tasas!$EO$29:$FU$45,Calculadora!GC$32,0)) -> 0 | GD36: =IF(OR($FT36=0,$FT36="NO"),0,VLOOKUP($FV36,Tasas!$EO$29:$FU$45,Calculadora!GD$32,0)) -> 0 | GI36: Cláusula de ampliación del límite máximo de edad, personas mayores de 70 y hasta los 80 años inclusive. | GK36: =Cotizador!$E$91 -> 0 | GP36: 64 | GQ36: =+IF(OR($C36=0,$C36="NO"),0,VLOOKUP($I$16+$H36,Tasas!$FY$78:$HJ$1228,$I$15+GQ$33+2,0)) -> 0 | GR36: =+IF(OR($C36=0,$C36="NO"),0,VLOOKUP($I$16+$H36,Tasas!$FY$78:$HJ$1228,$I$15+GR$33+2,0)) -> 0 | GS36: =+IF(OR($C36=0,$C36="NO"),0,VLOOKUP($I$16+$H36,Tasas!$FY$78:$HJ$1228,$I$15+GS$33+2,0)) -> 0 | GT36: =+IF(OR($C36=0,$C36="NO"),0,VLOOKUP($I$16+$H36,Tasas!$FY$78:$HJ$1228,$I$15+GT$33+2,0)) -> 0 | GU36: =+IF(OR($C36=0,$C36="NO"),0,VLOOKUP($I$16+$H36,Tasas!$FY$78:$HJ$1228,$I$15+GU$33+2,0)) -> 0 | GV36: =+IF(OR($C36=0,$C36="NO"),0,VLOOKUP($I$16+$H36,Tasas!$FY$78:$HJ$1228,$I$15+GV$33+2,0)) -> 0 | GW36: =+IF(OR($C36=0,$C36="NO"),0,VLOOKUP($I$16+$H36,Tasas!$FY$78:$HJ$1228,$I$15+GW$33+2,0)) -> 0 | GX36: =+IF(OR($C36=0,$C36="NO"),0,VLOOKUP($I$16+$H36,Tasas!$FY$78:$HJ$1228,$I$15+GX$33+2,0)) -> 0
A37: Edad de ingreso del asegurado | C37: =Cotizador!$E$92 -> 0 | D37: =Cotizador!$G$92 -> 0 | E37: =Cotizador!$I$92 -> 0 | F37: =Cotizador!$K$92 -> 0 | H37: 128 | I37: =+IF(OR($C37=0,$C37="NO"),0,VLOOKUP($I$16+$H37,Tasas!$C$78:$AN$1228,$I$15+I$33+2,0)) -> 0 | J37: =+IF(OR($C37=0,$C37="NO"),0,VLOOKUP($I$16+$H37,Tasas!$C$78:$AN$1228,$I$15+J$33+2,0)) -> 0 | K37: =+IF(OR($C37=0,$C37="NO"),0,VLOOKUP($I$16+$H37,Tasas!$C$78:$AN$1228,$I$15+K$33+2,0)) -> 0 | L37: =+IF(OR($C37=0,$C37="NO"),0,VLOOKUP($I$16+$H37,Tasas!$C$78:$AN$1228,$I$15+L$33+2,0)) -> 0 | M37: =+IF(OR($C37=0,$C37="NO"),0,VLOOKUP($I$16+$H37,Tasas!$C$78:$AN$1228,$I$15+M$33+2,0)) -> 0 | N37: =+IF(OR($C37=0,$C37="NO"),0,VLOOKUP($I$16+$H37,Tasas!$C$78:$AN$1228,$I$15+N$33+2,0)) -> 0 | O37: =+IF(OR($C37=0,$C37="NO"),0,VLOOKUP($I$16+$H37,Tasas!$C$78:$AN$1228,$I$15+O$33+2,0)) -> 0 | P37: =+IF(OR($C37=0,$C37="NO"),0,VLOOKUP($I$16+$H37,Tasas!$C$78:$AN$1228,$I$15+P$33+2,0)) -> 0 | Q37: =+IF(OR($D37=0,$D37="NO"),0,VLOOKUP($J$16+$H37,Tasas!$C$78:$AN$1228,$J$15+Q$33+2,0)) -> 0 | R37: =+IF(OR($D37=0,$D37="NO"),0,VLOOKUP($J$16+$H37,Tasas!$C$78:$AN$1228,$J$15+R$33+2,0)) -> 0 | S37: =+IF(OR($D37=0,$D37="NO"),0,VLOOKUP($J$16+$H37,Tasas!$C$78:$AN$1228,$J$15+S$33+2,0)) -> 0 | T37: =+IF(OR($D37=0,$D37="NO"),0,VLOOKUP($J$16+$H37,Tasas!$C$78:$AN$1228,$J$15+T$33+2,0)) -> 0 | U37: =+IF(OR($D37=0,$D37="NO"),0,VLOOKUP($J$16+$H37,Tasas!$C$78:$AN$1228,$J$15+U$33+2,0)) -> 0 | V37: =+IF(OR($D37=0,$D37="NO"),0,VLOOKUP($J$16+$H37,Tasas!$C$78:$AN$1228,$J$15+V$33+2,0)) -> 0 | W37: =+IF(OR($D37=0,$D37="NO"),0,VLOOKUP($J$16+$H37,Tasas!$C$78:$AN$1228,$J$15+W$33+2,0)) -> 0 | X37: =+IF(OR($D37=0,$D37="NO"),0,VLOOKUP($J$16+$H37,Tasas!$C$78:$AN$1228,$J$15+X$33+2,0)) -> 0 | Y37: =+IF(OR($E37=0,$E37="NO"),0,VLOOKUP($K$16+$H37,Tasas!$C$78:$AN$1228,$K$15+Y$33+2,0)) -> 0 | Z37: =+IF(OR($E37=0,$E37="NO"),0,VLOOKUP($K$16+$H37,Tasas!$C$78:$AN$1228,$K$15+Z$33+2,0)) -> 0 | AA37: =+IF(OR($E37=0,$E37="NO"),0,VLOOKUP($K$16+$H37,Tasas!$C$78:$AN$1228,$K$15+AA$33+2,0)) -> 0 | AB37: =+IF(OR($E37=0,$E37="NO"),0,VLOOKUP($K$16+$H37,Tasas!$C$78:$AN$1228,$K$15+AB$33+2,0)) -> 0 | AC37: =+IF(OR($E37=0,$E37="NO"),0,VLOOKUP($K$16+$H37,Tasas!$C$78:$AN$1228,$K$15+AC$33+2,0)) -> 0 | AD37: =+IF(OR($E37=0,$E37="NO"),0,VLOOKUP($K$16+$H37,Tasas!$C$78:$AN$1228,$K$15+AD$33+2,0)) -> 0 | AE37: =+IF(OR($E37=0,$E37="NO"),0,VLOOKUP($K$16+$H37,Tasas!$C$78:$AN$1228,$K$15+AE$33+2,0)) -> 0 | AF37: =+IF(OR($E37=0,$E37="NO"),0,VLOOKUP($K$16+$H37,Tasas!$C$78:$AN$1228,$K$15+AF$33+2,0)) -> 0 | AG37: =+IF(OR($F37=0,$F37="NO"),0,VLOOKUP($L$16+$H37,Tasas!$C$78:$AN$1228,$L$15+AG$33+2,0)) -> 0 | AH37: =+IF(OR($F37=0,$F37="NO"),0,VLOOKUP($L$16+$H37,Tasas!$C$78:$AN$1228,$L$15+AH$33+2,0)) -> 0 | AI37: =+IF(OR($F37=0,$F37="NO"),0,VLOOKUP($L$16+$H37,Tasas!$C$78:$AN$1228,$L$15+AI$33+2,0)) -> 0 | AJ37: =+IF(OR($F37=0,$F37="NO"),0,VLOOKUP($L$16+$H37,Tasas!$C$78:$AN$1228,$L$15+AJ$33+2,0)) -> 0 | AK37: =+IF(OR($F37=0,$F37="NO"),0,VLOOKUP($L$16+$H37,Tasas!$C$78:$AN$1228,$L$15+AK$33+2,0)) -> 0 | AL37: =+IF(OR($F37=0,$F37="NO"),0,VLOOKUP($L$16+$H37,Tasas!$C$78:$AN$1228,$L$15+AL$33+2,0)) -> 0 | AM37: =+IF(OR($F37=0,$F37="NO"),0,VLOOKUP($L$16+$H37,Tasas!$C$78:$AN$1228,$L$15+AM$33+2,0)) -> 0 | AN37: =+IF(OR($F37=0,$F37="NO"),0,VLOOKUP($L$16+$H37,Tasas!$C$78:$AN$1228,$L$15+AN$33+2,0)) -> 0 | AS37: Edad de ingreso del asegurado | AU37: =Cotizador!$E$92 -> 0 | AV37: =Cotizador!$G$92 -> 0 | AW37: =Cotizador!$I$92 -> 0 | AX37: =Cotizador!$K$92 -> 0 | AZ37: 128 | BA37: =+IF(OR($AU37=0,$AU37="NO"),0,VLOOKUP($BA$16+$AZ37,Tasas!$C$78:$BY$1292,$BA$15+BA$33+39,0)) -> 0 | BB37: =+IF(OR($AU37=0,$AU37="NO"),0,VLOOKUP($BA$16+$AZ37,Tasas!$C$78:$BY$1292,$BA$15+BB$33+39,0)) -> 0 | BC37: =+IF(OR($AU37=0,$AU37="NO"),0,VLOOKUP($BA$16+$AZ37,Tasas!$C$78:$BY$1292,$BA$15+BC$33+39,0)) -> 0 | BD37: =+IF(OR($AU37=0,$AU37="NO"),0,VLOOKUP($BA$16+$AZ37,Tasas!$C$78:$BY$1292,$BA$15+BD$33+39,0)) -> 0 | BE37: =+IF(OR($AU37=0,$AU37="NO"),0,VLOOKUP($BA$16+$AZ37,Tasas!$C$78:$BY$1292,$BA$15+BE$33+39,0)) -> 0 | BF37: =+IF(OR($AU37=0,$AU37="NO"),0,VLOOKUP($BA$16+$AZ37,Tasas!$C$78:$BY$1292,$BA$15+BF$33+39,0)) -> 0 | BG37: =+IF(OR($AU37=0,$AU37="NO"),0,VLOOKUP($BA$16+$AZ37,Tasas!$C$78:$BY$1292,$BA$15+BG$33+39,0)) -> 0 | BH37: =+IF(OR($AU37=0,$AU37="NO"),0,VLOOKUP($BA$16+$AZ37,Tasas!$C$78:$BY$1292,$BA$15+BH$33+39,0)) -> 0 | BI37: =+IF(OR($AU37=0,$AU37="NO"),0,VLOOKUP($BA$16+$AZ37,Tasas!$C$78:$BY$1292,$BA$15+BI$33+39,0)) -> 0 | BJ37: =+IF(OR($AU37=0,$AU37="NO"),0,VLOOKUP($BA$16+$AZ37,Tasas!$C$78:$BY$1292,$BA$15+BJ$33+39,0)) -> 0 | BK37: =+IF(OR($AU37=0,$AU37="NO"),0,VLOOKUP($BA$16+$AZ37,Tasas!$C$78:$BY$1292,$BA$15+BK$33+39,0)) -> 0 | BL37: =+IF(OR($AU37=0,$AU37="NO"),0,VLOOKUP($BA$16+$AZ37,Tasas!$C$78:$BY$1292,$BA$15+BL$33+39,0)) -> 0 | BM37: =+IF(OR($AU37=0,$AU37="NO"),0,VLOOKUP($BA$16+$AZ37,Tasas!$C$78:$BY$1292,$BA$15+BM$33+39,0)) -> 0 | BN37: =+IF(OR($AU37=0,$AU37="NO"),0,VLOOKUP($BA$16+$AZ37,Tasas!$C$78:$BY$1292,$BA$15+BN$33+39,0)) -> 0 | BO37: =+IF(OR($AU37=0,$AU37="NO"),0,VLOOKUP($BA$16+$AZ37,Tasas!$C$78:$BY$1292,$BA$15+BO$33+39,0)) -> 0 | BP37: =+IF(OR($AU37=0,$AU37="NO"),0,VLOOKUP($BA$16+$AZ37,Tasas!$C$78:$BY$1292,$BA$15+BP$33+39,0)) -> 0 | BQ37: =+IF(OR($AU37=0,$AU37="NO"),0,VLOOKUP($BA$16+$AZ37,Tasas!$C$78:$BY$1292,$BA$15+BQ$33+39,0)) -> 0 | BR37: =+IF(OR($AU37=0,$AU37="NO"),0,VLOOKUP($BA$16+$AZ37,Tasas!$C$78:$BY$1292,$BA$15+BR$33+39,0)) -> 0 | BS37: =+IF(OR($AU37=0,$AU37="NO"),0,VLOOKUP($BA$16+$AZ37,Tasas!$C$78:$BY$1292,$BA$15+BS$33+39,0)) -> 0 | BT37: =+IF(OR($AU37=0,$AU37="NO"),0,VLOOKUP($BA$16+$AZ37,Tasas!$C$78:$BY$1292,$BA$15+BT$33+39,0)) -> 0 | BU37: =+IF(OR($AU37=0,$AU37="NO"),0,VLOOKUP($BA$16+$AZ37,Tasas!$C$78:$BY$1292,$BA$15+BU$33+39,0)) -> 0 | BV37: =+IF(OR($AU37=0,$AU37="NO"),0,VLOOKUP($BA$16+$AZ37,Tasas!$C$78:$BY$1292,$BA$15+BV$33+39,0)) -> 0 | BW37: =+IF(OR($AU37=0,$AU37="NO"),0,VLOOKUP($BA$16+$AZ37,Tasas!$C$78:$BY$1292,$BA$15+BW$33+39,0)) -> 0 | BX37: =+IF(OR($AU37=0,$AU37="NO"),0,VLOOKUP($BA$16+$AZ37,Tasas!$C$78:$BY$1292,$BA$15+BX$33+39,0)) -> 0 | BY37: =+IF(OR($AU37=0,$AU37="NO"),0,VLOOKUP($BA$16+$AZ37,Tasas!$C$78:$BY$1292,$BA$15+BY$33+39,0)) -> 0 | BZ37: =+IF(OR($AU37=0,$AU37="NO"),0,VLOOKUP($BA$16+$AZ37,Tasas!$C$78:$BY$1292,$BA$15+BZ$33+39,0)) -> 0 | CA37: =+IF(OR($AU37=0,$AU37="NO"),0,VLOOKUP($BA$16+$AZ37,Tasas!$C$78:$BY$1292,$BA$15+CA$33+39,0)) -> 0 | CB37: =+IF(OR($AU37=0,$AU37="NO"),0,VLOOKUP($BA$16+$AZ37,Tasas!$C$78:$BY$1292,$BA$15+CB$33+39,0)) -> 0 | CC37: =+IF(OR($AU37=0,$AU37="NO"),0,VLOOKUP($BA$16+$AZ37,Tasas!$C$78:$BY$1292,$BA$15+CC$33+39,0)) -> 0 | CD37: =+IF(OR($AU37=0,$AU37="NO"),0,VLOOKUP($BA$16+$AZ37,Tasas!$C$78:$BY$1292,$BA$15+CD$33+39,0)) -> 0 | CE37: =+IF(OR($AU37=0,$AU37="NO"),0,VLOOKUP($BA$16+$AZ37,Tasas!$C$78:$BY$1292,$BA$15+CE$33+39,0)) -> 0 | CF37: =+IF(OR($AU37=0,$AU37="NO"),0,VLOOKUP($BA$16+$AZ37,Tasas!$C$78:$BY$1292,$BA$15+CF$33+39,0)) -> 0 | CK37: Edad de ingreso del asegurado | CM37: =Cotizador!$E$92 -> 0 | CN37: =CN36+3 -> 7 | CO37: 7 | CP37: =IF(OR($CM37="",$CM37=0),0,VLOOKUP($CO37,Tasas!$CB$17:$CL$70,Calculadora!CP$33,0)) -> 0 | CQ37: =IF(OR($CM37="",$CM37=0),0,VLOOKUP($CO37,Tasas!$CB$17:$CL$70,Calculadora!CQ$33,0)) -> 0 | CR37: =IF(OR($CM37="",$CM37=0),0,VLOOKUP($CO37,Tasas!$CB$17:$CL$70,Calculadora!CR$33,0)) -> 0 | CS37: =IF(OR($CM37="",$CM37=0),0,VLOOKUP($CO37,Tasas!$CB$17:$CL$70,Calculadora!CS$33,0)) -> 0 | CT37: =IF(OR($CM37="",$CM37=0),0,VLOOKUP($CO37,Tasas!$CB$17:$CL$70,Calculadora!CT$33,0)) -> 0 | CU37: =IF(OR($CM37="",$CM37=0),0,VLOOKUP($CO37,Tasas!$CB$17:$CL$70,Calculadora!CU$33,0)) -> 0 | CV37: =IF(OR($CM37="",$CM37=0),0,VLOOKUP($CO37,Tasas!$CB$17:$CL$70,Calculadora!CV$33,0)) -> 0 | CW37: =IF(OR($CM37="",$CM37=0),0,VLOOKUP($CO37,Tasas!$CB$17:$CL$70,Calculadora!CW$33,0)) -> 0 | DB37: Edad de ingreso del asegurado | DD37: =Cotizador!$E$92 -> 0 | DE37: =DE36+3 -> 7 | DF37: 7 | DG37: =IF(OR($DD37="",$DD37=0),0,VLOOKUP($DF37,Tasas!$CO$17:$CY$70,Calculadora!DG$33,0)) -> 0 | DH37: =IF(OR($DD37="",$DD37=0),0,VLOOKUP($DF37,Tasas!$CO$17:$CY$70,Calculadora!DH$33,0)) -> 0 | DI37: =IF(OR($DD37="",$DD37=0),0,VLOOKUP($DF37,Tasas!$CO$17:$CY$70,Calculadora!DI$33,0)) -> 0 | DJ37: =IF(OR($DD37="",$DD37=0),0,VLOOKUP($DF37,Tasas!$CO$17:$CY$70,Calculadora!DJ$33,0)) -> 0 | DK37: =IF(OR($DD37="",$DD37=0),0,VLOOKUP($DF37,Tasas!$CO$17:$CY$70,Calculadora!DK$33,0)) -> 0 | DL37: =IF(OR($DD37="",$DD37=0),0,VLOOKUP($DF37,Tasas!$CO$17:$CY$70,Calculadora!DL$33,0)) -> 0 | DM37: =IF(OR($DD37="",$DD37=0),0,VLOOKUP($DF37,Tasas!$CO$17:$CY$70,Calculadora!DM$33,0)) -> 0 | DN37: =IF(OR($DD37="",$DD37=0),0,VLOOKUP($DF37,Tasas!$CO$17:$CY$70,Calculadora!DN$33,0)) -> 0 | DS37: Edad de ingreso del asegurado | DU37: =Cotizador!$E$92 -> 0 | DV37: =DV36+3 -> 7 | DW37: =(DV37+VLOOKUP($DZ$17,$EC$22:$ED$24,2,0)) -> 7 | DX37: =IF(OR($DU37="",$DU37=0),0,VLOOKUP($DW37,Tasas!$DB$17:$DL$70,Calculadora!DX$33,0)) -> 0 | DY37: =IF(OR($DU37="",$DU37=0),0,VLOOKUP($DW37,Tasas!$DB$17:$DL$70,Calculadora!DY$33,0)) -> 0 | DZ37: =IF(OR($DU37="",$DU37=0),0,VLOOKUP($DW37,Tasas!$DB$17:$DL$70,Calculadora!DZ$33,0)) -> 0 | EA37: =IF(OR($DU37="",$DU37=0),0,VLOOKUP($DW37,Tasas!$DB$17:$DL$70,Calculadora!EA$33,0)) -> 0 | EB37: =IF(OR($DU37="",$DU37=0),0,VLOOKUP($DW37,Tasas!$DB$17:$DL$70,Calculadora!EB$33,0)) -> 0 | EC37: =IF(OR($DU37="",$DU37=0),0,VLOOKUP($DW37,Tasas!$DB$17:$DL$70,Calculadora!EC$33,0)) -> 0 | ED37: =IF(OR($DU37="",$DU37=0),0,VLOOKUP($DW37,Tasas!$DB$17:$DL$70,Calculadora!ED$33,0)) -> 0 | EE37: =IF(OR($DU37="",$DU37=0),0,VLOOKUP($DW37,Tasas!$DB$17:$DL$70,Calculadora!EE$33,0)) -> 0 | EJ37: Edad de ingreso del asegurado | EL37: =Cotizador!$E$92 -> 0 | EM37: =EM36+3 -> 7 | EN37: 7 | EO37: =IF(OR($EL37="",$EL37=0),0,VLOOKUP($EN37,Tasas!$DO$17:$DY$70,Calculadora!EO$33,0)) -> 0 | EP37: =IF(OR($EL37="",$EL37=0),0,VLOOKUP($EN37,Tasas!$DO$17:$DY$70,Calculadora!EP$33,0)) -> 0 | EQ37: =IF(OR($EL37="",$EL37=0),0,VLOOKUP($EN37,Tasas!$DO$17:$DY$70,Calculadora!EQ$33,0)) -> 0 | ER37: =IF(OR($EL37="",$EL37=0),0,VLOOKUP($EN37,Tasas!$DO$17:$DY$70,Calculadora!ER$33,0)) -> 0 | ES37: =IF(OR($EL37="",$EL37=0),0,VLOOKUP($EN37,Tasas!$DO$17:$DY$70,Calculadora!ES$33,0)) -> 0 | ET37: =IF(OR($EL37="",$EL37=0),0,VLOOKUP($EN37,Tasas!$DO$17:$DY$70,Calculadora!ET$33,0)) -> 0 | EU37: =IF(OR($EL37="",$EL37=0),0,VLOOKUP($EN37,Tasas!$DO$17:$DY$70,Calculadora!EU$33,0)) -> 0 | EV37: =IF(OR($EL37="",$EL37=0),0,VLOOKUP($EN37,Tasas!$DO$17:$DY$70,Calculadora!EV$33,0)) -> 0 | FA37: Edad de ingreso del asegurado | FC37: =Cotizador!$E$92 -> 0 | FD37: =FD36+3 -> 7 | FE37: 7 | FF37: =IF(OR($FC37="",$FC37=0),0,VLOOKUP($FE37,Tasas!$EB$17:$EL$70,Calculadora!FF$33,0)) -> 0 | FG37: =IF(OR($FC37="",$FC37=0),0,VLOOKUP($FE37,Tasas!$EB$17:$EL$70,Calculadora!FG$33,0)) -> 0 | FH37: =IF(OR($FC37="",$FC37=0),0,VLOOKUP($FE37,Tasas!$EB$17:$EL$70,Calculadora!FH$33,0)) -> 0 | FI37: =IF(OR($FC37="",$FC37=0),0,VLOOKUP($FE37,Tasas!$EB$17:$EL$70,Calculadora!FI$33,0)) -> 0 | FJ37: =IF(OR($FC37="",$FC37=0),0,VLOOKUP($FE37,Tasas!$EB$17:$EL$70,Calculadora!FJ$33,0)) -> 0 | FK37: =IF(OR($FC37="",$FC37=0),0,VLOOKUP($FE37,Tasas!$EB$17:$EL$70,Calculadora!FK$33,0)) -> 0 | FL37: =IF(OR($FC37="",$FC37=0),0,VLOOKUP($FE37,Tasas!$EB$17:$EL$70,Calculadora!FL$33,0)) -> 0 | FM37: =IF(OR($FC37="",$FC37=0),0,VLOOKUP($FE37,Tasas!$EB$17:$EL$70,Calculadora!FM$33,0)) -> 0 | FR37: Cláusula por la práctica no profesional de deportes y/o actividades de riesgo. N1 | FT37: =Cotizador!$E$112 -> 0 | FV37: 4 | FW37: =IF(OR($FT37=0,$FT37="NO"),0,VLOOKUP($FV37,Tasas!$EO$29:$FU$45,Calculadora!FW$32,0)) -> 0 | FX37: =IF(OR($FT37=0,$FT37="NO"),0,VLOOKUP($FV37,Tasas!$EO$29:$FU$45,Calculadora!FX$32,0)) -> 0 | FY37: =IF(OR($FT37=0,$FT37="NO"),0,VLOOKUP($FV37,Tasas!$EO$29:$FU$45,Calculadora!FY$32,0)) -> 0 | FZ37: =IF(OR($FT37=0,$FT37="NO"),0,VLOOKUP($FV37,Tasas!$EO$29:$FU$45,Calculadora!FZ$32,0)) -> 0 | GA37: =IF(OR($FT37=0,$FT37="NO"),0,VLOOKUP($FV37,Tasas!$EO$29:$FU$45,Calculadora!GA$32,0)) -> 0 | GB37: =IF(OR($FT37=0,$FT37="NO"),0,VLOOKUP($FV37,Tasas!$EO$29:$FU$45,Calculadora!GB$32,0)) -> 0 | GC37: =IF(OR($FT37=0,$FT37="NO"),0,VLOOKUP($FV37,Tasas!$EO$29:$FU$45,Calculadora!GC$32,0)) -> 0 | GD37: =IF(OR($FT37=0,$FT37="NO"),0,VLOOKUP($FV37,Tasas!$EO$29:$FU$45,Calculadora!GD$32,0)) -> 0 | GI37: Edad de ingreso del asegurado | GK37: =Cotizador!$E$92 -> 0 | GP37: 128 | GQ37: =+IF(OR($C37=0,$C37="NO"),0,VLOOKUP($I$16+$H37,Tasas!$FY$78:$HJ$1228,$I$15+GQ$33+2,0)) -> 0 | GR37: =+IF(OR($C37=0,$C37="NO"),0,VLOOKUP($I$16+$H37,Tasas!$FY$78:$HJ$1228,$I$15+GR$33+2,0)) -> 0 | GS37: =+IF(OR($C37=0,$C37="NO"),0,VLOOKUP($I$16+$H37,Tasas!$FY$78:$HJ$1228,$I$15+GS$33+2,0)) -> 0 | GT37: =+IF(OR($C37=0,$C37="NO"),0,VLOOKUP($I$16+$H37,Tasas!$FY$78:$HJ$1228,$I$15+GT$33+2,0)) -> 0 | GU37: =+IF(OR($C37=0,$C37="NO"),0,VLOOKUP($I$16+$H37,Tasas!$FY$78:$HJ$1228,$I$15+GU$33+2,0)) -> 0 | GV37: =+IF(OR($C37=0,$C37="NO"),0,VLOOKUP($I$16+$H37,Tasas!$FY$78:$HJ$1228,$I$15+GV$33+2,0)) -> 0 | GW37: =+IF(OR($C37=0,$C37="NO"),0,VLOOKUP($I$16+$H37,Tasas!$FY$78:$HJ$1228,$I$15+GW$33+2,0)) -> 0 | GX37: =+IF(OR($C37=0,$C37="NO"),0,VLOOKUP($I$16+$H37,Tasas!$FY$78:$HJ$1228,$I$15+GX$33+2,0)) -> 0
A38: Por limitación a horas de trabajo. | C38: =Cotizador!$E$93 -> 0 | D38: =Cotizador!$G$93 -> 0 | E38: =Cotizador!$I$93 -> 0 | F38: =Cotizador!$K$93 -> 0 | H38: 192 | I38: =+IF(OR($C38=0,$C38="NO"),0,VLOOKUP($I$16+$H38,Tasas!$C$78:$AN$1228,$I$15+I$33+2,0)) -> 0 | J38: =+IF(OR($C38=0,$C38="NO"),0,VLOOKUP($I$16+$H38,Tasas!$C$78:$AN$1228,$I$15+J$33+2,0)) -> 0 | K38: =+IF(OR($C38=0,$C38="NO"),0,VLOOKUP($I$16+$H38,Tasas!$C$78:$AN$1228,$I$15+K$33+2,0)) -> 0 | L38: =+IF(OR($C38=0,$C38="NO"),0,VLOOKUP($I$16+$H38,Tasas!$C$78:$AN$1228,$I$15+L$33+2,0)) -> 0 | M38: =+IF(OR($C38=0,$C38="NO"),0,VLOOKUP($I$16+$H38,Tasas!$C$78:$AN$1228,$I$15+M$33+2,0)) -> 0 | N38: =+IF(OR($C38=0,$C38="NO"),0,VLOOKUP($I$16+$H38,Tasas!$C$78:$AN$1228,$I$15+N$33+2,0)) -> 0 | O38: =+IF(OR($C38=0,$C38="NO"),0,VLOOKUP($I$16+$H38,Tasas!$C$78:$AN$1228,$I$15+O$33+2,0)) -> 0 | P38: =+IF(OR($C38=0,$C38="NO"),0,VLOOKUP($I$16+$H38,Tasas!$C$78:$AN$1228,$I$15+P$33+2,0)) -> 0 | Q38: =+IF(OR($D38=0,$D38="NO"),0,VLOOKUP($J$16+$H38,Tasas!$C$78:$AN$1228,$J$15+Q$33+2,0)) -> 0 | R38: =+IF(OR($D38=0,$D38="NO"),0,VLOOKUP($J$16+$H38,Tasas!$C$78:$AN$1228,$J$15+R$33+2,0)) -> 0 | S38: =+IF(OR($D38=0,$D38="NO"),0,VLOOKUP($J$16+$H38,Tasas!$C$78:$AN$1228,$J$15+S$33+2,0)) -> 0 | T38: =+IF(OR($D38=0,$D38="NO"),0,VLOOKUP($J$16+$H38,Tasas!$C$78:$AN$1228,$J$15+T$33+2,0)) -> 0 | U38: =+IF(OR($D38=0,$D38="NO"),0,VLOOKUP($J$16+$H38,Tasas!$C$78:$AN$1228,$J$15+U$33+2,0)) -> 0 | V38: =+IF(OR($D38=0,$D38="NO"),0,VLOOKUP($J$16+$H38,Tasas!$C$78:$AN$1228,$J$15+V$33+2,0)) -> 0 | W38: =+IF(OR($D38=0,$D38="NO"),0,VLOOKUP($J$16+$H38,Tasas!$C$78:$AN$1228,$J$15+W$33+2,0)) -> 0 | X38: =+IF(OR($D38=0,$D38="NO"),0,VLOOKUP($J$16+$H38,Tasas!$C$78:$AN$1228,$J$15+X$33+2,0)) -> 0 | Y38: =+IF(OR($E38=0,$E38="NO"),0,VLOOKUP($K$16+$H38,Tasas!$C$78:$AN$1228,$K$15+Y$33+2,0)) -> 0 | Z38: =+IF(OR($E38=0,$E38="NO"),0,VLOOKUP($K$16+$H38,Tasas!$C$78:$AN$1228,$K$15+Z$33+2,0)) -> 0 | AA38: =+IF(OR($E38=0,$E38="NO"),0,VLOOKUP($K$16+$H38,Tasas!$C$78:$AN$1228,$K$15+AA$33+2,0)) -> 0 | AB38: =+IF(OR($E38=0,$E38="NO"),0,VLOOKUP($K$16+$H38,Tasas!$C$78:$AN$1228,$K$15+AB$33+2,0)) -> 0 | AC38: =+IF(OR($E38=0,$E38="NO"),0,VLOOKUP($K$16+$H38,Tasas!$C$78:$AN$1228,$K$15+AC$33+2,0)) -> 0 | AD38: =+IF(OR($E38=0,$E38="NO"),0,VLOOKUP($K$16+$H38,Tasas!$C$78:$AN$1228,$K$15+AD$33+2,0)) -> 0 | AE38: =+IF(OR($E38=0,$E38="NO"),0,VLOOKUP($K$16+$H38,Tasas!$C$78:$AN$1228,$K$15+AE$33+2,0)) -> 0 | AF38: =+IF(OR($E38=0,$E38="NO"),0,VLOOKUP($K$16+$H38,Tasas!$C$78:$AN$1228,$K$15+AF$33+2,0)) -> 0 | AG38: =+IF(OR($F38=0,$F38="NO"),0,VLOOKUP($L$16+$H38,Tasas!$C$78:$AN$1228,$L$15+AG$33+2,0)) -> 0 | AH38: =+IF(OR($F38=0,$F38="NO"),0,VLOOKUP($L$16+$H38,Tasas!$C$78:$AN$1228,$L$15+AH$33+2,0)) -> 0 | AI38: =+IF(OR($F38=0,$F38="NO"),0,VLOOKUP($L$16+$H38,Tasas!$C$78:$AN$1228,$L$15+AI$33+2,0)) -> 0 | AJ38: =+IF(OR($F38=0,$F38="NO"),0,VLOOKUP($L$16+$H38,Tasas!$C$78:$AN$1228,$L$15+AJ$33+2,0)) -> 0 | AK38: =+IF(OR($F38=0,$F38="NO"),0,VLOOKUP($L$16+$H38,Tasas!$C$78:$AN$1228,$L$15+AK$33+2,0)) -> 0 | AL38: =+IF(OR($F38=0,$F38="NO"),0,VLOOKUP($L$16+$H38,Tasas!$C$78:$AN$1228,$L$15+AL$33+2,0)) -> 0 | AM38: =+IF(OR($F38=0,$F38="NO"),0,VLOOKUP($L$16+$H38,Tasas!$C$78:$AN$1228,$L$15+AM$33+2,0)) -> 0 | AN38: =+IF(OR($F38=0,$F38="NO"),0,VLOOKUP($L$16+$H38,Tasas!$C$78:$AN$1228,$L$15+AN$33+2,0)) -> 0 | AS38: Por limitación a horas de trabajo. | AU38: =Cotizador!$E$93 -> 0 | AV38: =Cotizador!$G$93 -> 0 | AW38: =Cotizador!$I$93 -> 0 | AX38: =Cotizador!$K$93 -> 0 | AZ38: 192 | BA38: =+IF(OR($AU38=0,$AU38="NO"),0,VLOOKUP($BA$16+$AZ38,Tasas!$C$78:$BY$1292,$BA$15+BA$33+39,0)) -> 0 | BB38: =+IF(OR($AU38=0,$AU38="NO"),0,VLOOKUP($BA$16+$AZ38,Tasas!$C$78:$BY$1292,$BA$15+BB$33+39,0)) -> 0 | BC38: =+IF(OR($AU38=0,$AU38="NO"),0,VLOOKUP($BA$16+$AZ38,Tasas!$C$78:$BY$1292,$BA$15+BC$33+39,0)) -> 0 | BD38: =+IF(OR($AU38=0,$AU38="NO"),0,VLOOKUP($BA$16+$AZ38,Tasas!$C$78:$BY$1292,$BA$15+BD$33+39,0)) -> 0 | BE38: =+IF(OR($AU38=0,$AU38="NO"),0,VLOOKUP($BA$16+$AZ38,Tasas!$C$78:$BY$1292,$BA$15+BE$33+39,0)) -> 0 | BF38: =+IF(OR($AU38=0,$AU38="NO"),0,VLOOKUP($BA$16+$AZ38,Tasas!$C$78:$BY$1292,$BA$15+BF$33+39,0)) -> 0 | BG38: =+IF(OR($AU38=0,$AU38="NO"),0,VLOOKUP($BA$16+$AZ38,Tasas!$C$78:$BY$1292,$BA$15+BG$33+39,0)) -> 0 | BH38: =+IF(OR($AU38=0,$AU38="NO"),0,VLOOKUP($BA$16+$AZ38,Tasas!$C$78:$BY$1292,$BA$15+BH$33+39,0)) -> 0 | BI38: =+IF(OR($AU38=0,$AU38="NO"),0,VLOOKUP($BA$16+$AZ38,Tasas!$C$78:$BY$1292,$BA$15+BI$33+39,0)) -> 0 | BJ38: =+IF(OR($AU38=0,$AU38="NO"),0,VLOOKUP($BA$16+$AZ38,Tasas!$C$78:$BY$1292,$BA$15+BJ$33+39,0)) -> 0 | BK38: =+IF(OR($AU38=0,$AU38="NO"),0,VLOOKUP($BA$16+$AZ38,Tasas!$C$78:$BY$1292,$BA$15+BK$33+39,0)) -> 0 | BL38: =+IF(OR($AU38=0,$AU38="NO"),0,VLOOKUP($BA$16+$AZ38,Tasas!$C$78:$BY$1292,$BA$15+BL$33+39,0)) -> 0 | BM38: =+IF(OR($AU38=0,$AU38="NO"),0,VLOOKUP($BA$16+$AZ38,Tasas!$C$78:$BY$1292,$BA$15+BM$33+39,0)) -> 0 | BN38: =+IF(OR($AU38=0,$AU38="NO"),0,VLOOKUP($BA$16+$AZ38,Tasas!$C$78:$BY$1292,$BA$15+BN$33+39,0)) -> 0 | BO38: =+IF(OR($AU38=0,$AU38="NO"),0,VLOOKUP($BA$16+$AZ38,Tasas!$C$78:$BY$1292,$BA$15+BO$33+39,0)) -> 0 | BP38: =+IF(OR($AU38=0,$AU38="NO"),0,VLOOKUP($BA$16+$AZ38,Tasas!$C$78:$BY$1292,$BA$15+BP$33+39,0)) -> 0 | BQ38: =+IF(OR($AU38=0,$AU38="NO"),0,VLOOKUP($BA$16+$AZ38,Tasas!$C$78:$BY$1292,$BA$15+BQ$33+39,0)) -> 0 | BR38: =+IF(OR($AU38=0,$AU38="NO"),0,VLOOKUP($BA$16+$AZ38,Tasas!$C$78:$BY$1292,$BA$15+BR$33+39,0)) -> 0 | BS38: =+IF(OR($AU38=0,$AU38="NO"),0,VLOOKUP($BA$16+$AZ38,Tasas!$C$78:$BY$1292,$BA$15+BS$33+39,0)) -> 0 | BT38: =+IF(OR($AU38=0,$AU38="NO"),0,VLOOKUP($BA$16+$AZ38,Tasas!$C$78:$BY$1292,$BA$15+BT$33+39,0)) -> 0 | BU38: =+IF(OR($AU38=0,$AU38="NO"),0,VLOOKUP($BA$16+$AZ38,Tasas!$C$78:$BY$1292,$BA$15+BU$33+39,0)) -> 0 | BV38: =+IF(OR($AU38=0,$AU38="NO"),0,VLOOKUP($BA$16+$AZ38,Tasas!$C$78:$BY$1292,$BA$15+BV$33+39,0)) -> 0 | BW38: =+IF(OR($AU38=0,$AU38="NO"),0,VLOOKUP($BA$16+$AZ38,Tasas!$C$78:$BY$1292,$BA$15+BW$33+39,0)) -> 0 | BX38: =+IF(OR($AU38=0,$AU38="NO"),0,VLOOKUP($BA$16+$AZ38,Tasas!$C$78:$BY$1292,$BA$15+BX$33+39,0)) -> 0 | BY38: =+IF(OR($AU38=0,$AU38="NO"),0,VLOOKUP($BA$16+$AZ38,Tasas!$C$78:$BY$1292,$BA$15+BY$33+39,0)) -> 0 | BZ38: =+IF(OR($AU38=0,$AU38="NO"),0,VLOOKUP($BA$16+$AZ38,Tasas!$C$78:$BY$1292,$BA$15+BZ$33+39,0)) -> 0 | CA38: =+IF(OR($AU38=0,$AU38="NO"),0,VLOOKUP($BA$16+$AZ38,Tasas!$C$78:$BY$1292,$BA$15+CA$33+39,0)) -> 0 | CB38: =+IF(OR($AU38=0,$AU38="NO"),0,VLOOKUP($BA$16+$AZ38,Tasas!$C$78:$BY$1292,$BA$15+CB$33+39,0)) -> 0 | CC38: =+IF(OR($AU38=0,$AU38="NO"),0,VLOOKUP($BA$16+$AZ38,Tasas!$C$78:$BY$1292,$BA$15+CC$33+39,0)) -> 0 | CD38: =+IF(OR($AU38=0,$AU38="NO"),0,VLOOKUP($BA$16+$AZ38,Tasas!$C$78:$BY$1292,$BA$15+CD$33+39,0)) -> 0 | CE38: =+IF(OR($AU38=0,$AU38="NO"),0,VLOOKUP($BA$16+$AZ38,Tasas!$C$78:$BY$1292,$BA$15+CE$33+39,0)) -> 0 | CF38: =+IF(OR($AU38=0,$AU38="NO"),0,VLOOKUP($BA$16+$AZ38,Tasas!$C$78:$BY$1292,$BA$15+CF$33+39,0)) -> 0 | CK38: Por limitación a horas de trabajo. | CM38: =Cotizador!$E$93 -> 0 | CN38: 10 | CO38: 10 | CP38: =IF(OR($CM38="",$CM38=0),0,VLOOKUP($CO38,Tasas!$CB$17:$CL$70,Calculadora!CP$33,0)) -> 0 | CQ38: =IF(OR($CM38="",$CM38=0),0,VLOOKUP($CO38,Tasas!$CB$17:$CL$70,Calculadora!CQ$33,0)) -> 0 | CR38: =IF(OR($CM38="",$CM38=0),0,VLOOKUP($CO38,Tasas!$CB$17:$CL$70,Calculadora!CR$33,0)) -> 0 | CS38: =IF(OR($CM38="",$CM38=0),0,VLOOKUP($CO38,Tasas!$CB$17:$CL$70,Calculadora!CS$33,0)) -> 0 | CT38: =IF(OR($CM38="",$CM38=0),0,VLOOKUP($CO38,Tasas!$CB$17:$CL$70,Calculadora!CT$33,0)) -> 0 | CU38: =IF(OR($CM38="",$CM38=0),0,VLOOKUP($CO38,Tasas!$CB$17:$CL$70,Calculadora!CU$33,0)) -> 0 | CV38: =IF(OR($CM38="",$CM38=0),0,VLOOKUP($CO38,Tasas!$CB$17:$CL$70,Calculadora!CV$33,0)) -> 0 | CW38: =IF(OR($CM38="",$CM38=0),0,VLOOKUP($CO38,Tasas!$CB$17:$CL$70,Calculadora!CW$33,0)) -> 0 | DB38: Por limitación a horas de trabajo. | DD38: =Cotizador!$E$93 -> 0 | DE38: 10 | DF38: 10 | DG38: =IF(OR($DD38="",$DD38=0),0,VLOOKUP($DF38,Tasas!$CO$17:$CY$70,Calculadora!DG$33,0)) -> 0 | DH38: =IF(OR($DD38="",$DD38=0),0,VLOOKUP($DF38,Tasas!$CO$17:$CY$70,Calculadora!DH$33,0)) -> 0 | DI38: =IF(OR($DD38="",$DD38=0),0,VLOOKUP($DF38,Tasas!$CO$17:$CY$70,Calculadora!DI$33,0)) -> 0 | DJ38: =IF(OR($DD38="",$DD38=0),0,VLOOKUP($DF38,Tasas!$CO$17:$CY$70,Calculadora!DJ$33,0)) -> 0 | DK38: =IF(OR($DD38="",$DD38=0),0,VLOOKUP($DF38,Tasas!$CO$17:$CY$70,Calculadora!DK$33,0)) -> 0 | DL38: =IF(OR($DD38="",$DD38=0),0,VLOOKUP($DF38,Tasas!$CO$17:$CY$70,Calculadora!DL$33,0)) -> 0 | DM38: =IF(OR($DD38="",$DD38=0),0,VLOOKUP($DF38,Tasas!$CO$17:$CY$70,Calculadora!DM$33,0)) -> 0 | DN38: =IF(OR($DD38="",$DD38=0),0,VLOOKUP($DF38,Tasas!$CO$17:$CY$70,Calculadora!DN$33,0)) -> 0 | DS38: Por limitación a horas de trabajo. | DU38: =Cotizador!$E$93 -> 0 | DV38: 10 | DW38: =(DV38+VLOOKUP($DZ$17,$EC$22:$ED$24,2,0)) -> 10 | DX38: =IF(OR($DU38="",$DU38=0),0,VLOOKUP($DW38,Tasas!$DB$17:$DL$70,Calculadora!DX$33,0)) -> 0 | DY38: =IF(OR($DU38="",$DU38=0),0,VLOOKUP($DW38,Tasas!$DB$17:$DL$70,Calculadora!DY$33,0)) -> 0 | DZ38: =IF(OR($DU38="",$DU38=0),0,VLOOKUP($DW38,Tasas!$DB$17:$DL$70,Calculadora!DZ$33,0)) -> 0 | EA38: =IF(OR($DU38="",$DU38=0),0,VLOOKUP($DW38,Tasas!$DB$17:$DL$70,Calculadora!EA$33,0)) -> 0 | EB38: =IF(OR($DU38="",$DU38=0),0,VLOOKUP($DW38,Tasas!$DB$17:$DL$70,Calculadora!EB$33,0)) -> 0 | EC38: =IF(OR($DU38="",$DU38=0),0,VLOOKUP($DW38,Tasas!$DB$17:$DL$70,Calculadora!EC$33,0)) -> 0 | ED38: =IF(OR($DU38="",$DU38=0),0,VLOOKUP($DW38,Tasas!$DB$17:$DL$70,Calculadora!ED$33,0)) -> 0 | EE38: =IF(OR($DU38="",$DU38=0),0,VLOOKUP($DW38,Tasas!$DB$17:$DL$70,Calculadora!EE$33,0)) -> 0 | EJ38: Por limitación a horas de trabajo. | EL38: =Cotizador!$E$93 -> 0 | EM38: 10 | EN38: 10 | EO38: =IF(OR($EL38="",$EL38=0),0,VLOOKUP($EN38,Tasas!$DO$17:$DY$70,Calculadora!EO$33,0)) -> 0 | EP38: =IF(OR($EL38="",$EL38=0),0,VLOOKUP($EN38,Tasas!$DO$17:$DY$70,Calculadora!EP$33,0)) -> 0 | EQ38: =IF(OR($EL38="",$EL38=0),0,VLOOKUP($EN38,Tasas!$DO$17:$DY$70,Calculadora!EQ$33,0)) -> 0 | ER38: =IF(OR($EL38="",$EL38=0),0,VLOOKUP($EN38,Tasas!$DO$17:$DY$70,Calculadora!ER$33,0)) -> 0 | ES38: =IF(OR($EL38="",$EL38=0),0,VLOOKUP($EN38,Tasas!$DO$17:$DY$70,Calculadora!ES$33,0)) -> 0 | ET38: =IF(OR($EL38="",$EL38=0),0,VLOOKUP($EN38,Tasas!$DO$17:$DY$70,Calculadora!ET$33,0)) -> 0 | EU38: =IF(OR($EL38="",$EL38=0),0,VLOOKUP($EN38,Tasas!$DO$17:$DY$70,Calculadora!EU$33,0)) -> 0 | EV38: =IF(OR($EL38="",$EL38=0),0,VLOOKUP($EN38,Tasas!$DO$17:$DY$70,Calculadora!EV$33,0)) -> 0 | FA38: Por limitación a horas de trabajo. | FC38: =Cotizador!$E$93 -> 0 | FD38: 10 | FE38: 10 | FF38: =IF(OR($FC38="",$FC38=0),0,VLOOKUP($FE38,Tasas!$EB$17:$EL$70,Calculadora!FF$33,0)) -> 0 | FG38: =IF(OR($FC38="",$FC38=0),0,VLOOKUP($FE38,Tasas!$EB$17:$EL$70,Calculadora!FG$33,0)) -> 0 | FH38: =IF(OR($FC38="",$FC38=0),0,VLOOKUP($FE38,Tasas!$EB$17:$EL$70,Calculadora!FH$33,0)) -> 0 | FI38: =IF(OR($FC38="",$FC38=0),0,VLOOKUP($FE38,Tasas!$EB$17:$EL$70,Calculadora!FI$33,0)) -> 0 | FJ38: =IF(OR($FC38="",$FC38=0),0,VLOOKUP($FE38,Tasas!$EB$17:$EL$70,Calculadora!FJ$33,0)) -> 0 | FK38: =IF(OR($FC38="",$FC38=0),0,VLOOKUP($FE38,Tasas!$EB$17:$EL$70,Calculadora!FK$33,0)) -> 0 | FL38: =IF(OR($FC38="",$FC38=0),0,VLOOKUP($FE38,Tasas!$EB$17:$EL$70,Calculadora!FL$33,0)) -> 0 | FM38: =IF(OR($FC38="",$FC38=0),0,VLOOKUP($FE38,Tasas!$EB$17:$EL$70,Calculadora!FM$33,0)) -> 0 | FR38: Cláusula por la práctica no profesional de deportes y/o actividades de riesgo. N2 | FT38: =Cotizador!$E$113 -> 0 | FV38: 5 | FW38: =IF(OR($FT38=0,$FT38="NO"),0,VLOOKUP($FV38,Tasas!$EO$29:$FU$45,Calculadora!FW$32,0)) -> 0 | FX38: =IF(OR($FT38=0,$FT38="NO"),0,VLOOKUP($FV38,Tasas!$EO$29:$FU$45,Calculadora!FX$32,0)) -> 0 | FY38: =IF(OR($FT38=0,$FT38="NO"),0,VLOOKUP($FV38,Tasas!$EO$29:$FU$45,Calculadora!FY$32,0)) -> 0 | FZ38: =IF(OR($FT38=0,$FT38="NO"),0,VLOOKUP($FV38,Tasas!$EO$29:$FU$45,Calculadora!FZ$32,0)) -> 0 | GA38: =IF(OR($FT38=0,$FT38="NO"),0,VLOOKUP($FV38,Tasas!$EO$29:$FU$45,Calculadora!GA$32,0)) -> 0 | GB38: =IF(OR($FT38=0,$FT38="NO"),0,VLOOKUP($FV38,Tasas!$EO$29:$FU$45,Calculadora!GB$32,0)) -> 0 | GC38: =IF(OR($FT38=0,$FT38="NO"),0,VLOOKUP($FV38,Tasas!$EO$29:$FU$45,Calculadora!GC$32,0)) -> 0 | GD38: =IF(OR($FT38=0,$FT38="NO"),0,VLOOKUP($FV38,Tasas!$EO$29:$FU$45,Calculadora!GD$32,0)) -> 0 | GI38: Por limitación a horas de trabajo. | GK38: =Cotizador!$E$93 -> 0 | GP38: 192 | GQ38: =+IF(OR($C38=0,$C38="NO"),0,VLOOKUP($I$16+$H38,Tasas!$FY$78:$HJ$1228,$I$15+GQ$33+2,0)) -> 0 | GR38: =+IF(OR($C38=0,$C38="NO"),0,VLOOKUP($I$16+$H38,Tasas!$FY$78:$HJ$1228,$I$15+GR$33+2,0)) -> 0 | GS38: =+IF(OR($C38=0,$C38="NO"),0,VLOOKUP($I$16+$H38,Tasas!$FY$78:$HJ$1228,$I$15+GS$33+2,0)) -> 0 | GT38: =+IF(OR($C38=0,$C38="NO"),0,VLOOKUP($I$16+$H38,Tasas!$FY$78:$HJ$1228,$I$15+GT$33+2,0)) -> 0 | GU38: =+IF(OR($C38=0,$C38="NO"),0,VLOOKUP($I$16+$H38,Tasas!$FY$78:$HJ$1228,$I$15+GU$33+2,0)) -> 0 | GV38: =+IF(OR($C38=0,$C38="NO"),0,VLOOKUP($I$16+$H38,Tasas!$FY$78:$HJ$1228,$I$15+GV$33+2,0)) -> 0 | GW38: =+IF(OR($C38=0,$C38="NO"),0,VLOOKUP($I$16+$H38,Tasas!$FY$78:$HJ$1228,$I$15+GW$33+2,0)) -> 0 | GX38: =+IF(OR($C38=0,$C38="NO"),0,VLOOKUP($I$16+$H38,Tasas!$FY$78:$HJ$1228,$I$15+GX$33+2,0)) -> 0
A39: Cláusula por la práctica no profesional de deportes y/o actividades de riesgo. Nivel 1 (Fútbol, béisbol, basquetbol). | C39: =Cotizador!$E$94 -> 0 | D39: =Cotizador!$G$94 -> 0 | E39: =Cotizador!$I$94 -> 0 | F39: =Cotizador!$K$94 -> 0 | H39: 256 | I39: =+IF(OR($C39=0,$C39="NO"),0,VLOOKUP($I$16+$H39,Tasas!$C$78:$AN$1228,$I$15+I$33+2,0)) -> 0 | J39: =+IF(OR($C39=0,$C39="NO"),0,VLOOKUP($I$16+$H39,Tasas!$C$78:$AN$1228,$I$15+J$33+2,0)) -> 0 | K39: =+IF(OR($C39=0,$C39="NO"),0,VLOOKUP($I$16+$H39,Tasas!$C$78:$AN$1228,$I$15+K$33+2,0)) -> 0 | L39: =+IF(OR($C39=0,$C39="NO"),0,VLOOKUP($I$16+$H39,Tasas!$C$78:$AN$1228,$I$15+L$33+2,0)) -> 0 | M39: =+IF(OR($C39=0,$C39="NO"),0,VLOOKUP($I$16+$H39,Tasas!$C$78:$AN$1228,$I$15+M$33+2,0)) -> 0 | N39: =+IF(OR($C39=0,$C39="NO"),0,VLOOKUP($I$16+$H39,Tasas!$C$78:$AN$1228,$I$15+N$33+2,0)) -> 0 | O39: =+IF(OR($C39=0,$C39="NO"),0,VLOOKUP($I$16+$H39,Tasas!$C$78:$AN$1228,$I$15+O$33+2,0)) -> 0 | P39: =+IF(OR($C39=0,$C39="NO"),0,VLOOKUP($I$16+$H39,Tasas!$C$78:$AN$1228,$I$15+P$33+2,0)) -> 0 | Q39: =+IF(OR($D39=0,$D39="NO"),0,VLOOKUP($J$16+$H39,Tasas!$C$78:$AN$1228,$J$15+Q$33+2,0)) -> 0 | R39: =+IF(OR($D39=0,$D39="NO"),0,VLOOKUP($J$16+$H39,Tasas!$C$78:$AN$1228,$J$15+R$33+2,0)) -> 0 | S39: =+IF(OR($D39=0,$D39="NO"),0,VLOOKUP($J$16+$H39,Tasas!$C$78:$AN$1228,$J$15+S$33+2,0)) -> 0 | T39: =+IF(OR($D39=0,$D39="NO"),0,VLOOKUP($J$16+$H39,Tasas!$C$78:$AN$1228,$J$15+T$33+2,0)) -> 0 | U39: =+IF(OR($D39=0,$D39="NO"),0,VLOOKUP($J$16+$H39,Tasas!$C$78:$AN$1228,$J$15+U$33+2,0)) -> 0 | V39: =+IF(OR($D39=0,$D39="NO"),0,VLOOKUP($J$16+$H39,Tasas!$C$78:$AN$1228,$J$15+V$33+2,0)) -> 0 | W39: =+IF(OR($D39=0,$D39="NO"),0,VLOOKUP($J$16+$H39,Tasas!$C$78:$AN$1228,$J$15+W$33+2,0)) -> 0 | X39: =+IF(OR($D39=0,$D39="NO"),0,VLOOKUP($J$16+$H39,Tasas!$C$78:$AN$1228,$J$15+X$33+2,0)) -> 0 | Y39: =+IF(OR($E39=0,$E39="NO"),0,VLOOKUP($K$16+$H39,Tasas!$C$78:$AN$1228,$K$15+Y$33+2,0)) -> 0 | Z39: =+IF(OR($E39=0,$E39="NO"),0,VLOOKUP($K$16+$H39,Tasas!$C$78:$AN$1228,$K$15+Z$33+2,0)) -> 0 | AA39: =+IF(OR($E39=0,$E39="NO"),0,VLOOKUP($K$16+$H39,Tasas!$C$78:$AN$1228,$K$15+AA$33+2,0)) -> 0 | AB39: =+IF(OR($E39=0,$E39="NO"),0,VLOOKUP($K$16+$H39,Tasas!$C$78:$AN$1228,$K$15+AB$33+2,0)) -> 0 | AC39: =+IF(OR($E39=0,$E39="NO"),0,VLOOKUP($K$16+$H39,Tasas!$C$78:$AN$1228,$K$15+AC$33+2,0)) -> 0 | AD39: =+IF(OR($E39=0,$E39="NO"),0,VLOOKUP($K$16+$H39,Tasas!$C$78:$AN$1228,$K$15+AD$33+2,0)) -> 0 | AE39: =+IF(OR($E39=0,$E39="NO"),0,VLOOKUP($K$16+$H39,Tasas!$C$78:$AN$1228,$K$15+AE$33+2,0)) -> 0 | AF39: =+IF(OR($E39=0,$E39="NO"),0,VLOOKUP($K$16+$H39,Tasas!$C$78:$AN$1228,$K$15+AF$33+2,0)) -> 0 | AG39: =+IF(OR($F39=0,$F39="NO"),0,VLOOKUP($L$16+$H39,Tasas!$C$78:$AN$1228,$L$15+AG$33+2,0)) -> 0 | AH39: =+IF(OR($F39=0,$F39="NO"),0,VLOOKUP($L$16+$H39,Tasas!$C$78:$AN$1228,$L$15+AH$33+2,0)) -> 0 | AI39: =+IF(OR($F39=0,$F39="NO"),0,VLOOKUP($L$16+$H39,Tasas!$C$78:$AN$1228,$L$15+AI$33+2,0)) -> 0 | AJ39: =+IF(OR($F39=0,$F39="NO"),0,VLOOKUP($L$16+$H39,Tasas!$C$78:$AN$1228,$L$15+AJ$33+2,0)) -> 0 | AK39: =+IF(OR($F39=0,$F39="NO"),0,VLOOKUP($L$16+$H39,Tasas!$C$78:$AN$1228,$L$15+AK$33+2,0)) -> 0 | AL39: =+IF(OR($F39=0,$F39="NO"),0,VLOOKUP($L$16+$H39,Tasas!$C$78:$AN$1228,$L$15+AL$33+2,0)) -> 0 | AM39: =+IF(OR($F39=0,$F39="NO"),0,VLOOKUP($L$16+$H39,Tasas!$C$78:$AN$1228,$L$15+AM$33+2,0)) -> 0 | AN39: =+IF(OR($F39=0,$F39="NO"),0,VLOOKUP($L$16+$H39,Tasas!$C$78:$AN$1228,$L$15+AN$33+2,0)) -> 0 | AS39: Cláusula por la práctica no profesional de deportes y/o actividades de riesgo. Nivel 1 (Fútbol, béisbol, basquetbol). | AU39: =Cotizador!$E$94 -> 0 | AV39: =Cotizador!$G$94 -> 0 | AW39: =Cotizador!$I$94 -> 0 | AX39: =Cotizador!$K$94 -> 0 | AZ39: 256 | BA39: =+IF(OR($AU39=0,$AU39="NO"),0,VLOOKUP($BA$16+$AZ39,Tasas!$C$78:$BY$1292,$BA$15+BA$33+39,0)) -> 0 | BB39: =+IF(OR($AU39=0,$AU39="NO"),0,VLOOKUP($BA$16+$AZ39,Tasas!$C$78:$BY$1292,$BA$15+BB$33+39,0)) -> 0 | BC39: =+IF(OR($AU39=0,$AU39="NO"),0,VLOOKUP($BA$16+$AZ39,Tasas!$C$78:$BY$1292,$BA$15+BC$33+39,0)) -> 0 | BD39: =+IF(OR($AU39=0,$AU39="NO"),0,VLOOKUP($BA$16+$AZ39,Tasas!$C$78:$BY$1292,$BA$15+BD$33+39,0)) -> 0 | BE39: =+IF(OR($AU39=0,$AU39="NO"),0,VLOOKUP($BA$16+$AZ39,Tasas!$C$78:$BY$1292,$BA$15+BE$33+39,0)) -> 0 | BF39: =+IF(OR($AU39=0,$AU39="NO"),0,VLOOKUP($BA$16+$AZ39,Tasas!$C$78:$BY$1292,$BA$15+BF$33+39,0)) -> 0 | BG39: =+IF(OR($AU39=0,$AU39="NO"),0,VLOOKUP($BA$16+$AZ39,Tasas!$C$78:$BY$1292,$BA$15+BG$33+39,0)) -> 0 | BH39: =+IF(OR($AU39=0,$AU39="NO"),0,VLOOKUP($BA$16+$AZ39,Tasas!$C$78:$BY$1292,$BA$15+BH$33+39,0)) -> 0 | BI39: =+IF(OR($AU39=0,$AU39="NO"),0,VLOOKUP($BA$16+$AZ39,Tasas!$C$78:$BY$1292,$BA$15+BI$33+39,0)) -> 0 | BJ39: =+IF(OR($AU39=0,$AU39="NO"),0,VLOOKUP($BA$16+$AZ39,Tasas!$C$78:$BY$1292,$BA$15+BJ$33+39,0)) -> 0 | BK39: =+IF(OR($AU39=0,$AU39="NO"),0,VLOOKUP($BA$16+$AZ39,Tasas!$C$78:$BY$1292,$BA$15+BK$33+39,0)) -> 0 | BL39: =+IF(OR($AU39=0,$AU39="NO"),0,VLOOKUP($BA$16+$AZ39,Tasas!$C$78:$BY$1292,$BA$15+BL$33+39,0)) -> 0 | BM39: =+IF(OR($AU39=0,$AU39="NO"),0,VLOOKUP($BA$16+$AZ39,Tasas!$C$78:$BY$1292,$BA$15+BM$33+39,0)) -> 0 | BN39: =+IF(OR($AU39=0,$AU39="NO"),0,VLOOKUP($BA$16+$AZ39,Tasas!$C$78:$BY$1292,$BA$15+BN$33+39,0)) -> 0 | BO39: =+IF(OR($AU39=0,$AU39="NO"),0,VLOOKUP($BA$16+$AZ39,Tasas!$C$78:$BY$1292,$BA$15+BO$33+39,0)) -> 0 | BP39: =+IF(OR($AU39=0,$AU39="NO"),0,VLOOKUP($BA$16+$AZ39,Tasas!$C$78:$BY$1292,$BA$15+BP$33+39,0)) -> 0 | BQ39: =+IF(OR($AU39=0,$AU39="NO"),0,VLOOKUP($BA$16+$AZ39,Tasas!$C$78:$BY$1292,$BA$15+BQ$33+39,0)) -> 0 | BR39: =+IF(OR($AU39=0,$AU39="NO"),0,VLOOKUP($BA$16+$AZ39,Tasas!$C$78:$BY$1292,$BA$15+BR$33+39,0)) -> 0 | BS39: =+IF(OR($AU39=0,$AU39="NO"),0,VLOOKUP($BA$16+$AZ39,Tasas!$C$78:$BY$1292,$BA$15+BS$33+39,0)) -> 0 | BT39: =+IF(OR($AU39=0,$AU39="NO"),0,VLOOKUP($BA$16+$AZ39,Tasas!$C$78:$BY$1292,$BA$15+BT$33+39,0)) -> 0 | BU39: =+IF(OR($AU39=0,$AU39="NO"),0,VLOOKUP($BA$16+$AZ39,Tasas!$C$78:$BY$1292,$BA$15+BU$33+39,0)) -> 0 | BV39: =+IF(OR($AU39=0,$AU39="NO"),0,VLOOKUP($BA$16+$AZ39,Tasas!$C$78:$BY$1292,$BA$15+BV$33+39,0)) -> 0 | BW39: =+IF(OR($AU39=0,$AU39="NO"),0,VLOOKUP($BA$16+$AZ39,Tasas!$C$78:$BY$1292,$BA$15+BW$33+39,0)) -> 0 | BX39: =+IF(OR($AU39=0,$AU39="NO"),0,VLOOKUP($BA$16+$AZ39,Tasas!$C$78:$BY$1292,$BA$15+BX$33+39,0)) -> 0 | BY39: =+IF(OR($AU39=0,$AU39="NO"),0,VLOOKUP($BA$16+$AZ39,Tasas!$C$78:$BY$1292,$BA$15+BY$33+39,0)) -> 0 | BZ39: =+IF(OR($AU39=0,$AU39="NO"),0,VLOOKUP($BA$16+$AZ39,Tasas!$C$78:$BY$1292,$BA$15+BZ$33+39,0)) -> 0 | CA39: =+IF(OR($AU39=0,$AU39="NO"),0,VLOOKUP($BA$16+$AZ39,Tasas!$C$78:$BY$1292,$BA$15+CA$33+39,0)) -> 0 | CB39: =+IF(OR($AU39=0,$AU39="NO"),0,VLOOKUP($BA$16+$AZ39,Tasas!$C$78:$BY$1292,$BA$15+CB$33+39,0)) -> 0 | CC39: =+IF(OR($AU39=0,$AU39="NO"),0,VLOOKUP($BA$16+$AZ39,Tasas!$C$78:$BY$1292,$BA$15+CC$33+39,0)) -> 0 | CD39: =+IF(OR($AU39=0,$AU39="NO"),0,VLOOKUP($BA$16+$AZ39,Tasas!$C$78:$BY$1292,$BA$15+CD$33+39,0)) -> 0 | CE39: =+IF(OR($AU39=0,$AU39="NO"),0,VLOOKUP($BA$16+$AZ39,Tasas!$C$78:$BY$1292,$BA$15+CE$33+39,0)) -> 0 | CF39: =+IF(OR($AU39=0,$AU39="NO"),0,VLOOKUP($BA$16+$AZ39,Tasas!$C$78:$BY$1292,$BA$15+CF$33+39,0)) -> 0 | CK39: Cláusula por la práctica no profesional de deportes y/o actividades de riesgo. Nivel 1 (Fútbol, béisbol, basquetbol). | CM39: =Cotizador!$E$94 -> 0 | CN39: 13 | CO39: 13 | CP39: =IF(OR($CM39="",$CM39=0),0,VLOOKUP($CO39,Tasas!$CB$17:$CL$70,Calculadora!CP$33,0)) -> 0 | CQ39: =IF(OR($CM39="",$CM39=0),0,VLOOKUP($CO39,Tasas!$CB$17:$CL$70,Calculadora!CQ$33,0)) -> 0 | CR39: =IF(OR($CM39="",$CM39=0),0,VLOOKUP($CO39,Tasas!$CB$17:$CL$70,Calculadora!CR$33,0)) -> 0 | CS39: =IF(OR($CM39="",$CM39=0),0,VLOOKUP($CO39,Tasas!$CB$17:$CL$70,Calculadora!CS$33,0)) -> 0 | CT39: =IF(OR($CM39="",$CM39=0),0,VLOOKUP($CO39,Tasas!$CB$17:$CL$70,Calculadora!CT$33,0)) -> 0 | CU39: =IF(OR($CM39="",$CM39=0),0,VLOOKUP($CO39,Tasas!$CB$17:$CL$70,Calculadora!CU$33,0)) -> 0 | CV39: =IF(OR($CM39="",$CM39=0),0,VLOOKUP($CO39,Tasas!$CB$17:$CL$70,Calculadora!CV$33,0)) -> 0 | CW39: =IF(OR($CM39="",$CM39=0),0,VLOOKUP($CO39,Tasas!$CB$17:$CL$70,Calculadora!CW$33,0)) -> 0 | DB39: Cláusula por la práctica no profesional de deportes y/o actividades de riesgo. Nivel 1 (Fútbol, béisbol, basquetbol). | DD39: =Cotizador!$E$94 -> 0 | DE39: 13 | DF39: 13 | DG39: =IF(OR($DD39="",$DD39=0),0,VLOOKUP($DF39,Tasas!$CO$17:$CY$70,Calculadora!DG$33,0)) -> 0 | DH39: =IF(OR($DD39="",$DD39=0),0,VLOOKUP($DF39,Tasas!$CO$17:$CY$70,Calculadora!DH$33,0)) -> 0 | DI39: =IF(OR($DD39="",$DD39=0),0,VLOOKUP($DF39,Tasas!$CO$17:$CY$70,Calculadora!DI$33,0)) -> 0 | DJ39: =IF(OR($DD39="",$DD39=0),0,VLOOKUP($DF39,Tasas!$CO$17:$CY$70,Calculadora!DJ$33,0)) -> 0 | DK39: =IF(OR($DD39="",$DD39=0),0,VLOOKUP($DF39,Tasas!$CO$17:$CY$70,Calculadora!DK$33,0)) -> 0 | DL39: =IF(OR($DD39="",$DD39=0),0,VLOOKUP($DF39,Tasas!$CO$17:$CY$70,Calculadora!DL$33,0)) -> 0 | DM39: =IF(OR($DD39="",$DD39=0),0,VLOOKUP($DF39,Tasas!$CO$17:$CY$70,Calculadora!DM$33,0)) -> 0 | DN39: =IF(OR($DD39="",$DD39=0),0,VLOOKUP($DF39,Tasas!$CO$17:$CY$70,Calculadora!DN$33,0)) -> 0 | DS39: Cláusula por la práctica no profesional de deportes y/o actividades de riesgo. Nivel 1 (Fútbol, béisbol, basquetbol). | DU39: =Cotizador!$E$94 -> 0 | DV39: 13 | DW39: 13 | DX39: =IF(OR($DU39="",$DU39=0),0,VLOOKUP($DW39,Tasas!$DB$17:$DL$70,Calculadora!DX$33,0)) -> 0 | DY39: =IF(OR($DU39="",$DU39=0),0,VLOOKUP($DW39,Tasas!$DB$17:$DL$70,Calculadora!DY$33,0)) -> 0 | DZ39: =IF(OR($DU39="",$DU39=0),0,VLOOKUP($DW39,Tasas!$DB$17:$DL$70,Calculadora!DZ$33,0)) -> 0 | EA39: =IF(OR($DU39="",$DU39=0),0,VLOOKUP($DW39,Tasas!$DB$17:$DL$70,Calculadora!EA$33,0)) -> 0 | EB39: =IF(OR($DU39="",$DU39=0),0,VLOOKUP($DW39,Tasas!$DB$17:$DL$70,Calculadora!EB$33,0)) -> 0 | EC39: =IF(OR($DU39="",$DU39=0),0,VLOOKUP($DW39,Tasas!$DB$17:$DL$70,Calculadora!EC$33,0)) -> 0 | ED39: =IF(OR($DU39="",$DU39=0),0,VLOOKUP($DW39,Tasas!$DB$17:$DL$70,Calculadora!ED$33,0)) -> 0 | EE39: =IF(OR($DU39="",$DU39=0),0,VLOOKUP($DW39,Tasas!$DB$17:$DL$70,Calculadora!EE$33,0)) -> 0 | EJ39: Cláusula por la práctica no profesional de deportes y/o actividades de riesgo. Nivel 1 (Fútbol, béisbol, basquetbol). | EL39: =Cotizador!$E$94 -> 0 | EM39: 13 | EN39: 13 | EO39: =IF(OR($EL39="",$EL39=0),0,VLOOKUP($EN39,Tasas!$DO$17:$DY$70,Calculadora!EO$33,0)) -> 0 | EP39: =IF(OR($EL39="",$EL39=0),0,VLOOKUP($EN39,Tasas!$DO$17:$DY$70,Calculadora!EP$33,0)) -> 0 | EQ39: =IF(OR($EL39="",$EL39=0),0,VLOOKUP($EN39,Tasas!$DO$17:$DY$70,Calculadora!EQ$33,0)) -> 0 | ER39: =IF(OR($EL39="",$EL39=0),0,VLOOKUP($EN39,Tasas!$DO$17:$DY$70,Calculadora!ER$33,0)) -> 0 | ES39: =IF(OR($EL39="",$EL39=0),0,VLOOKUP($EN39,Tasas!$DO$17:$DY$70,Calculadora!ES$33,0)) -> 0 | ET39: =IF(OR($EL39="",$EL39=0),0,VLOOKUP($EN39,Tasas!$DO$17:$DY$70,Calculadora!ET$33,0)) -> 0 | EU39: =IF(OR($EL39="",$EL39=0),0,VLOOKUP($EN39,Tasas!$DO$17:$DY$70,Calculadora!EU$33,0)) -> 0 | EV39: =IF(OR($EL39="",$EL39=0),0,VLOOKUP($EN39,Tasas!$DO$17:$DY$70,Calculadora!EV$33,0)) -> 0 | FA39: Cláusula por la práctica no profesional de deportes y/o actividades de riesgo. Nivel 1 (Fútbol, béisbol, basquetbol). | FC39: =Cotizador!$E$94 -> 0 | FD39: 13 | FE39: 13 | FF39: =IF(OR($FC39="",$FC39=0),0,VLOOKUP($FE39,Tasas!$EB$17:$EL$70,Calculadora!FF$33,0)) -> 0 | FG39: =IF(OR($FC39="",$FC39=0),0,VLOOKUP($FE39,Tasas!$EB$17:$EL$70,Calculadora!FG$33,0)) -> 0 | FH39: =IF(OR($FC39="",$FC39=0),0,VLOOKUP($FE39,Tasas!$EB$17:$EL$70,Calculadora!FH$33,0)) -> 0 | FI39: =IF(OR($FC39="",$FC39=0),0,VLOOKUP($FE39,Tasas!$EB$17:$EL$70,Calculadora!FI$33,0)) -> 0 | FJ39: =IF(OR($FC39="",$FC39=0),0,VLOOKUP($FE39,Tasas!$EB$17:$EL$70,Calculadora!FJ$33,0)) -> 0 | FK39: =IF(OR($FC39="",$FC39=0),0,VLOOKUP($FE39,Tasas!$EB$17:$EL$70,Calculadora!FK$33,0)) -> 0 | FL39: =IF(OR($FC39="",$FC39=0),0,VLOOKUP($FE39,Tasas!$EB$17:$EL$70,Calculadora!FL$33,0)) -> 0 | FM39: =IF(OR($FC39="",$FC39=0),0,VLOOKUP($FE39,Tasas!$EB$17:$EL$70,Calculadora!FM$33,0)) -> 0 | FR39: Cláusula por la práctica no profesional de deportes y/o actividades de riesgo. N3 | FT39: =Cotizador!$E$114 -> 0 | FV39: 6 | FW39: =IF(OR($FT39=0,$FT39="NO"),0,VLOOKUP($FV39,Tasas!$EO$29:$FU$45,Calculadora!FW$32,0)) -> 0 | FX39: =IF(OR($FT39=0,$FT39="NO"),0,VLOOKUP($FV39,Tasas!$EO$29:$FU$45,Calculadora!FX$32,0)) -> 0 | FY39: =IF(OR($FT39=0,$FT39="NO"),0,VLOOKUP($FV39,Tasas!$EO$29:$FU$45,Calculadora!FY$32,0)) -> 0 | FZ39: =IF(OR($FT39=0,$FT39="NO"),0,VLOOKUP($FV39,Tasas!$EO$29:$FU$45,Calculadora!FZ$32,0)) -> 0 | GA39: =IF(OR($FT39=0,$FT39="NO"),0,VLOOKUP($FV39,Tasas!$EO$29:$FU$45,Calculadora!GA$32,0)) -> 0 | GB39: =IF(OR($FT39=0,$FT39="NO"),0,VLOOKUP($FV39,Tasas!$EO$29:$FU$45,Calculadora!GB$32,0)) -> 0 | GC39: =IF(OR($FT39=0,$FT39="NO"),0,VLOOKUP($FV39,Tasas!$EO$29:$FU$45,Calculadora!GC$32,0)) -> 0 | GD39: =IF(OR($FT39=0,$FT39="NO"),0,VLOOKUP($FV39,Tasas!$EO$29:$FU$45,Calculadora!GD$32,0)) -> 0 | GI39: Cláusula por la práctica no profesional de deportes y/o actividades de riesgo. Nivel 1 (Fútbol, béisbol, basquetbol). | GK39: =Cotizador!$E$94 -> 0 | GP39: 256 | GQ39: =+IF(OR($C39=0,$C39="NO"),0,VLOOKUP($I$16+$H39,Tasas!$FY$78:$HJ$1228,$I$15+GQ$33+2,0)) -> 0 | GR39: =+IF(OR($C39=0,$C39="NO"),0,VLOOKUP($I$16+$H39,Tasas!$FY$78:$HJ$1228,$I$15+GR$33+2,0)) -> 0 | GS39: =+IF(OR($C39=0,$C39="NO"),0,VLOOKUP($I$16+$H39,Tasas!$FY$78:$HJ$1228,$I$15+GS$33+2,0)) -> 0 | GT39: =+IF(OR($C39=0,$C39="NO"),0,VLOOKUP($I$16+$H39,Tasas!$FY$78:$HJ$1228,$I$15+GT$33+2,0)) -> 0 | GU39: =+IF(OR($C39=0,$C39="NO"),0,VLOOKUP($I$16+$H39,Tasas!$FY$78:$HJ$1228,$I$15+GU$33+2,0)) -> 0 | GV39: =+IF(OR($C39=0,$C39="NO"),0,VLOOKUP($I$16+$H39,Tasas!$FY$78:$HJ$1228,$I$15+GV$33+2,0)) -> 0 | GW39: =+IF(OR($C39=0,$C39="NO"),0,VLOOKUP($I$16+$H39,Tasas!$FY$78:$HJ$1228,$I$15+GW$33+2,0)) -> 0 | GX39: =+IF(OR($C39=0,$C39="NO"),0,VLOOKUP($I$16+$H39,Tasas!$FY$78:$HJ$1228,$I$15+GX$33+2,0)) -> 0
A40: Cláusula por la práctica no profesional de deportes y/o actividades de riesgo. Nivel 2 (Polo, jockey, pesca en alta mar, rodeo, rugby, esquí acuático, equitación, tabla hawaiana). | C40: =Cotizador!$E$95 -> 0 | D40: =Cotizador!$G$95 -> 0 | E40: =Cotizador!$I$95 -> 0 | F40: =Cotizador!$K$95 -> 0 | H40: 320 | I40: =+IF(OR($C40=0,$C40="NO"),0,VLOOKUP($I$16+$H40,Tasas!$C$78:$AN$1228,$I$15+I$33+2,0)) -> 0 | J40: =+IF(OR($C40=0,$C40="NO"),0,VLOOKUP($I$16+$H40,Tasas!$C$78:$AN$1228,$I$15+J$33+2,0)) -> 0 | K40: =+IF(OR($C40=0,$C40="NO"),0,VLOOKUP($I$16+$H40,Tasas!$C$78:$AN$1228,$I$15+K$33+2,0)) -> 0 | L40: =+IF(OR($C40=0,$C40="NO"),0,VLOOKUP($I$16+$H40,Tasas!$C$78:$AN$1228,$I$15+L$33+2,0)) -> 0 | M40: =+IF(OR($C40=0,$C40="NO"),0,VLOOKUP($I$16+$H40,Tasas!$C$78:$AN$1228,$I$15+M$33+2,0)) -> 0 | N40: =+IF(OR($C40=0,$C40="NO"),0,VLOOKUP($I$16+$H40,Tasas!$C$78:$AN$1228,$I$15+N$33+2,0)) -> 0 | O40: =+IF(OR($C40=0,$C40="NO"),0,VLOOKUP($I$16+$H40,Tasas!$C$78:$AN$1228,$I$15+O$33+2,0)) -> 0 | P40: =+IF(OR($C40=0,$C40="NO"),0,VLOOKUP($I$16+$H40,Tasas!$C$78:$AN$1228,$I$15+P$33+2,0)) -> 0 | Q40: =+IF(OR($D40=0,$D40="NO"),0,VLOOKUP($J$16+$H40,Tasas!$C$78:$AN$1228,$J$15+Q$33+2,0)) -> 0 | R40: =+IF(OR($D40=0,$D40="NO"),0,VLOOKUP($J$16+$H40,Tasas!$C$78:$AN$1228,$J$15+R$33+2,0)) -> 0 | S40: =+IF(OR($D40=0,$D40="NO"),0,VLOOKUP($J$16+$H40,Tasas!$C$78:$AN$1228,$J$15+S$33+2,0)) -> 0 | T40: =+IF(OR($D40=0,$D40="NO"),0,VLOOKUP($J$16+$H40,Tasas!$C$78:$AN$1228,$J$15+T$33+2,0)) -> 0 | U40: =+IF(OR($D40=0,$D40="NO"),0,VLOOKUP($J$16+$H40,Tasas!$C$78:$AN$1228,$J$15+U$33+2,0)) -> 0 | V40: =+IF(OR($D40=0,$D40="NO"),0,VLOOKUP($J$16+$H40,Tasas!$C$78:$AN$1228,$J$15+V$33+2,0)) -> 0 | W40: =+IF(OR($D40=0,$D40="NO"),0,VLOOKUP($J$16+$H40,Tasas!$C$78:$AN$1228,$J$15+W$33+2,0)) -> 0 | X40: =+IF(OR($D40=0,$D40="NO"),0,VLOOKUP($J$16+$H40,Tasas!$C$78:$AN$1228,$J$15+X$33+2,0)) -> 0 | Y40: =+IF(OR($E40=0,$E40="NO"),0,VLOOKUP($K$16+$H40,Tasas!$C$78:$AN$1228,$K$15+Y$33+2,0)) -> 0 | Z40: =+IF(OR($E40=0,$E40="NO"),0,VLOOKUP($K$16+$H40,Tasas!$C$78:$AN$1228,$K$15+Z$33+2,0)) -> 0 | AA40: =+IF(OR($E40=0,$E40="NO"),0,VLOOKUP($K$16+$H40,Tasas!$C$78:$AN$1228,$K$15+AA$33+2,0)) -> 0 | AB40: =+IF(OR($E40=0,$E40="NO"),0,VLOOKUP($K$16+$H40,Tasas!$C$78:$AN$1228,$K$15+AB$33+2,0)) -> 0 | AC40: =+IF(OR($E40=0,$E40="NO"),0,VLOOKUP($K$16+$H40,Tasas!$C$78:$AN$1228,$K$15+AC$33+2,0)) -> 0 | AD40: =+IF(OR($E40=0,$E40="NO"),0,VLOOKUP($K$16+$H40,Tasas!$C$78:$AN$1228,$K$15+AD$33+2,0)) -> 0 | AE40: =+IF(OR($E40=0,$E40="NO"),0,VLOOKUP($K$16+$H40,Tasas!$C$78:$AN$1228,$K$15+AE$33+2,0)) -> 0 | AF40: =+IF(OR($E40=0,$E40="NO"),0,VLOOKUP($K$16+$H40,Tasas!$C$78:$AN$1228,$K$15+AF$33+2,0)) -> 0 | AG40: =+IF(OR($F40=0,$F40="NO"),0,VLOOKUP($L$16+$H40,Tasas!$C$78:$AN$1228,$L$15+AG$33+2,0)) -> 0 | AH40: =+IF(OR($F40=0,$F40="NO"),0,VLOOKUP($L$16+$H40,Tasas!$C$78:$AN$1228,$L$15+AH$33+2,0)) -> 0 | AI40: =+IF(OR($F40=0,$F40="NO"),0,VLOOKUP($L$16+$H40,Tasas!$C$78:$AN$1228,$L$15+AI$33+2,0)) -> 0 | AJ40: =+IF(OR($F40=0,$F40="NO"),0,VLOOKUP($L$16+$H40,Tasas!$C$78:$AN$1228,$L$15+AJ$33+2,0)) -> 0 | AK40: =+IF(OR($F40=0,$F40="NO"),0,VLOOKUP($L$16+$H40,Tasas!$C$78:$AN$1228,$L$15+AK$33+2,0)) -> 0 | AL40: =+IF(OR($F40=0,$F40="NO"),0,VLOOKUP($L$16+$H40,Tasas!$C$78:$AN$1228,$L$15+AL$33+2,0)) -> 0 | AM40: =+IF(OR($F40=0,$F40="NO"),0,VLOOKUP($L$16+$H40,Tasas!$C$78:$AN$1228,$L$15+AM$33+2,0)) -> 0 | AN40: =+IF(OR($F40=0,$F40="NO"),0,VLOOKUP($L$16+$H40,Tasas!$C$78:$AN$1228,$L$15+AN$33+2,0)) -> 0 | AS40: Cláusula por la práctica no profesional de deportes y/o actividades de riesgo. Nivel 2 (Polo, jockey, pesca en alta mar, rodeo, rugby, esquí acuático, equitación, tabla hawaiana). | AU40: =Cotizador!$E$95 -> 0 | AV40: =Cotizador!$G$95 -> 0 | AW40: =Cotizador!$I$95 -> 0 | AX40: =Cotizador!$K$95 -> 0 | AZ40: 320 | BA40: =+IF(OR($AU40=0,$AU40="NO"),0,VLOOKUP($BA$16+$AZ40,Tasas!$C$78:$BY$1292,$BA$15+BA$33+39,0)) -> 0 | BB40: =+IF(OR($AU40=0,$AU40="NO"),0,VLOOKUP($BA$16+$AZ40,Tasas!$C$78:$BY$1292,$BA$15+BB$33+39,0)) -> 0 | BC40: =+IF(OR($AU40=0,$AU40="NO"),0,VLOOKUP($BA$16+$AZ40,Tasas!$C$78:$BY$1292,$BA$15+BC$33+39,0)) -> 0 | BD40: =+IF(OR($AU40=0,$AU40="NO"),0,VLOOKUP($BA$16+$AZ40,Tasas!$C$78:$BY$1292,$BA$15+BD$33+39,0)) -> 0 | BE40: =+IF(OR($AU40=0,$AU40="NO"),0,VLOOKUP($BA$16+$AZ40,Tasas!$C$78:$BY$1292,$BA$15+BE$33+39,0)) -> 0 | BF40: =+IF(OR($AU40=0,$AU40="NO"),0,VLOOKUP($BA$16+$AZ40,Tasas!$C$78:$BY$1292,$BA$15+BF$33+39,0)) -> 0 | BG40: =+IF(OR($AU40=0,$AU40="NO"),0,VLOOKUP($BA$16+$AZ40,Tasas!$C$78:$BY$1292,$BA$15+BG$33+39,0)) -> 0 | BH40: =+IF(OR($AU40=0,$AU40="NO"),0,VLOOKUP($BA$16+$AZ40,Tasas!$C$78:$BY$1292,$BA$15+BH$33+39,0)) -> 0 | BI40: =+IF(OR($AU40=0,$AU40="NO"),0,VLOOKUP($BA$16+$AZ40,Tasas!$C$78:$BY$1292,$BA$15+BI$33+39,0)) -> 0 | BJ40: =+IF(OR($AU40=0,$AU40="NO"),0,VLOOKUP($BA$16+$AZ40,Tasas!$C$78:$BY$1292,$BA$15+BJ$33+39,0)) -> 0 | BK40: =+IF(OR($AU40=0,$AU40="NO"),0,VLOOKUP($BA$16+$AZ40,Tasas!$C$78:$BY$1292,$BA$15+BK$33+39,0)) -> 0 | BL40: =+IF(OR($AU40=0,$AU40="NO"),0,VLOOKUP($BA$16+$AZ40,Tasas!$C$78:$BY$1292,$BA$15+BL$33+39,0)) -> 0 | BM40: =+IF(OR($AU40=0,$AU40="NO"),0,VLOOKUP($BA$16+$AZ40,Tasas!$C$78:$BY$1292,$BA$15+BM$33+39,0)) -> 0 | BN40: =+IF(OR($AU40=0,$AU40="NO"),0,VLOOKUP($BA$16+$AZ40,Tasas!$C$78:$BY$1292,$BA$15+BN$33+39,0)) -> 0 | BO40: =+IF(OR($AU40=0,$AU40="NO"),0,VLOOKUP($BA$16+$AZ40,Tasas!$C$78:$BY$1292,$BA$15+BO$33+39,0)) -> 0 | BP40: =+IF(OR($AU40=0,$AU40="NO"),0,VLOOKUP($BA$16+$AZ40,Tasas!$C$78:$BY$1292,$BA$15+BP$33+39,0)) -> 0 | BQ40: =+IF(OR($AU40=0,$AU40="NO"),0,VLOOKUP($BA$16+$AZ40,Tasas!$C$78:$BY$1292,$BA$15+BQ$33+39,0)) -> 0 | BR40: =+IF(OR($AU40=0,$AU40="NO"),0,VLOOKUP($BA$16+$AZ40,Tasas!$C$78:$BY$1292,$BA$15+BR$33+39,0)) -> 0 | BS40: =+IF(OR($AU40=0,$AU40="NO"),0,VLOOKUP($BA$16+$AZ40,Tasas!$C$78:$BY$1292,$BA$15+BS$33+39,0)) -> 0 | BT40: =+IF(OR($AU40=0,$AU40="NO"),0,VLOOKUP($BA$16+$AZ40,Tasas!$C$78:$BY$1292,$BA$15+BT$33+39,0)) -> 0 | BU40: =+IF(OR($AU40=0,$AU40="NO"),0,VLOOKUP($BA$16+$AZ40,Tasas!$C$78:$BY$1292,$BA$15+BU$33+39,0)) -> 0 | BV40: =+IF(OR($AU40=0,$AU40="NO"),0,VLOOKUP($BA$16+$AZ40,Tasas!$C$78:$BY$1292,$BA$15+BV$33+39,0)) -> 0 | BW40: =+IF(OR($AU40=0,$AU40="NO"),0,VLOOKUP($BA$16+$AZ40,Tasas!$C$78:$BY$1292,$BA$15+BW$33+39,0)) -> 0 | BX40: =+IF(OR($AU40=0,$AU40="NO"),0,VLOOKUP($BA$16+$AZ40,Tasas!$C$78:$BY$1292,$BA$15+BX$33+39,0)) -> 0 | BY40: =+IF(OR($AU40=0,$AU40="NO"),0,VLOOKUP($BA$16+$AZ40,Tasas!$C$78:$BY$1292,$BA$15+BY$33+39,0)) -> 0 | BZ40: =+IF(OR($AU40=0,$AU40="NO"),0,VLOOKUP($BA$16+$AZ40,Tasas!$C$78:$BY$1292,$BA$15+BZ$33+39,0)) -> 0 | CA40: =+IF(OR($AU40=0,$AU40="NO"),0,VLOOKUP($BA$16+$AZ40,Tasas!$C$78:$BY$1292,$BA$15+CA$33+39,0)) -> 0 | CB40: =+IF(OR($AU40=0,$AU40="NO"),0,VLOOKUP($BA$16+$AZ40,Tasas!$C$78:$BY$1292,$BA$15+CB$33+39,0)) -> 0 | CC40: =+IF(OR($AU40=0,$AU40="NO"),0,VLOOKUP($BA$16+$AZ40,Tasas!$C$78:$BY$1292,$BA$15+CC$33+39,0)) -> 0 | CD40: =+IF(OR($AU40=0,$AU40="NO"),0,VLOOKUP($BA$16+$AZ40,Tasas!$C$78:$BY$1292,$BA$15+CD$33+39,0)) -> 0 | CE40: =+IF(OR($AU40=0,$AU40="NO"),0,VLOOKUP($BA$16+$AZ40,Tasas!$C$78:$BY$1292,$BA$15+CE$33+39,0)) -> 0 | CF40: =+IF(OR($AU40=0,$AU40="NO"),0,VLOOKUP($BA$16+$AZ40,Tasas!$C$78:$BY$1292,$BA$15+CF$33+39,0)) -> 0 | CK40: Cláusula por la práctica no profesional de deportes y/o actividades de riesgo. Nivel 2 (Polo, jockey, pesca en alta mar, rodeo, rugby, esquí acuático, equitación, tabla hawaiana). | CM40: =Cotizador!$E$95 -> 0 | CN40: 16 | CO40: 16 | CP40: =IF(OR($CM40="",$CM40=0),0,VLOOKUP($CO40,Tasas!$CB$17:$CL$70,Calculadora!CP$33,0)) -> 0 | CQ40: =IF(OR($CM40="",$CM40=0),0,VLOOKUP($CO40,Tasas!$CB$17:$CL$70,Calculadora!CQ$33,0)) -> 0 | CR40: =IF(OR($CM40="",$CM40=0),0,VLOOKUP($CO40,Tasas!$CB$17:$CL$70,Calculadora!CR$33,0)) -> 0 | CS40: =IF(OR($CM40="",$CM40=0),0,VLOOKUP($CO40,Tasas!$CB$17:$CL$70,Calculadora!CS$33,0)) -> 0 | CT40: =IF(OR($CM40="",$CM40=0),0,VLOOKUP($CO40,Tasas!$CB$17:$CL$70,Calculadora!CT$33,0)) -> 0 | CU40: =IF(OR($CM40="",$CM40=0),0,VLOOKUP($CO40,Tasas!$CB$17:$CL$70,Calculadora!CU$33,0)) -> 0 | CV40: =IF(OR($CM40="",$CM40=0),0,VLOOKUP($CO40,Tasas!$CB$17:$CL$70,Calculadora!CV$33,0)) -> 0 | CW40: =IF(OR($CM40="",$CM40=0),0,VLOOKUP($CO40,Tasas!$CB$17:$CL$70,Calculadora!CW$33,0)) -> 0 | DB40: Cláusula por la práctica no profesional de deportes y/o actividades de riesgo. Nivel 2 (Polo, jockey, pesca en alta mar, rodeo, rugby, esquí acuático, equitación, tabla hawaiana). | DD40: =Cotizador!$E$95 -> 0 | DE40: 16 | DF40: 16 | DG40: =IF(OR($DD40="",$DD40=0),0,VLOOKUP($DF40,Tasas!$CO$17:$CY$70,Calculadora!DG$33,0)) -> 0 | DH40: =IF(OR($DD40="",$DD40=0),0,VLOOKUP($DF40,Tasas!$CO$17:$CY$70,Calculadora!DH$33,0)) -> 0 | DI40: =IF(OR($DD40="",$DD40=0),0,VLOOKUP($DF40,Tasas!$CO$17:$CY$70,Calculadora!DI$33,0)) -> 0 | DJ40: =IF(OR($DD40="",$DD40=0),0,VLOOKUP($DF40,Tasas!$CO$17:$CY$70,Calculadora!DJ$33,0)) -> 0 | DK40: =IF(OR($DD40="",$DD40=0),0,VLOOKUP($DF40,Tasas!$CO$17:$CY$70,Calculadora!DK$33,0)) -> 0 | DL40: =IF(OR($DD40="",$DD40=0),0,VLOOKUP($DF40,Tasas!$CO$17:$CY$70,Calculadora!DL$33,0)) -> 0 | DM40: =IF(OR($DD40="",$DD40=0),0,VLOOKUP($DF40,Tasas!$CO$17:$CY$70,Calculadora!DM$33,0)) -> 0 | DN40: =IF(OR($DD40="",$DD40=0),0,VLOOKUP($DF40,Tasas!$CO$17:$CY$70,Calculadora!DN$33,0)) -> 0 | DS40: Cláusula por la práctica no profesional de deportes y/o actividades de riesgo. Nivel 2 (Polo, jockey, pesca en alta mar, rodeo, rugby, esquí acuático, equitación, tabla hawaiana). | DU40: =Cotizador!$E$95 -> 0 | DV40: 16 | DW40: 16 | DX40: =IF(OR($DU40="",$DU40=0),0,VLOOKUP($DW40,Tasas!$DB$17:$DL$70,Calculadora!DX$33,0)) -> 0 | DY40: =IF(OR($DU40="",$DU40=0),0,VLOOKUP($DW40,Tasas!$DB$17:$DL$70,Calculadora!DY$33,0)) -> 0 | DZ40: =IF(OR($DU40="",$DU40=0),0,VLOOKUP($DW40,Tasas!$DB$17:$DL$70,Calculadora!DZ$33,0)) -> 0 | EA40: =IF(OR($DU40="",$DU40=0),0,VLOOKUP($DW40,Tasas!$DB$17:$DL$70,Calculadora!EA$33,0)) -> 0 | EB40: =IF(OR($DU40="",$DU40=0),0,VLOOKUP($DW40,Tasas!$DB$17:$DL$70,Calculadora!EB$33,0)) -> 0 | EC40: =IF(OR($DU40="",$DU40=0),0,VLOOKUP($DW40,Tasas!$DB$17:$DL$70,Calculadora!EC$33,0)) -> 0 | ED40: =IF(OR($DU40="",$DU40=0),0,VLOOKUP($DW40,Tasas!$DB$17:$DL$70,Calculadora!ED$33,0)) -> 0 | EE40: =IF(OR($DU40="",$DU40=0),0,VLOOKUP($DW40,Tasas!$DB$17:$DL$70,Calculadora!EE$33,0)) -> 0 | EJ40: Cláusula por la práctica no profesional de deportes y/o actividades de riesgo. Nivel 2 (Polo, jockey, pesca en alta mar, rodeo, rugby, esquí acuático, equitación, tabla hawaiana). | EL40: =Cotizador!$E$95 -> 0 | EM40: 16 | EN40: 16 | EO40: =IF(OR($EL40="",$EL40=0),0,VLOOKUP($EN40,Tasas!$DO$17:$DY$70,Calculadora!EO$33,0)) -> 0 | EP40: =IF(OR($EL40="",$EL40=0),0,VLOOKUP($EN40,Tasas!$DO$17:$DY$70,Calculadora!EP$33,0)) -> 0 | EQ40: =IF(OR($EL40="",$EL40=0),0,VLOOKUP($EN40,Tasas!$DO$17:$DY$70,Calculadora!EQ$33,0)) -> 0 | ER40: =IF(OR($EL40="",$EL40=0),0,VLOOKUP($EN40,Tasas!$DO$17:$DY$70,Calculadora!ER$33,0)) -> 0 | ES40: =IF(OR($EL40="",$EL40=0),0,VLOOKUP($EN40,Tasas!$DO$17:$DY$70,Calculadora!ES$33,0)) -> 0 | ET40: =IF(OR($EL40="",$EL40=0),0,VLOOKUP($EN40,Tasas!$DO$17:$DY$70,Calculadora!ET$33,0)) -> 0 | EU40: =IF(OR($EL40="",$EL40=0),0,VLOOKUP($EN40,Tasas!$DO$17:$DY$70,Calculadora!EU$33,0)) -> 0 | EV40: =IF(OR($EL40="",$EL40=0),0,VLOOKUP($EN40,Tasas!$DO$17:$DY$70,Calculadora!EV$33,0)) -> 0 | FA40: Cláusula por la práctica no profesional de deportes y/o actividades de riesgo. Nivel 2 (Polo, jockey, pesca en alta mar, rodeo, rugby, esquí acuático, equitación, tabla hawaiana). | FC40: =Cotizador!$E$95 -> 0 | FD40: 16 | FE40: 16 | FF40: =IF(OR($FC40="",$FC40=0),0,VLOOKUP($FE40,Tasas!$EB$17:$EL$70,Calculadora!FF$33,0)) -> 0 | FG40: =IF(OR($FC40="",$FC40=0),0,VLOOKUP($FE40,Tasas!$EB$17:$EL$70,Calculadora!FG$33,0)) -> 0 | FH40: =IF(OR($FC40="",$FC40=0),0,VLOOKUP($FE40,Tasas!$EB$17:$EL$70,Calculadora!FH$33,0)) -> 0 | FI40: =IF(OR($FC40="",$FC40=0),0,VLOOKUP($FE40,Tasas!$EB$17:$EL$70,Calculadora!FI$33,0)) -> 0 | FJ40: =IF(OR($FC40="",$FC40=0),0,VLOOKUP($FE40,Tasas!$EB$17:$EL$70,Calculadora!FJ$33,0)) -> 0 | FK40: =IF(OR($FC40="",$FC40=0),0,VLOOKUP($FE40,Tasas!$EB$17:$EL$70,Calculadora!FK$33,0)) -> 0 | FL40: =IF(OR($FC40="",$FC40=0),0,VLOOKUP($FE40,Tasas!$EB$17:$EL$70,Calculadora!FL$33,0)) -> 0 | FM40: =IF(OR($FC40="",$FC40=0),0,VLOOKUP($FE40,Tasas!$EB$17:$EL$70,Calculadora!FM$33,0)) -> 0 | FR40: Cláusula por la conducción urbana o rural de motocicletas, motonetas y otros vehículos similares. | FT40: =Cotizador!$E$115 -> 0 | FV40: 7 | FW40: =IF(OR($FT40=0,$FT40="NO"),0,VLOOKUP($FV40,Tasas!$EO$29:$FU$45,Calculadora!FW$32,0)) -> 0 | FX40: =IF(OR($FT40=0,$FT40="NO"),0,VLOOKUP($FV40,Tasas!$EO$29:$FU$45,Calculadora!FX$32,0)) -> 0 | FY40: =IF(OR($FT40=0,$FT40="NO"),0,VLOOKUP($FV40,Tasas!$EO$29:$FU$45,Calculadora!FY$32,0)) -> 0 | FZ40: =IF(OR($FT40=0,$FT40="NO"),0,VLOOKUP($FV40,Tasas!$EO$29:$FU$45,Calculadora!FZ$32,0)) -> 0 | GA40: =IF(OR($FT40=0,$FT40="NO"),0,VLOOKUP($FV40,Tasas!$EO$29:$FU$45,Calculadora!GA$32,0)) -> 0 | GB40: =IF(OR($FT40=0,$FT40="NO"),0,VLOOKUP($FV40,Tasas!$EO$29:$FU$45,Calculadora!GB$32,0)) -> 0 | GC40: =IF(OR($FT40=0,$FT40="NO"),0,VLOOKUP($FV40,Tasas!$EO$29:$FU$45,Calculadora!GC$32,0)) -> 0 | GD40: =IF(OR($FT40=0,$FT40="NO"),0,VLOOKUP($FV40,Tasas!$EO$29:$FU$45,Calculadora!GD$32,0)) -> 0 | GI40: Cláusula por la práctica no profesional de deportes y/o actividades de riesgo. Nivel 2 (Polo, jockey, pesca en alta mar, rodeo, rugby, esquí acuático, equitación, tabla hawaiana). | GK40: =Cotizador!$E$95 -> 0 | GP40: 320 | GQ40: =+IF(OR($C40=0,$C40="NO"),0,VLOOKUP($I$16+$H40,Tasas!$FY$78:$HJ$1228,$I$15+GQ$33+2,0)) -> 0 | GR40: =+IF(OR($C40=0,$C40="NO"),0,VLOOKUP($I$16+$H40,Tasas!$FY$78:$HJ$1228,$I$15+GR$33+2,0)) -> 0 | GS40: =+IF(OR($C40=0,$C40="NO"),0,VLOOKUP($I$16+$H40,Tasas!$FY$78:$HJ$1228,$I$15+GS$33+2,0)) -> 0 | GT40: =+IF(OR($C40=0,$C40="NO"),0,VLOOKUP($I$16+$H40,Tasas!$FY$78:$HJ$1228,$I$15+GT$33+2,0)) -> 0 | GU40: =+IF(OR($C40=0,$C40="NO"),0,VLOOKUP($I$16+$H40,Tasas!$FY$78:$HJ$1228,$I$15+GU$33+2,0)) -> 0 | GV40: =+IF(OR($C40=0,$C40="NO"),0,VLOOKUP($I$16+$H40,Tasas!$FY$78:$HJ$1228,$I$15+GV$33+2,0)) -> 0 | GW40: =+IF(OR($C40=0,$C40="NO"),0,VLOOKUP($I$16+$H40,Tasas!$FY$78:$HJ$1228,$I$15+GW$33+2,0)) -> 0 | GX40: =+IF(OR($C40=0,$C40="NO"),0,VLOOKUP($I$16+$H40,Tasas!$FY$78:$HJ$1228,$I$15+GX$33+2,0)) -> 0
A41: Cláusula por la práctica no profesional de deportes y/o actividades de riesgo. Nivel 3 (Pesca submarina, karate, judo, boxeo, pesas, andinismo y caminatas en alta montaña). | C41: =Cotizador!$E$96 -> 0 | D41: =Cotizador!$G$96 -> 0 | E41: =Cotizador!$I$96 -> 0 | F41: =Cotizador!$K$96 -> 0 | H41: 384 | I41: =+IF(OR($C41=0,$C41="NO"),0,VLOOKUP($I$16+$H41,Tasas!$C$78:$AN$1228,$I$15+I$33+2,0)) -> 0 | J41: =+IF(OR($C41=0,$C41="NO"),0,VLOOKUP($I$16+$H41,Tasas!$C$78:$AN$1228,$I$15+J$33+2,0)) -> 0 | K41: =+IF(OR($C41=0,$C41="NO"),0,VLOOKUP($I$16+$H41,Tasas!$C$78:$AN$1228,$I$15+K$33+2,0)) -> 0 | L41: =+IF(OR($C41=0,$C41="NO"),0,VLOOKUP($I$16+$H41,Tasas!$C$78:$AN$1228,$I$15+L$33+2,0)) -> 0 | M41: =+IF(OR($C41=0,$C41="NO"),0,VLOOKUP($I$16+$H41,Tasas!$C$78:$AN$1228,$I$15+M$33+2,0)) -> 0 | N41: =+IF(OR($C41=0,$C41="NO"),0,VLOOKUP($I$16+$H41,Tasas!$C$78:$AN$1228,$I$15+N$33+2,0)) -> 0 | O41: =+IF(OR($C41=0,$C41="NO"),0,VLOOKUP($I$16+$H41,Tasas!$C$78:$AN$1228,$I$15+O$33+2,0)) -> 0 | P41: =+IF(OR($C41=0,$C41="NO"),0,VLOOKUP($I$16+$H41,Tasas!$C$78:$AN$1228,$I$15+P$33+2,0)) -> 0 | Q41: =+IF(OR($D41=0,$D41="NO"),0,VLOOKUP($J$16+$H41,Tasas!$C$78:$AN$1228,$J$15+Q$33+2,0)) -> 0 | R41: =+IF(OR($D41=0,$D41="NO"),0,VLOOKUP($J$16+$H41,Tasas!$C$78:$AN$1228,$J$15+R$33+2,0)) -> 0 | S41: =+IF(OR($D41=0,$D41="NO"),0,VLOOKUP($J$16+$H41,Tasas!$C$78:$AN$1228,$J$15+S$33+2,0)) -> 0 | T41: =+IF(OR($D41=0,$D41="NO"),0,VLOOKUP($J$16+$H41,Tasas!$C$78:$AN$1228,$J$15+T$33+2,0)) -> 0 | U41: =+IF(OR($D41=0,$D41="NO"),0,VLOOKUP($J$16+$H41,Tasas!$C$78:$AN$1228,$J$15+U$33+2,0)) -> 0 | V41: =+IF(OR($D41=0,$D41="NO"),0,VLOOKUP($J$16+$H41,Tasas!$C$78:$AN$1228,$J$15+V$33+2,0)) -> 0 | W41: =+IF(OR($D41=0,$D41="NO"),0,VLOOKUP($J$16+$H41,Tasas!$C$78:$AN$1228,$J$15+W$33+2,0)) -> 0 | X41: =+IF(OR($D41=0,$D41="NO"),0,VLOOKUP($J$16+$H41,Tasas!$C$78:$AN$1228,$J$15+X$33+2,0)) -> 0 | Y41: =+IF(OR($E41=0,$E41="NO"),0,VLOOKUP($K$16+$H41,Tasas!$C$78:$AN$1228,$K$15+Y$33+2,0)) -> 0 | Z41: =+IF(OR($E41=0,$E41="NO"),0,VLOOKUP($K$16+$H41,Tasas!$C$78:$AN$1228,$K$15+Z$33+2,0)) -> 0 | AA41: =+IF(OR($E41=0,$E41="NO"),0,VLOOKUP($K$16+$H41,Tasas!$C$78:$AN$1228,$K$15+AA$33+2,0)) -> 0 | AB41: =+IF(OR($E41=0,$E41="NO"),0,VLOOKUP($K$16+$H41,Tasas!$C$78:$AN$1228,$K$15+AB$33+2,0)) -> 0 | AC41: =+IF(OR($E41=0,$E41="NO"),0,VLOOKUP($K$16+$H41,Tasas!$C$78:$AN$1228,$K$15+AC$33+2,0)) -> 0 | AD41: =+IF(OR($E41=0,$E41="NO"),0,VLOOKUP($K$16+$H41,Tasas!$C$78:$AN$1228,$K$15+AD$33+2,0)) -> 0 | AE41: =+IF(OR($E41=0,$E41="NO"),0,VLOOKUP($K$16+$H41,Tasas!$C$78:$AN$1228,$K$15+AE$33+2,0)) -> 0 | AF41: =+IF(OR($E41=0,$E41="NO"),0,VLOOKUP($K$16+$H41,Tasas!$C$78:$AN$1228,$K$15+AF$33+2,0)) -> 0 | AG41: =+IF(OR($F41=0,$F41="NO"),0,VLOOKUP($L$16+$H41,Tasas!$C$78:$AN$1228,$L$15+AG$33+2,0)) -> 0 | AH41: =+IF(OR($F41=0,$F41="NO"),0,VLOOKUP($L$16+$H41,Tasas!$C$78:$AN$1228,$L$15+AH$33+2,0)) -> 0 | AI41: =+IF(OR($F41=0,$F41="NO"),0,VLOOKUP($L$16+$H41,Tasas!$C$78:$AN$1228,$L$15+AI$33+2,0)) -> 0 | AJ41: =+IF(OR($F41=0,$F41="NO"),0,VLOOKUP($L$16+$H41,Tasas!$C$78:$AN$1228,$L$15+AJ$33+2,0)) -> 0 | AK41: =+IF(OR($F41=0,$F41="NO"),0,VLOOKUP($L$16+$H41,Tasas!$C$78:$AN$1228,$L$15+AK$33+2,0)) -> 0 | AL41: =+IF(OR($F41=0,$F41="NO"),0,VLOOKUP($L$16+$H41,Tasas!$C$78:$AN$1228,$L$15+AL$33+2,0)) -> 0 | AM41: =+IF(OR($F41=0,$F41="NO"),0,VLOOKUP($L$16+$H41,Tasas!$C$78:$AN$1228,$L$15+AM$33+2,0)) -> 0 | AN41: =+IF(OR($F41=0,$F41="NO"),0,VLOOKUP($L$16+$H41,Tasas!$C$78:$AN$1228,$L$15+AN$33+2,0)) -> 0 | AS41: Cláusula por la práctica no profesional de deportes y/o actividades de riesgo. Nivel 3 (Pesca submarina, karate, judo, boxeo, pesas, andinismo y caminatas en alta montaña). | AU41: =Cotizador!$E$96 -> 0 | AV41: =Cotizador!$G$96 -> 0 | AW41: =Cotizador!$I$96 -> 0 | AX41: =Cotizador!$K$96 -> 0 | AZ41: 384 | BA41: =+IF(OR($AU41=0,$AU41="NO"),0,VLOOKUP($BA$16+$AZ41,Tasas!$C$78:$BY$1292,$BA$15+BA$33+39,0)) -> 0 | BB41: =+IF(OR($AU41=0,$AU41="NO"),0,VLOOKUP($BA$16+$AZ41,Tasas!$C$78:$BY$1292,$BA$15+BB$33+39,0)) -> 0 | BC41: =+IF(OR($AU41=0,$AU41="NO"),0,VLOOKUP($BA$16+$AZ41,Tasas!$C$78:$BY$1292,$BA$15+BC$33+39,0)) -> 0 | BD41: =+IF(OR($AU41=0,$AU41="NO"),0,VLOOKUP($BA$16+$AZ41,Tasas!$C$78:$BY$1292,$BA$15+BD$33+39,0)) -> 0 | BE41: =+IF(OR($AU41=0,$AU41="NO"),0,VLOOKUP($BA$16+$AZ41,Tasas!$C$78:$BY$1292,$BA$15+BE$33+39,0)) -> 0 | BF41: =+IF(OR($AU41=0,$AU41="NO"),0,VLOOKUP($BA$16+$AZ41,Tasas!$C$78:$BY$1292,$BA$15+BF$33+39,0)) -> 0 | BG41: =+IF(OR($AU41=0,$AU41="NO"),0,VLOOKUP($BA$16+$AZ41,Tasas!$C$78:$BY$1292,$BA$15+BG$33+39,0)) -> 0 | BH41: =+IF(OR($AU41=0,$AU41="NO"),0,VLOOKUP($BA$16+$AZ41,Tasas!$C$78:$BY$1292,$BA$15+BH$33+39,0)) -> 0 | BI41: =+IF(OR($AU41=0,$AU41="NO"),0,VLOOKUP($BA$16+$AZ41,Tasas!$C$78:$BY$1292,$BA$15+BI$33+39,0)) -> 0 | BJ41: =+IF(OR($AU41=0,$AU41="NO"),0,VLOOKUP($BA$16+$AZ41,Tasas!$C$78:$BY$1292,$BA$15+BJ$33+39,0)) -> 0 | BK41: =+IF(OR($AU41=0,$AU41="NO"),0,VLOOKUP($BA$16+$AZ41,Tasas!$C$78:$BY$1292,$BA$15+BK$33+39,0)) -> 0 | BL41: =+IF(OR($AU41=0,$AU41="NO"),0,VLOOKUP($BA$16+$AZ41,Tasas!$C$78:$BY$1292,$BA$15+BL$33+39,0)) -> 0 | BM41: =+IF(OR($AU41=0,$AU41="NO"),0,VLOOKUP($BA$16+$AZ41,Tasas!$C$78:$BY$1292,$BA$15+BM$33+39,0)) -> 0 | BN41: =+IF(OR($AU41=0,$AU41="NO"),0,VLOOKUP($BA$16+$AZ41,Tasas!$C$78:$BY$1292,$BA$15+BN$33+39,0)) -> 0 | BO41: =+IF(OR($AU41=0,$AU41="NO"),0,VLOOKUP($BA$16+$AZ41,Tasas!$C$78:$BY$1292,$BA$15+BO$33+39,0)) -> 0 | BP41: =+IF(OR($AU41=0,$AU41="NO"),0,VLOOKUP($BA$16+$AZ41,Tasas!$C$78:$BY$1292,$BA$15+BP$33+39,0)) -> 0 | BQ41: =+IF(OR($AU41=0,$AU41="NO"),0,VLOOKUP($BA$16+$AZ41,Tasas!$C$78:$BY$1292,$BA$15+BQ$33+39,0)) -> 0 | BR41: =+IF(OR($AU41=0,$AU41="NO"),0,VLOOKUP($BA$16+$AZ41,Tasas!$C$78:$BY$1292,$BA$15+BR$33+39,0)) -> 0 | BS41: =+IF(OR($AU41=0,$AU41="NO"),0,VLOOKUP($BA$16+$AZ41,Tasas!$C$78:$BY$1292,$BA$15+BS$33+39,0)) -> 0 | BT41: =+IF(OR($AU41=0,$AU41="NO"),0,VLOOKUP($BA$16+$AZ41,Tasas!$C$78:$BY$1292,$BA$15+BT$33+39,0)) -> 0 | BU41: =+IF(OR($AU41=0,$AU41="NO"),0,VLOOKUP($BA$16+$AZ41,Tasas!$C$78:$BY$1292,$BA$15+BU$33+39,0)) -> 0 | BV41: =+IF(OR($AU41=0,$AU41="NO"),0,VLOOKUP($BA$16+$AZ41,Tasas!$C$78:$BY$1292,$BA$15+BV$33+39,0)) -> 0 | BW41: =+IF(OR($AU41=0,$AU41="NO"),0,VLOOKUP($BA$16+$AZ41,Tasas!$C$78:$BY$1292,$BA$15+BW$33+39,0)) -> 0 | BX41: =+IF(OR($AU41=0,$AU41="NO"),0,VLOOKUP($BA$16+$AZ41,Tasas!$C$78:$BY$1292,$BA$15+BX$33+39,0)) -> 0 | BY41: =+IF(OR($AU41=0,$AU41="NO"),0,VLOOKUP($BA$16+$AZ41,Tasas!$C$78:$BY$1292,$BA$15+BY$33+39,0)) -> 0 | BZ41: =+IF(OR($AU41=0,$AU41="NO"),0,VLOOKUP($BA$16+$AZ41,Tasas!$C$78:$BY$1292,$BA$15+BZ$33+39,0)) -> 0 | CA41: =+IF(OR($AU41=0,$AU41="NO"),0,VLOOKUP($BA$16+$AZ41,Tasas!$C$78:$BY$1292,$BA$15+CA$33+39,0)) -> 0 | CB41: =+IF(OR($AU41=0,$AU41="NO"),0,VLOOKUP($BA$16+$AZ41,Tasas!$C$78:$BY$1292,$BA$15+CB$33+39,0)) -> 0 | CC41: =+IF(OR($AU41=0,$AU41="NO"),0,VLOOKUP($BA$16+$AZ41,Tasas!$C$78:$BY$1292,$BA$15+CC$33+39,0)) -> 0 | CD41: =+IF(OR($AU41=0,$AU41="NO"),0,VLOOKUP($BA$16+$AZ41,Tasas!$C$78:$BY$1292,$BA$15+CD$33+39,0)) -> 0 | CE41: =+IF(OR($AU41=0,$AU41="NO"),0,VLOOKUP($BA$16+$AZ41,Tasas!$C$78:$BY$1292,$BA$15+CE$33+39,0)) -> 0 | CF41: =+IF(OR($AU41=0,$AU41="NO"),0,VLOOKUP($BA$16+$AZ41,Tasas!$C$78:$BY$1292,$BA$15+CF$33+39,0)) -> 0 | CK41: Cláusula por la práctica no profesional de deportes y/o actividades de riesgo. Nivel 3 (Pesca submarina, karate, judo, boxeo, pesas, andinismo y caminatas en alta montaña). | CM41: =Cotizador!$E$96 -> 0 | CN41: 19 | CO41: 19 | CP41: =IF(OR($CM41="",$CM41=0),0,VLOOKUP($CO41,Tasas!$CB$17:$CL$70,Calculadora!CP$33,0)) -> 0 | CQ41: =IF(OR($CM41="",$CM41=0),0,VLOOKUP($CO41,Tasas!$CB$17:$CL$70,Calculadora!CQ$33,0)) -> 0 | CR41: =IF(OR($CM41="",$CM41=0),0,VLOOKUP($CO41,Tasas!$CB$17:$CL$70,Calculadora!CR$33,0)) -> 0 | CS41: =IF(OR($CM41="",$CM41=0),0,VLOOKUP($CO41,Tasas!$CB$17:$CL$70,Calculadora!CS$33,0)) -> 0 | CT41: =IF(OR($CM41="",$CM41=0),0,VLOOKUP($CO41,Tasas!$CB$17:$CL$70,Calculadora!CT$33,0)) -> 0 | CU41: =IF(OR($CM41="",$CM41=0),0,VLOOKUP($CO41,Tasas!$CB$17:$CL$70,Calculadora!CU$33,0)) -> 0 | CV41: =IF(OR($CM41="",$CM41=0),0,VLOOKUP($CO41,Tasas!$CB$17:$CL$70,Calculadora!CV$33,0)) -> 0 | CW41: =IF(OR($CM41="",$CM41=0),0,VLOOKUP($CO41,Tasas!$CB$17:$CL$70,Calculadora!CW$33,0)) -> 0 | DB41: Cláusula por la práctica no profesional de deportes y/o actividades de riesgo. Nivel 3 (Pesca submarina, karate, judo, boxeo, pesas, andinismo y caminatas en alta montaña). | DD41: =Cotizador!$E$96 -> 0 | DE41: 19 | DF41: 19 | DG41: =IF(OR($DD41="",$DD41=0),0,VLOOKUP($DF41,Tasas!$CO$17:$CY$70,Calculadora!DG$33,0)) -> 0 | DH41: =IF(OR($DD41="",$DD41=0),0,VLOOKUP($DF41,Tasas!$CO$17:$CY$70,Calculadora!DH$33,0)) -> 0 | DI41: =IF(OR($DD41="",$DD41=0),0,VLOOKUP($DF41,Tasas!$CO$17:$CY$70,Calculadora!DI$33,0)) -> 0 | DJ41: =IF(OR($DD41="",$DD41=0),0,VLOOKUP($DF41,Tasas!$CO$17:$CY$70,Calculadora!DJ$33,0)) -> 0 | DK41: =IF(OR($DD41="",$DD41=0),0,VLOOKUP($DF41,Tasas!$CO$17:$CY$70,Calculadora!DK$33,0)) -> 0 | DL41: =IF(OR($DD41="",$DD41=0),0,VLOOKUP($DF41,Tasas!$CO$17:$CY$70,Calculadora!DL$33,0)) -> 0 | DM41: =IF(OR($DD41="",$DD41=0),0,VLOOKUP($DF41,Tasas!$CO$17:$CY$70,Calculadora!DM$33,0)) -> 0 | DN41: =IF(OR($DD41="",$DD41=0),0,VLOOKUP($DF41,Tasas!$CO$17:$CY$70,Calculadora!DN$33,0)) -> 0 | DS41: Cláusula por la práctica no profesional de deportes y/o actividades de riesgo. Nivel 3 (Pesca submarina, karate, judo, boxeo, pesas, andinismo y caminatas en alta montaña). | DU41: =Cotizador!$E$96 -> 0 | DV41: 19 | DW41: =(DV41+VLOOKUP($DZ$17,$EC$22:$ED$24,2,0)) -> 19 | DX41: =IF(OR($DU41="",$DU41=0),0,VLOOKUP($DW41,Tasas!$DB$17:$DL$70,Calculadora!DX$33,0)) -> 0 | DY41: =IF(OR($DU41="",$DU41=0),0,VLOOKUP($DW41,Tasas!$DB$17:$DL$70,Calculadora!DY$33,0)) -> 0 | DZ41: =IF(OR($DU41="",$DU41=0),0,VLOOKUP($DW41,Tasas!$DB$17:$DL$70,Calculadora!DZ$33,0)) -> 0 | EA41: =IF(OR($DU41="",$DU41=0),0,VLOOKUP($DW41,Tasas!$DB$17:$DL$70,Calculadora!EA$33,0)) -> 0 | EB41: =IF(OR($DU41="",$DU41=0),0,VLOOKUP($DW41,Tasas!$DB$17:$DL$70,Calculadora!EB$33,0)) -> 0 | EC41: =IF(OR($DU41="",$DU41=0),0,VLOOKUP($DW41,Tasas!$DB$17:$DL$70,Calculadora!EC$33,0)) -> 0 | ED41: =IF(OR($DU41="",$DU41=0),0,VLOOKUP($DW41,Tasas!$DB$17:$DL$70,Calculadora!ED$33,0)) -> 0 | EE41: =IF(OR($DU41="",$DU41=0),0,VLOOKUP($DW41,Tasas!$DB$17:$DL$70,Calculadora!EE$33,0)) -> 0 | EJ41: Cláusula por la práctica no profesional de deportes y/o actividades de riesgo. Nivel 3 (Pesca submarina, karate, judo, boxeo, pesas, andinismo y caminatas en alta montaña). | EL41: =Cotizador!$E$96 -> 0 | EM41: 19 | EN41: 19 | EO41: =IF(OR($EL41="",$EL41=0),0,VLOOKUP($EN41,Tasas!$DO$17:$DY$70,Calculadora!EO$33,0)) -> 0 | EP41: =IF(OR($EL41="",$EL41=0),0,VLOOKUP($EN41,Tasas!$DO$17:$DY$70,Calculadora!EP$33,0)) -> 0 | EQ41: =IF(OR($EL41="",$EL41=0),0,VLOOKUP($EN41,Tasas!$DO$17:$DY$70,Calculadora!EQ$33,0)) -> 0 | ER41: =IF(OR($EL41="",$EL41=0),0,VLOOKUP($EN41,Tasas!$DO$17:$DY$70,Calculadora!ER$33,0)) -> 0 | ES41: =IF(OR($EL41="",$EL41=0),0,VLOOKUP($EN41,Tasas!$DO$17:$DY$70,Calculadora!ES$33,0)) -> 0 | ET41: =IF(OR($EL41="",$EL41=0),0,VLOOKUP($EN41,Tasas!$DO$17:$DY$70,Calculadora!ET$33,0)) -> 0 | EU41: =IF(OR($EL41="",$EL41=0),0,VLOOKUP($EN41,Tasas!$DO$17:$DY$70,Calculadora!EU$33,0)) -> 0 | EV41: =IF(OR($EL41="",$EL41=0),0,VLOOKUP($EN41,Tasas!$DO$17:$DY$70,Calculadora!EV$33,0)) -> 0 | FA41: Cláusula por la práctica no profesional de deportes y/o actividades de riesgo. Nivel 3 (Pesca submarina, karate, judo, boxeo, pesas, andinismo y caminatas en alta montaña). | FC41: =Cotizador!$E$96 -> 0 | FD41: 19 | FE41: 19 | FF41: =IF(OR($FC41="",$FC41=0),0,VLOOKUP($FE41,Tasas!$EB$17:$EL$70,Calculadora!FF$33,0)) -> 0 | FG41: =IF(OR($FC41="",$FC41=0),0,VLOOKUP($FE41,Tasas!$EB$17:$EL$70,Calculadora!FG$33,0)) -> 0 | FH41: =IF(OR($FC41="",$FC41=0),0,VLOOKUP($FE41,Tasas!$EB$17:$EL$70,Calculadora!FH$33,0)) -> 0 | FI41: =IF(OR($FC41="",$FC41=0),0,VLOOKUP($FE41,Tasas!$EB$17:$EL$70,Calculadora!FI$33,0)) -> 0 | FJ41: =IF(OR($FC41="",$FC41=0),0,VLOOKUP($FE41,Tasas!$EB$17:$EL$70,Calculadora!FJ$33,0)) -> 0 | FK41: =IF(OR($FC41="",$FC41=0),0,VLOOKUP($FE41,Tasas!$EB$17:$EL$70,Calculadora!FK$33,0)) -> 0 | FL41: =IF(OR($FC41="",$FC41=0),0,VLOOKUP($FE41,Tasas!$EB$17:$EL$70,Calculadora!FL$33,0)) -> 0 | FM41: =IF(OR($FC41="",$FC41=0),0,VLOOKUP($FE41,Tasas!$EB$17:$EL$70,Calculadora!FM$33,0)) -> 0 | FR41: Cláusula para pasajeros que usan cualquier medio habitual de transporte público de personas, en vehículos que no recorren itinerarios regulares y fijos. | FT41: =Cotizador!$E$116 -> 0 | FV41: 8 | FW41: =IF(OR($FT41=0,$FT41="NO"),0,VLOOKUP($FV41,Tasas!$EO$29:$FU$45,Calculadora!FW$32,0)) -> 0 | FX41: =IF(OR($FT41=0,$FT41="NO"),0,VLOOKUP($FV41,Tasas!$EO$29:$FU$45,Calculadora!FX$32,0)) -> 0 | FY41: =IF(OR($FT41=0,$FT41="NO"),0,VLOOKUP($FV41,Tasas!$EO$29:$FU$45,Calculadora!FY$32,0)) -> 0 | FZ41: =IF(OR($FT41=0,$FT41="NO"),0,VLOOKUP($FV41,Tasas!$EO$29:$FU$45,Calculadora!FZ$32,0)) -> 0 | GA41: =IF(OR($FT41=0,$FT41="NO"),0,VLOOKUP($FV41,Tasas!$EO$29:$FU$45,Calculadora!GA$32,0)) -> 0 | GB41: =IF(OR($FT41=0,$FT41="NO"),0,VLOOKUP($FV41,Tasas!$EO$29:$FU$45,Calculadora!GB$32,0)) -> 0 | GC41: =IF(OR($FT41=0,$FT41="NO"),0,VLOOKUP($FV41,Tasas!$EO$29:$FU$45,Calculadora!GC$32,0)) -> 0 | GD41: =IF(OR($FT41=0,$FT41="NO"),0,VLOOKUP($FV41,Tasas!$EO$29:$FU$45,Calculadora!GD$32,0)) -> 0 | GI41: Cláusula por la práctica no profesional de deportes y/o actividades de riesgo. Nivel 3 (Pesca submarina, karate, judo, boxeo, pesas, andinismo y caminatas en alta montaña). | GK41: =Cotizador!$E$96 -> 0 | GP41: 384 | GQ41: =+IF(OR($C41=0,$C41="NO"),0,VLOOKUP($I$16+$H41,Tasas!$FY$78:$HJ$1228,$I$15+GQ$33+2,0)) -> 0 | GR41: =+IF(OR($C41=0,$C41="NO"),0,VLOOKUP($I$16+$H41,Tasas!$FY$78:$HJ$1228,$I$15+GR$33+2,0)) -> 0 | GS41: =+IF(OR($C41=0,$C41="NO"),0,VLOOKUP($I$16+$H41,Tasas!$FY$78:$HJ$1228,$I$15+GS$33+2,0)) -> 0 | GT41: =+IF(OR($C41=0,$C41="NO"),0,VLOOKUP($I$16+$H41,Tasas!$FY$78:$HJ$1228,$I$15+GT$33+2,0)) -> 0 | GU41: =+IF(OR($C41=0,$C41="NO"),0,VLOOKUP($I$16+$H41,Tasas!$FY$78:$HJ$1228,$I$15+GU$33+2,0)) -> 0 | GV41: =+IF(OR($C41=0,$C41="NO"),0,VLOOKUP($I$16+$H41,Tasas!$FY$78:$HJ$1228,$I$15+GV$33+2,0)) -> 0 | GW41: =+IF(OR($C41=0,$C41="NO"),0,VLOOKUP($I$16+$H41,Tasas!$FY$78:$HJ$1228,$I$15+GW$33+2,0)) -> 0 | GX41: =+IF(OR($C41=0,$C41="NO"),0,VLOOKUP($I$16+$H41,Tasas!$FY$78:$HJ$1228,$I$15+GX$33+2,0)) -> 0
A42: Cláusula por la conducción urbana o rural de motocicletas, motonetas y otros vehículos similares. | C42: =Cotizador!$E$97 -> 0 | D42: =Cotizador!$G$97 -> 0 | E42: =Cotizador!$I$97 -> 0 | F42: =Cotizador!$K$97 -> 0 | H42: 448 | I42: =+IF(OR($C42=0,$C42="NO"),0,VLOOKUP($I$16+$H42,Tasas!$C$78:$AN$1228,$I$15+I$33+2,0)) -> 0 | J42: =+IF(OR($C42=0,$C42="NO"),0,VLOOKUP($I$16+$H42,Tasas!$C$78:$AN$1228,$I$15+J$33+2,0)) -> 0 | K42: =+IF(OR($C42=0,$C42="NO"),0,VLOOKUP($I$16+$H42,Tasas!$C$78:$AN$1228,$I$15+K$33+2,0)) -> 0 | L42: =+IF(OR($C42=0,$C42="NO"),0,VLOOKUP($I$16+$H42,Tasas!$C$78:$AN$1228,$I$15+L$33+2,0)) -> 0 | M42: =+IF(OR($C42=0,$C42="NO"),0,VLOOKUP($I$16+$H42,Tasas!$C$78:$AN$1228,$I$15+M$33+2,0)) -> 0 | N42: =+IF(OR($C42=0,$C42="NO"),0,VLOOKUP($I$16+$H42,Tasas!$C$78:$AN$1228,$I$15+N$33+2,0)) -> 0 | O42: =+IF(OR($C42=0,$C42="NO"),0,VLOOKUP($I$16+$H42,Tasas!$C$78:$AN$1228,$I$15+O$33+2,0)) -> 0 | P42: =+IF(OR($C42=0,$C42="NO"),0,VLOOKUP($I$16+$H42,Tasas!$C$78:$AN$1228,$I$15+P$33+2,0)) -> 0 | Q42: =+IF(OR($D42=0,$D42="NO"),0,VLOOKUP($J$16+$H42,Tasas!$C$78:$AN$1228,$J$15+Q$33+2,0)) -> 0 | R42: =+IF(OR($D42=0,$D42="NO"),0,VLOOKUP($J$16+$H42,Tasas!$C$78:$AN$1228,$J$15+R$33+2,0)) -> 0 | S42: =+IF(OR($D42=0,$D42="NO"),0,VLOOKUP($J$16+$H42,Tasas!$C$78:$AN$1228,$J$15+S$33+2,0)) -> 0 | T42: =+IF(OR($D42=0,$D42="NO"),0,VLOOKUP($J$16+$H42,Tasas!$C$78:$AN$1228,$J$15+T$33+2,0)) -> 0 | U42: =+IF(OR($D42=0,$D42="NO"),0,VLOOKUP($J$16+$H42,Tasas!$C$78:$AN$1228,$J$15+U$33+2,0)) -> 0 | V42: =+IF(OR($D42=0,$D42="NO"),0,VLOOKUP($J$16+$H42,Tasas!$C$78:$AN$1228,$J$15+V$33+2,0)) -> 0 | W42: =+IF(OR($D42=0,$D42="NO"),0,VLOOKUP($J$16+$H42,Tasas!$C$78:$AN$1228,$J$15+W$33+2,0)) -> 0 | X42: =+IF(OR($D42=0,$D42="NO"),0,VLOOKUP($J$16+$H42,Tasas!$C$78:$AN$1228,$J$15+X$33+2,0)) -> 0 | Y42: =+IF(OR($E42=0,$E42="NO"),0,VLOOKUP($K$16+$H42,Tasas!$C$78:$AN$1228,$K$15+Y$33+2,0)) -> 0 | Z42: =+IF(OR($E42=0,$E42="NO"),0,VLOOKUP($K$16+$H42,Tasas!$C$78:$AN$1228,$K$15+Z$33+2,0)) -> 0 | AA42: =+IF(OR($E42=0,$E42="NO"),0,VLOOKUP($K$16+$H42,Tasas!$C$78:$AN$1228,$K$15+AA$33+2,0)) -> 0 | AB42: =+IF(OR($E42=0,$E42="NO"),0,VLOOKUP($K$16+$H42,Tasas!$C$78:$AN$1228,$K$15+AB$33+2,0)) -> 0 | AC42: =+IF(OR($E42=0,$E42="NO"),0,VLOOKUP($K$16+$H42,Tasas!$C$78:$AN$1228,$K$15+AC$33+2,0)) -> 0 | AD42: =+IF(OR($E42=0,$E42="NO"),0,VLOOKUP($K$16+$H42,Tasas!$C$78:$AN$1228,$K$15+AD$33+2,0)) -> 0 | AE42: =+IF(OR($E42=0,$E42="NO"),0,VLOOKUP($K$16+$H42,Tasas!$C$78:$AN$1228,$K$15+AE$33+2,0)) -> 0 | AF42: =+IF(OR($E42=0,$E42="NO"),0,VLOOKUP($K$16+$H42,Tasas!$C$78:$AN$1228,$K$15+AF$33+2,0)) -> 0 | AG42: =+IF(OR($F42=0,$F42="NO"),0,VLOOKUP($L$16+$H42,Tasas!$C$78:$AN$1228,$L$15+AG$33+2,0)) -> 0 | AH42: =+IF(OR($F42=0,$F42="NO"),0,VLOOKUP($L$16+$H42,Tasas!$C$78:$AN$1228,$L$15+AH$33+2,0)) -> 0 | AI42: =+IF(OR($F42=0,$F42="NO"),0,VLOOKUP($L$16+$H42,Tasas!$C$78:$AN$1228,$L$15+AI$33+2,0)) -> 0 | AJ42: =+IF(OR($F42=0,$F42="NO"),0,VLOOKUP($L$16+$H42,Tasas!$C$78:$AN$1228,$L$15+AJ$33+2,0)) -> 0 | AK42: =+IF(OR($F42=0,$F42="NO"),0,VLOOKUP($L$16+$H42,Tasas!$C$78:$AN$1228,$L$15+AK$33+2,0)) -> 0 | AL42: =+IF(OR($F42=0,$F42="NO"),0,VLOOKUP($L$16+$H42,Tasas!$C$78:$AN$1228,$L$15+AL$33+2,0)) -> 0 | AM42: =+IF(OR($F42=0,$F42="NO"),0,VLOOKUP($L$16+$H42,Tasas!$C$78:$AN$1228,$L$15+AM$33+2,0)) -> 0 | AN42: =+IF(OR($F42=0,$F42="NO"),0,VLOOKUP($L$16+$H42,Tasas!$C$78:$AN$1228,$L$15+AN$33+2,0)) -> 0 | AS42: Cláusula por la conducción urbana o rural de motocicletas, motonetas y otros vehículos similares. | AU42: =Cotizador!$E$97 -> 0 | AV42: =Cotizador!$G$97 -> 0 | AW42: =Cotizador!$I$97 -> 0 | AX42: =Cotizador!$K$97 -> 0 | AZ42: 448 | BA42: =+IF(OR($AU42=0,$AU42="NO"),0,VLOOKUP($BA$16+$AZ42,Tasas!$C$78:$BY$1292,$BA$15+BA$33+39,0)) -> 0 | BB42: =+IF(OR($AU42=0,$AU42="NO"),0,VLOOKUP($BA$16+$AZ42,Tasas!$C$78:$BY$1292,$BA$15+BB$33+39,0)) -> 0 | BC42: =+IF(OR($AU42=0,$AU42="NO"),0,VLOOKUP($BA$16+$AZ42,Tasas!$C$78:$BY$1292,$BA$15+BC$33+39,0)) -> 0 | BD42: =+IF(OR($AU42=0,$AU42="NO"),0,VLOOKUP($BA$16+$AZ42,Tasas!$C$78:$BY$1292,$BA$15+BD$33+39,0)) -> 0 | BE42: =+IF(OR($AU42=0,$AU42="NO"),0,VLOOKUP($BA$16+$AZ42,Tasas!$C$78:$BY$1292,$BA$15+BE$33+39,0)) -> 0 | BF42: =+IF(OR($AU42=0,$AU42="NO"),0,VLOOKUP($BA$16+$AZ42,Tasas!$C$78:$BY$1292,$BA$15+BF$33+39,0)) -> 0 | BG42: =+IF(OR($AU42=0,$AU42="NO"),0,VLOOKUP($BA$16+$AZ42,Tasas!$C$78:$BY$1292,$BA$15+BG$33+39,0)) -> 0 | BH42: =+IF(OR($AU42=0,$AU42="NO"),0,VLOOKUP($BA$16+$AZ42,Tasas!$C$78:$BY$1292,$BA$15+BH$33+39,0)) -> 0 | BI42: =+IF(OR($AU42=0,$AU42="NO"),0,VLOOKUP($BA$16+$AZ42,Tasas!$C$78:$BY$1292,$BA$15+BI$33+39,0)) -> 0 | BJ42: =+IF(OR($AU42=0,$AU42="NO"),0,VLOOKUP($BA$16+$AZ42,Tasas!$C$78:$BY$1292,$BA$15+BJ$33+39,0)) -> 0 | BK42: =+IF(OR($AU42=0,$AU42="NO"),0,VLOOKUP($BA$16+$AZ42,Tasas!$C$78:$BY$1292,$BA$15+BK$33+39,0)) -> 0 | BL42: =+IF(OR($AU42=0,$AU42="NO"),0,VLOOKUP($BA$16+$AZ42,Tasas!$C$78:$BY$1292,$BA$15+BL$33+39,0)) -> 0 | BM42: =+IF(OR($AU42=0,$AU42="NO"),0,VLOOKUP($BA$16+$AZ42,Tasas!$C$78:$BY$1292,$BA$15+BM$33+39,0)) -> 0 | BN42: =+IF(OR($AU42=0,$AU42="NO"),0,VLOOKUP($BA$16+$AZ42,Tasas!$C$78:$BY$1292,$BA$15+BN$33+39,0)) -> 0 | BO42: =+IF(OR($AU42=0,$AU42="NO"),0,VLOOKUP($BA$16+$AZ42,Tasas!$C$78:$BY$1292,$BA$15+BO$33+39,0)) -> 0 | BP42: =+IF(OR($AU42=0,$AU42="NO"),0,VLOOKUP($BA$16+$AZ42,Tasas!$C$78:$BY$1292,$BA$15+BP$33+39,0)) -> 0 | BQ42: =+IF(OR($AU42=0,$AU42="NO"),0,VLOOKUP($BA$16+$AZ42,Tasas!$C$78:$BY$1292,$BA$15+BQ$33+39,0)) -> 0 | BR42: =+IF(OR($AU42=0,$AU42="NO"),0,VLOOKUP($BA$16+$AZ42,Tasas!$C$78:$BY$1292,$BA$15+BR$33+39,0)) -> 0 | BS42: =+IF(OR($AU42=0,$AU42="NO"),0,VLOOKUP($BA$16+$AZ42,Tasas!$C$78:$BY$1292,$BA$15+BS$33+39,0)) -> 0 | BT42: =+IF(OR($AU42=0,$AU42="NO"),0,VLOOKUP($BA$16+$AZ42,Tasas!$C$78:$BY$1292,$BA$15+BT$33+39,0)) -> 0 | BU42: =+IF(OR($AU42=0,$AU42="NO"),0,VLOOKUP($BA$16+$AZ42,Tasas!$C$78:$BY$1292,$BA$15+BU$33+39,0)) -> 0 | BV42: =+IF(OR($AU42=0,$AU42="NO"),0,VLOOKUP($BA$16+$AZ42,Tasas!$C$78:$BY$1292,$BA$15+BV$33+39,0)) -> 0 | BW42: =+IF(OR($AU42=0,$AU42="NO"),0,VLOOKUP($BA$16+$AZ42,Tasas!$C$78:$BY$1292,$BA$15+BW$33+39,0)) -> 0 | BX42: =+IF(OR($AU42=0,$AU42="NO"),0,VLOOKUP($BA$16+$AZ42,Tasas!$C$78:$BY$1292,$BA$15+BX$33+39,0)) -> 0 | BY42: =+IF(OR($AU42=0,$AU42="NO"),0,VLOOKUP($BA$16+$AZ42,Tasas!$C$78:$BY$1292,$BA$15+BY$33+39,0)) -> 0 | BZ42: =+IF(OR($AU42=0,$AU42="NO"),0,VLOOKUP($BA$16+$AZ42,Tasas!$C$78:$BY$1292,$BA$15+BZ$33+39,0)) -> 0 | CA42: =+IF(OR($AU42=0,$AU42="NO"),0,VLOOKUP($BA$16+$AZ42,Tasas!$C$78:$BY$1292,$BA$15+CA$33+39,0)) -> 0 | CB42: =+IF(OR($AU42=0,$AU42="NO"),0,VLOOKUP($BA$16+$AZ42,Tasas!$C$78:$BY$1292,$BA$15+CB$33+39,0)) -> 0 | CC42: =+IF(OR($AU42=0,$AU42="NO"),0,VLOOKUP($BA$16+$AZ42,Tasas!$C$78:$BY$1292,$BA$15+CC$33+39,0)) -> 0 | CD42: =+IF(OR($AU42=0,$AU42="NO"),0,VLOOKUP($BA$16+$AZ42,Tasas!$C$78:$BY$1292,$BA$15+CD$33+39,0)) -> 0 | CE42: =+IF(OR($AU42=0,$AU42="NO"),0,VLOOKUP($BA$16+$AZ42,Tasas!$C$78:$BY$1292,$BA$15+CE$33+39,0)) -> 0 | CF42: =+IF(OR($AU42=0,$AU42="NO"),0,VLOOKUP($BA$16+$AZ42,Tasas!$C$78:$BY$1292,$BA$15+CF$33+39,0)) -> 0 | CK42: Cláusula por la conducción urbana o rural de motocicletas, motonetas y otros vehículos similares. | CM42: =Cotizador!$E$97 -> 0 | CN42: 22 | CO42: 22 | CP42: =IF(OR($CM42="",$CM42=0),0,VLOOKUP($CO42,Tasas!$CB$17:$CL$70,Calculadora!CP$33,0)) -> 0 | CQ42: =IF(OR($CM42="",$CM42=0),0,VLOOKUP($CO42,Tasas!$CB$17:$CL$70,Calculadora!CQ$33,0)) -> 0 | CR42: =IF(OR($CM42="",$CM42=0),0,VLOOKUP($CO42,Tasas!$CB$17:$CL$70,Calculadora!CR$33,0)) -> 0 | CS42: =IF(OR($CM42="",$CM42=0),0,VLOOKUP($CO42,Tasas!$CB$17:$CL$70,Calculadora!CS$33,0)) -> 0 | CT42: =IF(OR($CM42="",$CM42=0),0,VLOOKUP($CO42,Tasas!$CB$17:$CL$70,Calculadora!CT$33,0)) -> 0 | CU42: =IF(OR($CM42="",$CM42=0),0,VLOOKUP($CO42,Tasas!$CB$17:$CL$70,Calculadora!CU$33,0)) -> 0 | CV42: =IF(OR($CM42="",$CM42=0),0,VLOOKUP($CO42,Tasas!$CB$17:$CL$70,Calculadora!CV$33,0)) -> 0 | CW42: =IF(OR($CM42="",$CM42=0),0,VLOOKUP($CO42,Tasas!$CB$17:$CL$70,Calculadora!CW$33,0)) -> 0 | DB42: Cláusula por la conducción urbana o rural de motocicletas, motonetas y otros vehículos similares. | DD42: =Cotizador!$E$97 -> 0 | DE42: 22 | DF42: 22 | DG42: =IF(OR($DD42="",$DD42=0),0,VLOOKUP($DF42,Tasas!$CO$17:$CY$70,Calculadora!DG$33,0)) -> 0 | DH42: =IF(OR($DD42="",$DD42=0),0,VLOOKUP($DF42,Tasas!$CO$17:$CY$70,Calculadora!DH$33,0)) -> 0 | DI42: =IF(OR($DD42="",$DD42=0),0,VLOOKUP($DF42,Tasas!$CO$17:$CY$70,Calculadora!DI$33,0)) -> 0 | DJ42: =IF(OR($DD42="",$DD42=0),0,VLOOKUP($DF42,Tasas!$CO$17:$CY$70,Calculadora!DJ$33,0)) -> 0 | DK42: =IF(OR($DD42="",$DD42=0),0,VLOOKUP($DF42,Tasas!$CO$17:$CY$70,Calculadora!DK$33,0)) -> 0 | DL42: =IF(OR($DD42="",$DD42=0),0,VLOOKUP($DF42,Tasas!$CO$17:$CY$70,Calculadora!DL$33,0)) -> 0 | DM42: =IF(OR($DD42="",$DD42=0),0,VLOOKUP($DF42,Tasas!$CO$17:$CY$70,Calculadora!DM$33,0)) -> 0 | DN42: =IF(OR($DD42="",$DD42=0),0,VLOOKUP($DF42,Tasas!$CO$17:$CY$70,Calculadora!DN$33,0)) -> 0 | DS42: Cláusula por la conducción urbana o rural de motocicletas, motonetas y otros vehículos similares. | DU42: =Cotizador!$E$97 -> 0 | DV42: 22 | DW42: 22 | DX42: =IF(OR($DU42="",$DU42=0),0,VLOOKUP($DW42,Tasas!$DB$17:$DL$70,Calculadora!DX$33,0)) -> 0 | DY42: =IF(OR($DU42="",$DU42=0),0,VLOOKUP($DW42,Tasas!$DB$17:$DL$70,Calculadora!DY$33,0)) -> 0 | DZ42: =IF(OR($DU42="",$DU42=0),0,VLOOKUP($DW42,Tasas!$DB$17:$DL$70,Calculadora!DZ$33,0)) -> 0 | EA42: =IF(OR($DU42="",$DU42=0),0,VLOOKUP($DW42,Tasas!$DB$17:$DL$70,Calculadora!EA$33,0)) -> 0 | EB42: =IF(OR($DU42="",$DU42=0),0,VLOOKUP($DW42,Tasas!$DB$17:$DL$70,Calculadora!EB$33,0)) -> 0 | EC42: =IF(OR($DU42="",$DU42=0),0,VLOOKUP($DW42,Tasas!$DB$17:$DL$70,Calculadora!EC$33,0)) -> 0 | ED42: =IF(OR($DU42="",$DU42=0),0,VLOOKUP($DW42,Tasas!$DB$17:$DL$70,Calculadora!ED$33,0)) -> 0 | EE42: =IF(OR($DU42="",$DU42=0),0,VLOOKUP($DW42,Tasas!$DB$17:$DL$70,Calculadora!EE$33,0)) -> 0 | EJ42: Cláusula por la conducción urbana o rural de motocicletas, motonetas y otros vehículos similares. | EL42: =Cotizador!$E$97 -> 0 | EM42: 22 | EN42: 22 | EO42: =IF(OR($EL42="",$EL42=0),0,VLOOKUP($EN42,Tasas!$DO$17:$DY$70,Calculadora!EO$33,0)) -> 0 | EP42: =IF(OR($EL42="",$EL42=0),0,VLOOKUP($EN42,Tasas!$DO$17:$DY$70,Calculadora!EP$33,0)) -> 0 | EQ42: =IF(OR($EL42="",$EL42=0),0,VLOOKUP($EN42,Tasas!$DO$17:$DY$70,Calculadora!EQ$33,0)) -> 0 | ER42: =IF(OR($EL42="",$EL42=0),0,VLOOKUP($EN42,Tasas!$DO$17:$DY$70,Calculadora!ER$33,0)) -> 0 | ES42: =IF(OR($EL42="",$EL42=0),0,VLOOKUP($EN42,Tasas!$DO$17:$DY$70,Calculadora!ES$33,0)) -> 0 | ET42: =IF(OR($EL42="",$EL42=0),0,VLOOKUP($EN42,Tasas!$DO$17:$DY$70,Calculadora!ET$33,0)) -> 0 | EU42: =IF(OR($EL42="",$EL42=0),0,VLOOKUP($EN42,Tasas!$DO$17:$DY$70,Calculadora!EU$33,0)) -> 0 | EV42: =IF(OR($EL42="",$EL42=0),0,VLOOKUP($EN42,Tasas!$DO$17:$DY$70,Calculadora!EV$33,0)) -> 0 | FA42: Cláusula por la conducción urbana o rural de motocicletas, motonetas y otros vehículos similares. | FC42: =Cotizador!$E$97 -> 0 | FD42: 22 | FE42: 22 | FF42: =IF(OR($FC42="",$FC42=0),0,VLOOKUP($FE42,Tasas!$EB$17:$EL$70,Calculadora!FF$33,0)) -> 0 | FG42: =IF(OR($FC42="",$FC42=0),0,VLOOKUP($FE42,Tasas!$EB$17:$EL$70,Calculadora!FG$33,0)) -> 0 | FH42: =IF(OR($FC42="",$FC42=0),0,VLOOKUP($FE42,Tasas!$EB$17:$EL$70,Calculadora!FH$33,0)) -> 0 | FI42: =IF(OR($FC42="",$FC42=0),0,VLOOKUP($FE42,Tasas!$EB$17:$EL$70,Calculadora!FI$33,0)) -> 0 | FJ42: =IF(OR($FC42="",$FC42=0),0,VLOOKUP($FE42,Tasas!$EB$17:$EL$70,Calculadora!FJ$33,0)) -> 0 | FK42: =IF(OR($FC42="",$FC42=0),0,VLOOKUP($FE42,Tasas!$EB$17:$EL$70,Calculadora!FK$33,0)) -> 0 | FL42: =IF(OR($FC42="",$FC42=0),0,VLOOKUP($FE42,Tasas!$EB$17:$EL$70,Calculadora!FL$33,0)) -> 0 | FM42: =IF(OR($FC42="",$FC42=0),0,VLOOKUP($FE42,Tasas!$EB$17:$EL$70,Calculadora!FM$33,0)) -> 0 | FR42: Cláusula para pasajeros de aviones y/o helicópteros particulares y/o de la FAP por viajes eventuales. N1 | FT42: =Cotizador!$E$117 -> 0 | FV42: 9 | FW42: =IF(OR($FT42=0,$FT42="NO"),0,VLOOKUP($FV42,Tasas!$EO$29:$FU$45,Calculadora!FW$32,0)) -> 0 | FX42: =IF(OR($FT42=0,$FT42="NO"),0,VLOOKUP($FV42,Tasas!$EO$29:$FU$45,Calculadora!FX$32,0)) -> 0 | FY42: =IF(OR($FT42=0,$FT42="NO"),0,VLOOKUP($FV42,Tasas!$EO$29:$FU$45,Calculadora!FY$32,0)) -> 0 | FZ42: =IF(OR($FT42=0,$FT42="NO"),0,VLOOKUP($FV42,Tasas!$EO$29:$FU$45,Calculadora!FZ$32,0)) -> 0 | GA42: =IF(OR($FT42=0,$FT42="NO"),0,VLOOKUP($FV42,Tasas!$EO$29:$FU$45,Calculadora!GA$32,0)) -> 0 | GB42: =IF(OR($FT42=0,$FT42="NO"),0,VLOOKUP($FV42,Tasas!$EO$29:$FU$45,Calculadora!GB$32,0)) -> 0 | GC42: =IF(OR($FT42=0,$FT42="NO"),0,VLOOKUP($FV42,Tasas!$EO$29:$FU$45,Calculadora!GC$32,0)) -> 0 | GD42: =IF(OR($FT42=0,$FT42="NO"),0,VLOOKUP($FV42,Tasas!$EO$29:$FU$45,Calculadora!GD$32,0)) -> 0 | GI42: Cláusula por la conducción urbana o rural de motocicletas, motonetas y otros vehículos similares. | GK42: =Cotizador!$E$97 -> 0 | GP42: 448 | GQ42: =+IF(OR($C42=0,$C42="NO"),0,VLOOKUP($I$16+$H42,Tasas!$FY$78:$HJ$1228,$I$15+GQ$33+2,0)) -> 0 | GR42: =+IF(OR($C42=0,$C42="NO"),0,VLOOKUP($I$16+$H42,Tasas!$FY$78:$HJ$1228,$I$15+GR$33+2,0)) -> 0 | GS42: =+IF(OR($C42=0,$C42="NO"),0,VLOOKUP($I$16+$H42,Tasas!$FY$78:$HJ$1228,$I$15+GS$33+2,0)) -> 0 | GT42: =+IF(OR($C42=0,$C42="NO"),0,VLOOKUP($I$16+$H42,Tasas!$FY$78:$HJ$1228,$I$15+GT$33+2,0)) -> 0 | GU42: =+IF(OR($C42=0,$C42="NO"),0,VLOOKUP($I$16+$H42,Tasas!$FY$78:$HJ$1228,$I$15+GU$33+2,0)) -> 0 | GV42: =+IF(OR($C42=0,$C42="NO"),0,VLOOKUP($I$16+$H42,Tasas!$FY$78:$HJ$1228,$I$15+GV$33+2,0)) -> 0 | GW42: =+IF(OR($C42=0,$C42="NO"),0,VLOOKUP($I$16+$H42,Tasas!$FY$78:$HJ$1228,$I$15+GW$33+2,0)) -> 0 | GX42: =+IF(OR($C42=0,$C42="NO"),0,VLOOKUP($I$16+$H42,Tasas!$FY$78:$HJ$1228,$I$15+GX$33+2,0)) -> 0
A43: Cláusula para pasajeros que usan cualquier medio habitual de transporte público de personas, en vehículos que no recorren itinerarios regulares y fijos. | C43: =Cotizador!$E$98 -> 0 | D43: =Cotizador!$G$98 -> 0 | E43: =Cotizador!$I$98 -> 0 | F43: =Cotizador!$K$98 -> 0 | H43: 512 | I43: =+IF(OR($C43=0,$C43="NO"),0,VLOOKUP($I$16+$H43,Tasas!$C$78:$AN$1228,$I$15+I$33+2,0)) -> 0 | J43: =+IF(OR($C43=0,$C43="NO"),0,VLOOKUP($I$16+$H43,Tasas!$C$78:$AN$1228,$I$15+J$33+2,0)) -> 0 | K43: =+IF(OR($C43=0,$C43="NO"),0,VLOOKUP($I$16+$H43,Tasas!$C$78:$AN$1228,$I$15+K$33+2,0)) -> 0 | L43: =+IF(OR($C43=0,$C43="NO"),0,VLOOKUP($I$16+$H43,Tasas!$C$78:$AN$1228,$I$15+L$33+2,0)) -> 0 | M43: =+IF(OR($C43=0,$C43="NO"),0,VLOOKUP($I$16+$H43,Tasas!$C$78:$AN$1228,$I$15+M$33+2,0)) -> 0 | N43: =+IF(OR($C43=0,$C43="NO"),0,VLOOKUP($I$16+$H43,Tasas!$C$78:$AN$1228,$I$15+N$33+2,0)) -> 0 | O43: =+IF(OR($C43=0,$C43="NO"),0,VLOOKUP($I$16+$H43,Tasas!$C$78:$AN$1228,$I$15+O$33+2,0)) -> 0 | P43: =+IF(OR($C43=0,$C43="NO"),0,VLOOKUP($I$16+$H43,Tasas!$C$78:$AN$1228,$I$15+P$33+2,0)) -> 0 | Q43: =+IF(OR($D43=0,$D43="NO"),0,VLOOKUP($J$16+$H43,Tasas!$C$78:$AN$1228,$J$15+Q$33+2,0)) -> 0 | R43: =+IF(OR($D43=0,$D43="NO"),0,VLOOKUP($J$16+$H43,Tasas!$C$78:$AN$1228,$J$15+R$33+2,0)) -> 0 | S43: =+IF(OR($D43=0,$D43="NO"),0,VLOOKUP($J$16+$H43,Tasas!$C$78:$AN$1228,$J$15+S$33+2,0)) -> 0 | T43: =+IF(OR($D43=0,$D43="NO"),0,VLOOKUP($J$16+$H43,Tasas!$C$78:$AN$1228,$J$15+T$33+2,0)) -> 0 | U43: =+IF(OR($D43=0,$D43="NO"),0,VLOOKUP($J$16+$H43,Tasas!$C$78:$AN$1228,$J$15+U$33+2,0)) -> 0 | V43: =+IF(OR($D43=0,$D43="NO"),0,VLOOKUP($J$16+$H43,Tasas!$C$78:$AN$1228,$J$15+V$33+2,0)) -> 0 | W43: =+IF(OR($D43=0,$D43="NO"),0,VLOOKUP($J$16+$H43,Tasas!$C$78:$AN$1228,$J$15+W$33+2,0)) -> 0 | X43: =+IF(OR($D43=0,$D43="NO"),0,VLOOKUP($J$16+$H43,Tasas!$C$78:$AN$1228,$J$15+X$33+2,0)) -> 0 | Y43: =+IF(OR($E43=0,$E43="NO"),0,VLOOKUP($K$16+$H43,Tasas!$C$78:$AN$1228,$K$15+Y$33+2,0)) -> 0 | Z43: =+IF(OR($E43=0,$E43="NO"),0,VLOOKUP($K$16+$H43,Tasas!$C$78:$AN$1228,$K$15+Z$33+2,0)) -> 0 | AA43: =+IF(OR($E43=0,$E43="NO"),0,VLOOKUP($K$16+$H43,Tasas!$C$78:$AN$1228,$K$15+AA$33+2,0)) -> 0 | AB43: =+IF(OR($E43=0,$E43="NO"),0,VLOOKUP($K$16+$H43,Tasas!$C$78:$AN$1228,$K$15+AB$33+2,0)) -> 0 | AC43: =+IF(OR($E43=0,$E43="NO"),0,VLOOKUP($K$16+$H43,Tasas!$C$78:$AN$1228,$K$15+AC$33+2,0)) -> 0 | AD43: =+IF(OR($E43=0,$E43="NO"),0,VLOOKUP($K$16+$H43,Tasas!$C$78:$AN$1228,$K$15+AD$33+2,0)) -> 0 | AE43: =+IF(OR($E43=0,$E43="NO"),0,VLOOKUP($K$16+$H43,Tasas!$C$78:$AN$1228,$K$15+AE$33+2,0)) -> 0 | AF43: =+IF(OR($E43=0,$E43="NO"),0,VLOOKUP($K$16+$H43,Tasas!$C$78:$AN$1228,$K$15+AF$33+2,0)) -> 0 | AG43: =+IF(OR($F43=0,$F43="NO"),0,VLOOKUP($L$16+$H43,Tasas!$C$78:$AN$1228,$L$15+AG$33+2,0)) -> 0 | AH43: =+IF(OR($F43=0,$F43="NO"),0,VLOOKUP($L$16+$H43,Tasas!$C$78:$AN$1228,$L$15+AH$33+2,0)) -> 0 | AI43: =+IF(OR($F43=0,$F43="NO"),0,VLOOKUP($L$16+$H43,Tasas!$C$78:$AN$1228,$L$15+AI$33+2,0)) -> 0 | AJ43: =+IF(OR($F43=0,$F43="NO"),0,VLOOKUP($L$16+$H43,Tasas!$C$78:$AN$1228,$L$15+AJ$33+2,0)) -> 0 | AK43: =+IF(OR($F43=0,$F43="NO"),0,VLOOKUP($L$16+$H43,Tasas!$C$78:$AN$1228,$L$15+AK$33+2,0)) -> 0 | AL43: =+IF(OR($F43=0,$F43="NO"),0,VLOOKUP($L$16+$H43,Tasas!$C$78:$AN$1228,$L$15+AL$33+2,0)) -> 0 | AM43: =+IF(OR($F43=0,$F43="NO"),0,VLOOKUP($L$16+$H43,Tasas!$C$78:$AN$1228,$L$15+AM$33+2,0)) -> 0 | AN43: =+IF(OR($F43=0,$F43="NO"),0,VLOOKUP($L$16+$H43,Tasas!$C$78:$AN$1228,$L$15+AN$33+2,0)) -> 0 | AS43: Cláusula para pasajeros que usan cualquier medio habitual de transporte público de personas, en vehículos que no recorren itinerarios regulares y fijos. | AU43: =Cotizador!$E$98 -> 0 | AV43: =Cotizador!$G$98 -> 0 | AW43: =Cotizador!$I$98 -> 0 | AX43: =Cotizador!$K$98 -> 0 | AZ43: 512 | BA43: =+IF(OR($AU43=0,$AU43="NO"),0,VLOOKUP($BA$16+$AZ43,Tasas!$C$78:$BY$1292,$BA$15+BA$33+39,0)) -> 0 | BB43: =+IF(OR($AU43=0,$AU43="NO"),0,VLOOKUP($BA$16+$AZ43,Tasas!$C$78:$BY$1292,$BA$15+BB$33+39,0)) -> 0 | BC43: =+IF(OR($AU43=0,$AU43="NO"),0,VLOOKUP($BA$16+$AZ43,Tasas!$C$78:$BY$1292,$BA$15+BC$33+39,0)) -> 0 | BD43: =+IF(OR($AU43=0,$AU43="NO"),0,VLOOKUP($BA$16+$AZ43,Tasas!$C$78:$BY$1292,$BA$15+BD$33+39,0)) -> 0 | BE43: =+IF(OR($AU43=0,$AU43="NO"),0,VLOOKUP($BA$16+$AZ43,Tasas!$C$78:$BY$1292,$BA$15+BE$33+39,0)) -> 0 | BF43: =+IF(OR($AU43=0,$AU43="NO"),0,VLOOKUP($BA$16+$AZ43,Tasas!$C$78:$BY$1292,$BA$15+BF$33+39,0)) -> 0 | BG43: =+IF(OR($AU43=0,$AU43="NO"),0,VLOOKUP($BA$16+$AZ43,Tasas!$C$78:$BY$1292,$BA$15+BG$33+39,0)) -> 0 | BH43: =+IF(OR($AU43=0,$AU43="NO"),0,VLOOKUP($BA$16+$AZ43,Tasas!$C$78:$BY$1292,$BA$15+BH$33+39,0)) -> 0 | BI43: =+IF(OR($AU43=0,$AU43="NO"),0,VLOOKUP($BA$16+$AZ43,Tasas!$C$78:$BY$1292,$BA$15+BI$33+39,0)) -> 0 | BJ43: =+IF(OR($AU43=0,$AU43="NO"),0,VLOOKUP($BA$16+$AZ43,Tasas!$C$78:$BY$1292,$BA$15+BJ$33+39,0)) -> 0 | BK43: =+IF(OR($AU43=0,$AU43="NO"),0,VLOOKUP($BA$16+$AZ43,Tasas!$C$78:$BY$1292,$BA$15+BK$33+39,0)) -> 0 | BL43: =+IF(OR($AU43=0,$AU43="NO"),0,VLOOKUP($BA$16+$AZ43,Tasas!$C$78:$BY$1292,$BA$15+BL$33+39,0)) -> 0 | BM43: =+IF(OR($AU43=0,$AU43="NO"),0,VLOOKUP($BA$16+$AZ43,Tasas!$C$78:$BY$1292,$BA$15+BM$33+39,0)) -> 0 | BN43: =+IF(OR($AU43=0,$AU43="NO"),0,VLOOKUP($BA$16+$AZ43,Tasas!$C$78:$BY$1292,$BA$15+BN$33+39,0)) -> 0 | BO43: =+IF(OR($AU43=0,$AU43="NO"),0,VLOOKUP($BA$16+$AZ43,Tasas!$C$78:$BY$1292,$BA$15+BO$33+39,0)) -> 0 | BP43: =+IF(OR($AU43=0,$AU43="NO"),0,VLOOKUP($BA$16+$AZ43,Tasas!$C$78:$BY$1292,$BA$15+BP$33+39,0)) -> 0 | BQ43: =+IF(OR($AU43=0,$AU43="NO"),0,VLOOKUP($BA$16+$AZ43,Tasas!$C$78:$BY$1292,$BA$15+BQ$33+39,0)) -> 0 | BR43: =+IF(OR($AU43=0,$AU43="NO"),0,VLOOKUP($BA$16+$AZ43,Tasas!$C$78:$BY$1292,$BA$15+BR$33+39,0)) -> 0 | BS43: =+IF(OR($AU43=0,$AU43="NO"),0,VLOOKUP($BA$16+$AZ43,Tasas!$C$78:$BY$1292,$BA$15+BS$33+39,0)) -> 0 | BT43: =+IF(OR($AU43=0,$AU43="NO"),0,VLOOKUP($BA$16+$AZ43,Tasas!$C$78:$BY$1292,$BA$15+BT$33+39,0)) -> 0 | BU43: =+IF(OR($AU43=0,$AU43="NO"),0,VLOOKUP($BA$16+$AZ43,Tasas!$C$78:$BY$1292,$BA$15+BU$33+39,0)) -> 0 | BV43: =+IF(OR($AU43=0,$AU43="NO"),0,VLOOKUP($BA$16+$AZ43,Tasas!$C$78:$BY$1292,$BA$15+BV$33+39,0)) -> 0 | BW43: =+IF(OR($AU43=0,$AU43="NO"),0,VLOOKUP($BA$16+$AZ43,Tasas!$C$78:$BY$1292,$BA$15+BW$33+39,0)) -> 0 | BX43: =+IF(OR($AU43=0,$AU43="NO"),0,VLOOKUP($BA$16+$AZ43,Tasas!$C$78:$BY$1292,$BA$15+BX$33+39,0)) -> 0 | BY43: =+IF(OR($AU43=0,$AU43="NO"),0,VLOOKUP($BA$16+$AZ43,Tasas!$C$78:$BY$1292,$BA$15+BY$33+39,0)) -> 0 | BZ43: =+IF(OR($AU43=0,$AU43="NO"),0,VLOOKUP($BA$16+$AZ43,Tasas!$C$78:$BY$1292,$BA$15+BZ$33+39,0)) -> 0 | CA43: =+IF(OR($AU43=0,$AU43="NO"),0,VLOOKUP($BA$16+$AZ43,Tasas!$C$78:$BY$1292,$BA$15+CA$33+39,0)) -> 0 | CB43: =+IF(OR($AU43=0,$AU43="NO"),0,VLOOKUP($BA$16+$AZ43,Tasas!$C$78:$BY$1292,$BA$15+CB$33+39,0)) -> 0 | CC43: =+IF(OR($AU43=0,$AU43="NO"),0,VLOOKUP($BA$16+$AZ43,Tasas!$C$78:$BY$1292,$BA$15+CC$33+39,0)) -> 0 | CD43: =+IF(OR($AU43=0,$AU43="NO"),0,VLOOKUP($BA$16+$AZ43,Tasas!$C$78:$BY$1292,$BA$15+CD$33+39,0)) -> 0 | CE43: =+IF(OR($AU43=0,$AU43="NO"),0,VLOOKUP($BA$16+$AZ43,Tasas!$C$78:$BY$1292,$BA$15+CE$33+39,0)) -> 0 | CF43: =+IF(OR($AU43=0,$AU43="NO"),0,VLOOKUP($BA$16+$AZ43,Tasas!$C$78:$BY$1292,$BA$15+CF$33+39,0)) -> 0 | CK43: Cláusula para pasajeros que usan cualquier medio habitual de transporte público de personas, en vehículos que no recorren itinerarios regulares y fijos. | CM43: =Cotizador!$E$98 -> 0 | CN43: 25 | CO43: 25 | CP43: =IF(OR($CM43="",$CM43=0),0,VLOOKUP($CO43,Tasas!$CB$17:$CL$70,Calculadora!CP$33,0)) -> 0 | CQ43: =IF(OR($CM43="",$CM43=0),0,VLOOKUP($CO43,Tasas!$CB$17:$CL$70,Calculadora!CQ$33,0)) -> 0 | CR43: =IF(OR($CM43="",$CM43=0),0,VLOOKUP($CO43,Tasas!$CB$17:$CL$70,Calculadora!CR$33,0)) -> 0 | CS43: =IF(OR($CM43="",$CM43=0),0,VLOOKUP($CO43,Tasas!$CB$17:$CL$70,Calculadora!CS$33,0)) -> 0 | CT43: =IF(OR($CM43="",$CM43=0),0,VLOOKUP($CO43,Tasas!$CB$17:$CL$70,Calculadora!CT$33,0)) -> 0 | CU43: =IF(OR($CM43="",$CM43=0),0,VLOOKUP($CO43,Tasas!$CB$17:$CL$70,Calculadora!CU$33,0)) -> 0 | CV43: =IF(OR($CM43="",$CM43=0),0,VLOOKUP($CO43,Tasas!$CB$17:$CL$70,Calculadora!CV$33,0)) -> 0 | CW43: =IF(OR($CM43="",$CM43=0),0,VLOOKUP($CO43,Tasas!$CB$17:$CL$70,Calculadora!CW$33,0)) -> 0 | DB43: Cláusula para pasajeros que usan cualquier medio habitual de transporte público de personas, en vehículos que no recorren itinerarios regulares y fijos. | DD43: =Cotizador!$E$98 -> 0 | DE43: 25 | DF43: 25 | DG43: =IF(OR($DD43="",$DD43=0),0,VLOOKUP($DF43,Tasas!$CO$17:$CY$70,Calculadora!DG$33,0)) -> 0 | DH43: =IF(OR($DD43="",$DD43=0),0,VLOOKUP($DF43,Tasas!$CO$17:$CY$70,Calculadora!DH$33,0)) -> 0 | DI43: =IF(OR($DD43="",$DD43=0),0,VLOOKUP($DF43,Tasas!$CO$17:$CY$70,Calculadora!DI$33,0)) -> 0 | DJ43: =IF(OR($DD43="",$DD43=0),0,VLOOKUP($DF43,Tasas!$CO$17:$CY$70,Calculadora!DJ$33,0)) -> 0 | DK43: =IF(OR($DD43="",$DD43=0),0,VLOOKUP($DF43,Tasas!$CO$17:$CY$70,Calculadora!DK$33,0)) -> 0 | DL43: =IF(OR($DD43="",$DD43=0),0,VLOOKUP($DF43,Tasas!$CO$17:$CY$70,Calculadora!DL$33,0)) -> 0 | DM43: =IF(OR($DD43="",$DD43=0),0,VLOOKUP($DF43,Tasas!$CO$17:$CY$70,Calculadora!DM$33,0)) -> 0 | DN43: =IF(OR($DD43="",$DD43=0),0,VLOOKUP($DF43,Tasas!$CO$17:$CY$70,Calculadora!DN$33,0)) -> 0 | DS43: Cláusula para pasajeros que usan cualquier medio habitual de transporte público de personas, en vehículos que no recorren itinerarios regulares y fijos. | DU43: =Cotizador!$E$98 -> 0 | DV43: 25 | DW43: 25 | DX43: =IF(OR($DU43="",$DU43=0),0,VLOOKUP($DW43,Tasas!$DB$17:$DL$70,Calculadora!DX$33,0)) -> 0 | DY43: =IF(OR($DU43="",$DU43=0),0,VLOOKUP($DW43,Tasas!$DB$17:$DL$70,Calculadora!DY$33,0)) -> 0 | DZ43: =IF(OR($DU43="",$DU43=0),0,VLOOKUP($DW43,Tasas!$DB$17:$DL$70,Calculadora!DZ$33,0)) -> 0 | EA43: =IF(OR($DU43="",$DU43=0),0,VLOOKUP($DW43,Tasas!$DB$17:$DL$70,Calculadora!EA$33,0)) -> 0 | EB43: =IF(OR($DU43="",$DU43=0),0,VLOOKUP($DW43,Tasas!$DB$17:$DL$70,Calculadora!EB$33,0)) -> 0 | EC43: =IF(OR($DU43="",$DU43=0),0,VLOOKUP($DW43,Tasas!$DB$17:$DL$70,Calculadora!EC$33,0)) -> 0 | ED43: =IF(OR($DU43="",$DU43=0),0,VLOOKUP($DW43,Tasas!$DB$17:$DL$70,Calculadora!ED$33,0)) -> 0 | EE43: =IF(OR($DU43="",$DU43=0),0,VLOOKUP($DW43,Tasas!$DB$17:$DL$70,Calculadora!EE$33,0)) -> 0 | EJ43: Cláusula para pasajeros que usan cualquier medio habitual de transporte público de personas, en vehículos que no recorren itinerarios regulares y fijos. | EL43: =Cotizador!$E$98 -> 0 | EM43: 25 | EN43: 25 | EO43: =IF(OR($EL43="",$EL43=0),0,VLOOKUP($EN43,Tasas!$DO$17:$DY$70,Calculadora!EO$33,0)) -> 0 | EP43: =IF(OR($EL43="",$EL43=0),0,VLOOKUP($EN43,Tasas!$DO$17:$DY$70,Calculadora!EP$33,0)) -> 0 | EQ43: =IF(OR($EL43="",$EL43=0),0,VLOOKUP($EN43,Tasas!$DO$17:$DY$70,Calculadora!EQ$33,0)) -> 0 | ER43: =IF(OR($EL43="",$EL43=0),0,VLOOKUP($EN43,Tasas!$DO$17:$DY$70,Calculadora!ER$33,0)) -> 0 | ES43: =IF(OR($EL43="",$EL43=0),0,VLOOKUP($EN43,Tasas!$DO$17:$DY$70,Calculadora!ES$33,0)) -> 0 | ET43: =IF(OR($EL43="",$EL43=0),0,VLOOKUP($EN43,Tasas!$DO$17:$DY$70,Calculadora!ET$33,0)) -> 0 | EU43: =IF(OR($EL43="",$EL43=0),0,VLOOKUP($EN43,Tasas!$DO$17:$DY$70,Calculadora!EU$33,0)) -> 0 | EV43: =IF(OR($EL43="",$EL43=0),0,VLOOKUP($EN43,Tasas!$DO$17:$DY$70,Calculadora!EV$33,0)) -> 0 | FA43: Cláusula para pasajeros que usan cualquier medio habitual de transporte público de personas, en vehículos que no recorren itinerarios regulares y fijos. | FC43: =Cotizador!$E$98 -> 0 | FD43: 25 | FE43: 25 | FF43: =IF(OR($FC43="",$FC43=0),0,VLOOKUP($FE43,Tasas!$EB$17:$EL$70,Calculadora!FF$33,0)) -> 0 | FG43: =IF(OR($FC43="",$FC43=0),0,VLOOKUP($FE43,Tasas!$EB$17:$EL$70,Calculadora!FG$33,0)) -> 0 | FH43: =IF(OR($FC43="",$FC43=0),0,VLOOKUP($FE43,Tasas!$EB$17:$EL$70,Calculadora!FH$33,0)) -> 0 | FI43: =IF(OR($FC43="",$FC43=0),0,VLOOKUP($FE43,Tasas!$EB$17:$EL$70,Calculadora!FI$33,0)) -> 0 | FJ43: =IF(OR($FC43="",$FC43=0),0,VLOOKUP($FE43,Tasas!$EB$17:$EL$70,Calculadora!FJ$33,0)) -> 0 | FK43: =IF(OR($FC43="",$FC43=0),0,VLOOKUP($FE43,Tasas!$EB$17:$EL$70,Calculadora!FK$33,0)) -> 0 | FL43: =IF(OR($FC43="",$FC43=0),0,VLOOKUP($FE43,Tasas!$EB$17:$EL$70,Calculadora!FL$33,0)) -> 0 | FM43: =IF(OR($FC43="",$FC43=0),0,VLOOKUP($FE43,Tasas!$EB$17:$EL$70,Calculadora!FM$33,0)) -> 0 | FR43: Cláusula para pasajeros de aviones y/o helicópteros particulares y/o de la FAP por viajes eventuales. N2 | FT43: =Cotizador!$E$118 -> 0 | FV43: 10 | FW43: =IF(OR($FT43=0,$FT43="NO"),0,VLOOKUP($FV43,Tasas!$EO$29:$FU$45,Calculadora!FW$32,0)) -> 0 | FX43: =IF(OR($FT43=0,$FT43="NO"),0,VLOOKUP($FV43,Tasas!$EO$29:$FU$45,Calculadora!FX$32,0)) -> 0 | FY43: =IF(OR($FT43=0,$FT43="NO"),0,VLOOKUP($FV43,Tasas!$EO$29:$FU$45,Calculadora!FY$32,0)) -> 0 | FZ43: =IF(OR($FT43=0,$FT43="NO"),0,VLOOKUP($FV43,Tasas!$EO$29:$FU$45,Calculadora!FZ$32,0)) -> 0 | GA43: =IF(OR($FT43=0,$FT43="NO"),0,VLOOKUP($FV43,Tasas!$EO$29:$FU$45,Calculadora!GA$32,0)) -> 0 | GB43: =IF(OR($FT43=0,$FT43="NO"),0,VLOOKUP($FV43,Tasas!$EO$29:$FU$45,Calculadora!GB$32,0)) -> 0 | GC43: =IF(OR($FT43=0,$FT43="NO"),0,VLOOKUP($FV43,Tasas!$EO$29:$FU$45,Calculadora!GC$32,0)) -> 0 | GD43: =IF(OR($FT43=0,$FT43="NO"),0,VLOOKUP($FV43,Tasas!$EO$29:$FU$45,Calculadora!GD$32,0)) -> 0 | GI43: Cláusula para pasajeros que usan cualquier medio habitual de transporte público de personas, en vehículos que no recorren itinerarios regulares y fijos. | GK43: =Cotizador!$E$98 -> 0 | GP43: 512 | GQ43: =+IF(OR($C43=0,$C43="NO"),0,VLOOKUP($I$16+$H43,Tasas!$FY$78:$HJ$1228,$I$15+GQ$33+2,0)) -> 0 | GR43: =+IF(OR($C43=0,$C43="NO"),0,VLOOKUP($I$16+$H43,Tasas!$FY$78:$HJ$1228,$I$15+GR$33+2,0)) -> 0 | GS43: =+IF(OR($C43=0,$C43="NO"),0,VLOOKUP($I$16+$H43,Tasas!$FY$78:$HJ$1228,$I$15+GS$33+2,0)) -> 0 | GT43: =+IF(OR($C43=0,$C43="NO"),0,VLOOKUP($I$16+$H43,Tasas!$FY$78:$HJ$1228,$I$15+GT$33+2,0)) -> 0 | GU43: =+IF(OR($C43=0,$C43="NO"),0,VLOOKUP($I$16+$H43,Tasas!$FY$78:$HJ$1228,$I$15+GU$33+2,0)) -> 0 | GV43: =+IF(OR($C43=0,$C43="NO"),0,VLOOKUP($I$16+$H43,Tasas!$FY$78:$HJ$1228,$I$15+GV$33+2,0)) -> 0 | GW43: =+IF(OR($C43=0,$C43="NO"),0,VLOOKUP($I$16+$H43,Tasas!$FY$78:$HJ$1228,$I$15+GW$33+2,0)) -> 0 | GX43: =+IF(OR($C43=0,$C43="NO"),0,VLOOKUP($I$16+$H43,Tasas!$FY$78:$HJ$1228,$I$15+GX$33+2,0)) -> 0
A44: Ocupantes de vehiculos automotores particulares (no comerciales) por accidentes de tránsito. | C44: =Cotizador!$E$99 -> 0 | D44: =Cotizador!$G$99 -> 0 | E44: =Cotizador!$I$99 -> 0 | F44: =Cotizador!$K$99 -> 0 | H44: 576 | I44: =+IF(OR($C44=0,$C44="NO"),0,VLOOKUP($I$16+$H44,Tasas!$C$78:$AN$1228,$I$15+I$33+2,0)) -> 0 | J44: =+IF(OR($C44=0,$C44="NO"),0,VLOOKUP($I$16+$H44,Tasas!$C$78:$AN$1228,$I$15+J$33+2,0)) -> 0 | K44: =+IF(OR($C44=0,$C44="NO"),0,VLOOKUP($I$16+$H44,Tasas!$C$78:$AN$1228,$I$15+K$33+2,0)) -> 0 | L44: =+IF(OR($C44=0,$C44="NO"),0,VLOOKUP($I$16+$H44,Tasas!$C$78:$AN$1228,$I$15+L$33+2,0)) -> 0 | M44: =+IF(OR($C44=0,$C44="NO"),0,VLOOKUP($I$16+$H44,Tasas!$C$78:$AN$1228,$I$15+M$33+2,0)) -> 0 | N44: =+IF(OR($C44=0,$C44="NO"),0,VLOOKUP($I$16+$H44,Tasas!$C$78:$AN$1228,$I$15+N$33+2,0)) -> 0 | O44: =+IF(OR($C44=0,$C44="NO"),0,VLOOKUP($I$16+$H44,Tasas!$C$78:$AN$1228,$I$15+O$33+2,0)) -> 0 | P44: =+IF(OR($C44=0,$C44="NO"),0,VLOOKUP($I$16+$H44,Tasas!$C$78:$AN$1228,$I$15+P$33+2,0)) -> 0 | Q44: =+IF(OR($D44=0,$D44="NO"),0,VLOOKUP($J$16+$H44,Tasas!$C$78:$AN$1228,$J$15+Q$33+2,0)) -> 0 | R44: =+IF(OR($D44=0,$D44="NO"),0,VLOOKUP($J$16+$H44,Tasas!$C$78:$AN$1228,$J$15+R$33+2,0)) -> 0 | S44: =+IF(OR($D44=0,$D44="NO"),0,VLOOKUP($J$16+$H44,Tasas!$C$78:$AN$1228,$J$15+S$33+2,0)) -> 0 | T44: =+IF(OR($D44=0,$D44="NO"),0,VLOOKUP($J$16+$H44,Tasas!$C$78:$AN$1228,$J$15+T$33+2,0)) -> 0 | U44: =+IF(OR($D44=0,$D44="NO"),0,VLOOKUP($J$16+$H44,Tasas!$C$78:$AN$1228,$J$15+U$33+2,0)) -> 0 | V44: =+IF(OR($D44=0,$D44="NO"),0,VLOOKUP($J$16+$H44,Tasas!$C$78:$AN$1228,$J$15+V$33+2,0)) -> 0 | W44: =+IF(OR($D44=0,$D44="NO"),0,VLOOKUP($J$16+$H44,Tasas!$C$78:$AN$1228,$J$15+W$33+2,0)) -> 0 | X44: =+IF(OR($D44=0,$D44="NO"),0,VLOOKUP($J$16+$H44,Tasas!$C$78:$AN$1228,$J$15+X$33+2,0)) -> 0 | Y44: =+IF(OR($E44=0,$E44="NO"),0,VLOOKUP($K$16+$H44,Tasas!$C$78:$AN$1228,$K$15+Y$33+2,0)) -> 0 | Z44: =+IF(OR($E44=0,$E44="NO"),0,VLOOKUP($K$16+$H44,Tasas!$C$78:$AN$1228,$K$15+Z$33+2,0)) -> 0 | AA44: =+IF(OR($E44=0,$E44="NO"),0,VLOOKUP($K$16+$H44,Tasas!$C$78:$AN$1228,$K$15+AA$33+2,0)) -> 0 | AB44: =+IF(OR($E44=0,$E44="NO"),0,VLOOKUP($K$16+$H44,Tasas!$C$78:$AN$1228,$K$15+AB$33+2,0)) -> 0 | AC44: =+IF(OR($E44=0,$E44="NO"),0,VLOOKUP($K$16+$H44,Tasas!$C$78:$AN$1228,$K$15+AC$33+2,0)) -> 0 | AD44: =+IF(OR($E44=0,$E44="NO"),0,VLOOKUP($K$16+$H44,Tasas!$C$78:$AN$1228,$K$15+AD$33+2,0)) -> 0 | AE44: =+IF(OR($E44=0,$E44="NO"),0,VLOOKUP($K$16+$H44,Tasas!$C$78:$AN$1228,$K$15+AE$33+2,0)) -> 0 | AF44: =+IF(OR($E44=0,$E44="NO"),0,VLOOKUP($K$16+$H44,Tasas!$C$78:$AN$1228,$K$15+AF$33+2,0)) -> 0 | AG44: =+IF(OR($F44=0,$F44="NO"),0,VLOOKUP($L$16+$H44,Tasas!$C$78:$AN$1228,$L$15+AG$33+2,0)) -> 0 | AH44: =+IF(OR($F44=0,$F44="NO"),0,VLOOKUP($L$16+$H44,Tasas!$C$78:$AN$1228,$L$15+AH$33+2,0)) -> 0 | AI44: =+IF(OR($F44=0,$F44="NO"),0,VLOOKUP($L$16+$H44,Tasas!$C$78:$AN$1228,$L$15+AI$33+2,0)) -> 0 | AJ44: =+IF(OR($F44=0,$F44="NO"),0,VLOOKUP($L$16+$H44,Tasas!$C$78:$AN$1228,$L$15+AJ$33+2,0)) -> 0 | AK44: =+IF(OR($F44=0,$F44="NO"),0,VLOOKUP($L$16+$H44,Tasas!$C$78:$AN$1228,$L$15+AK$33+2,0)) -> 0 | AL44: =+IF(OR($F44=0,$F44="NO"),0,VLOOKUP($L$16+$H44,Tasas!$C$78:$AN$1228,$L$15+AL$33+2,0)) -> 0 | AM44: =+IF(OR($F44=0,$F44="NO"),0,VLOOKUP($L$16+$H44,Tasas!$C$78:$AN$1228,$L$15+AM$33+2,0)) -> 0 | AN44: =+IF(OR($F44=0,$F44="NO"),0,VLOOKUP($L$16+$H44,Tasas!$C$78:$AN$1228,$L$15+AN$33+2,0)) -> 0 | AS44: Ocupantes de vehiculos automotores particulares (no comerciales) por accidentes de tránsito. | AU44: =Cotizador!$E$99 -> 0 | AV44: =Cotizador!$G$99 -> 0 | AW44: =Cotizador!$I$99 -> 0 | AX44: =Cotizador!$K$99 -> 0 | AZ44: 576 | BA44: =+IF(OR($AU44=0,$AU44="NO"),0,VLOOKUP($BA$16+$AZ44,Tasas!$C$78:$BY$1292,$BA$15+BA$33+39,0)) -> 0 | BB44: =+IF(OR($AU44=0,$AU44="NO"),0,VLOOKUP($BA$16+$AZ44,Tasas!$C$78:$BY$1292,$BA$15+BB$33+39,0)) -> 0 | BC44: =+IF(OR($AU44=0,$AU44="NO"),0,VLOOKUP($BA$16+$AZ44,Tasas!$C$78:$BY$1292,$BA$15+BC$33+39,0)) -> 0 | BD44: =+IF(OR($AU44=0,$AU44="NO"),0,VLOOKUP($BA$16+$AZ44,Tasas!$C$78:$BY$1292,$BA$15+BD$33+39,0)) -> 0 | BE44: =+IF(OR($AU44=0,$AU44="NO"),0,VLOOKUP($BA$16+$AZ44,Tasas!$C$78:$BY$1292,$BA$15+BE$33+39,0)) -> 0 | BF44: =+IF(OR($AU44=0,$AU44="NO"),0,VLOOKUP($BA$16+$AZ44,Tasas!$C$78:$BY$1292,$BA$15+BF$33+39,0)) -> 0 | BG44: =+IF(OR($AU44=0,$AU44="NO"),0,VLOOKUP($BA$16+$AZ44,Tasas!$C$78:$BY$1292,$BA$15+BG$33+39,0)) -> 0 | BH44: =+IF(OR($AU44=0,$AU44="NO"),0,VLOOKUP($BA$16+$AZ44,Tasas!$C$78:$BY$1292,$BA$15+BH$33+39,0)) -> 0 | BI44: =+IF(OR($AU44=0,$AU44="NO"),0,VLOOKUP($BA$16+$AZ44,Tasas!$C$78:$BY$1292,$BA$15+BI$33+39,0)) -> 0 | BJ44: =+IF(OR($AU44=0,$AU44="NO"),0,VLOOKUP($BA$16+$AZ44,Tasas!$C$78:$BY$1292,$BA$15+BJ$33+39,0)) -> 0 | BK44: =+IF(OR($AU44=0,$AU44="NO"),0,VLOOKUP($BA$16+$AZ44,Tasas!$C$78:$BY$1292,$BA$15+BK$33+39,0)) -> 0 | BL44: =+IF(OR($AU44=0,$AU44="NO"),0,VLOOKUP($BA$16+$AZ44,Tasas!$C$78:$BY$1292,$BA$15+BL$33+39,0)) -> 0 | BM44: =+IF(OR($AU44=0,$AU44="NO"),0,VLOOKUP($BA$16+$AZ44,Tasas!$C$78:$BY$1292,$BA$15+BM$33+39,0)) -> 0 | BN44: =+IF(OR($AU44=0,$AU44="NO"),0,VLOOKUP($BA$16+$AZ44,Tasas!$C$78:$BY$1292,$BA$15+BN$33+39,0)) -> 0 | BO44: =+IF(OR($AU44=0,$AU44="NO"),0,VLOOKUP($BA$16+$AZ44,Tasas!$C$78:$BY$1292,$BA$15+BO$33+39,0)) -> 0 | BP44: =+IF(OR($AU44=0,$AU44="NO"),0,VLOOKUP($BA$16+$AZ44,Tasas!$C$78:$BY$1292,$BA$15+BP$33+39,0)) -> 0 | BQ44: =+IF(OR($AU44=0,$AU44="NO"),0,VLOOKUP($BA$16+$AZ44,Tasas!$C$78:$BY$1292,$BA$15+BQ$33+39,0)) -> 0 | BR44: =+IF(OR($AU44=0,$AU44="NO"),0,VLOOKUP($BA$16+$AZ44,Tasas!$C$78:$BY$1292,$BA$15+BR$33+39,0)) -> 0 | BS44: =+IF(OR($AU44=0,$AU44="NO"),0,VLOOKUP($BA$16+$AZ44,Tasas!$C$78:$BY$1292,$BA$15+BS$33+39,0)) -> 0 | BT44: =+IF(OR($AU44=0,$AU44="NO"),0,VLOOKUP($BA$16+$AZ44,Tasas!$C$78:$BY$1292,$BA$15+BT$33+39,0)) -> 0 | BU44: =+IF(OR($AU44=0,$AU44="NO"),0,VLOOKUP($BA$16+$AZ44,Tasas!$C$78:$BY$1292,$BA$15+BU$33+39,0)) -> 0 | BV44: =+IF(OR($AU44=0,$AU44="NO"),0,VLOOKUP($BA$16+$AZ44,Tasas!$C$78:$BY$1292,$BA$15+BV$33+39,0)) -> 0 | BW44: =+IF(OR($AU44=0,$AU44="NO"),0,VLOOKUP($BA$16+$AZ44,Tasas!$C$78:$BY$1292,$BA$15+BW$33+39,0)) -> 0 | BX44: =+IF(OR($AU44=0,$AU44="NO"),0,VLOOKUP($BA$16+$AZ44,Tasas!$C$78:$BY$1292,$BA$15+BX$33+39,0)) -> 0 | BY44: =+IF(OR($AU44=0,$AU44="NO"),0,VLOOKUP($BA$16+$AZ44,Tasas!$C$78:$BY$1292,$BA$15+BY$33+39,0)) -> 0 | BZ44: =+IF(OR($AU44=0,$AU44="NO"),0,VLOOKUP($BA$16+$AZ44,Tasas!$C$78:$BY$1292,$BA$15+BZ$33+39,0)) -> 0 | CA44: =+IF(OR($AU44=0,$AU44="NO"),0,VLOOKUP($BA$16+$AZ44,Tasas!$C$78:$BY$1292,$BA$15+CA$33+39,0)) -> 0 | CB44: =+IF(OR($AU44=0,$AU44="NO"),0,VLOOKUP($BA$16+$AZ44,Tasas!$C$78:$BY$1292,$BA$15+CB$33+39,0)) -> 0 | CC44: =+IF(OR($AU44=0,$AU44="NO"),0,VLOOKUP($BA$16+$AZ44,Tasas!$C$78:$BY$1292,$BA$15+CC$33+39,0)) -> 0 | CD44: =+IF(OR($AU44=0,$AU44="NO"),0,VLOOKUP($BA$16+$AZ44,Tasas!$C$78:$BY$1292,$BA$15+CD$33+39,0)) -> 0 | CE44: =+IF(OR($AU44=0,$AU44="NO"),0,VLOOKUP($BA$16+$AZ44,Tasas!$C$78:$BY$1292,$BA$15+CE$33+39,0)) -> 0 | CF44: =+IF(OR($AU44=0,$AU44="NO"),0,VLOOKUP($BA$16+$AZ44,Tasas!$C$78:$BY$1292,$BA$15+CF$33+39,0)) -> 0 | CK44: Ocupantes de vehiculos automotores particulares (no comerciales) por accidentes de tránsito. | CM44: =Cotizador!$E$99 -> 0 | CN44: 28 | CO44: 28 | CP44: =IF(OR($CM44="",$CM44=0),0,VLOOKUP($CO44,Tasas!$CB$17:$CL$70,Calculadora!CP$33,0)) -> 0 | CQ44: =IF(OR($CM44="",$CM44=0),0,VLOOKUP($CO44,Tasas!$CB$17:$CL$70,Calculadora!CQ$33,0)) -> 0 | CR44: =IF(OR($CM44="",$CM44=0),0,VLOOKUP($CO44,Tasas!$CB$17:$CL$70,Calculadora!CR$33,0)) -> 0 | CS44: =IF(OR($CM44="",$CM44=0),0,VLOOKUP($CO44,Tasas!$CB$17:$CL$70,Calculadora!CS$33,0)) -> 0 | CT44: =IF(OR($CM44="",$CM44=0),0,VLOOKUP($CO44,Tasas!$CB$17:$CL$70,Calculadora!CT$33,0)) -> 0 | CU44: =IF(OR($CM44="",$CM44=0),0,VLOOKUP($CO44,Tasas!$CB$17:$CL$70,Calculadora!CU$33,0)) -> 0 | CV44: =IF(OR($CM44="",$CM44=0),0,VLOOKUP($CO44,Tasas!$CB$17:$CL$70,Calculadora!CV$33,0)) -> 0 | CW44: =IF(OR($CM44="",$CM44=0),0,VLOOKUP($CO44,Tasas!$CB$17:$CL$70,Calculadora!CW$33,0)) -> 0 | DB44: Ocupantes de vehiculos automotores particulares (no comerciales) por accidentes de tránsito. | DD44: =Cotizador!$E$99 -> 0 | DE44: 28 | DF44: 28 | DG44: =IF(OR($DD44="",$DD44=0),0,VLOOKUP($DF44,Tasas!$CO$17:$CY$70,Calculadora!DG$33,0)) -> 0 | DH44: =IF(OR($DD44="",$DD44=0),0,VLOOKUP($DF44,Tasas!$CO$17:$CY$70,Calculadora!DH$33,0)) -> 0 | DI44: =IF(OR($DD44="",$DD44=0),0,VLOOKUP($DF44,Tasas!$CO$17:$CY$70,Calculadora!DI$33,0)) -> 0 | DJ44: =IF(OR($DD44="",$DD44=0),0,VLOOKUP($DF44,Tasas!$CO$17:$CY$70,Calculadora!DJ$33,0)) -> 0 | DK44: =IF(OR($DD44="",$DD44=0),0,VLOOKUP($DF44,Tasas!$CO$17:$CY$70,Calculadora!DK$33,0)) -> 0 | DL44: =IF(OR($DD44="",$DD44=0),0,VLOOKUP($DF44,Tasas!$CO$17:$CY$70,Calculadora!DL$33,0)) -> 0 | DM44: =IF(OR($DD44="",$DD44=0),0,VLOOKUP($DF44,Tasas!$CO$17:$CY$70,Calculadora!DM$33,0)) -> 0 | DN44: =IF(OR($DD44="",$DD44=0),0,VLOOKUP($DF44,Tasas!$CO$17:$CY$70,Calculadora!DN$33,0)) -> 0 | DS44: Ocupantes de vehiculos automotores particulares (no comerciales) por accidentes de tránsito. | DU44: =Cotizador!$E$99 -> 0 | DV44: 28 | DW44: 28 | DX44: =IF(OR($DU44="",$DU44=0),0,VLOOKUP($DW44,Tasas!$DB$17:$DL$70,Calculadora!DX$33,0)) -> 0 | DY44: =IF(OR($DU44="",$DU44=0),0,VLOOKUP($DW44,Tasas!$DB$17:$DL$70,Calculadora!DY$33,0)) -> 0 | DZ44: =IF(OR($DU44="",$DU44=0),0,VLOOKUP($DW44,Tasas!$DB$17:$DL$70,Calculadora!DZ$33,0)) -> 0 | EA44: =IF(OR($DU44="",$DU44=0),0,VLOOKUP($DW44,Tasas!$DB$17:$DL$70,Calculadora!EA$33,0)) -> 0 | EB44: =IF(OR($DU44="",$DU44=0),0,VLOOKUP($DW44,Tasas!$DB$17:$DL$70,Calculadora!EB$33,0)) -> 0 | EC44: =IF(OR($DU44="",$DU44=0),0,VLOOKUP($DW44,Tasas!$DB$17:$DL$70,Calculadora!EC$33,0)) -> 0 | ED44: =IF(OR($DU44="",$DU44=0),0,VLOOKUP($DW44,Tasas!$DB$17:$DL$70,Calculadora!ED$33,0)) -> 0 | EE44: =IF(OR($DU44="",$DU44=0),0,VLOOKUP($DW44,Tasas!$DB$17:$DL$70,Calculadora!EE$33,0)) -> 0 | EJ44: Ocupantes de vehiculos automotores particulares (no comerciales) por accidentes de tránsito. | EL44: =Cotizador!$E$99 -> 0 | EM44: 28 | EN44: 28 | EO44: =IF(OR($EL44="",$EL44=0),0,VLOOKUP($EN44,Tasas!$DO$17:$DY$70,Calculadora!EO$33,0)) -> 0 | EP44: =IF(OR($EL44="",$EL44=0),0,VLOOKUP($EN44,Tasas!$DO$17:$DY$70,Calculadora!EP$33,0)) -> 0 | EQ44: =IF(OR($EL44="",$EL44=0),0,VLOOKUP($EN44,Tasas!$DO$17:$DY$70,Calculadora!EQ$33,0)) -> 0 | ER44: =IF(OR($EL44="",$EL44=0),0,VLOOKUP($EN44,Tasas!$DO$17:$DY$70,Calculadora!ER$33,0)) -> 0 | ES44: =IF(OR($EL44="",$EL44=0),0,VLOOKUP($EN44,Tasas!$DO$17:$DY$70,Calculadora!ES$33,0)) -> 0 | ET44: =IF(OR($EL44="",$EL44=0),0,VLOOKUP($EN44,Tasas!$DO$17:$DY$70,Calculadora!ET$33,0)) -> 0 | EU44: =IF(OR($EL44="",$EL44=0),0,VLOOKUP($EN44,Tasas!$DO$17:$DY$70,Calculadora!EU$33,0)) -> 0 | EV44: =IF(OR($EL44="",$EL44=0),0,VLOOKUP($EN44,Tasas!$DO$17:$DY$70,Calculadora!EV$33,0)) -> 0 | FA44: Ocupantes de vehiculos automotores particulares (no comerciales) por accidentes de tránsito. | FC44: =Cotizador!$E$99 -> 0 | FD44: 28 | FE44: 28 | FF44: =IF(OR($FC44="",$FC44=0),0,VLOOKUP($FE44,Tasas!$EB$17:$EL$70,Calculadora!FF$33,0)) -> 0 | FG44: =IF(OR($FC44="",$FC44=0),0,VLOOKUP($FE44,Tasas!$EB$17:$EL$70,Calculadora!FG$33,0)) -> 0 | FH44: =IF(OR($FC44="",$FC44=0),0,VLOOKUP($FE44,Tasas!$EB$17:$EL$70,Calculadora!FH$33,0)) -> 0 | FI44: =IF(OR($FC44="",$FC44=0),0,VLOOKUP($FE44,Tasas!$EB$17:$EL$70,Calculadora!FI$33,0)) -> 0 | FJ44: =IF(OR($FC44="",$FC44=0),0,VLOOKUP($FE44,Tasas!$EB$17:$EL$70,Calculadora!FJ$33,0)) -> 0 | FK44: =IF(OR($FC44="",$FC44=0),0,VLOOKUP($FE44,Tasas!$EB$17:$EL$70,Calculadora!FK$33,0)) -> 0 | FL44: =IF(OR($FC44="",$FC44=0),0,VLOOKUP($FE44,Tasas!$EB$17:$EL$70,Calculadora!FL$33,0)) -> 0 | FM44: =IF(OR($FC44="",$FC44=0),0,VLOOKUP($FE44,Tasas!$EB$17:$EL$70,Calculadora!FM$33,0)) -> 0 | FR44: Cláusula para pasajeros de aviones y/o helicópteros particulares y/o de la FAP por viajes eventuales. N3 | FT44: =Cotizador!$E$119 -> 0 | FV44: 11 | FW44: =IF(OR($FT44=0,$FT44="NO"),0,VLOOKUP($FV44,Tasas!$EO$29:$FU$45,Calculadora!FW$32,0)) -> 0 | FX44: =IF(OR($FT44=0,$FT44="NO"),0,VLOOKUP($FV44,Tasas!$EO$29:$FU$45,Calculadora!FX$32,0)) -> 0 | FY44: =IF(OR($FT44=0,$FT44="NO"),0,VLOOKUP($FV44,Tasas!$EO$29:$FU$45,Calculadora!FY$32,0)) -> 0 | FZ44: =IF(OR($FT44=0,$FT44="NO"),0,VLOOKUP($FV44,Tasas!$EO$29:$FU$45,Calculadora!FZ$32,0)) -> 0 | GA44: =IF(OR($FT44=0,$FT44="NO"),0,VLOOKUP($FV44,Tasas!$EO$29:$FU$45,Calculadora!GA$32,0)) -> 0 | GB44: =IF(OR($FT44=0,$FT44="NO"),0,VLOOKUP($FV44,Tasas!$EO$29:$FU$45,Calculadora!GB$32,0)) -> 0 | GC44: =IF(OR($FT44=0,$FT44="NO"),0,VLOOKUP($FV44,Tasas!$EO$29:$FU$45,Calculadora!GC$32,0)) -> 0 | GD44: =IF(OR($FT44=0,$FT44="NO"),0,VLOOKUP($FV44,Tasas!$EO$29:$FU$45,Calculadora!GD$32,0)) -> 0 | GI44: Ocupantes de vehiculos automotores particulares (no comerciales) por accidentes de tránsito. | GK44: =Cotizador!$E$99 -> 0 | GP44: 576 | GQ44: =+IF(OR($C44=0,$C44="NO"),0,VLOOKUP($I$16+$H44,Tasas!$FY$78:$HJ$1228,$I$15+GQ$33+2,0)) -> 0 | GR44: =+IF(OR($C44=0,$C44="NO"),0,VLOOKUP($I$16+$H44,Tasas!$FY$78:$HJ$1228,$I$15+GR$33+2,0)) -> 0 | GS44: =+IF(OR($C44=0,$C44="NO"),0,VLOOKUP($I$16+$H44,Tasas!$FY$78:$HJ$1228,$I$15+GS$33+2,0)) -> 0 | GT44: =+IF(OR($C44=0,$C44="NO"),0,VLOOKUP($I$16+$H44,Tasas!$FY$78:$HJ$1228,$I$15+GT$33+2,0)) -> 0 | GU44: =+IF(OR($C44=0,$C44="NO"),0,VLOOKUP($I$16+$H44,Tasas!$FY$78:$HJ$1228,$I$15+GU$33+2,0)) -> 0 | GV44: =+IF(OR($C44=0,$C44="NO"),0,VLOOKUP($I$16+$H44,Tasas!$FY$78:$HJ$1228,$I$15+GV$33+2,0)) -> 0 | GW44: =+IF(OR($C44=0,$C44="NO"),0,VLOOKUP($I$16+$H44,Tasas!$FY$78:$HJ$1228,$I$15+GW$33+2,0)) -> 0 | GX44: =+IF(OR($C44=0,$C44="NO"),0,VLOOKUP($I$16+$H44,Tasas!$FY$78:$HJ$1228,$I$15+GX$33+2,0)) -> 0
A45: Cláusula para pasajeros de aviones y/o helicópteros particulares y/o de la FAP por viajes eventuales. Nivel 1 (Para pasajeros de aviones de propiedad o alquilados por empresas comerciales, industriales y bancos). | C45: =Cotizador!$E$100 -> 0 | D45: =Cotizador!$G$100 -> 0 | E45: =Cotizador!$I$100 -> 0 | F45: =Cotizador!$K$100 -> 0 | H45: 640 | I45: =+IF(OR($C45=0,$C45="NO"),0,VLOOKUP($I$16+$H45,Tasas!$C$78:$AN$1228,$I$15+I$33+2,0)) -> 0 | J45: =+IF(OR($C45=0,$C45="NO"),0,VLOOKUP($I$16+$H45,Tasas!$C$78:$AN$1228,$I$15+J$33+2,0)) -> 0 | K45: =+IF(OR($C45=0,$C45="NO"),0,VLOOKUP($I$16+$H45,Tasas!$C$78:$AN$1228,$I$15+K$33+2,0)) -> 0 | L45: =+IF(OR($C45=0,$C45="NO"),0,VLOOKUP($I$16+$H45,Tasas!$C$78:$AN$1228,$I$15+L$33+2,0)) -> 0 | M45: =+IF(OR($C45=0,$C45="NO"),0,VLOOKUP($I$16+$H45,Tasas!$C$78:$AN$1228,$I$15+M$33+2,0)) -> 0 | N45: =+IF(OR($C45=0,$C45="NO"),0,VLOOKUP($I$16+$H45,Tasas!$C$78:$AN$1228,$I$15+N$33+2,0)) -> 0 | O45: =+IF(OR($C45=0,$C45="NO"),0,VLOOKUP($I$16+$H45,Tasas!$C$78:$AN$1228,$I$15+O$33+2,0)) -> 0 | P45: =+IF(OR($C45=0,$C45="NO"),0,VLOOKUP($I$16+$H45,Tasas!$C$78:$AN$1228,$I$15+P$33+2,0)) -> 0 | Q45: =+IF(OR($D45=0,$D45="NO"),0,VLOOKUP($J$16+$H45,Tasas!$C$78:$AN$1228,$J$15+Q$33+2,0)) -> 0 | R45: =+IF(OR($D45=0,$D45="NO"),0,VLOOKUP($J$16+$H45,Tasas!$C$78:$AN$1228,$J$15+R$33+2,0)) -> 0 | S45: =+IF(OR($D45=0,$D45="NO"),0,VLOOKUP($J$16+$H45,Tasas!$C$78:$AN$1228,$J$15+S$33+2,0)) -> 0 | T45: =+IF(OR($D45=0,$D45="NO"),0,VLOOKUP($J$16+$H45,Tasas!$C$78:$AN$1228,$J$15+T$33+2,0)) -> 0 | U45: =+IF(OR($D45=0,$D45="NO"),0,VLOOKUP($J$16+$H45,Tasas!$C$78:$AN$1228,$J$15+U$33+2,0)) -> 0 | V45: =+IF(OR($D45=0,$D45="NO"),0,VLOOKUP($J$16+$H45,Tasas!$C$78:$AN$1228,$J$15+V$33+2,0)) -> 0 | W45: =+IF(OR($D45=0,$D45="NO"),0,VLOOKUP($J$16+$H45,Tasas!$C$78:$AN$1228,$J$15+W$33+2,0)) -> 0 | X45: =+IF(OR($D45=0,$D45="NO"),0,VLOOKUP($J$16+$H45,Tasas!$C$78:$AN$1228,$J$15+X$33+2,0)) -> 0 | Y45: =+IF(OR($E45=0,$E45="NO"),0,VLOOKUP($K$16+$H45,Tasas!$C$78:$AN$1228,$K$15+Y$33+2,0)) -> 0 | Z45: =+IF(OR($E45=0,$E45="NO"),0,VLOOKUP($K$16+$H45,Tasas!$C$78:$AN$1228,$K$15+Z$33+2,0)) -> 0 | AA45: =+IF(OR($E45=0,$E45="NO"),0,VLOOKUP($K$16+$H45,Tasas!$C$78:$AN$1228,$K$15+AA$33+2,0)) -> 0 | AB45: =+IF(OR($E45=0,$E45="NO"),0,VLOOKUP($K$16+$H45,Tasas!$C$78:$AN$1228,$K$15+AB$33+2,0)) -> 0 | AC45: =+IF(OR($E45=0,$E45="NO"),0,VLOOKUP($K$16+$H45,Tasas!$C$78:$AN$1228,$K$15+AC$33+2,0)) -> 0 | AD45: =+IF(OR($E45=0,$E45="NO"),0,VLOOKUP($K$16+$H45,Tasas!$C$78:$AN$1228,$K$15+AD$33+2,0)) -> 0 | AE45: =+IF(OR($E45=0,$E45="NO"),0,VLOOKUP($K$16+$H45,Tasas!$C$78:$AN$1228,$K$15+AE$33+2,0)) -> 0 | AF45: =+IF(OR($E45=0,$E45="NO"),0,VLOOKUP($K$16+$H45,Tasas!$C$78:$AN$1228,$K$15+AF$33+2,0)) -> 0 | AG45: =+IF(OR($F45=0,$F45="NO"),0,VLOOKUP($L$16+$H45,Tasas!$C$78:$AN$1228,$L$15+AG$33+2,0)) -> 0 | AH45: =+IF(OR($F45=0,$F45="NO"),0,VLOOKUP($L$16+$H45,Tasas!$C$78:$AN$1228,$L$15+AH$33+2,0)) -> 0 | AI45: =+IF(OR($F45=0,$F45="NO"),0,VLOOKUP($L$16+$H45,Tasas!$C$78:$AN$1228,$L$15+AI$33+2,0)) -> 0 | AJ45: =+IF(OR($F45=0,$F45="NO"),0,VLOOKUP($L$16+$H45,Tasas!$C$78:$AN$1228,$L$15+AJ$33+2,0)) -> 0 | AK45: =+IF(OR($F45=0,$F45="NO"),0,VLOOKUP($L$16+$H45,Tasas!$C$78:$AN$1228,$L$15+AK$33+2,0)) -> 0 | AL45: =+IF(OR($F45=0,$F45="NO"),0,VLOOKUP($L$16+$H45,Tasas!$C$78:$AN$1228,$L$15+AL$33+2,0)) -> 0 | AM45: =+IF(OR($F45=0,$F45="NO"),0,VLOOKUP($L$16+$H45,Tasas!$C$78:$AN$1228,$L$15+AM$33+2,0)) -> 0 | AN45: =+IF(OR($F45=0,$F45="NO"),0,VLOOKUP($L$16+$H45,Tasas!$C$78:$AN$1228,$L$15+AN$33+2,0)) -> 0 | AS45: Cláusula para pasajeros de aviones y/o helicópteros particulares y/o de la FAP por viajes eventuales. Nivel 1 (Para pasajeros de aviones de propiedad o alquilados por empresas comerciales, industriales y bancos). | AU45: =Cotizador!$E$100 -> 0 | AV45: =Cotizador!$G$100 -> 0 | AW45: =Cotizador!$I$100 -> 0 | AX45: =Cotizador!$K$100 -> 0 | AZ45: 640 | BA45: =+IF(OR($AU45=0,$AU45="NO"),0,VLOOKUP($BA$16+$AZ45,Tasas!$C$78:$BY$1292,$BA$15+BA$33+39,0)) -> 0 | BB45: =+IF(OR($AU45=0,$AU45="NO"),0,VLOOKUP($BA$16+$AZ45,Tasas!$C$78:$BY$1292,$BA$15+BB$33+39,0)) -> 0 | BC45: =+IF(OR($AU45=0,$AU45="NO"),0,VLOOKUP($BA$16+$AZ45,Tasas!$C$78:$BY$1292,$BA$15+BC$33+39,0)) -> 0 | BD45: =+IF(OR($AU45=0,$AU45="NO"),0,VLOOKUP($BA$16+$AZ45,Tasas!$C$78:$BY$1292,$BA$15+BD$33+39,0)) -> 0 | BE45: =+IF(OR($AU45=0,$AU45="NO"),0,VLOOKUP($BA$16+$AZ45,Tasas!$C$78:$BY$1292,$BA$15+BE$33+39,0)) -> 0 | BF45: =+IF(OR($AU45=0,$AU45="NO"),0,VLOOKUP($BA$16+$AZ45,Tasas!$C$78:$BY$1292,$BA$15+BF$33+39,0)) -> 0 | BG45: =+IF(OR($AU45=0,$AU45="NO"),0,VLOOKUP($BA$16+$AZ45,Tasas!$C$78:$BY$1292,$BA$15+BG$33+39,0)) -> 0 | BH45: =+IF(OR($AU45=0,$AU45="NO"),0,VLOOKUP($BA$16+$AZ45,Tasas!$C$78:$BY$1292,$BA$15+BH$33+39,0)) -> 0 | BI45: =+IF(OR($AU45=0,$AU45="NO"),0,VLOOKUP($BA$16+$AZ45,Tasas!$C$78:$BY$1292,$BA$15+BI$33+39,0)) -> 0 | BJ45: =+IF(OR($AU45=0,$AU45="NO"),0,VLOOKUP($BA$16+$AZ45,Tasas!$C$78:$BY$1292,$BA$15+BJ$33+39,0)) -> 0 | BK45: =+IF(OR($AU45=0,$AU45="NO"),0,VLOOKUP($BA$16+$AZ45,Tasas!$C$78:$BY$1292,$BA$15+BK$33+39,0)) -> 0 | BL45: =+IF(OR($AU45=0,$AU45="NO"),0,VLOOKUP($BA$16+$AZ45,Tasas!$C$78:$BY$1292,$BA$15+BL$33+39,0)) -> 0 | BM45: =+IF(OR($AU45=0,$AU45="NO"),0,VLOOKUP($BA$16+$AZ45,Tasas!$C$78:$BY$1292,$BA$15+BM$33+39,0)) -> 0 | BN45: =+IF(OR($AU45=0,$AU45="NO"),0,VLOOKUP($BA$16+$AZ45,Tasas!$C$78:$BY$1292,$BA$15+BN$33+39,0)) -> 0 | BO45: =+IF(OR($AU45=0,$AU45="NO"),0,VLOOKUP($BA$16+$AZ45,Tasas!$C$78:$BY$1292,$BA$15+BO$33+39,0)) -> 0 | BP45: =+IF(OR($AU45=0,$AU45="NO"),0,VLOOKUP($BA$16+$AZ45,Tasas!$C$78:$BY$1292,$BA$15+BP$33+39,0)) -> 0 | BQ45: =+IF(OR($AU45=0,$AU45="NO"),0,VLOOKUP($BA$16+$AZ45,Tasas!$C$78:$BY$1292,$BA$15+BQ$33+39,0)) -> 0 | BR45: =+IF(OR($AU45=0,$AU45="NO"),0,VLOOKUP($BA$16+$AZ45,Tasas!$C$78:$BY$1292,$BA$15+BR$33+39,0)) -> 0 | BS45: =+IF(OR($AU45=0,$AU45="NO"),0,VLOOKUP($BA$16+$AZ45,Tasas!$C$78:$BY$1292,$BA$15+BS$33+39,0)) -> 0 | BT45: =+IF(OR($AU45=0,$AU45="NO"),0,VLOOKUP($BA$16+$AZ45,Tasas!$C$78:$BY$1292,$BA$15+BT$33+39,0)) -> 0 | BU45: =+IF(OR($AU45=0,$AU45="NO"),0,VLOOKUP($BA$16+$AZ45,Tasas!$C$78:$BY$1292,$BA$15+BU$33+39,0)) -> 0 | BV45: =+IF(OR($AU45=0,$AU45="NO"),0,VLOOKUP($BA$16+$AZ45,Tasas!$C$78:$BY$1292,$BA$15+BV$33+39,0)) -> 0 | BW45: =+IF(OR($AU45=0,$AU45="NO"),0,VLOOKUP($BA$16+$AZ45,Tasas!$C$78:$BY$1292,$BA$15+BW$33+39,0)) -> 0 | BX45: =+IF(OR($AU45=0,$AU45="NO"),0,VLOOKUP($BA$16+$AZ45,Tasas!$C$78:$BY$1292,$BA$15+BX$33+39,0)) -> 0 | BY45: =+IF(OR($AU45=0,$AU45="NO"),0,VLOOKUP($BA$16+$AZ45,Tasas!$C$78:$BY$1292,$BA$15+BY$33+39,0)) -> 0 | BZ45: =+IF(OR($AU45=0,$AU45="NO"),0,VLOOKUP($BA$16+$AZ45,Tasas!$C$78:$BY$1292,$BA$15+BZ$33+39,0)) -> 0 | CA45: =+IF(OR($AU45=0,$AU45="NO"),0,VLOOKUP($BA$16+$AZ45,Tasas!$C$78:$BY$1292,$BA$15+CA$33+39,0)) -> 0 | CB45: =+IF(OR($AU45=0,$AU45="NO"),0,VLOOKUP($BA$16+$AZ45,Tasas!$C$78:$BY$1292,$BA$15+CB$33+39,0)) -> 0 | CC45: =+IF(OR($AU45=0,$AU45="NO"),0,VLOOKUP($BA$16+$AZ45,Tasas!$C$78:$BY$1292,$BA$15+CC$33+39,0)) -> 0 | CD45: =+IF(OR($AU45=0,$AU45="NO"),0,VLOOKUP($BA$16+$AZ45,Tasas!$C$78:$BY$1292,$BA$15+CD$33+39,0)) -> 0 | CE45: =+IF(OR($AU45=0,$AU45="NO"),0,VLOOKUP($BA$16+$AZ45,Tasas!$C$78:$BY$1292,$BA$15+CE$33+39,0)) -> 0 | CF45: =+IF(OR($AU45=0,$AU45="NO"),0,VLOOKUP($BA$16+$AZ45,Tasas!$C$78:$BY$1292,$BA$15+CF$33+39,0)) -> 0 | CK45: Cláusula para pasajeros de aviones y/o helicópteros particulares y/o de la FAP por viajes eventuales. Nivel 1 (Para pasajeros de aviones de propiedad o alquilados por empresas comerciales, industriales y bancos). | CM45: =Cotizador!$E$100 -> 0 | CN45: 31 | CO45: 31 | CP45: =IF(OR($CM45="",$CM45=0),0,VLOOKUP($CO45,Tasas!$CB$17:$CL$70,Calculadora!CP$33,0)) -> 0 | CQ45: =IF(OR($CM45="",$CM45=0),0,VLOOKUP($CO45,Tasas!$CB$17:$CL$70,Calculadora!CQ$33,0)) -> 0 | CR45: =IF(OR($CM45="",$CM45=0),0,VLOOKUP($CO45,Tasas!$CB$17:$CL$70,Calculadora!CR$33,0)) -> 0 | CS45: =IF(OR($CM45="",$CM45=0),0,VLOOKUP($CO45,Tasas!$CB$17:$CL$70,Calculadora!CS$33,0)) -> 0 | CT45: =IF(OR($CM45="",$CM45=0),0,VLOOKUP($CO45,Tasas!$CB$17:$CL$70,Calculadora!CT$33,0)) -> 0 | CU45: =IF(OR($CM45="",$CM45=0),0,VLOOKUP($CO45,Tasas!$CB$17:$CL$70,Calculadora!CU$33,0)) -> 0 | CV45: =IF(OR($CM45="",$CM45=0),0,VLOOKUP($CO45,Tasas!$CB$17:$CL$70,Calculadora!CV$33,0)) -> 0 | CW45: =IF(OR($CM45="",$CM45=0),0,VLOOKUP($CO45,Tasas!$CB$17:$CL$70,Calculadora!CW$33,0)) -> 0 | DB45: Cláusula para pasajeros de aviones y/o helicópteros particulares y/o de la FAP por viajes eventuales. Nivel 1 (Para pasajeros de aviones de propiedad o alquilados por empresas comerciales, industriales y bancos). | DD45: =Cotizador!$E$100 -> 0 | DE45: 31 | DF45: 31 | DG45: =IF(OR($DD45="",$DD45=0),0,VLOOKUP($DF45,Tasas!$CO$17:$CY$70,Calculadora!DG$33,0)) -> 0 | DH45: =IF(OR($DD45="",$DD45=0),0,VLOOKUP($DF45,Tasas!$CO$17:$CY$70,Calculadora!DH$33,0)) -> 0 | DI45: =IF(OR($DD45="",$DD45=0),0,VLOOKUP($DF45,Tasas!$CO$17:$CY$70,Calculadora!DI$33,0)) -> 0 | DJ45: =IF(OR($DD45="",$DD45=0),0,VLOOKUP($DF45,Tasas!$CO$17:$CY$70,Calculadora!DJ$33,0)) -> 0 | DK45: =IF(OR($DD45="",$DD45=0),0,VLOOKUP($DF45,Tasas!$CO$17:$CY$70,Calculadora!DK$33,0)) -> 0 | DL45: =IF(OR($DD45="",$DD45=0),0,VLOOKUP($DF45,Tasas!$CO$17:$CY$70,Calculadora!DL$33,0)) -> 0 | DM45: =IF(OR($DD45="",$DD45=0),0,VLOOKUP($DF45,Tasas!$CO$17:$CY$70,Calculadora!DM$33,0)) -> 0 | DN45: =IF(OR($DD45="",$DD45=0),0,VLOOKUP($DF45,Tasas!$CO$17:$CY$70,Calculadora!DN$33,0)) -> 0 | DS45: Cláusula para pasajeros de aviones y/o helicópteros particulares y/o de la FAP por viajes eventuales. Nivel 1 (Para pasajeros de aviones de propiedad o alquilados por empresas comerciales, industriales y bancos). | DU45: =Cotizador!$E$100 -> 0 | DV45: 31 | DW45: 31 | DX45: =IF(OR($DU45="",$DU45=0),0,VLOOKUP($DW45,Tasas!$DB$17:$DL$70,Calculadora!DX$33,0)) -> 0 | DY45: =IF(OR($DU45="",$DU45=0),0,VLOOKUP($DW45,Tasas!$DB$17:$DL$70,Calculadora!DY$33,0)) -> 0 | DZ45: =IF(OR($DU45="",$DU45=0),0,VLOOKUP($DW45,Tasas!$DB$17:$DL$70,Calculadora!DZ$33,0)) -> 0 | EA45: =IF(OR($DU45="",$DU45=0),0,VLOOKUP($DW45,Tasas!$DB$17:$DL$70,Calculadora!EA$33,0)) -> 0 | EB45: =IF(OR($DU45="",$DU45=0),0,VLOOKUP($DW45,Tasas!$DB$17:$DL$70,Calculadora!EB$33,0)) -> 0 | EC45: =IF(OR($DU45="",$DU45=0),0,VLOOKUP($DW45,Tasas!$DB$17:$DL$70,Calculadora!EC$33,0)) -> 0 | ED45: =IF(OR($DU45="",$DU45=0),0,VLOOKUP($DW45,Tasas!$DB$17:$DL$70,Calculadora!ED$33,0)) -> 0 | EE45: =IF(OR($DU45="",$DU45=0),0,VLOOKUP($DW45,Tasas!$DB$17:$DL$70,Calculadora!EE$33,0)) -> 0 | EJ45: Cláusula para pasajeros de aviones y/o helicópteros particulares y/o de la FAP por viajes eventuales. Nivel 1 (Para pasajeros de aviones de propiedad o alquilados por empresas comerciales, industriales y bancos). | EL45: =Cotizador!$E$100 -> 0 | EM45: 31 | EN45: 31 | EO45: =IF(OR($EL45="",$EL45=0),0,VLOOKUP($EN45,Tasas!$DO$17:$DY$70,Calculadora!EO$33,0)) -> 0 | EP45: =IF(OR($EL45="",$EL45=0),0,VLOOKUP($EN45,Tasas!$DO$17:$DY$70,Calculadora!EP$33,0)) -> 0 | EQ45: =IF(OR($EL45="",$EL45=0),0,VLOOKUP($EN45,Tasas!$DO$17:$DY$70,Calculadora!EQ$33,0)) -> 0 | ER45: =IF(OR($EL45="",$EL45=0),0,VLOOKUP($EN45,Tasas!$DO$17:$DY$70,Calculadora!ER$33,0)) -> 0 | ES45: =IF(OR($EL45="",$EL45=0),0,VLOOKUP($EN45,Tasas!$DO$17:$DY$70,Calculadora!ES$33,0)) -> 0 | ET45: =IF(OR($EL45="",$EL45=0),0,VLOOKUP($EN45,Tasas!$DO$17:$DY$70,Calculadora!ET$33,0)) -> 0 | EU45: =IF(OR($EL45="",$EL45=0),0,VLOOKUP($EN45,Tasas!$DO$17:$DY$70,Calculadora!EU$33,0)) -> 0 | EV45: =IF(OR($EL45="",$EL45=0),0,VLOOKUP($EN45,Tasas!$DO$17:$DY$70,Calculadora!EV$33,0)) -> 0 | FA45: Cláusula para pasajeros de aviones y/o helicópteros particulares y/o de la FAP por viajes eventuales. Nivel 1 (Para pasajeros de aviones de propiedad o alquilados por empresas comerciales, industriales y bancos). | FC45: =Cotizador!$E$100 -> 0 | FD45: 31 | FE45: 31 | FF45: =IF(OR($FC45="",$FC45=0),0,VLOOKUP($FE45,Tasas!$EB$17:$EL$70,Calculadora!FF$33,0)) -> 0 | FG45: =IF(OR($FC45="",$FC45=0),0,VLOOKUP($FE45,Tasas!$EB$17:$EL$70,Calculadora!FG$33,0)) -> 0 | FH45: =IF(OR($FC45="",$FC45=0),0,VLOOKUP($FE45,Tasas!$EB$17:$EL$70,Calculadora!FH$33,0)) -> 0 | FI45: =IF(OR($FC45="",$FC45=0),0,VLOOKUP($FE45,Tasas!$EB$17:$EL$70,Calculadora!FI$33,0)) -> 0 | FJ45: =IF(OR($FC45="",$FC45=0),0,VLOOKUP($FE45,Tasas!$EB$17:$EL$70,Calculadora!FJ$33,0)) -> 0 | FK45: =IF(OR($FC45="",$FC45=0),0,VLOOKUP($FE45,Tasas!$EB$17:$EL$70,Calculadora!FK$33,0)) -> 0 | FL45: =IF(OR($FC45="",$FC45=0),0,VLOOKUP($FE45,Tasas!$EB$17:$EL$70,Calculadora!FL$33,0)) -> 0 | FM45: =IF(OR($FC45="",$FC45=0),0,VLOOKUP($FE45,Tasas!$EB$17:$EL$70,Calculadora!FM$33,0)) -> 0 | FR45: Cláusula de accidentes personales para viajes y/o corto plazo. | FT45: =Cotizador!$E$120 -> 0 | FV45: 12 | FW45: =IF(OR($FT45=0,$FT45="NO"),0,VLOOKUP($FV45,Tasas!$EO$29:$FU$45,Calculadora!FW$32,0)) -> 0 | FX45: =IF(OR($FT45=0,$FT45="NO"),0,VLOOKUP($FV45,Tasas!$EO$29:$FU$45,Calculadora!FX$32,0)) -> 0 | FY45: =IF(OR($FT45=0,$FT45="NO"),0,VLOOKUP($FV45,Tasas!$EO$29:$FU$45,Calculadora!FY$32,0)) -> 0 | FZ45: =IF(OR($FT45=0,$FT45="NO"),0,VLOOKUP($FV45,Tasas!$EO$29:$FU$45,Calculadora!FZ$32,0)) -> 0 | GA45: =IF(OR($FT45=0,$FT45="NO"),0,VLOOKUP($FV45,Tasas!$EO$29:$FU$45,Calculadora!GA$32,0)) -> 0 | GB45: =IF(OR($FT45=0,$FT45="NO"),0,VLOOKUP($FV45,Tasas!$EO$29:$FU$45,Calculadora!GB$32,0)) -> 0 | GC45: =IF(OR($FT45=0,$FT45="NO"),0,VLOOKUP($FV45,Tasas!$EO$29:$FU$45,Calculadora!GC$32,0)) -> 0 | GD45: =IF(OR($FT45=0,$FT45="NO"),0,VLOOKUP($FV45,Tasas!$EO$29:$FU$45,Calculadora!GD$32,0)) -> 0 | GI45: Cláusula para pasajeros de aviones y/o helicópteros particulares y/o de la FAP por viajes eventuales. Nivel 1 (Para pasajeros de aviones de propiedad o alquilados por empresas comerciales, industriales y bancos). | GK45: =Cotizador!$E$100 -> 0 | GP45: 640 | GQ45: =+IF(OR($C45=0,$C45="NO"),0,VLOOKUP($I$16+$H45,Tasas!$FY$78:$HJ$1228,$I$15+GQ$33+2,0)) -> 0 | GR45: =+IF(OR($C45=0,$C45="NO"),0,VLOOKUP($I$16+$H45,Tasas!$FY$78:$HJ$1228,$I$15+GR$33+2,0)) -> 0 | GS45: =+IF(OR($C45=0,$C45="NO"),0,VLOOKUP($I$16+$H45,Tasas!$FY$78:$HJ$1228,$I$15+GS$33+2,0)) -> 0 | GT45: =+IF(OR($C45=0,$C45="NO"),0,VLOOKUP($I$16+$H45,Tasas!$FY$78:$HJ$1228,$I$15+GT$33+2,0)) -> 0 | GU45: =+IF(OR($C45=0,$C45="NO"),0,VLOOKUP($I$16+$H45,Tasas!$FY$78:$HJ$1228,$I$15+GU$33+2,0)) -> 0 | GV45: =+IF(OR($C45=0,$C45="NO"),0,VLOOKUP($I$16+$H45,Tasas!$FY$78:$HJ$1228,$I$15+GV$33+2,0)) -> 0 | GW45: =+IF(OR($C45=0,$C45="NO"),0,VLOOKUP($I$16+$H45,Tasas!$FY$78:$HJ$1228,$I$15+GW$33+2,0)) -> 0 | GX45: =+IF(OR($C45=0,$C45="NO"),0,VLOOKUP($I$16+$H45,Tasas!$FY$78:$HJ$1228,$I$15+GX$33+2,0)) -> 0
A46: Cláusula para pasajeros de aviones y/o helicópteros particulares y/o de la FAP por viajes eventuales. Nivel 2 (Otros excepto helicópteros). | C46: =Cotizador!$E$101 -> 0 | D46: =Cotizador!$G$101 -> 0 | E46: =Cotizador!$I$101 -> 0 | F46: =Cotizador!$K$101 -> 0 | H46: 704 | I46: =+IF(OR($C46=0,$C46="NO"),0,VLOOKUP($I$16+$H46,Tasas!$C$78:$AN$1228,$I$15+I$33+2,0)) -> 0 | J46: =+IF(OR($C46=0,$C46="NO"),0,VLOOKUP($I$16+$H46,Tasas!$C$78:$AN$1228,$I$15+J$33+2,0)) -> 0 | K46: =+IF(OR($C46=0,$C46="NO"),0,VLOOKUP($I$16+$H46,Tasas!$C$78:$AN$1228,$I$15+K$33+2,0)) -> 0 | L46: =+IF(OR($C46=0,$C46="NO"),0,VLOOKUP($I$16+$H46,Tasas!$C$78:$AN$1228,$I$15+L$33+2,0)) -> 0 | M46: =+IF(OR($C46=0,$C46="NO"),0,VLOOKUP($I$16+$H46,Tasas!$C$78:$AN$1228,$I$15+M$33+2,0)) -> 0 | N46: =+IF(OR($C46=0,$C46="NO"),0,VLOOKUP($I$16+$H46,Tasas!$C$78:$AN$1228,$I$15+N$33+2,0)) -> 0 | O46: =+IF(OR($C46=0,$C46="NO"),0,VLOOKUP($I$16+$H46,Tasas!$C$78:$AN$1228,$I$15+O$33+2,0)) -> 0 | P46: =+IF(OR($C46=0,$C46="NO"),0,VLOOKUP($I$16+$H46,Tasas!$C$78:$AN$1228,$I$15+P$33+2,0)) -> 0 | Q46: =+IF(OR($D46=0,$D46="NO"),0,VLOOKUP($J$16+$H46,Tasas!$C$78:$AN$1228,$J$15+Q$33+2,0)) -> 0 | R46: =+IF(OR($D46=0,$D46="NO"),0,VLOOKUP($J$16+$H46,Tasas!$C$78:$AN$1228,$J$15+R$33+2,0)) -> 0 | S46: =+IF(OR($D46=0,$D46="NO"),0,VLOOKUP($J$16+$H46,Tasas!$C$78:$AN$1228,$J$15+S$33+2,0)) -> 0 | T46: =+IF(OR($D46=0,$D46="NO"),0,VLOOKUP($J$16+$H46,Tasas!$C$78:$AN$1228,$J$15+T$33+2,0)) -> 0 | U46: =+IF(OR($D46=0,$D46="NO"),0,VLOOKUP($J$16+$H46,Tasas!$C$78:$AN$1228,$J$15+U$33+2,0)) -> 0 | V46: =+IF(OR($D46=0,$D46="NO"),0,VLOOKUP($J$16+$H46,Tasas!$C$78:$AN$1228,$J$15+V$33+2,0)) -> 0 | W46: =+IF(OR($D46=0,$D46="NO"),0,VLOOKUP($J$16+$H46,Tasas!$C$78:$AN$1228,$J$15+W$33+2,0)) -> 0 | X46: =+IF(OR($D46=0,$D46="NO"),0,VLOOKUP($J$16+$H46,Tasas!$C$78:$AN$1228,$J$15+X$33+2,0)) -> 0 | Y46: =+IF(OR($E46=0,$E46="NO"),0,VLOOKUP($K$16+$H46,Tasas!$C$78:$AN$1228,$K$15+Y$33+2,0)) -> 0 | Z46: =+IF(OR($E46=0,$E46="NO"),0,VLOOKUP($K$16+$H46,Tasas!$C$78:$AN$1228,$K$15+Z$33+2,0)) -> 0 | AA46: =+IF(OR($E46=0,$E46="NO"),0,VLOOKUP($K$16+$H46,Tasas!$C$78:$AN$1228,$K$15+AA$33+2,0)) -> 0 | AB46: =+IF(OR($E46=0,$E46="NO"),0,VLOOKUP($K$16+$H46,Tasas!$C$78:$AN$1228,$K$15+AB$33+2,0)) -> 0 | AC46: =+IF(OR($E46=0,$E46="NO"),0,VLOOKUP($K$16+$H46,Tasas!$C$78:$AN$1228,$K$15+AC$33+2,0)) -> 0 | AD46: =+IF(OR($E46=0,$E46="NO"),0,VLOOKUP($K$16+$H46,Tasas!$C$78:$AN$1228,$K$15+AD$33+2,0)) -> 0 | AE46: =+IF(OR($E46=0,$E46="NO"),0,VLOOKUP($K$16+$H46,Tasas!$C$78:$AN$1228,$K$15+AE$33+2,0)) -> 0 | AF46: =+IF(OR($E46=0,$E46="NO"),0,VLOOKUP($K$16+$H46,Tasas!$C$78:$AN$1228,$K$15+AF$33+2,0)) -> 0 | AG46: =+IF(OR($F46=0,$F46="NO"),0,VLOOKUP($L$16+$H46,Tasas!$C$78:$AN$1228,$L$15+AG$33+2,0)) -> 0 | AH46: =+IF(OR($F46=0,$F46="NO"),0,VLOOKUP($L$16+$H46,Tasas!$C$78:$AN$1228,$L$15+AH$33+2,0)) -> 0 | AI46: =+IF(OR($F46=0,$F46="NO"),0,VLOOKUP($L$16+$H46,Tasas!$C$78:$AN$1228,$L$15+AI$33+2,0)) -> 0 | AJ46: =+IF(OR($F46=0,$F46="NO"),0,VLOOKUP($L$16+$H46,Tasas!$C$78:$AN$1228,$L$15+AJ$33+2,0)) -> 0 | AK46: =+IF(OR($F46=0,$F46="NO"),0,VLOOKUP($L$16+$H46,Tasas!$C$78:$AN$1228,$L$15+AK$33+2,0)) -> 0 | AL46: =+IF(OR($F46=0,$F46="NO"),0,VLOOKUP($L$16+$H46,Tasas!$C$78:$AN$1228,$L$15+AL$33+2,0)) -> 0 | AM46: =+IF(OR($F46=0,$F46="NO"),0,VLOOKUP($L$16+$H46,Tasas!$C$78:$AN$1228,$L$15+AM$33+2,0)) -> 0 | AN46: =+IF(OR($F46=0,$F46="NO"),0,VLOOKUP($L$16+$H46,Tasas!$C$78:$AN$1228,$L$15+AN$33+2,0)) -> 0 | AS46: Cláusula para pasajeros de aviones y/o helicópteros particulares y/o de la FAP por viajes eventuales. Nivel 2 (Otros excepto helicópteros). | AU46: =Cotizador!$E$101 -> 0 | AV46: =Cotizador!$G$101 -> 0 | AW46: =Cotizador!$I$101 -> 0 | AX46: =Cotizador!$K$101 -> 0 | AZ46: 704 | BA46: =+IF(OR($AU46=0,$AU46="NO"),0,VLOOKUP($BA$16+$AZ46,Tasas!$C$78:$BY$1292,$BA$15+BA$33+39,0)) -> 0 | BB46: =+IF(OR($AU46=0,$AU46="NO"),0,VLOOKUP($BA$16+$AZ46,Tasas!$C$78:$BY$1292,$BA$15+BB$33+39,0)) -> 0 | BC46: =+IF(OR($AU46=0,$AU46="NO"),0,VLOOKUP($BA$16+$AZ46,Tasas!$C$78:$BY$1292,$BA$15+BC$33+39,0)) -> 0 | BD46: =+IF(OR($AU46=0,$AU46="NO"),0,VLOOKUP($BA$16+$AZ46,Tasas!$C$78:$BY$1292,$BA$15+BD$33+39,0)) -> 0 | BE46: =+IF(OR($AU46=0,$AU46="NO"),0,VLOOKUP($BA$16+$AZ46,Tasas!$C$78:$BY$1292,$BA$15+BE$33+39,0)) -> 0 | BF46: =+IF(OR($AU46=0,$AU46="NO"),0,VLOOKUP($BA$16+$AZ46,Tasas!$C$78:$BY$1292,$BA$15+BF$33+39,0)) -> 0 | BG46: =+IF(OR($AU46=0,$AU46="NO"),0,VLOOKUP($BA$16+$AZ46,Tasas!$C$78:$BY$1292,$BA$15+BG$33+39,0)) -> 0 | BH46: =+IF(OR($AU46=0,$AU46="NO"),0,VLOOKUP($BA$16+$AZ46,Tasas!$C$78:$BY$1292,$BA$15+BH$33+39,0)) -> 0 | BI46: =+IF(OR($AU46=0,$AU46="NO"),0,VLOOKUP($BA$16+$AZ46,Tasas!$C$78:$BY$1292,$BA$15+BI$33+39,0)) -> 0 | BJ46: =+IF(OR($AU46=0,$AU46="NO"),0,VLOOKUP($BA$16+$AZ46,Tasas!$C$78:$BY$1292,$BA$15+BJ$33+39,0)) -> 0 | BK46: =+IF(OR($AU46=0,$AU46="NO"),0,VLOOKUP($BA$16+$AZ46,Tasas!$C$78:$BY$1292,$BA$15+BK$33+39,0)) -> 0 | BL46: =+IF(OR($AU46=0,$AU46="NO"),0,VLOOKUP($BA$16+$AZ46,Tasas!$C$78:$BY$1292,$BA$15+BL$33+39,0)) -> 0 | BM46: =+IF(OR($AU46=0,$AU46="NO"),0,VLOOKUP($BA$16+$AZ46,Tasas!$C$78:$BY$1292,$BA$15+BM$33+39,0)) -> 0 | BN46: =+IF(OR($AU46=0,$AU46="NO"),0,VLOOKUP($BA$16+$AZ46,Tasas!$C$78:$BY$1292,$BA$15+BN$33+39,0)) -> 0 | BO46: =+IF(OR($AU46=0,$AU46="NO"),0,VLOOKUP($BA$16+$AZ46,Tasas!$C$78:$BY$1292,$BA$15+BO$33+39,0)) -> 0 | BP46: =+IF(OR($AU46=0,$AU46="NO"),0,VLOOKUP($BA$16+$AZ46,Tasas!$C$78:$BY$1292,$BA$15+BP$33+39,0)) -> 0 | BQ46: =+IF(OR($AU46=0,$AU46="NO"),0,VLOOKUP($BA$16+$AZ46,Tasas!$C$78:$BY$1292,$BA$15+BQ$33+39,0)) -> 0 | BR46: =+IF(OR($AU46=0,$AU46="NO"),0,VLOOKUP($BA$16+$AZ46,Tasas!$C$78:$BY$1292,$BA$15+BR$33+39,0)) -> 0 | BS46: =+IF(OR($AU46=0,$AU46="NO"),0,VLOOKUP($BA$16+$AZ46,Tasas!$C$78:$BY$1292,$BA$15+BS$33+39,0)) -> 0 | BT46: =+IF(OR($AU46=0,$AU46="NO"),0,VLOOKUP($BA$16+$AZ46,Tasas!$C$78:$BY$1292,$BA$15+BT$33+39,0)) -> 0 | BU46: =+IF(OR($AU46=0,$AU46="NO"),0,VLOOKUP($BA$16+$AZ46,Tasas!$C$78:$BY$1292,$BA$15+BU$33+39,0)) -> 0 | BV46: =+IF(OR($AU46=0,$AU46="NO"),0,VLOOKUP($BA$16+$AZ46,Tasas!$C$78:$BY$1292,$BA$15+BV$33+39,0)) -> 0 | BW46: =+IF(OR($AU46=0,$AU46="NO"),0,VLOOKUP($BA$16+$AZ46,Tasas!$C$78:$BY$1292,$BA$15+BW$33+39,0)) -> 0 | BX46: =+IF(OR($AU46=0,$AU46="NO"),0,VLOOKUP($BA$16+$AZ46,Tasas!$C$78:$BY$1292,$BA$15+BX$33+39,0)) -> 0 | BY46: =+IF(OR($AU46=0,$AU46="NO"),0,VLOOKUP($BA$16+$AZ46,Tasas!$C$78:$BY$1292,$BA$15+BY$33+39,0)) -> 0 | BZ46: =+IF(OR($AU46=0,$AU46="NO"),0,VLOOKUP($BA$16+$AZ46,Tasas!$C$78:$BY$1292,$BA$15+BZ$33+39,0)) -> 0 | CA46: =+IF(OR($AU46=0,$AU46="NO"),0,VLOOKUP($BA$16+$AZ46,Tasas!$C$78:$BY$1292,$BA$15+CA$33+39,0)) -> 0 | CB46: =+IF(OR($AU46=0,$AU46="NO"),0,VLOOKUP($BA$16+$AZ46,Tasas!$C$78:$BY$1292,$BA$15+CB$33+39,0)) -> 0 | CC46: =+IF(OR($AU46=0,$AU46="NO"),0,VLOOKUP($BA$16+$AZ46,Tasas!$C$78:$BY$1292,$BA$15+CC$33+39,0)) -> 0 | CD46: =+IF(OR($AU46=0,$AU46="NO"),0,VLOOKUP($BA$16+$AZ46,Tasas!$C$78:$BY$1292,$BA$15+CD$33+39,0)) -> 0 | CE46: =+IF(OR($AU46=0,$AU46="NO"),0,VLOOKUP($BA$16+$AZ46,Tasas!$C$78:$BY$1292,$BA$15+CE$33+39,0)) -> 0 | CF46: =+IF(OR($AU46=0,$AU46="NO"),0,VLOOKUP($BA$16+$AZ46,Tasas!$C$78:$BY$1292,$BA$15+CF$33+39,0)) -> 0 | CK46: Cláusula para pasajeros de aviones y/o helicópteros particulares y/o de la FAP por viajes eventuales. Nivel 2 (Otros excepto helicópteros). | CM46: =Cotizador!$E$101 -> 0 | CN46: 34 | CO46: 34 | CP46: =IF(OR($CM46="",$CM46=0),0,VLOOKUP($CO46,Tasas!$CB$17:$CL$70,Calculadora!CP$33,0)) -> 0 | CQ46: =IF(OR($CM46="",$CM46=0),0,VLOOKUP($CO46,Tasas!$CB$17:$CL$70,Calculadora!CQ$33,0)) -> 0 | CR46: =IF(OR($CM46="",$CM46=0),0,VLOOKUP($CO46,Tasas!$CB$17:$CL$70,Calculadora!CR$33,0)) -> 0 | CS46: =IF(OR($CM46="",$CM46=0),0,VLOOKUP($CO46,Tasas!$CB$17:$CL$70,Calculadora!CS$33,0)) -> 0 | CT46: =IF(OR($CM46="",$CM46=0),0,VLOOKUP($CO46,Tasas!$CB$17:$CL$70,Calculadora!CT$33,0)) -> 0 | CU46: =IF(OR($CM46="",$CM46=0),0,VLOOKUP($CO46,Tasas!$CB$17:$CL$70,Calculadora!CU$33,0)) -> 0 | CV46: =IF(OR($CM46="",$CM46=0),0,VLOOKUP($CO46,Tasas!$CB$17:$CL$70,Calculadora!CV$33,0)) -> 0 | CW46: =IF(OR($CM46="",$CM46=0),0,VLOOKUP($CO46,Tasas!$CB$17:$CL$70,Calculadora!CW$33,0)) -> 0 | DB46: Cláusula para pasajeros de aviones y/o helicópteros particulares y/o de la FAP por viajes eventuales. Nivel 2 (Otros excepto helicópteros). | DD46: =Cotizador!$E$101 -> 0 | DE46: 34 | DF46: 34 | DG46: =IF(OR($DD46="",$DD46=0),0,VLOOKUP($DF46,Tasas!$CO$17:$CY$70,Calculadora!DG$33,0)) -> 0 | DH46: =IF(OR($DD46="",$DD46=0),0,VLOOKUP($DF46,Tasas!$CO$17:$CY$70,Calculadora!DH$33,0)) -> 0 | DI46: =IF(OR($DD46="",$DD46=0),0,VLOOKUP($DF46,Tasas!$CO$17:$CY$70,Calculadora!DI$33,0)) -> 0 | DJ46: =IF(OR($DD46="",$DD46=0),0,VLOOKUP($DF46,Tasas!$CO$17:$CY$70,Calculadora!DJ$33,0)) -> 0 | DK46: =IF(OR($DD46="",$DD46=0),0,VLOOKUP($DF46,Tasas!$CO$17:$CY$70,Calculadora!DK$33,0)) -> 0 | DL46: =IF(OR($DD46="",$DD46=0),0,VLOOKUP($DF46,Tasas!$CO$17:$CY$70,Calculadora!DL$33,0)) -> 0 | DM46: =IF(OR($DD46="",$DD46=0),0,VLOOKUP($DF46,Tasas!$CO$17:$CY$70,Calculadora!DM$33,0)) -> 0 | DN46: =IF(OR($DD46="",$DD46=0),0,VLOOKUP($DF46,Tasas!$CO$17:$CY$70,Calculadora!DN$33,0)) -> 0 | DS46: Cláusula para pasajeros de aviones y/o helicópteros particulares y/o de la FAP por viajes eventuales. Nivel 2 (Otros excepto helicópteros). | DU46: =Cotizador!$E$101 -> 0 | DV46: 34 | DW46: 34 | DX46: =IF(OR($DU46="",$DU46=0),0,VLOOKUP($DW46,Tasas!$DB$17:$DL$70,Calculadora!DX$33,0)) -> 0 | DY46: =IF(OR($DU46="",$DU46=0),0,VLOOKUP($DW46,Tasas!$DB$17:$DL$70,Calculadora!DY$33,0)) -> 0 | DZ46: =IF(OR($DU46="",$DU46=0),0,VLOOKUP($DW46,Tasas!$DB$17:$DL$70,Calculadora!DZ$33,0)) -> 0 | EA46: =IF(OR($DU46="",$DU46=0),0,VLOOKUP($DW46,Tasas!$DB$17:$DL$70,Calculadora!EA$33,0)) -> 0 | EB46: =IF(OR($DU46="",$DU46=0),0,VLOOKUP($DW46,Tasas!$DB$17:$DL$70,Calculadora!EB$33,0)) -> 0 | EC46: =IF(OR($DU46="",$DU46=0),0,VLOOKUP($DW46,Tasas!$DB$17:$DL$70,Calculadora!EC$33,0)) -> 0 | ED46: =IF(OR($DU46="",$DU46=0),0,VLOOKUP($DW46,Tasas!$DB$17:$DL$70,Calculadora!ED$33,0)) -> 0 | EE46: =IF(OR($DU46="",$DU46=0),0,VLOOKUP($DW46,Tasas!$DB$17:$DL$70,Calculadora!EE$33,0)) -> 0 | EJ46: Cláusula para pasajeros de aviones y/o helicópteros particulares y/o de la FAP por viajes eventuales. Nivel 2 (Otros excepto helicópteros). | EL46: =Cotizador!$E$101 -> 0 | EM46: 34 | EN46: 34 | EO46: =IF(OR($EL46="",$EL46=0),0,VLOOKUP($EN46,Tasas!$DO$17:$DY$70,Calculadora!EO$33,0)) -> 0 | EP46: =IF(OR($EL46="",$EL46=0),0,VLOOKUP($EN46,Tasas!$DO$17:$DY$70,Calculadora!EP$33,0)) -> 0 | EQ46: =IF(OR($EL46="",$EL46=0),0,VLOOKUP($EN46,Tasas!$DO$17:$DY$70,Calculadora!EQ$33,0)) -> 0 | ER46: =IF(OR($EL46="",$EL46=0),0,VLOOKUP($EN46,Tasas!$DO$17:$DY$70,Calculadora!ER$33,0)) -> 0 | ES46: =IF(OR($EL46="",$EL46=0),0,VLOOKUP($EN46,Tasas!$DO$17:$DY$70,Calculadora!ES$33,0)) -> 0 | ET46: =IF(OR($EL46="",$EL46=0),0,VLOOKUP($EN46,Tasas!$DO$17:$DY$70,Calculadora!ET$33,0)) -> 0 | EU46: =IF(OR($EL46="",$EL46=0),0,VLOOKUP($EN46,Tasas!$DO$17:$DY$70,Calculadora!EU$33,0)) -> 0 | EV46: =IF(OR($EL46="",$EL46=0),0,VLOOKUP($EN46,Tasas!$DO$17:$DY$70,Calculadora!EV$33,0)) -> 0 | FA46: Cláusula para pasajeros de aviones y/o helicópteros particulares y/o de la FAP por viajes eventuales. Nivel 2 (Otros excepto helicópteros). | FC46: =Cotizador!$E$101 -> 0 | FD46: 34 | FE46: 34 | FF46: =IF(OR($FC46="",$FC46=0),0,VLOOKUP($FE46,Tasas!$EB$17:$EL$70,Calculadora!FF$33,0)) -> 0 | FG46: =IF(OR($FC46="",$FC46=0),0,VLOOKUP($FE46,Tasas!$EB$17:$EL$70,Calculadora!FG$33,0)) -> 0 | FH46: =IF(OR($FC46="",$FC46=0),0,VLOOKUP($FE46,Tasas!$EB$17:$EL$70,Calculadora!FH$33,0)) -> 0 | FI46: =IF(OR($FC46="",$FC46=0),0,VLOOKUP($FE46,Tasas!$EB$17:$EL$70,Calculadora!FI$33,0)) -> 0 | FJ46: =IF(OR($FC46="",$FC46=0),0,VLOOKUP($FE46,Tasas!$EB$17:$EL$70,Calculadora!FJ$33,0)) -> 0 | FK46: =IF(OR($FC46="",$FC46=0),0,VLOOKUP($FE46,Tasas!$EB$17:$EL$70,Calculadora!FK$33,0)) -> 0 | FL46: =IF(OR($FC46="",$FC46=0),0,VLOOKUP($FE46,Tasas!$EB$17:$EL$70,Calculadora!FL$33,0)) -> 0 | FM46: =IF(OR($FC46="",$FC46=0),0,VLOOKUP($FE46,Tasas!$EB$17:$EL$70,Calculadora!FM$33,0)) -> 0 | FR46: Pescadores y/o Estibadores | FT46: =Cotizador!$E$121 -> 0 | FV46: 13 | FW46: =IF(OR($FT46=0,$FT46="NO"),0,VLOOKUP($FV46,Tasas!$EO$29:$FU$45,Calculadora!FW$32,0)) -> 0 | FX46: =IF(OR($FT46=0,$FT46="NO"),0,VLOOKUP($FV46,Tasas!$EO$29:$FU$45,Calculadora!FX$32,0)) -> 0 | FY46: =IF(OR($FT46=0,$FT46="NO"),0,VLOOKUP($FV46,Tasas!$EO$29:$FU$45,Calculadora!FY$32,0)) -> 0 | FZ46: =IF(OR($FT46=0,$FT46="NO"),0,VLOOKUP($FV46,Tasas!$EO$29:$FU$45,Calculadora!FZ$32,0)) -> 0 | GA46: =IF(OR($FT46=0,$FT46="NO"),0,VLOOKUP($FV46,Tasas!$EO$29:$FU$45,Calculadora!GA$32,0)) -> 0 | GB46: =IF(OR($FT46=0,$FT46="NO"),0,VLOOKUP($FV46,Tasas!$EO$29:$FU$45,Calculadora!GB$32,0)) -> 0 | GC46: =IF(OR($FT46=0,$FT46="NO"),0,VLOOKUP($FV46,Tasas!$EO$29:$FU$45,Calculadora!GC$32,0)) -> 0 | GD46: =IF(OR($FT46=0,$FT46="NO"),0,VLOOKUP($FV46,Tasas!$EO$29:$FU$45,Calculadora!GD$32,0)) -> 0 | GI46: Cláusula para pasajeros de aviones y/o helicópteros particulares y/o de la FAP por viajes eventuales. Nivel 2 (Otros excepto helicópteros). | GK46: =Cotizador!$E$101 -> 0 | GP46: 704 | GQ46: =+IF(OR($C46=0,$C46="NO"),0,VLOOKUP($I$16+$H46,Tasas!$FY$78:$HJ$1228,$I$15+GQ$33+2,0)) -> 0 | GR46: =+IF(OR($C46=0,$C46="NO"),0,VLOOKUP($I$16+$H46,Tasas!$FY$78:$HJ$1228,$I$15+GR$33+2,0)) -> 0 | GS46: =+IF(OR($C46=0,$C46="NO"),0,VLOOKUP($I$16+$H46,Tasas!$FY$78:$HJ$1228,$I$15+GS$33+2,0)) -> 0 | GT46: =+IF(OR($C46=0,$C46="NO"),0,VLOOKUP($I$16+$H46,Tasas!$FY$78:$HJ$1228,$I$15+GT$33+2,0)) -> 0 | GU46: =+IF(OR($C46=0,$C46="NO"),0,VLOOKUP($I$16+$H46,Tasas!$FY$78:$HJ$1228,$I$15+GU$33+2,0)) -> 0 | GV46: =+IF(OR($C46=0,$C46="NO"),0,VLOOKUP($I$16+$H46,Tasas!$FY$78:$HJ$1228,$I$15+GV$33+2,0)) -> 0 | GW46: =+IF(OR($C46=0,$C46="NO"),0,VLOOKUP($I$16+$H46,Tasas!$FY$78:$HJ$1228,$I$15+GW$33+2,0)) -> 0 | GX46: =+IF(OR($C46=0,$C46="NO"),0,VLOOKUP($I$16+$H46,Tasas!$FY$78:$HJ$1228,$I$15+GX$33+2,0)) -> 0
A47: Cláusula para pasajeros de aviones y/o helicópteros particulares y/o de la FAP por viajes eventuales. Nivel 3 (Aviones de la FAP y helicópteros particulares y/o de la FAP utilizados en el transporte de personas). | C47: =Cotizador!$E$102 -> 0 | D47: =Cotizador!$G$102 -> 0 | E47: =Cotizador!$I$102 -> 0 | F47: =Cotizador!$K$102 -> 0 | H47: 768 | I47: =+IF(OR($C47=0,$C47="NO"),0,VLOOKUP($I$16+$H47,Tasas!$C$78:$AN$1228,$I$15+I$33+2,0)) -> 0 | J47: =+IF(OR($C47=0,$C47="NO"),0,VLOOKUP($I$16+$H47,Tasas!$C$78:$AN$1228,$I$15+J$33+2,0)) -> 0 | K47: =+IF(OR($C47=0,$C47="NO"),0,VLOOKUP($I$16+$H47,Tasas!$C$78:$AN$1228,$I$15+K$33+2,0)) -> 0 | L47: =+IF(OR($C47=0,$C47="NO"),0,VLOOKUP($I$16+$H47,Tasas!$C$78:$AN$1228,$I$15+L$33+2,0)) -> 0 | M47: =+IF(OR($C47=0,$C47="NO"),0,VLOOKUP($I$16+$H47,Tasas!$C$78:$AN$1228,$I$15+M$33+2,0)) -> 0 | N47: =+IF(OR($C47=0,$C47="NO"),0,VLOOKUP($I$16+$H47,Tasas!$C$78:$AN$1228,$I$15+N$33+2,0)) -> 0 | O47: =+IF(OR($C47=0,$C47="NO"),0,VLOOKUP($I$16+$H47,Tasas!$C$78:$AN$1228,$I$15+O$33+2,0)) -> 0 | P47: =+IF(OR($C47=0,$C47="NO"),0,VLOOKUP($I$16+$H47,Tasas!$C$78:$AN$1228,$I$15+P$33+2,0)) -> 0 | Q47: =+IF(OR($D47=0,$D47="NO"),0,VLOOKUP($J$16+$H47,Tasas!$C$78:$AN$1228,$J$15+Q$33+2,0)) -> 0 | R47: =+IF(OR($D47=0,$D47="NO"),0,VLOOKUP($J$16+$H47,Tasas!$C$78:$AN$1228,$J$15+R$33+2,0)) -> 0 | S47: =+IF(OR($D47=0,$D47="NO"),0,VLOOKUP($J$16+$H47,Tasas!$C$78:$AN$1228,$J$15+S$33+2,0)) -> 0 | T47: =+IF(OR($D47=0,$D47="NO"),0,VLOOKUP($J$16+$H47,Tasas!$C$78:$AN$1228,$J$15+T$33+2,0)) -> 0 | U47: =+IF(OR($D47=0,$D47="NO"),0,VLOOKUP($J$16+$H47,Tasas!$C$78:$AN$1228,$J$15+U$33+2,0)) -> 0 | V47: =+IF(OR($D47=0,$D47="NO"),0,VLOOKUP($J$16+$H47,Tasas!$C$78:$AN$1228,$J$15+V$33+2,0)) -> 0 | W47: =+IF(OR($D47=0,$D47="NO"),0,VLOOKUP($J$16+$H47,Tasas!$C$78:$AN$1228,$J$15+W$33+2,0)) -> 0 | X47: =+IF(OR($D47=0,$D47="NO"),0,VLOOKUP($J$16+$H47,Tasas!$C$78:$AN$1228,$J$15+X$33+2,0)) -> 0 | Y47: =+IF(OR($E47=0,$E47="NO"),0,VLOOKUP($K$16+$H47,Tasas!$C$78:$AN$1228,$K$15+Y$33+2,0)) -> 0 | Z47: =+IF(OR($E47=0,$E47="NO"),0,VLOOKUP($K$16+$H47,Tasas!$C$78:$AN$1228,$K$15+Z$33+2,0)) -> 0 | AA47: =+IF(OR($E47=0,$E47="NO"),0,VLOOKUP($K$16+$H47,Tasas!$C$78:$AN$1228,$K$15+AA$33+2,0)) -> 0 | AB47: =+IF(OR($E47=0,$E47="NO"),0,VLOOKUP($K$16+$H47,Tasas!$C$78:$AN$1228,$K$15+AB$33+2,0)) -> 0 | AC47: =+IF(OR($E47=0,$E47="NO"),0,VLOOKUP($K$16+$H47,Tasas!$C$78:$AN$1228,$K$15+AC$33+2,0)) -> 0 | AD47: =+IF(OR($E47=0,$E47="NO"),0,VLOOKUP($K$16+$H47,Tasas!$C$78:$AN$1228,$K$15+AD$33+2,0)) -> 0 | AE47: =+IF(OR($E47=0,$E47="NO"),0,VLOOKUP($K$16+$H47,Tasas!$C$78:$AN$1228,$K$15+AE$33+2,0)) -> 0 | AF47: =+IF(OR($E47=0,$E47="NO"),0,VLOOKUP($K$16+$H47,Tasas!$C$78:$AN$1228,$K$15+AF$33+2,0)) -> 0 | AG47: =+IF(OR($F47=0,$F47="NO"),0,VLOOKUP($L$16+$H47,Tasas!$C$78:$AN$1228,$L$15+AG$33+2,0)) -> 0 | AH47: =+IF(OR($F47=0,$F47="NO"),0,VLOOKUP($L$16+$H47,Tasas!$C$78:$AN$1228,$L$15+AH$33+2,0)) -> 0 | AI47: =+IF(OR($F47=0,$F47="NO"),0,VLOOKUP($L$16+$H47,Tasas!$C$78:$AN$1228,$L$15+AI$33+2,0)) -> 0 | AJ47: =+IF(OR($F47=0,$F47="NO"),0,VLOOKUP($L$16+$H47,Tasas!$C$78:$AN$1228,$L$15+AJ$33+2,0)) -> 0 | AK47: =+IF(OR($F47=0,$F47="NO"),0,VLOOKUP($L$16+$H47,Tasas!$C$78:$AN$1228,$L$15+AK$33+2,0)) -> 0 | AL47: =+IF(OR($F47=0,$F47="NO"),0,VLOOKUP($L$16+$H47,Tasas!$C$78:$AN$1228,$L$15+AL$33+2,0)) -> 0 | AM47: =+IF(OR($F47=0,$F47="NO"),0,VLOOKUP($L$16+$H47,Tasas!$C$78:$AN$1228,$L$15+AM$33+2,0)) -> 0 | AN47: =+IF(OR($F47=0,$F47="NO"),0,VLOOKUP($L$16+$H47,Tasas!$C$78:$AN$1228,$L$15+AN$33+2,0)) -> 0 | AS47: Cláusula para pasajeros de aviones y/o helicópteros particulares y/o de la FAP por viajes eventuales. Nivel 3 (Aviones de la FAP y helicópteros particulares y/o de la FAP utilizados en el transporte de personas). | AU47: =Cotizador!$E$102 -> 0 | AV47: =Cotizador!$G$102 -> 0 | AW47: =Cotizador!$I$102 -> 0 | AX47: =Cotizador!$K$102 -> 0 | AZ47: 768 | BA47: =+IF(OR($AU47=0,$AU47="NO"),0,VLOOKUP($BA$16+$AZ47,Tasas!$C$78:$BY$1292,$BA$15+BA$33+39,0)) -> 0 | BB47: =+IF(OR($AU47=0,$AU47="NO"),0,VLOOKUP($BA$16+$AZ47,Tasas!$C$78:$BY$1292,$BA$15+BB$33+39,0)) -> 0 | BC47: =+IF(OR($AU47=0,$AU47="NO"),0,VLOOKUP($BA$16+$AZ47,Tasas!$C$78:$BY$1292,$BA$15+BC$33+39,0)) -> 0 | BD47: =+IF(OR($AU47=0,$AU47="NO"),0,VLOOKUP($BA$16+$AZ47,Tasas!$C$78:$BY$1292,$BA$15+BD$33+39,0)) -> 0 | BE47: =+IF(OR($AU47=0,$AU47="NO"),0,VLOOKUP($BA$16+$AZ47,Tasas!$C$78:$BY$1292,$BA$15+BE$33+39,0)) -> 0 | BF47: =+IF(OR($AU47=0,$AU47="NO"),0,VLOOKUP($BA$16+$AZ47,Tasas!$C$78:$BY$1292,$BA$15+BF$33+39,0)) -> 0 | BG47: =+IF(OR($AU47=0,$AU47="NO"),0,VLOOKUP($BA$16+$AZ47,Tasas!$C$78:$BY$1292,$BA$15+BG$33+39,0)) -> 0 | BH47: =+IF(OR($AU47=0,$AU47="NO"),0,VLOOKUP($BA$16+$AZ47,Tasas!$C$78:$BY$1292,$BA$15+BH$33+39,0)) -> 0 | BI47: =+IF(OR($AU47=0,$AU47="NO"),0,VLOOKUP($BA$16+$AZ47,Tasas!$C$78:$BY$1292,$BA$15+BI$33+39,0)) -> 0 | BJ47: =+IF(OR($AU47=0,$AU47="NO"),0,VLOOKUP($BA$16+$AZ47,Tasas!$C$78:$BY$1292,$BA$15+BJ$33+39,0)) -> 0 | BK47: =+IF(OR($AU47=0,$AU47="NO"),0,VLOOKUP($BA$16+$AZ47,Tasas!$C$78:$BY$1292,$BA$15+BK$33+39,0)) -> 0 | BL47: =+IF(OR($AU47=0,$AU47="NO"),0,VLOOKUP($BA$16+$AZ47,Tasas!$C$78:$BY$1292,$BA$15+BL$33+39,0)) -> 0 | BM47: =+IF(OR($AU47=0,$AU47="NO"),0,VLOOKUP($BA$16+$AZ47,Tasas!$C$78:$BY$1292,$BA$15+BM$33+39,0)) -> 0 | BN47: =+IF(OR($AU47=0,$AU47="NO"),0,VLOOKUP($BA$16+$AZ47,Tasas!$C$78:$BY$1292,$BA$15+BN$33+39,0)) -> 0 | BO47: =+IF(OR($AU47=0,$AU47="NO"),0,VLOOKUP($BA$16+$AZ47,Tasas!$C$78:$BY$1292,$BA$15+BO$33+39,0)) -> 0 | BP47: =+IF(OR($AU47=0,$AU47="NO"),0,VLOOKUP($BA$16+$AZ47,Tasas!$C$78:$BY$1292,$BA$15+BP$33+39,0)) -> 0 | BQ47: =+IF(OR($AU47=0,$AU47="NO"),0,VLOOKUP($BA$16+$AZ47,Tasas!$C$78:$BY$1292,$BA$15+BQ$33+39,0)) -> 0 | BR47: =+IF(OR($AU47=0,$AU47="NO"),0,VLOOKUP($BA$16+$AZ47,Tasas!$C$78:$BY$1292,$BA$15+BR$33+39,0)) -> 0 | BS47: =+IF(OR($AU47=0,$AU47="NO"),0,VLOOKUP($BA$16+$AZ47,Tasas!$C$78:$BY$1292,$BA$15+BS$33+39,0)) -> 0 | BT47: =+IF(OR($AU47=0,$AU47="NO"),0,VLOOKUP($BA$16+$AZ47,Tasas!$C$78:$BY$1292,$BA$15+BT$33+39,0)) -> 0 | BU47: =+IF(OR($AU47=0,$AU47="NO"),0,VLOOKUP($BA$16+$AZ47,Tasas!$C$78:$BY$1292,$BA$15+BU$33+39,0)) -> 0 | BV47: =+IF(OR($AU47=0,$AU47="NO"),0,VLOOKUP($BA$16+$AZ47,Tasas!$C$78:$BY$1292,$BA$15+BV$33+39,0)) -> 0 | BW47: =+IF(OR($AU47=0,$AU47="NO"),0,VLOOKUP($BA$16+$AZ47,Tasas!$C$78:$BY$1292,$BA$15+BW$33+39,0)) -> 0 | BX47: =+IF(OR($AU47=0,$AU47="NO"),0,VLOOKUP($BA$16+$AZ47,Tasas!$C$78:$BY$1292,$BA$15+BX$33+39,0)) -> 0 | BY47: =+IF(OR($AU47=0,$AU47="NO"),0,VLOOKUP($BA$16+$AZ47,Tasas!$C$78:$BY$1292,$BA$15+BY$33+39,0)) -> 0 | BZ47: =+IF(OR($AU47=0,$AU47="NO"),0,VLOOKUP($BA$16+$AZ47,Tasas!$C$78:$BY$1292,$BA$15+BZ$33+39,0)) -> 0 | CA47: =+IF(OR($AU47=0,$AU47="NO"),0,VLOOKUP($BA$16+$AZ47,Tasas!$C$78:$BY$1292,$BA$15+CA$33+39,0)) -> 0 | CB47: =+IF(OR($AU47=0,$AU47="NO"),0,VLOOKUP($BA$16+$AZ47,Tasas!$C$78:$BY$1292,$BA$15+CB$33+39,0)) -> 0 | CC47: =+IF(OR($AU47=0,$AU47="NO"),0,VLOOKUP($BA$16+$AZ47,Tasas!$C$78:$BY$1292,$BA$15+CC$33+39,0)) -> 0 | CD47: =+IF(OR($AU47=0,$AU47="NO"),0,VLOOKUP($BA$16+$AZ47,Tasas!$C$78:$BY$1292,$BA$15+CD$33+39,0)) -> 0 | CE47: =+IF(OR($AU47=0,$AU47="NO"),0,VLOOKUP($BA$16+$AZ47,Tasas!$C$78:$BY$1292,$BA$15+CE$33+39,0)) -> 0 | CF47: =+IF(OR($AU47=0,$AU47="NO"),0,VLOOKUP($BA$16+$AZ47,Tasas!$C$78:$BY$1292,$BA$15+CF$33+39,0)) -> 0 | CK47: Cláusula para pasajeros de aviones y/o helicópteros particulares y/o de la FAP por viajes eventuales. Nivel 3 (Aviones de la FAP y helicópteros particulares y/o de la FAP utilizados en el transporte de personas). | CM47: =Cotizador!$E$102 -> 0 | CN47: 37 | CO47: 37 | CP47: =IF(OR($CM47="",$CM47=0),0,VLOOKUP($CO47,Tasas!$CB$17:$CL$70,Calculadora!CP$33,0)) -> 0 | CQ47: =IF(OR($CM47="",$CM47=0),0,VLOOKUP($CO47,Tasas!$CB$17:$CL$70,Calculadora!CQ$33,0)) -> 0 | CR47: =IF(OR($CM47="",$CM47=0),0,VLOOKUP($CO47,Tasas!$CB$17:$CL$70,Calculadora!CR$33,0)) -> 0 | CS47: =IF(OR($CM47="",$CM47=0),0,VLOOKUP($CO47,Tasas!$CB$17:$CL$70,Calculadora!CS$33,0)) -> 0 | CT47: =IF(OR($CM47="",$CM47=0),0,VLOOKUP($CO47,Tasas!$CB$17:$CL$70,Calculadora!CT$33,0)) -> 0 | CU47: =IF(OR($CM47="",$CM47=0),0,VLOOKUP($CO47,Tasas!$CB$17:$CL$70,Calculadora!CU$33,0)) -> 0 | CV47: =IF(OR($CM47="",$CM47=0),0,VLOOKUP($CO47,Tasas!$CB$17:$CL$70,Calculadora!CV$33,0)) -> 0 | CW47: =IF(OR($CM47="",$CM47=0),0,VLOOKUP($CO47,Tasas!$CB$17:$CL$70,Calculadora!CW$33,0)) -> 0 | DB47: Cláusula para pasajeros de aviones y/o helicópteros particulares y/o de la FAP por viajes eventuales. Nivel 3 (Aviones de la FAP y helicópteros particulares y/o de la FAP utilizados en el transporte de personas). | DD47: =Cotizador!$E$102 -> 0 | DE47: 37 | DF47: 37 | DG47: =IF(OR($DD47="",$DD47=0),0,VLOOKUP($DF47,Tasas!$CO$17:$CY$70,Calculadora!DG$33,0)) -> 0 | DH47: =IF(OR($DD47="",$DD47=0),0,VLOOKUP($DF47,Tasas!$CO$17:$CY$70,Calculadora!DH$33,0)) -> 0 | DI47: =IF(OR($DD47="",$DD47=0),0,VLOOKUP($DF47,Tasas!$CO$17:$CY$70,Calculadora!DI$33,0)) -> 0 | DJ47: =IF(OR($DD47="",$DD47=0),0,VLOOKUP($DF47,Tasas!$CO$17:$CY$70,Calculadora!DJ$33,0)) -> 0 | DK47: =IF(OR($DD47="",$DD47=0),0,VLOOKUP($DF47,Tasas!$CO$17:$CY$70,Calculadora!DK$33,0)) -> 0 | DL47: =IF(OR($DD47="",$DD47=0),0,VLOOKUP($DF47,Tasas!$CO$17:$CY$70,Calculadora!DL$33,0)) -> 0 | DM47: =IF(OR($DD47="",$DD47=0),0,VLOOKUP($DF47,Tasas!$CO$17:$CY$70,Calculadora!DM$33,0)) -> 0 | DN47: =IF(OR($DD47="",$DD47=0),0,VLOOKUP($DF47,Tasas!$CO$17:$CY$70,Calculadora!DN$33,0)) -> 0 | DS47: Cláusula para pasajeros de aviones y/o helicópteros particulares y/o de la FAP por viajes eventuales. Nivel 3 (Aviones de la FAP y helicópteros particulares y/o de la FAP utilizados en el transporte de personas). | DU47: =Cotizador!$E$102 -> 0 | DV47: 37 | DW47: 37 | DX47: =IF(OR($DU47="",$DU47=0),0,VLOOKUP($DW47,Tasas!$DB$17:$DL$70,Calculadora!DX$33,0)) -> 0 | DY47: =IF(OR($DU47="",$DU47=0),0,VLOOKUP($DW47,Tasas!$DB$17:$DL$70,Calculadora!DY$33,0)) -> 0 | DZ47: =IF(OR($DU47="",$DU47=0),0,VLOOKUP($DW47,Tasas!$DB$17:$DL$70,Calculadora!DZ$33,0)) -> 0 | EA47: =IF(OR($DU47="",$DU47=0),0,VLOOKUP($DW47,Tasas!$DB$17:$DL$70,Calculadora!EA$33,0)) -> 0 | EB47: =IF(OR($DU47="",$DU47=0),0,VLOOKUP($DW47,Tasas!$DB$17:$DL$70,Calculadora!EB$33,0)) -> 0 | EC47: =IF(OR($DU47="",$DU47=0),0,VLOOKUP($DW47,Tasas!$DB$17:$DL$70,Calculadora!EC$33,0)) -> 0 | ED47: =IF(OR($DU47="",$DU47=0),0,VLOOKUP($DW47,Tasas!$DB$17:$DL$70,Calculadora!ED$33,0)) -> 0 | EE47: =IF(OR($DU47="",$DU47=0),0,VLOOKUP($DW47,Tasas!$DB$17:$DL$70,Calculadora!EE$33,0)) -> 0 | EJ47: Cláusula para pasajeros de aviones y/o helicópteros particulares y/o de la FAP por viajes eventuales. Nivel 3 (Aviones de la FAP y helicópteros particulares y/o de la FAP utilizados en el transporte de personas). | EL47: =Cotizador!$E$102 -> 0 | EM47: 37 | EN47: 37 | EO47: =IF(OR($EL47="",$EL47=0),0,VLOOKUP($EN47,Tasas!$DO$17:$DY$70,Calculadora!EO$33,0)) -> 0 | EP47: =IF(OR($EL47="",$EL47=0),0,VLOOKUP($EN47,Tasas!$DO$17:$DY$70,Calculadora!EP$33,0)) -> 0 | EQ47: =IF(OR($EL47="",$EL47=0),0,VLOOKUP($EN47,Tasas!$DO$17:$DY$70,Calculadora!EQ$33,0)) -> 0 | ER47: =IF(OR($EL47="",$EL47=0),0,VLOOKUP($EN47,Tasas!$DO$17:$DY$70,Calculadora!ER$33,0)) -> 0 | ES47: =IF(OR($EL47="",$EL47=0),0,VLOOKUP($EN47,Tasas!$DO$17:$DY$70,Calculadora!ES$33,0)) -> 0 | ET47: =IF(OR($EL47="",$EL47=0),0,VLOOKUP($EN47,Tasas!$DO$17:$DY$70,Calculadora!ET$33,0)) -> 0 | EU47: =IF(OR($EL47="",$EL47=0),0,VLOOKUP($EN47,Tasas!$DO$17:$DY$70,Calculadora!EU$33,0)) -> 0 | EV47: =IF(OR($EL47="",$EL47=0),0,VLOOKUP($EN47,Tasas!$DO$17:$DY$70,Calculadora!EV$33,0)) -> 0 | FA47: Cláusula para pasajeros de aviones y/o helicópteros particulares y/o de la FAP por viajes eventuales. Nivel 3 (Aviones de la FAP y helicópteros particulares y/o de la FAP utilizados en el transporte de personas). | FC47: =Cotizador!$E$102 -> 0 | FD47: 37 | FE47: 37 | FF47: =IF(OR($FC47="",$FC47=0),0,VLOOKUP($FE47,Tasas!$EB$17:$EL$70,Calculadora!FF$33,0)) -> 0 | FG47: =IF(OR($FC47="",$FC47=0),0,VLOOKUP($FE47,Tasas!$EB$17:$EL$70,Calculadora!FG$33,0)) -> 0 | FH47: =IF(OR($FC47="",$FC47=0),0,VLOOKUP($FE47,Tasas!$EB$17:$EL$70,Calculadora!FH$33,0)) -> 0 | FI47: =IF(OR($FC47="",$FC47=0),0,VLOOKUP($FE47,Tasas!$EB$17:$EL$70,Calculadora!FI$33,0)) -> 0 | FJ47: =IF(OR($FC47="",$FC47=0),0,VLOOKUP($FE47,Tasas!$EB$17:$EL$70,Calculadora!FJ$33,0)) -> 0 | FK47: =IF(OR($FC47="",$FC47=0),0,VLOOKUP($FE47,Tasas!$EB$17:$EL$70,Calculadora!FK$33,0)) -> 0 | FL47: =IF(OR($FC47="",$FC47=0),0,VLOOKUP($FE47,Tasas!$EB$17:$EL$70,Calculadora!FL$33,0)) -> 0 | FM47: =IF(OR($FC47="",$FC47=0),0,VLOOKUP($FE47,Tasas!$EB$17:$EL$70,Calculadora!FM$33,0)) -> 0 | FR47: Cláusula de ampliación del límite máximo de edad, personas mayores de 70 y hasta los 80 años inclusive. | FT47: =Cotizador!$E$122 -> 0 | FV47: 14 | FW47: =IF(OR($FT47=0,$FT47="NO"),0,VLOOKUP($FV47,Tasas!$EO$29:$FU$45,Calculadora!FW$32,0)) -> 0 | FX47: =IF(OR($FT47=0,$FT47="NO"),0,VLOOKUP($FV47,Tasas!$EO$29:$FU$45,Calculadora!FX$32,0)) -> 0 | FY47: =IF(OR($FT47=0,$FT47="NO"),0,VLOOKUP($FV47,Tasas!$EO$29:$FU$45,Calculadora!FY$32,0)) -> 0 | FZ47: =IF(OR($FT47=0,$FT47="NO"),0,VLOOKUP($FV47,Tasas!$EO$29:$FU$45,Calculadora!FZ$32,0)) -> 0 | GA47: =IF(OR($FT47=0,$FT47="NO"),0,VLOOKUP($FV47,Tasas!$EO$29:$FU$45,Calculadora!GA$32,0)) -> 0 | GB47: =IF(OR($FT47=0,$FT47="NO"),0,VLOOKUP($FV47,Tasas!$EO$29:$FU$45,Calculadora!GB$32,0)) -> 0 | GC47: =IF(OR($FT47=0,$FT47="NO"),0,VLOOKUP($FV47,Tasas!$EO$29:$FU$45,Calculadora!GC$32,0)) -> 0 | GD47: =IF(OR($FT47=0,$FT47="NO"),0,VLOOKUP($FV47,Tasas!$EO$29:$FU$45,Calculadora!GD$32,0)) -> 0 | GI47: Cláusula para pasajeros de aviones y/o helicópteros particulares y/o de la FAP por viajes eventuales. Nivel 3 (Aviones de la FAP y helicópteros particulares y/o de la FAP utilizados en el transporte de personas). | GK47: =Cotizador!$E$102 -> 0 | GP47: 768 | GQ47: =+IF(OR($C47=0,$C47="NO"),0,VLOOKUP($I$16+$H47,Tasas!$FY$78:$HJ$1228,$I$15+GQ$33+2,0)) -> 0 | GR47: =+IF(OR($C47=0,$C47="NO"),0,VLOOKUP($I$16+$H47,Tasas!$FY$78:$HJ$1228,$I$15+GR$33+2,0)) -> 0 | GS47: =+IF(OR($C47=0,$C47="NO"),0,VLOOKUP($I$16+$H47,Tasas!$FY$78:$HJ$1228,$I$15+GS$33+2,0)) -> 0 | GT47: =+IF(OR($C47=0,$C47="NO"),0,VLOOKUP($I$16+$H47,Tasas!$FY$78:$HJ$1228,$I$15+GT$33+2,0)) -> 0 | GU47: =+IF(OR($C47=0,$C47="NO"),0,VLOOKUP($I$16+$H47,Tasas!$FY$78:$HJ$1228,$I$15+GU$33+2,0)) -> 0 | GV47: =+IF(OR($C47=0,$C47="NO"),0,VLOOKUP($I$16+$H47,Tasas!$FY$78:$HJ$1228,$I$15+GV$33+2,0)) -> 0 | GW47: =+IF(OR($C47=0,$C47="NO"),0,VLOOKUP($I$16+$H47,Tasas!$FY$78:$HJ$1228,$I$15+GW$33+2,0)) -> 0 | GX47: =+IF(OR($C47=0,$C47="NO"),0,VLOOKUP($I$16+$H47,Tasas!$FY$78:$HJ$1228,$I$15+GX$33+2,0)) -> 0
A48: Pescadores y/o Estibadores | C48: =Cotizador!$E$103 -> 0 | D48: =Cotizador!$G$103 -> 0 | E48: =Cotizador!$I$103 -> 0 | F48: =Cotizador!$K$103 -> 0 | H48: 832 | I48: =+IF(OR($C48=0,$C48="NO"),0,VLOOKUP($I$16+$H48,Tasas!$C$78:$AN$1228,$I$15+I$33+2,0)) -> 0 | J48: =+IF(OR($C48=0,$C48="NO"),0,VLOOKUP($I$16+$H48,Tasas!$C$78:$AN$1228,$I$15+J$33+2,0)) -> 0 | K48: =+IF(OR($C48=0,$C48="NO"),0,VLOOKUP($I$16+$H48,Tasas!$C$78:$AN$1228,$I$15+K$33+2,0)) -> 0 | L48: =+IF(OR($C48=0,$C48="NO"),0,VLOOKUP($I$16+$H48,Tasas!$C$78:$AN$1228,$I$15+L$33+2,0)) -> 0 | M48: =+IF(OR($C48=0,$C48="NO"),0,VLOOKUP($I$16+$H48,Tasas!$C$78:$AN$1228,$I$15+M$33+2,0)) -> 0 | N48: =+IF(OR($C48=0,$C48="NO"),0,VLOOKUP($I$16+$H48,Tasas!$C$78:$AN$1228,$I$15+N$33+2,0)) -> 0 | O48: =+IF(OR($C48=0,$C48="NO"),0,VLOOKUP($I$16+$H48,Tasas!$C$78:$AN$1228,$I$15+O$33+2,0)) -> 0 | P48: =+IF(OR($C48=0,$C48="NO"),0,VLOOKUP($I$16+$H48,Tasas!$C$78:$AN$1228,$I$15+P$33+2,0)) -> 0 | Q48: =+IF(OR($D48=0,$D48="NO"),0,VLOOKUP($J$16+$H48,Tasas!$C$78:$AN$1228,$J$15+Q$33+2,0)) -> 0 | R48: =+IF(OR($D48=0,$D48="NO"),0,VLOOKUP($J$16+$H48,Tasas!$C$78:$AN$1228,$J$15+R$33+2,0)) -> 0 | S48: =+IF(OR($D48=0,$D48="NO"),0,VLOOKUP($J$16+$H48,Tasas!$C$78:$AN$1228,$J$15+S$33+2,0)) -> 0 | T48: =+IF(OR($D48=0,$D48="NO"),0,VLOOKUP($J$16+$H48,Tasas!$C$78:$AN$1228,$J$15+T$33+2,0)) -> 0 | U48: =+IF(OR($D48=0,$D48="NO"),0,VLOOKUP($J$16+$H48,Tasas!$C$78:$AN$1228,$J$15+U$33+2,0)) -> 0 | V48: =+IF(OR($D48=0,$D48="NO"),0,VLOOKUP($J$16+$H48,Tasas!$C$78:$AN$1228,$J$15+V$33+2,0)) -> 0 | W48: =+IF(OR($D48=0,$D48="NO"),0,VLOOKUP($J$16+$H48,Tasas!$C$78:$AN$1228,$J$15+W$33+2,0)) -> 0 | X48: =+IF(OR($D48=0,$D48="NO"),0,VLOOKUP($J$16+$H48,Tasas!$C$78:$AN$1228,$J$15+X$33+2,0)) -> 0 | Y48: =+IF(OR($E48=0,$E48="NO"),0,VLOOKUP($K$16+$H48,Tasas!$C$78:$AN$1228,$K$15+Y$33+2,0)) -> 0 | Z48: =+IF(OR($E48=0,$E48="NO"),0,VLOOKUP($K$16+$H48,Tasas!$C$78:$AN$1228,$K$15+Z$33+2,0)) -> 0 | AA48: =+IF(OR($E48=0,$E48="NO"),0,VLOOKUP($K$16+$H48,Tasas!$C$78:$AN$1228,$K$15+AA$33+2,0)) -> 0 | AB48: =+IF(OR($E48=0,$E48="NO"),0,VLOOKUP($K$16+$H48,Tasas!$C$78:$AN$1228,$K$15+AB$33+2,0)) -> 0 | AC48: =+IF(OR($E48=0,$E48="NO"),0,VLOOKUP($K$16+$H48,Tasas!$C$78:$AN$1228,$K$15+AC$33+2,0)) -> 0 | AD48: =+IF(OR($E48=0,$E48="NO"),0,VLOOKUP($K$16+$H48,Tasas!$C$78:$AN$1228,$K$15+AD$33+2,0)) -> 0 | AE48: =+IF(OR($E48=0,$E48="NO"),0,VLOOKUP($K$16+$H48,Tasas!$C$78:$AN$1228,$K$15+AE$33+2,0)) -> 0 | AF48: =+IF(OR($E48=0,$E48="NO"),0,VLOOKUP($K$16+$H48,Tasas!$C$78:$AN$1228,$K$15+AF$33+2,0)) -> 0 | AG48: =+IF(OR($F48=0,$F48="NO"),0,VLOOKUP($L$16+$H48,Tasas!$C$78:$AN$1228,$L$15+AG$33+2,0)) -> 0 | AH48: =+IF(OR($F48=0,$F48="NO"),0,VLOOKUP($L$16+$H48,Tasas!$C$78:$AN$1228,$L$15+AH$33+2,0)) -> 0 | AI48: =+IF(OR($F48=0,$F48="NO"),0,VLOOKUP($L$16+$H48,Tasas!$C$78:$AN$1228,$L$15+AI$33+2,0)) -> 0 | AJ48: =+IF(OR($F48=0,$F48="NO"),0,VLOOKUP($L$16+$H48,Tasas!$C$78:$AN$1228,$L$15+AJ$33+2,0)) -> 0 | AK48: =+IF(OR($F48=0,$F48="NO"),0,VLOOKUP($L$16+$H48,Tasas!$C$78:$AN$1228,$L$15+AK$33+2,0)) -> 0 | AL48: =+IF(OR($F48=0,$F48="NO"),0,VLOOKUP($L$16+$H48,Tasas!$C$78:$AN$1228,$L$15+AL$33+2,0)) -> 0 | AM48: =+IF(OR($F48=0,$F48="NO"),0,VLOOKUP($L$16+$H48,Tasas!$C$78:$AN$1228,$L$15+AM$33+2,0)) -> 0 | AN48: =+IF(OR($F48=0,$F48="NO"),0,VLOOKUP($L$16+$H48,Tasas!$C$78:$AN$1228,$L$15+AN$33+2,0)) -> 0 | AS48: Pescadores y/o Estibadores | AU48: =Cotizador!$E$103 -> 0 | AV48: =Cotizador!$G$103 -> 0 | AW48: =Cotizador!$I$103 -> 0 | AX48: =Cotizador!$K$103 -> 0 | AZ48: 832 | BA48: =+IF(OR($AU48=0,$AU48="NO"),0,VLOOKUP($BA$16+$AZ48,Tasas!$C$78:$BY$1292,$BA$15+BA$33+39,0)) -> 0 | BB48: =+IF(OR($AU48=0,$AU48="NO"),0,VLOOKUP($BA$16+$AZ48,Tasas!$C$78:$BY$1292,$BA$15+BB$33+39,0)) -> 0 | BC48: =+IF(OR($AU48=0,$AU48="NO"),0,VLOOKUP($BA$16+$AZ48,Tasas!$C$78:$BY$1292,$BA$15+BC$33+39,0)) -> 0 | BD48: =+IF(OR($AU48=0,$AU48="NO"),0,VLOOKUP($BA$16+$AZ48,Tasas!$C$78:$BY$1292,$BA$15+BD$33+39,0)) -> 0 | BE48: =+IF(OR($AU48=0,$AU48="NO"),0,VLOOKUP($BA$16+$AZ48,Tasas!$C$78:$BY$1292,$BA$15+BE$33+39,0)) -> 0 | BF48: =+IF(OR($AU48=0,$AU48="NO"),0,VLOOKUP($BA$16+$AZ48,Tasas!$C$78:$BY$1292,$BA$15+BF$33+39,0)) -> 0 | BG48: =+IF(OR($AU48=0,$AU48="NO"),0,VLOOKUP($BA$16+$AZ48,Tasas!$C$78:$BY$1292,$BA$15+BG$33+39,0)) -> 0 | BH48: =+IF(OR($AU48=0,$AU48="NO"),0,VLOOKUP($BA$16+$AZ48,Tasas!$C$78:$BY$1292,$BA$15+BH$33+39,0)) -> 0 | BI48: =+IF(OR($AU48=0,$AU48="NO"),0,VLOOKUP($BA$16+$AZ48,Tasas!$C$78:$BY$1292,$BA$15+BI$33+39,0)) -> 0 | BJ48: =+IF(OR($AU48=0,$AU48="NO"),0,VLOOKUP($BA$16+$AZ48,Tasas!$C$78:$BY$1292,$BA$15+BJ$33+39,0)) -> 0 | BK48: =+IF(OR($AU48=0,$AU48="NO"),0,VLOOKUP($BA$16+$AZ48,Tasas!$C$78:$BY$1292,$BA$15+BK$33+39,0)) -> 0 | BL48: =+IF(OR($AU48=0,$AU48="NO"),0,VLOOKUP($BA$16+$AZ48,Tasas!$C$78:$BY$1292,$BA$15+BL$33+39,0)) -> 0 | BM48: =+IF(OR($AU48=0,$AU48="NO"),0,VLOOKUP($BA$16+$AZ48,Tasas!$C$78:$BY$1292,$BA$15+BM$33+39,0)) -> 0 | BN48: =+IF(OR($AU48=0,$AU48="NO"),0,VLOOKUP($BA$16+$AZ48,Tasas!$C$78:$BY$1292,$BA$15+BN$33+39,0)) -> 0 | BO48: =+IF(OR($AU48=0,$AU48="NO"),0,VLOOKUP($BA$16+$AZ48,Tasas!$C$78:$BY$1292,$BA$15+BO$33+39,0)) -> 0 | BP48: =+IF(OR($AU48=0,$AU48="NO"),0,VLOOKUP($BA$16+$AZ48,Tasas!$C$78:$BY$1292,$BA$15+BP$33+39,0)) -> 0 | BQ48: =+IF(OR($AU48=0,$AU48="NO"),0,VLOOKUP($BA$16+$AZ48,Tasas!$C$78:$BY$1292,$BA$15+BQ$33+39,0)) -> 0 | BR48: =+IF(OR($AU48=0,$AU48="NO"),0,VLOOKUP($BA$16+$AZ48,Tasas!$C$78:$BY$1292,$BA$15+BR$33+39,0)) -> 0 | BS48: =+IF(OR($AU48=0,$AU48="NO"),0,VLOOKUP($BA$16+$AZ48,Tasas!$C$78:$BY$1292,$BA$15+BS$33+39,0)) -> 0 | BT48: =+IF(OR($AU48=0,$AU48="NO"),0,VLOOKUP($BA$16+$AZ48,Tasas!$C$78:$BY$1292,$BA$15+BT$33+39,0)) -> 0 | BU48: =+IF(OR($AU48=0,$AU48="NO"),0,VLOOKUP($BA$16+$AZ48,Tasas!$C$78:$BY$1292,$BA$15+BU$33+39,0)) -> 0 | BV48: =+IF(OR($AU48=0,$AU48="NO"),0,VLOOKUP($BA$16+$AZ48,Tasas!$C$78:$BY$1292,$BA$15+BV$33+39,0)) -> 0 | BW48: =+IF(OR($AU48=0,$AU48="NO"),0,VLOOKUP($BA$16+$AZ48,Tasas!$C$78:$BY$1292,$BA$15+BW$33+39,0)) -> 0 | BX48: =+IF(OR($AU48=0,$AU48="NO"),0,VLOOKUP($BA$16+$AZ48,Tasas!$C$78:$BY$1292,$BA$15+BX$33+39,0)) -> 0 | BY48: =+IF(OR($AU48=0,$AU48="NO"),0,VLOOKUP($BA$16+$AZ48,Tasas!$C$78:$BY$1292,$BA$15+BY$33+39,0)) -> 0 | BZ48: =+IF(OR($AU48=0,$AU48="NO"),0,VLOOKUP($BA$16+$AZ48,Tasas!$C$78:$BY$1292,$BA$15+BZ$33+39,0)) -> 0 | CA48: =+IF(OR($AU48=0,$AU48="NO"),0,VLOOKUP($BA$16+$AZ48,Tasas!$C$78:$BY$1292,$BA$15+CA$33+39,0)) -> 0 | CB48: =+IF(OR($AU48=0,$AU48="NO"),0,VLOOKUP($BA$16+$AZ48,Tasas!$C$78:$BY$1292,$BA$15+CB$33+39,0)) -> 0 | CC48: =+IF(OR($AU48=0,$AU48="NO"),0,VLOOKUP($BA$16+$AZ48,Tasas!$C$78:$BY$1292,$BA$15+CC$33+39,0)) -> 0 | CD48: =+IF(OR($AU48=0,$AU48="NO"),0,VLOOKUP($BA$16+$AZ48,Tasas!$C$78:$BY$1292,$BA$15+CD$33+39,0)) -> 0 | CE48: =+IF(OR($AU48=0,$AU48="NO"),0,VLOOKUP($BA$16+$AZ48,Tasas!$C$78:$BY$1292,$BA$15+CE$33+39,0)) -> 0 | CF48: =+IF(OR($AU48=0,$AU48="NO"),0,VLOOKUP($BA$16+$AZ48,Tasas!$C$78:$BY$1292,$BA$15+CF$33+39,0)) -> 0 | CK48: Pescadores y/o Estibadores | CM48: =Cotizador!$E$103 -> 0 | CN48: 40 | CO48: 40 | CP48: =IF(OR($CM48="",$CM48=0),0,VLOOKUP($CO48,Tasas!$CB$17:$CL$70,Calculadora!CP$33,0)) -> 0 | CQ48: =IF(OR($CM48="",$CM48=0),0,VLOOKUP($CO48,Tasas!$CB$17:$CL$70,Calculadora!CQ$33,0)) -> 0 | CR48: =IF(OR($CM48="",$CM48=0),0,VLOOKUP($CO48,Tasas!$CB$17:$CL$70,Calculadora!CR$33,0)) -> 0 | CS48: =IF(OR($CM48="",$CM48=0),0,VLOOKUP($CO48,Tasas!$CB$17:$CL$70,Calculadora!CS$33,0)) -> 0 | CT48: =IF(OR($CM48="",$CM48=0),0,VLOOKUP($CO48,Tasas!$CB$17:$CL$70,Calculadora!CT$33,0)) -> 0 | CU48: =IF(OR($CM48="",$CM48=0),0,VLOOKUP($CO48,Tasas!$CB$17:$CL$70,Calculadora!CU$33,0)) -> 0 | CV48: =IF(OR($CM48="",$CM48=0),0,VLOOKUP($CO48,Tasas!$CB$17:$CL$70,Calculadora!CV$33,0)) -> 0 | CW48: =IF(OR($CM48="",$CM48=0),0,VLOOKUP($CO48,Tasas!$CB$17:$CL$70,Calculadora!CW$33,0)) -> 0 | DB48: Pescadores y/o Estibadores | DD48: =Cotizador!$E$103 -> 0 | DE48: 40 | DF48: 40 | DG48: =IF(OR($DD48="",$DD48=0),0,VLOOKUP($DF48,Tasas!$CO$17:$CY$70,Calculadora!DG$33,0)) -> 0 | DH48: =IF(OR($DD48="",$DD48=0),0,VLOOKUP($DF48,Tasas!$CO$17:$CY$70,Calculadora!DH$33,0)) -> 0 | DI48: =IF(OR($DD48="",$DD48=0),0,VLOOKUP($DF48,Tasas!$CO$17:$CY$70,Calculadora!DI$33,0)) -> 0 | DJ48: =IF(OR($DD48="",$DD48=0),0,VLOOKUP($DF48,Tasas!$CO$17:$CY$70,Calculadora!DJ$33,0)) -> 0 | DK48: =IF(OR($DD48="",$DD48=0),0,VLOOKUP($DF48,Tasas!$CO$17:$CY$70,Calculadora!DK$33,0)) -> 0 | DL48: =IF(OR($DD48="",$DD48=0),0,VLOOKUP($DF48,Tasas!$CO$17:$CY$70,Calculadora!DL$33,0)) -> 0 | DM48: =IF(OR($DD48="",$DD48=0),0,VLOOKUP($DF48,Tasas!$CO$17:$CY$70,Calculadora!DM$33,0)) -> 0 | DN48: =IF(OR($DD48="",$DD48=0),0,VLOOKUP($DF48,Tasas!$CO$17:$CY$70,Calculadora!DN$33,0)) -> 0 | DS48: Pescadores y/o Estibadores | DU48: =Cotizador!$E$103 -> 0 | DV48: 40 | DW48: 40 | DX48: =IF(OR($DU48="",$DU48=0),0,VLOOKUP($DW48,Tasas!$DB$17:$DL$70,Calculadora!DX$33,0)) -> 0 | DY48: =IF(OR($DU48="",$DU48=0),0,VLOOKUP($DW48,Tasas!$DB$17:$DL$70,Calculadora!DY$33,0)) -> 0 | DZ48: =IF(OR($DU48="",$DU48=0),0,VLOOKUP($DW48,Tasas!$DB$17:$DL$70,Calculadora!DZ$33,0)) -> 0 | EA48: =IF(OR($DU48="",$DU48=0),0,VLOOKUP($DW48,Tasas!$DB$17:$DL$70,Calculadora!EA$33,0)) -> 0 | EB48: =IF(OR($DU48="",$DU48=0),0,VLOOKUP($DW48,Tasas!$DB$17:$DL$70,Calculadora!EB$33,0)) -> 0 | EC48: =IF(OR($DU48="",$DU48=0),0,VLOOKUP($DW48,Tasas!$DB$17:$DL$70,Calculadora!EC$33,0)) -> 0 | ED48: =IF(OR($DU48="",$DU48=0),0,VLOOKUP($DW48,Tasas!$DB$17:$DL$70,Calculadora!ED$33,0)) -> 0 | EE48: =IF(OR($DU48="",$DU48=0),0,VLOOKUP($DW48,Tasas!$DB$17:$DL$70,Calculadora!EE$33,0)) -> 0 | EJ48: Pescadores y/o Estibadores | EL48: =Cotizador!$E$103 -> 0 | EM48: 40 | EN48: 40 | EO48: =IF(OR($EL48="",$EL48=0),0,VLOOKUP($EN48,Tasas!$DO$17:$DY$70,Calculadora!EO$33,0)) -> 0 | EP48: =IF(OR($EL48="",$EL48=0),0,VLOOKUP($EN48,Tasas!$DO$17:$DY$70,Calculadora!EP$33,0)) -> 0 | EQ48: =IF(OR($EL48="",$EL48=0),0,VLOOKUP($EN48,Tasas!$DO$17:$DY$70,Calculadora!EQ$33,0)) -> 0 | ER48: =IF(OR($EL48="",$EL48=0),0,VLOOKUP($EN48,Tasas!$DO$17:$DY$70,Calculadora!ER$33,0)) -> 0 | ES48: =IF(OR($EL48="",$EL48=0),0,VLOOKUP($EN48,Tasas!$DO$17:$DY$70,Calculadora!ES$33,0)) -> 0 | ET48: =IF(OR($EL48="",$EL48=0),0,VLOOKUP($EN48,Tasas!$DO$17:$DY$70,Calculadora!ET$33,0)) -> 0 | EU48: =IF(OR($EL48="",$EL48=0),0,VLOOKUP($EN48,Tasas!$DO$17:$DY$70,Calculadora!EU$33,0)) -> 0 | EV48: =IF(OR($EL48="",$EL48=0),0,VLOOKUP($EN48,Tasas!$DO$17:$DY$70,Calculadora!EV$33,0)) -> 0 | FA48: Pescadores y/o Estibadores | FC48: =Cotizador!$E$103 -> 0 | FD48: 40 | FE48: 40 | FF48: =IF(OR($FC48="",$FC48=0),0,VLOOKUP($FE48,Tasas!$EB$17:$EL$70,Calculadora!FF$33,0)) -> 0 | FG48: =IF(OR($FC48="",$FC48=0),0,VLOOKUP($FE48,Tasas!$EB$17:$EL$70,Calculadora!FG$33,0)) -> 0 | FH48: =IF(OR($FC48="",$FC48=0),0,VLOOKUP($FE48,Tasas!$EB$17:$EL$70,Calculadora!FH$33,0)) -> 0 | FI48: =IF(OR($FC48="",$FC48=0),0,VLOOKUP($FE48,Tasas!$EB$17:$EL$70,Calculadora!FI$33,0)) -> 0 | FJ48: =IF(OR($FC48="",$FC48=0),0,VLOOKUP($FE48,Tasas!$EB$17:$EL$70,Calculadora!FJ$33,0)) -> 0 | FK48: =IF(OR($FC48="",$FC48=0),0,VLOOKUP($FE48,Tasas!$EB$17:$EL$70,Calculadora!FK$33,0)) -> 0 | FL48: =IF(OR($FC48="",$FC48=0),0,VLOOKUP($FE48,Tasas!$EB$17:$EL$70,Calculadora!FL$33,0)) -> 0 | FM48: =IF(OR($FC48="",$FC48=0),0,VLOOKUP($FE48,Tasas!$EB$17:$EL$70,Calculadora!FM$33,0)) -> 0 | FR48: Ocupantes de vehiculos automotores particulares (no comerciales) por accidentes de tránsito. | FT48: =Cotizador!$E$123 -> 0 | FV48: 15 | FW48: =IF(OR($FT48=0,$FT48="NO"),0,VLOOKUP($FV48,Tasas!$EO$29:$FU$45,Calculadora!FW$32,0)) -> 0 | FX48: =IF(OR($FT48=0,$FT48="NO"),0,VLOOKUP($FV48,Tasas!$EO$29:$FU$45,Calculadora!FX$32,0)) -> 0 | FY48: =IF(OR($FT48=0,$FT48="NO"),0,VLOOKUP($FV48,Tasas!$EO$29:$FU$45,Calculadora!FY$32,0)) -> 0 | FZ48: =IF(OR($FT48=0,$FT48="NO"),0,VLOOKUP($FV48,Tasas!$EO$29:$FU$45,Calculadora!FZ$32,0)) -> 0 | GA48: =IF(OR($FT48=0,$FT48="NO"),0,VLOOKUP($FV48,Tasas!$EO$29:$FU$45,Calculadora!GA$32,0)) -> 0 | GB48: =IF(OR($FT48=0,$FT48="NO"),0,VLOOKUP($FV48,Tasas!$EO$29:$FU$45,Calculadora!GB$32,0)) -> 0 | GC48: =IF(OR($FT48=0,$FT48="NO"),0,VLOOKUP($FV48,Tasas!$EO$29:$FU$45,Calculadora!GC$32,0)) -> 0 | GD48: =IF(OR($FT48=0,$FT48="NO"),0,VLOOKUP($FV48,Tasas!$EO$29:$FU$45,Calculadora!GD$32,0)) -> 0 | GI48: Pescadores y/o Estibadores | GK48: =Cotizador!$E$103 -> 0 | GP48: 832 | GQ48: =+IF(OR($C48=0,$C48="NO"),0,VLOOKUP($I$16+$H48,Tasas!$FY$78:$HJ$1228,$I$15+GQ$33+2,0)) -> 0 | GR48: =+IF(OR($C48=0,$C48="NO"),0,VLOOKUP($I$16+$H48,Tasas!$FY$78:$HJ$1228,$I$15+GR$33+2,0)) -> 0 | GS48: =+IF(OR($C48=0,$C48="NO"),0,VLOOKUP($I$16+$H48,Tasas!$FY$78:$HJ$1228,$I$15+GS$33+2,0)) -> 0 | GT48: =+IF(OR($C48=0,$C48="NO"),0,VLOOKUP($I$16+$H48,Tasas!$FY$78:$HJ$1228,$I$15+GT$33+2,0)) -> 0 | GU48: =+IF(OR($C48=0,$C48="NO"),0,VLOOKUP($I$16+$H48,Tasas!$FY$78:$HJ$1228,$I$15+GU$33+2,0)) -> 0 | GV48: =+IF(OR($C48=0,$C48="NO"),0,VLOOKUP($I$16+$H48,Tasas!$FY$78:$HJ$1228,$I$15+GV$33+2,0)) -> 0 | GW48: =+IF(OR($C48=0,$C48="NO"),0,VLOOKUP($I$16+$H48,Tasas!$FY$78:$HJ$1228,$I$15+GW$33+2,0)) -> 0 | GX48: =+IF(OR($C48=0,$C48="NO"),0,VLOOKUP($I$16+$H48,Tasas!$FY$78:$HJ$1228,$I$15+GX$33+2,0)) -> 0
A49: Cláusula de invalidez permanente parcial previa al seguro. | C49: =Cotizador!$E$104 -> 0 | D49: =Cotizador!$G$104 -> 0 | E49: =Cotizador!$I$104 -> 0 | F49: =Cotizador!$K$104 -> 0 | H49: 896 | I49: =+IF(OR($C49=0,$C49="NO"),0,VLOOKUP($I$16+$H49,Tasas!$C$78:$AN$1228,$I$15+I$33+2,0)) -> 0 | J49: =+IF(OR($C49=0,$C49="NO"),0,VLOOKUP($I$16+$H49,Tasas!$C$78:$AN$1228,$I$15+J$33+2,0)) -> 0 | K49: =+IF(OR($C49=0,$C49="NO"),0,VLOOKUP($I$16+$H49,Tasas!$C$78:$AN$1228,$I$15+K$33+2,0)) -> 0 | L49: =+IF(OR($C49=0,$C49="NO"),0,VLOOKUP($I$16+$H49,Tasas!$C$78:$AN$1228,$I$15+L$33+2,0)) -> 0 | M49: =+IF(OR($C49=0,$C49="NO"),0,VLOOKUP($I$16+$H49,Tasas!$C$78:$AN$1228,$I$15+M$33+2,0)) -> 0 | N49: =+IF(OR($C49=0,$C49="NO"),0,VLOOKUP($I$16+$H49,Tasas!$C$78:$AN$1228,$I$15+N$33+2,0)) -> 0 | O49: =+IF(OR($C49=0,$C49="NO"),0,VLOOKUP($I$16+$H49,Tasas!$C$78:$AN$1228,$I$15+O$33+2,0)) -> 0 | P49: =+IF(OR($C49=0,$C49="NO"),0,VLOOKUP($I$16+$H49,Tasas!$C$78:$AN$1228,$I$15+P$33+2,0)) -> 0 | Q49: =+IF(OR($D49=0,$D49="NO"),0,VLOOKUP($J$16+$H49,Tasas!$C$78:$AN$1228,$J$15+Q$33+2,0)) -> 0 | R49: =+IF(OR($D49=0,$D49="NO"),0,VLOOKUP($J$16+$H49,Tasas!$C$78:$AN$1228,$J$15+R$33+2,0)) -> 0 | S49: =+IF(OR($D49=0,$D49="NO"),0,VLOOKUP($J$16+$H49,Tasas!$C$78:$AN$1228,$J$15+S$33+2,0)) -> 0 | T49: =+IF(OR($D49=0,$D49="NO"),0,VLOOKUP($J$16+$H49,Tasas!$C$78:$AN$1228,$J$15+T$33+2,0)) -> 0 | U49: =+IF(OR($D49=0,$D49="NO"),0,VLOOKUP($J$16+$H49,Tasas!$C$78:$AN$1228,$J$15+U$33+2,0)) -> 0 | V49: =+IF(OR($D49=0,$D49="NO"),0,VLOOKUP($J$16+$H49,Tasas!$C$78:$AN$1228,$J$15+V$33+2,0)) -> 0 | W49: =+IF(OR($D49=0,$D49="NO"),0,VLOOKUP($J$16+$H49,Tasas!$C$78:$AN$1228,$J$15+W$33+2,0)) -> 0 | X49: =+IF(OR($D49=0,$D49="NO"),0,VLOOKUP($J$16+$H49,Tasas!$C$78:$AN$1228,$J$15+X$33+2,0)) -> 0 | Y49: =+IF(OR($E49=0,$E49="NO"),0,VLOOKUP($K$16+$H49,Tasas!$C$78:$AN$1228,$K$15+Y$33+2,0)) -> 0 | Z49: =+IF(OR($E49=0,$E49="NO"),0,VLOOKUP($K$16+$H49,Tasas!$C$78:$AN$1228,$K$15+Z$33+2,0)) -> 0 | AA49: =+IF(OR($E49=0,$E49="NO"),0,VLOOKUP($K$16+$H49,Tasas!$C$78:$AN$1228,$K$15+AA$33+2,0)) -> 0 | AB49: =+IF(OR($E49=0,$E49="NO"),0,VLOOKUP($K$16+$H49,Tasas!$C$78:$AN$1228,$K$15+AB$33+2,0)) -> 0 | AC49: =+IF(OR($E49=0,$E49="NO"),0,VLOOKUP($K$16+$H49,Tasas!$C$78:$AN$1228,$K$15+AC$33+2,0)) -> 0 | AD49: =+IF(OR($E49=0,$E49="NO"),0,VLOOKUP($K$16+$H49,Tasas!$C$78:$AN$1228,$K$15+AD$33+2,0)) -> 0 | AE49: =+IF(OR($E49=0,$E49="NO"),0,VLOOKUP($K$16+$H49,Tasas!$C$78:$AN$1228,$K$15+AE$33+2,0)) -> 0 | AF49: =+IF(OR($E49=0,$E49="NO"),0,VLOOKUP($K$16+$H49,Tasas!$C$78:$AN$1228,$K$15+AF$33+2,0)) -> 0 | AG49: =+IF(OR($F49=0,$F49="NO"),0,VLOOKUP($L$16+$H49,Tasas!$C$78:$AN$1228,$L$15+AG$33+2,0)) -> 0 | AH49: =+IF(OR($F49=0,$F49="NO"),0,VLOOKUP($L$16+$H49,Tasas!$C$78:$AN$1228,$L$15+AH$33+2,0)) -> 0 | AI49: =+IF(OR($F49=0,$F49="NO"),0,VLOOKUP($L$16+$H49,Tasas!$C$78:$AN$1228,$L$15+AI$33+2,0)) -> 0 | AJ49: =+IF(OR($F49=0,$F49="NO"),0,VLOOKUP($L$16+$H49,Tasas!$C$78:$AN$1228,$L$15+AJ$33+2,0)) -> 0 | AK49: =+IF(OR($F49=0,$F49="NO"),0,VLOOKUP($L$16+$H49,Tasas!$C$78:$AN$1228,$L$15+AK$33+2,0)) -> 0 | AL49: =+IF(OR($F49=0,$F49="NO"),0,VLOOKUP($L$16+$H49,Tasas!$C$78:$AN$1228,$L$15+AL$33+2,0)) -> 0 | AM49: =+IF(OR($F49=0,$F49="NO"),0,VLOOKUP($L$16+$H49,Tasas!$C$78:$AN$1228,$L$15+AM$33+2,0)) -> 0 | AN49: =+IF(OR($F49=0,$F49="NO"),0,VLOOKUP($L$16+$H49,Tasas!$C$78:$AN$1228,$L$15+AN$33+2,0)) -> 0 | AS49: Cláusula de invalidez permanente parcial previa al seguro. | AU49: =Cotizador!$E$104 -> 0 | AV49: =Cotizador!$G$104 -> 0 | AW49: =Cotizador!$I$104 -> 0 | AX49: =Cotizador!$K$104 -> 0 | AZ49: 896 | BA49: =+IF(OR($AU49=0,$AU49="NO"),0,VLOOKUP($BA$16+$AZ49,Tasas!$C$78:$BY$1292,$BA$15+BA$33+39,0)) -> 0 | BB49: =+IF(OR($AU49=0,$AU49="NO"),0,VLOOKUP($BA$16+$AZ49,Tasas!$C$78:$BY$1292,$BA$15+BB$33+39,0)) -> 0 | BC49: =+IF(OR($AU49=0,$AU49="NO"),0,VLOOKUP($BA$16+$AZ49,Tasas!$C$78:$BY$1292,$BA$15+BC$33+39,0)) -> 0 | BD49: =+IF(OR($AU49=0,$AU49="NO"),0,VLOOKUP($BA$16+$AZ49,Tasas!$C$78:$BY$1292,$BA$15+BD$33+39,0)) -> 0 | BE49: =+IF(OR($AU49=0,$AU49="NO"),0,VLOOKUP($BA$16+$AZ49,Tasas!$C$78:$BY$1292,$BA$15+BE$33+39,0)) -> 0 | BF49: =+IF(OR($AU49=0,$AU49="NO"),0,VLOOKUP($BA$16+$AZ49,Tasas!$C$78:$BY$1292,$BA$15+BF$33+39,0)) -> 0 | BG49: =+IF(OR($AU49=0,$AU49="NO"),0,VLOOKUP($BA$16+$AZ49,Tasas!$C$78:$BY$1292,$BA$15+BG$33+39,0)) -> 0 | BH49: =+IF(OR($AU49=0,$AU49="NO"),0,VLOOKUP($BA$16+$AZ49,Tasas!$C$78:$BY$1292,$BA$15+BH$33+39,0)) -> 0 | BI49: =+IF(OR($AU49=0,$AU49="NO"),0,VLOOKUP($BA$16+$AZ49,Tasas!$C$78:$BY$1292,$BA$15+BI$33+39,0)) -> 0 | BJ49: =+IF(OR($AU49=0,$AU49="NO"),0,VLOOKUP($BA$16+$AZ49,Tasas!$C$78:$BY$1292,$BA$15+BJ$33+39,0)) -> 0 | BK49: =+IF(OR($AU49=0,$AU49="NO"),0,VLOOKUP($BA$16+$AZ49,Tasas!$C$78:$BY$1292,$BA$15+BK$33+39,0)) -> 0 | BL49: =+IF(OR($AU49=0,$AU49="NO"),0,VLOOKUP($BA$16+$AZ49,Tasas!$C$78:$BY$1292,$BA$15+BL$33+39,0)) -> 0 | BM49: =+IF(OR($AU49=0,$AU49="NO"),0,VLOOKUP($BA$16+$AZ49,Tasas!$C$78:$BY$1292,$BA$15+BM$33+39,0)) -> 0 | BN49: =+IF(OR($AU49=0,$AU49="NO"),0,VLOOKUP($BA$16+$AZ49,Tasas!$C$78:$BY$1292,$BA$15+BN$33+39,0)) -> 0 | BO49: =+IF(OR($AU49=0,$AU49="NO"),0,VLOOKUP($BA$16+$AZ49,Tasas!$C$78:$BY$1292,$BA$15+BO$33+39,0)) -> 0 | BP49: =+IF(OR($AU49=0,$AU49="NO"),0,VLOOKUP($BA$16+$AZ49,Tasas!$C$78:$BY$1292,$BA$15+BP$33+39,0)) -> 0 | BQ49: =+IF(OR($AU49=0,$AU49="NO"),0,VLOOKUP($BA$16+$AZ49,Tasas!$C$78:$BY$1292,$BA$15+BQ$33+39,0)) -> 0 | BR49: =+IF(OR($AU49=0,$AU49="NO"),0,VLOOKUP($BA$16+$AZ49,Tasas!$C$78:$BY$1292,$BA$15+BR$33+39,0)) -> 0 | BS49: =+IF(OR($AU49=0,$AU49="NO"),0,VLOOKUP($BA$16+$AZ49,Tasas!$C$78:$BY$1292,$BA$15+BS$33+39,0)) -> 0 | BT49: =+IF(OR($AU49=0,$AU49="NO"),0,VLOOKUP($BA$16+$AZ49,Tasas!$C$78:$BY$1292,$BA$15+BT$33+39,0)) -> 0 | BU49: =+IF(OR($AU49=0,$AU49="NO"),0,VLOOKUP($BA$16+$AZ49,Tasas!$C$78:$BY$1292,$BA$15+BU$33+39,0)) -> 0 | BV49: =+IF(OR($AU49=0,$AU49="NO"),0,VLOOKUP($BA$16+$AZ49,Tasas!$C$78:$BY$1292,$BA$15+BV$33+39,0)) -> 0 | BW49: =+IF(OR($AU49=0,$AU49="NO"),0,VLOOKUP($BA$16+$AZ49,Tasas!$C$78:$BY$1292,$BA$15+BW$33+39,0)) -> 0 | BX49: =+IF(OR($AU49=0,$AU49="NO"),0,VLOOKUP($BA$16+$AZ49,Tasas!$C$78:$BY$1292,$BA$15+BX$33+39,0)) -> 0 | BY49: =+IF(OR($AU49=0,$AU49="NO"),0,VLOOKUP($BA$16+$AZ49,Tasas!$C$78:$BY$1292,$BA$15+BY$33+39,0)) -> 0 | BZ49: =+IF(OR($AU49=0,$AU49="NO"),0,VLOOKUP($BA$16+$AZ49,Tasas!$C$78:$BY$1292,$BA$15+BZ$33+39,0)) -> 0 | CA49: =+IF(OR($AU49=0,$AU49="NO"),0,VLOOKUP($BA$16+$AZ49,Tasas!$C$78:$BY$1292,$BA$15+CA$33+39,0)) -> 0 | CB49: =+IF(OR($AU49=0,$AU49="NO"),0,VLOOKUP($BA$16+$AZ49,Tasas!$C$78:$BY$1292,$BA$15+CB$33+39,0)) -> 0 | CC49: =+IF(OR($AU49=0,$AU49="NO"),0,VLOOKUP($BA$16+$AZ49,Tasas!$C$78:$BY$1292,$BA$15+CC$33+39,0)) -> 0 | CD49: =+IF(OR($AU49=0,$AU49="NO"),0,VLOOKUP($BA$16+$AZ49,Tasas!$C$78:$BY$1292,$BA$15+CD$33+39,0)) -> 0 | CE49: =+IF(OR($AU49=0,$AU49="NO"),0,VLOOKUP($BA$16+$AZ49,Tasas!$C$78:$BY$1292,$BA$15+CE$33+39,0)) -> 0 | CF49: =+IF(OR($AU49=0,$AU49="NO"),0,VLOOKUP($BA$16+$AZ49,Tasas!$C$78:$BY$1292,$BA$15+CF$33+39,0)) -> 0 | CK49: Cláusula de invalidez permanente parcial previa al seguro. | CM49: =Cotizador!$E$104 -> 0 | CN49: 43 | CO49: 43 | CP49: =IF(OR($CM49="",$CM49=0),0,VLOOKUP($CO49,Tasas!$CB$17:$CL$70,Calculadora!CP$33,0)) -> 0 | CQ49: =IF(OR($CM49="",$CM49=0),0,VLOOKUP($CO49,Tasas!$CB$17:$CL$70,Calculadora!CQ$33,0)) -> 0 | CR49: =IF(OR($CM49="",$CM49=0),0,VLOOKUP($CO49,Tasas!$CB$17:$CL$70,Calculadora!CR$33,0)) -> 0 | CS49: =IF(OR($CM49="",$CM49=0),0,VLOOKUP($CO49,Tasas!$CB$17:$CL$70,Calculadora!CS$33,0)) -> 0 | CT49: =IF(OR($CM49="",$CM49=0),0,VLOOKUP($CO49,Tasas!$CB$17:$CL$70,Calculadora!CT$33,0)) -> 0 | CU49: =IF(OR($CM49="",$CM49=0),0,VLOOKUP($CO49,Tasas!$CB$17:$CL$70,Calculadora!CU$33,0)) -> 0 | CV49: =IF(OR($CM49="",$CM49=0),0,VLOOKUP($CO49,Tasas!$CB$17:$CL$70,Calculadora!CV$33,0)) -> 0 | CW49: =IF(OR($CM49="",$CM49=0),0,VLOOKUP($CO49,Tasas!$CB$17:$CL$70,Calculadora!CW$33,0)) -> 0 | DB49: Cláusula de invalidez permanente parcial previa al seguro. | DD49: =Cotizador!$E$104 -> 0 | DE49: 43 | DF49: 43 | DG49: =IF(OR($DD49="",$DD49=0),0,VLOOKUP($DF49,Tasas!$CO$17:$CY$70,Calculadora!DG$33,0)) -> 0 | DH49: =IF(OR($DD49="",$DD49=0),0,VLOOKUP($DF49,Tasas!$CO$17:$CY$70,Calculadora!DH$33,0)) -> 0 | DI49: =IF(OR($DD49="",$DD49=0),0,VLOOKUP($DF49,Tasas!$CO$17:$CY$70,Calculadora!DI$33,0)) -> 0 | DJ49: =IF(OR($DD49="",$DD49=0),0,VLOOKUP($DF49,Tasas!$CO$17:$CY$70,Calculadora!DJ$33,0)) -> 0 | DK49: =IF(OR($DD49="",$DD49=0),0,VLOOKUP($DF49,Tasas!$CO$17:$CY$70,Calculadora!DK$33,0)) -> 0 | DL49: =IF(OR($DD49="",$DD49=0),0,VLOOKUP($DF49,Tasas!$CO$17:$CY$70,Calculadora!DL$33,0)) -> 0 | DM49: =IF(OR($DD49="",$DD49=0),0,VLOOKUP($DF49,Tasas!$CO$17:$CY$70,Calculadora!DM$33,0)) -> 0 | DN49: =IF(OR($DD49="",$DD49=0),0,VLOOKUP($DF49,Tasas!$CO$17:$CY$70,Calculadora!DN$33,0)) -> 0 | DS49: Cláusula de invalidez permanente parcial previa al seguro. | DU49: =Cotizador!$E$104 -> 0 | DV49: 43 | DW49: 43 | DX49: =IF(OR($DU49="",$DU49=0),0,VLOOKUP($DW49,Tasas!$DB$17:$DL$70,Calculadora!DX$33,0)) -> 0 | DY49: =IF(OR($DU49="",$DU49=0),0,VLOOKUP($DW49,Tasas!$DB$17:$DL$70,Calculadora!DY$33,0)) -> 0 | DZ49: =IF(OR($DU49="",$DU49=0),0,VLOOKUP($DW49,Tasas!$DB$17:$DL$70,Calculadora!DZ$33,0)) -> 0 | EA49: =IF(OR($DU49="",$DU49=0),0,VLOOKUP($DW49,Tasas!$DB$17:$DL$70,Calculadora!EA$33,0)) -> 0 | EB49: =IF(OR($DU49="",$DU49=0),0,VLOOKUP($DW49,Tasas!$DB$17:$DL$70,Calculadora!EB$33,0)) -> 0 | EC49: =IF(OR($DU49="",$DU49=0),0,VLOOKUP($DW49,Tasas!$DB$17:$DL$70,Calculadora!EC$33,0)) -> 0 | ED49: =IF(OR($DU49="",$DU49=0),0,VLOOKUP($DW49,Tasas!$DB$17:$DL$70,Calculadora!ED$33,0)) -> 0 | EE49: =IF(OR($DU49="",$DU49=0),0,VLOOKUP($DW49,Tasas!$DB$17:$DL$70,Calculadora!EE$33,0)) -> 0 | EJ49: Cláusula de invalidez permanente parcial previa al seguro. | EL49: =Cotizador!$E$104 -> 0 | EM49: 43 | EN49: 43 | EO49: =IF(OR($EL49="",$EL49=0),0,VLOOKUP($EN49,Tasas!$DO$17:$DY$70,Calculadora!EO$33,0)) -> 0 | EP49: =IF(OR($EL49="",$EL49=0),0,VLOOKUP($EN49,Tasas!$DO$17:$DY$70,Calculadora!EP$33,0)) -> 0 | EQ49: =IF(OR($EL49="",$EL49=0),0,VLOOKUP($EN49,Tasas!$DO$17:$DY$70,Calculadora!EQ$33,0)) -> 0 | ER49: =IF(OR($EL49="",$EL49=0),0,VLOOKUP($EN49,Tasas!$DO$17:$DY$70,Calculadora!ER$33,0)) -> 0 | ES49: =IF(OR($EL49="",$EL49=0),0,VLOOKUP($EN49,Tasas!$DO$17:$DY$70,Calculadora!ES$33,0)) -> 0 | ET49: =IF(OR($EL49="",$EL49=0),0,VLOOKUP($EN49,Tasas!$DO$17:$DY$70,Calculadora!ET$33,0)) -> 0 | EU49: =IF(OR($EL49="",$EL49=0),0,VLOOKUP($EN49,Tasas!$DO$17:$DY$70,Calculadora!EU$33,0)) -> 0 | EV49: =IF(OR($EL49="",$EL49=0),0,VLOOKUP($EN49,Tasas!$DO$17:$DY$70,Calculadora!EV$33,0)) -> 0 | FA49: Cláusula de invalidez permanente parcial previa al seguro. | FC49: =Cotizador!$E$104 -> 0 | FD49: 43 | FE49: 43 | FF49: =IF(OR($FC49="",$FC49=0),0,VLOOKUP($FE49,Tasas!$EB$17:$EL$70,Calculadora!FF$33,0)) -> 0 | FG49: =IF(OR($FC49="",$FC49=0),0,VLOOKUP($FE49,Tasas!$EB$17:$EL$70,Calculadora!FG$33,0)) -> 0 | FH49: =IF(OR($FC49="",$FC49=0),0,VLOOKUP($FE49,Tasas!$EB$17:$EL$70,Calculadora!FH$33,0)) -> 0 | FI49: =IF(OR($FC49="",$FC49=0),0,VLOOKUP($FE49,Tasas!$EB$17:$EL$70,Calculadora!FI$33,0)) -> 0 | FJ49: =IF(OR($FC49="",$FC49=0),0,VLOOKUP($FE49,Tasas!$EB$17:$EL$70,Calculadora!FJ$33,0)) -> 0 | FK49: =IF(OR($FC49="",$FC49=0),0,VLOOKUP($FE49,Tasas!$EB$17:$EL$70,Calculadora!FK$33,0)) -> 0 | FL49: =IF(OR($FC49="",$FC49=0),0,VLOOKUP($FE49,Tasas!$EB$17:$EL$70,Calculadora!FL$33,0)) -> 0 | FM49: =IF(OR($FC49="",$FC49=0),0,VLOOKUP($FE49,Tasas!$EB$17:$EL$70,Calculadora!FM$33,0)) -> 0 | FR49: Por usar y/o portar armas | FT49: =Cotizador!$E$124 -> 0 | FV49: 16 | FW49: =IF(OR($FT49=0,$FT49="NO"),0,VLOOKUP($FV49,Tasas!$EO$29:$FU$45,Calculadora!FW$32,0)) -> 0 | FX49: =IF(OR($FT49=0,$FT49="NO"),0,VLOOKUP($FV49,Tasas!$EO$29:$FU$45,Calculadora!FX$32,0)) -> 0 | FY49: =IF(OR($FT49=0,$FT49="NO"),0,VLOOKUP($FV49,Tasas!$EO$29:$FU$45,Calculadora!FY$32,0)) -> 0 | FZ49: =IF(OR($FT49=0,$FT49="NO"),0,VLOOKUP($FV49,Tasas!$EO$29:$FU$45,Calculadora!FZ$32,0)) -> 0 | GA49: =IF(OR($FT49=0,$FT49="NO"),0,VLOOKUP($FV49,Tasas!$EO$29:$FU$45,Calculadora!GA$32,0)) -> 0 | GB49: =IF(OR($FT49=0,$FT49="NO"),0,VLOOKUP($FV49,Tasas!$EO$29:$FU$45,Calculadora!GB$32,0)) -> 0 | GC49: =IF(OR($FT49=0,$FT49="NO"),0,VLOOKUP($FV49,Tasas!$EO$29:$FU$45,Calculadora!GC$32,0)) -> 0 | GD49: =IF(OR($FT49=0,$FT49="NO"),0,VLOOKUP($FV49,Tasas!$EO$29:$FU$45,Calculadora!GD$32,0)) -> 0 | GI49: Cláusula de invalidez permanente parcial previa al seguro. | GK49: =Cotizador!$E$104 -> 0 | GP49: 896 | GQ49: =+IF(OR($C49=0,$C49="NO"),0,VLOOKUP($I$16+$H49,Tasas!$FY$78:$HJ$1228,$I$15+GQ$33+2,0)) -> 0 | GR49: =+IF(OR($C49=0,$C49="NO"),0,VLOOKUP($I$16+$H49,Tasas!$FY$78:$HJ$1228,$I$15+GR$33+2,0)) -> 0 | GS49: =+IF(OR($C49=0,$C49="NO"),0,VLOOKUP($I$16+$H49,Tasas!$FY$78:$HJ$1228,$I$15+GS$33+2,0)) -> 0 | GT49: =+IF(OR($C49=0,$C49="NO"),0,VLOOKUP($I$16+$H49,Tasas!$FY$78:$HJ$1228,$I$15+GT$33+2,0)) -> 0 | GU49: =+IF(OR($C49=0,$C49="NO"),0,VLOOKUP($I$16+$H49,Tasas!$FY$78:$HJ$1228,$I$15+GU$33+2,0)) -> 0 | GV49: =+IF(OR($C49=0,$C49="NO"),0,VLOOKUP($I$16+$H49,Tasas!$FY$78:$HJ$1228,$I$15+GV$33+2,0)) -> 0 | GW49: =+IF(OR($C49=0,$C49="NO"),0,VLOOKUP($I$16+$H49,Tasas!$FY$78:$HJ$1228,$I$15+GW$33+2,0)) -> 0 | GX49: =+IF(OR($C49=0,$C49="NO"),0,VLOOKUP($I$16+$H49,Tasas!$FY$78:$HJ$1228,$I$15+GX$33+2,0)) -> 0
